Workbook

Sheet Index
B1: AER Capex Forecast Model
B2: =IFERROR(MID(CELL("filename",A1),FIND("]",CELL("filename",A1))+1,255),"") -> Index | C2: Overall Check: | D2: ='Model Validation'!$C$4 -> 0 | F2: NOTE: if there is an error code here you can unhide the Model Validation tab to help you identify the error source.
B5: Worksheet summary
B7: Worksheet name | C7: Check | F7: Input required? | H7: Description
B8: =IFERROR('Input| Setup'!B2,"") -> Input| Setup | C8: N/A | F8: Y | H8: Sets up the model with relevant years and output categories
B9: =IFERROR('Input| Escalations'!B2,"") -> Input| Escalations | C9: N/A | F9: Y | H9: Sets up the inflation and labour escalations
B10: =IFERROR('Input| Projects'!C2,"") -> Input| Projects | C10: ='Model Validation'!C8 -> 0 | F10: Y | H10: Forecast direct costs and other relevant forecast parameters are entered here.
B11: =IFERROR('Input| Disposals'!C2,"") -> Input| Disposals | C11: ='Model Validation'!C9 -> 0 | F11: Y | H11: Input for forecast disposals by PTRM category.
B12: =IFERROR('Input| Expensing'!B2,"") -> Input| Expensing | C12: ='Model Validation'!C10 -> 0 | F12: Y | H12: Input for forecast immediate expensing by PTRM category.
B13: =IFERROR('Input| Overheads'!B2,"") -> Input| Overheads | C13: ='Model Validation'!C11 -> 0 | F13: Y | H13: Input tables used to calculate forecast capitalised overheads.
B14: =IFERROR('Calc| Overheads Allocation'!B2,"") -> Calc| Overheads Allocation | C14: ='Model Validation'!C12 -> 0 | F14: N | H14: Calculation tables for forecast capitalised overheads and yearly allocation rates.
B15: =IFERROR('Calc| Project Costs'!C2,"") -> Calc| Project Costs | C15: ='Model Validation'!C13 -> 0 | F15: N | H15: Calculation tables for forecast capex outputs.
B16: =IFERROR('Output| PTRM'!C2,"") -> Output| PTRM | C16: ='Model Validation'!C14 -> 0 | F16: N | H16: Produces forecast capex and immediate expensing tables in PTRM format.
B17: =IFERROR('Output| RIN'!B2,"") -> Output| RIN | C17: ='Model Validation'!C15 -> 0 | F17: N | H17: Produces forecast capex tables analogous to Reset RIN table 2.1.1.
B18: =IFERROR('Output| AER'!B2,"") -> Output| AER | C18: ='Model Validation'!C16 -> 0 | F18: N | H18: Produces forecast capex by capex drivers that align with AER's standard assessment approach.
B19: =IFERROR('Model Validation'!B2,"") -> Model Validation | C19: ='Model Validation'!C4 -> 0 | F19: N | H19: Hidden tab. Compiles all validation cells in the model to facilitate troubleshooting.
B21: Table summary
B23: Table name | C23: Worksheet | F23: Input required? | H23: Description
B24: ='Input| Setup'!B5 -> 1. Financial Years (YYYY-YY) | C24: =B8 -> Input| Setup | F24: Y | H24: Provides reference range for FY drop-down boxes. Please enter first year for which real prices are required (i.e. earliest real year for any data inputs).
B25: ='Input| Setup'!B17 -> 2. RIN categories | C25: =B8 -> Input| Setup | F25: N | H25: Aligns with Reset RIN table 2.1.1.
B26: ='Input| Setup'!B27 -> 3. AER categories | C26: =B8 -> Input| Setup | F26: N | H26: Aligns with AER's assessment categories.
B27: ='Input| Setup'!B38 -> 4. Months | C27: =B8 -> Input| Setup | F27: N | H27: Provides reference range for month drop-down boxes (i.e. June for end-year and December for mid-year).
B28: ='Input| Setup'!B43 -> 5. Overhead switch | C28: =B8 -> Input| Setup | F28: N | H28: Assigns yes or no response in main table as to whether the project attracts capitalised overheads.
B29: ='Input| Setup'!E5 -> 6. PTRM RAB asset categories | C29: =B8 -> Input| Setup | F29: Y | H29: Please enter your PTRM categories.
B30: ='Input| Escalations'!B5 -> 7. Inflation table setup | C30: =B9 -> Input| Escalations | F30: Y | H30: Please enter the real year basis for each data input series specified.
B31: ='Input| Escalations'!B12 -> 8. Inflation | C31: =C30 -> Input| Escalations | F31: Y | H31: Calculates CPI and real price escalators. Historical CPI (lagged 12-month) pre-populated. Please enter first year of forecast regulatory control period, estimated CPI and forecast labour escalation.
B32: ='Input| Escalations'!B21 -> 9. Forecast real labour escalation | C32: =C31 -> Input| Escalations | F32: N | H32: Transposes real price escalation outputs.
B33: ='Input| Projects'!C6 -> 10. Project Details | C33: =B10 -> Input| Projects | F33: Y | H33: Please enter full list of forecast projects and programs.
B34: ='Input| Projects'!F6 -> 11. Mapping categories | C34: =B10 -> Input| Projects | F34: Y | H34: Please enter full list of forecast projects and programs.
B35: ='Input| Projects'!I6 -> 12. Direct unescalated costs (including gifted assets) ($'000s 2017-18) | C35: =B10 -> Input| Projects | F35: Y | H35: Please enter annual forecast direct capex for each project and program in real dollars set out in Input|Escalations tab.
B36: ='Input| Projects'!O6 -> 13. Internal labour as % of direct costs | C36: =B10 -> Input| Projects | F36: Y | H36: Please enter the proportion of internal labour costs to total direct costs for each project and program (average over regulatory control period).
B37: ='Input| Projects'!R6 -> 14. Capitalised overheads allocation | C37: =B10 -> Input| Projects | F37: Y | H37: Please indicate whether the project or program attracts capitalised network or corporate overheads.
B38: ='Input| Projects'!U6 -> 15. Capital contributions as % of direct costs | C38: =B10 -> Input| Projects | F38: Y | H38: Please enter the proportion of each of cash contributions and gifted assets to total direct costs for each relevant project and program (average over regulatory control period).
B39: ='Input| Projects'!X6 -> 16. PTRM asset classes | C39: =B10 -> Input| Projects | F39: Y | H39: Please enter the proportion of directs costs for each project and program to be allocated to each PTRM category.
B40: ='Input| Disposals'!C5 -> 17. Forecast asset disposals ($'000s 2017-18) | C40: =B11 -> Input| Disposals | F40: Y | H40: Please enter your forecast asset disposals by PTRM category.
B41: ='Input| Disposals'!L5 -> 18. Forecast asset disposals ($'000s June 2021) | C41: =B11 -> Input| Disposals | F41: N | H41: Converts table 10 data to correct real year basis.
B42: ='Input| Expensing'!C5 -> 19. Immediate expensing (% to be immediately expensed) | C42: =B12 -> Input| Expensing | F42: Y | H42: Please enter forecast immediate expensing of capex as a percentage of total gross capex by PTRM category.
B43: ='Input| Overheads'!B5 -> 20. Forecast capitalised overheads | C43: =B13 -> Input| Overheads | F43: optional | H43: OPTIONAL: please enter unescalated capitalised overheads in this table only if you wish to enter a substitute forecast for capitalised overheads instead of the default methodology (i.e. based on historicals).
B44: ='Input| Overheads'!B13 -> 21. Historical expenditure (nominal) | C44: =B13 -> Input| Overheads | F44: Y | H44: Please enter historical actual capex in nominal terms. Do not enter current period estimated capex.
B45: ='Input| Overheads'!B25 -> 22. Forecast real price escalation for capitalised overheads | C45: =B13 -> Input| Overheads | F45: Y | H45: Please enter labour costs as a proportion of capitalised overheads costs.
B46: ='Calc| Overheads Allocation'!B7 -> 23. Overheads rate to be applied to forecast escalated direct costs (%) | C46: =$B$14 -> Calc| Overheads Allocation | F46: N | H46: Output: rate at which capitalised overheads are allocated to direct costs for each project and program.
B47: ='Calc| Overheads Allocation'!B13 -> 24. Forecast capitalised overheads (incl. gifted assets overheads) | C47: =$B$14 -> Calc| Overheads Allocation | F47: N | H47: Output: total forecast capitalised overheads to be allocated to gross capex including gifted assets.
B48: ='Calc| Overheads Allocation'!B20 -> 25. Forecast capitalised overheads (excl. gifted assets overheads) | C48: Calc| Overheads Allocation | F48: N | H48: Output: total forecast capitalised overheads to be allocated to gross capex excluding gifted assets - this is the total amount that feeds into the PTRM.
B49: ='Calc| Overheads Allocation'!B29 -> 26. Capitalised overheads, ($'000s June 2021) | C49: Calc| Overheads Allocation | F49: N | H49: Inflates historical actual capitalised overheads from nominal to real regulatory base dollars using CPI.
B50: ='Calc| Overheads Allocation'!B34 -> 27. Total direct capex that attract capitalised overheads, ($'000s June 2021) | C50: Calc| Overheads Allocation | F50: N | H50: Inflates historical actual direct capex that attracts capitalised overheads from nominal to real regulatory base dollars using CPI.
B51: ='Calc| Overheads Allocation'!B41 -> 28. Escalated direct costs, ($'000s June 2021) | C51: Calc| Overheads Allocation | F51: N | H51: Default method of forecasting capitalised overheads: compiles forecast direct capex that attracts capitalised overheads.
B52: ='Calc| Overheads Allocation'!B46 -> 29. Change in direct costs attracting capitalised overheads | C52: Calc| Overheads Allocation | F52: N | H52: Default method of forecasting capitalised overheads: calculates the change in direct capex that attracts capitalised overheads between current period actuals and forecast.
B53: ='Calc| Overheads Allocation'!B52 -> 30. Unescalated capitalised overheads, ($'000s June 2021) | C53: Calc| Overheads Allocation | F53: N | H53: Default method of forecasting capitalised overheads: calculates forecast capitalised overheads based on the change in direct capex and assuming 25 per cent of capitalised overheads vary with changes in direct capex.
B54: ='Calc| Overheads Allocation'!B58 -> 31. Annual unescalated capitalised overheads, ($'000s June 2021) | C54: Calc| Overheads Allocation | F54: N | H54: ="Calculates annual forecast capitalised overheads either using data input by the distributor in table "&LEFT('Input| Overheads'!B13, 2)&" or based on the overhead rate calculated in table "&LEFT('Calc| Overheads Allocation'!B52,2)&"." -> Calculates annual forecast capitalised overheads either using data input by the distributor in table 21 or based on the overhead rate calculated in table 30.
B55: ='Calc| Overheads Allocation'!B64 -> 32. Real cost escalation - index | C55: Calc| Overheads Allocation | F55: N | H55: Calculates real cost escalation applicable to forecast capitalised overheads.
B56: ='Calc| Project Costs'!G6 -> 33. Direct unescalated costs (incl. gifted assets), $000s ($2021 June) | C56: =$B$15 -> Calc| Project Costs | F56: N | H56: Inflates forecast direct costs from real base year for inputs to real regulatory base dollars using CPI.
B57: ='Calc| Project Costs'!M6 -> 34. Compound real cost escalation rates | C57: =$B$15 -> Calc| Project Costs | F57: N | H57: Calculates real escalators for each project and program based on the proportion of internal labour costs to total direct capex.
B58: ='Calc| Project Costs'!S6 -> 35. Direct escalated costs (Including gifted assets) ($'000s June 2021) | C58: =$B$15 -> Calc| Project Costs | F58: N | H58: Escalates direct costs using real cost escalators.
B59: ='Calc| Project Costs'!Y6 -> 36. Direct escalated gifted assets ($'000s June 2021) | C59: Calc| Project Costs | F59: N | H59: Calculates escalated gifted assets based on the proportion of gifted assets to total direct costs.
B60: ='Calc| Project Costs'!AE6 -> 37. Direct escalated cash contributions ($'000s June 2021) | C60: Calc| Project Costs | F60: N | H60: Calculates escalated cash contributions based on the proportion of cash contributions to total direct costs.
B61: ='Calc| Project Costs'!AK6 -> 38. Direct escalated costs (excluding gifted assets) ($'000s June 2021) | C61: Calc| Project Costs | F61: N | H61: Calculates escalated direct costs net of gifted assets.
B62: ='Calc| Project Costs'!AQ6 -> 39. Network overheads ($'000s June 2021) | C62: Calc| Project Costs | F62: N | H62: ="Applies overhead rate in table "&LEFT('Input| Projects'!C6,2)&" to calculate allocation of capitalised network overheads." -> Applies overhead rate in table 10 to calculate allocation of capitalised network overheads.
B63: ='Calc| Project Costs'!AW6 -> 40. Corporate overheads ($'000s June 2021) | C63: Calc| Project Costs | F63: N | H63: ="Applies overhead rate in table "&LEFT('Input| Projects'!C6,2)&" to calculate allocation of capitalised corporate overheads." -> Applies overhead rate in table 10 to calculate allocation of capitalised corporate overheads.
B64: ='Calc| Project Costs'!BC6 -> 41. Total capitalised overheads ($'000s June 2021) | C64: Calc| Project Costs | F64: N | H64: Sums the total capitalised overheads.
B65: ='Calc| Project Costs'!BI6 -> 42. Total overheads allocated to cash contributions ($'000s June 2021) | C65: Calc| Project Costs | F65: N | H65: Calculates allocation of capitalised overheads to cash contributions.
B66: ='Calc| Project Costs'!BO6 -> 43. Network overheads allocated to gifted assets ($'000s June 2021) | C66: Calc| Project Costs | F66: N | H66: Calculates allocation of capitalised network overheads to gifted assets.
B67: ='Calc| Project Costs'!BU6 -> 44. Corporate overheads allocated to gifted assets ($'000s June 2021) | C67: Calc| Project Costs | F67: N | H67: Calculates allocation of capitalised corporate overheads to gifted assets.
B68: ='Calc| Project Costs'!CA6 -> 45. Total overheads allocated to gifted assets ($'000s June 2021) | C68: Calc| Project Costs | F68: N | H68: Sums the total capitalised overheads allocated to gifted assets.
B69: ='Calc| Project Costs'!CG6 -> 46. Total Escalated costs (Excluding gifted assets) ($'000s June 2021) | C69: =$B$15 -> Calc| Project Costs | F69: N | H69: Calculates escalated gross capex net of gifted assets for input into PTRM table.
B70: ='Output| PTRM'!C6 -> 47. Forecast gross capital expenditure – as incurred ($millions June 2021) | C70: =$B$16 -> Output| PTRM | F70: N | H70: Gross forecast capex by PTRM category.
B71: ='Output| PTRM'!C63 -> 48. Forecast capital contributions - Cash – as incurred ($millions June 2021) | C71: =$B$16 -> Output| PTRM | F71: N | H71: Forecast cash capital contributions by PTRM category.
B72: ='Output| PTRM'!C120 -> 49. Forecast asset disposals – as incurred ($millions June 2021) | C72: Output| PTRM | F72: N | H72: Output: gross forecast capex by PTRM category.
B73: ='Output| PTRM'!C177 -> 50. Forecast net capital expenditure – as incurred ($millions June 2021) | C73: Output| PTRM | F73: N | H73: Output: net forecast capex by PTRM category.
B74: ='Output| PTRM'!M6 -> 51. Forecast immediate expensing of capital expenditure – as incurred ($millions June 2021) | C74: Output| PTRM | F74: N | H74: Output: immediate expensing of capex by PTRM category.
B75: ='Output| RIN'!B4 -> 52. RIN capex drivers: forecast capex ($000s June 2021) | C75: =B17 -> Output| RIN | F75: N | H75: Output: forecast capex - including gifted assets - by RIN category.
B76: ='Output| AER'!B4 -> 53. AER categories: forecast capex ($000s June 2021) | C76: =B18 -> Output| AER | F76: N | H76: Output: forecast capex by AER category.

Sheet Input| Setup
B1: =IFERROR(Index!B1,"") -> AER Capex Forecast Model | C1: Key: | E1: Input
B2: =IFERROR(MID(CELL("filename",A1),FIND("]",CELL("filename",A1))+1,255),"") -> Input| Setup
B5: 1. Financial Years (YYYY-YY) | E5: =LEFT(B43,1)+1&". PTRM RAB asset categories" -> 6. PTRM RAB asset categories
B6: Please enter earliest year required for any data inputs. | D6: 1 | E6: Subtransmission
B7: 2015-16 | D7: =D6+1 -> 2 | E7: Distribution system assets
B8: =LEFT(B7,4)+1&"-"&RIGHT(B7,2)+1 -> 2016-17 | D8: 3 | E8: Metering
B9: 2017-18 | D9: 4 | E9: Public Lighting
B10: 2018-19 | D10: 5 | E10: SCADA & Network Control
B11: =LEFT(B10,4)+1&"-"&RIGHT(B10,2)+1 -> 2019-20 | D11: 6 | E11: Non network general - IT
B12: 2020-21 | D12: 7 | E12: Non network general - other
B13: 2021-22 | D13: 8 | E13: Land
B14: 2022-23 | D14: 9 | E14: Inhouse Software (SL Tax Depn)
D15: 10 | E15: Buildings (SL Tax Depn)
D16: 11
B17: =LEFT(B5,1)+1&". RIN categories" -> 2. RIN categories | D17: 12
B18: Replacement | D18: 13
B19: Augmentation | D19: 14
B20: Connections | D20: 15
B21: Other non-network capex | D21: 16
B22: Capitalised network overheads | D22: 17
B23: Capitalised corporate overheads | D23: 18
B24: capcons (included in the above) | D24: 19
D25: 20
D26: 21
B27: =LEFT(B17,1)+1&". AER categories" -> 3. AER categories | D27: 22
B28: Replacement | D28: 23
B29: DER capex | D29: 24
B30: Augmentation | D30: 25
B31: Connections | D31: 26
B32: ICT capex | D32: 27
B33: Property capex | D33: 28
B34: Fleet capex | D34: 29
B35: Other non-network capex | D35: 30
D36: 31
D37: 32
B38: =LEFT(B27,1)+1&". Months" -> 4. Months | D38: 33
B39: June | D39: 34
B40: December | D40: 35
D41: 36
D42: 37
B43: =LEFT(B38,1)+1&". Overhead switch" -> 5. Overhead switch | D43: 38
B44: Yes | D44: 39
B45: No | D45: 40
D46: 41
D47: 42
D48: 43
D49: 44
D50: 45
D51: 46
D52: 47
D53: 48
D54: 49
D55: 50

Sheet Input| Escalations
B1: =IFERROR(Index!B1,"") -> AER Capex Forecast Model | C1: Key: | D1: Input
B2: =IFERROR(MID(CELL("filename",A1),FIND("]",CELL("filename",A1))+1,255),"") -> Input| Escalations
B5: =LEFT('Input| Setup'!E5,1)+1&". Inflation table setup" -> 7. Inflation table setup
C7: Year | D7: Month
B8: First year of forecast regulatory control period | C8: 2021-22
B9: Base year for inputs | C9: 2017-18 | D9: December
B10: Base year for outputs | C10: =IFERROR(LEFT(C8,4),"") -> 2021 | D10: June
B12: =LEFT(B5,1)+1&". Inflation" -> 8. Inflation
C14: =IFERROR((LEFT(D14,4)-1&IF(MID(D14,5,1)="","","-"&TEXT(MOD(MID(D14,6,2)-1,100),"00"))),"") -> 2015-16 | D14: 2016-17 | E14: 2017-18 | F14: 2018-19 | G14: 2019-20 | H14: 2020-21 | I14: =C8 -> 2021-22 | J14: =D10&" "&C10 -> June 2021
B15: CPI year on year change (%) - lagged one year (actual/estimate) | C15: 0.01717557252 | D15: 0.01688555347 | E15: 0.0147601476 | F15: 0.01909090909 | G15: 0.0178412132 | H15: 0.01840490798 | I15: 0.008605851979
B16: =D10&" "&C10&" estimate" -> June 2021 estimate | J16: =IFERROR(IF(D9="December",SQRT(I15+1)-1,""),"") -> 0.004293708025
B17: Cumulative Inflation Index | C17: =IFERROR(1+C15,"") -> 1.017175573 | D17: =IFERROR(C17*(1+D15),"") -> 1.034351145 | E17: =D17*(1+E15) -> 1.049618321 | F17: =E17*(1+F15) -> 1.069656489 | G17: =F17*(1+G15) -> 1.088740458 | H17: =G17*(1+H15) -> 1.108778626 | I17: =H17*(1+I15) -> 1.118320611 | J17: =IF(J16="",H17,H17*(1+J16)) -> 1.113539398
B18: =IFERROR("Index: Nominal"&" to "& "Real "&C10 &" "&LEFT(D10,9),"") -> Index: Nominal to Real 2021 June | C18: =$J$17/C17 -> 1.094736669 | D18: 1.076558384 | E18: 1.060899353 | F18: 1.041025235 | G18: 1.022777641 | H18: 1.004293708 | I18: 0.9957246491 | J18: 1
B19: =IFERROR("Real "&C9 &" "&LEFT(D9,9)&" to "& "Real "&C10 &" "&LEFT(D10,9),"") -> Real 2017-18 December to Real 2021 June | J19: =INDEX(C14:I18,5,MATCH(C9,C14:I14)) -> 1.060899353
B21: =LEFT(B12,1)+1&". Forecast real labour escalation" -> 9. Forecast real labour escalation
K22: =IFERROR(TRANSPOSE(#REF!),"") -> 
C23: =IFERROR((LEFT(D23,4)-1&IF(MID(D23,5,1)="","","-"&TEXT(MOD(MID(D23,6,2)-1,100),"00"))),"") -> 2019-20 | D23: 2020-21 | E23: =I14 -> 2021-22 | F23: =IFERROR((LEFT(E23,4)+1&IF(MID(E23,5,1)="","","-"&TEXT(MOD(MID(E23,6,2)+1,100),"00"))),"") -> 2022-23 | G23: =IFERROR((LEFT(F23,4)+1&IF(MID(F23,5,1)="","","-"&TEXT(MOD(MID(F23,6,2)+1,100),"00"))),"") -> 2023-24 | H23: 2024-25 | I23: 2025-26
B24: Internal labour - real price escalation | C24: 0.01490683345 | D24: 0.01353295495 | E24: 0.0146 | F24: 0.006626862471 | G24: 0.006091269693 | H24: 0.007327727922 | I24: 0.009509468237 | K24: =IFERROR(TRANSPOSE(#REF!),"") ->  | L24: =IFERROR(TRANSPOSE(#REF!),"") -> 
B25: Internal labour index | C25: =1+C24 -> 1.014906833 | D25: =IFERROR(C25*(1+D24),"") -> 1.028641522 | E25: 1.043659688 | F25: 1.050575877 | G25: 1.056975218 | H25: 1.064720445 | I25: 1.07484537

Sheet Input| Projects
C1: =IFERROR(Index!B1,"") -> AER Capex Forecast Model | D1: Sheet Validation | E1: ='Model Validation'!$C$8 -> 0 | F1: Key: | G1: Input
C2: =IFERROR(MID(CELL("filename",B1),FIND("]",CELL("filename",B1))+1,255),"") -> Input| Projects
I4: Total annual direct costs incl. gifted assets, unescalated
I5: =SUM(I9:I1008) -> 152197.9924 | J5: =SUM(J9:J1008) -> 146177.2426 | K5: =SUM(K9:K1008) -> 127419.1498 | L5: =SUM(L9:L1008) -> 118838.9224 | M5: =SUM(M9:M1008) -> 98299.23255 | X5: 1 | Y5: =X5+1 -> 2 | Z5: =Y5+1 -> 3 | AA5: 4 | AB5: 5 | AC5: 6 | AD5: 7 | AE5: 8 | AF5: 9 | AG5: 10 | AH5: 11 | AI5: 12 | AJ5: 13 | AK5: 14 | AL5: 15 | AM5: 16 | AN5: 17 | AO5: 18 | AP5: 19 | AQ5: 20 | AR5: 21 | AS5: 22 | AT5: 23 | AU5: 24 | AV5: 25 | AW5: =AV5+1 -> 26 | AX5: =AW5+1 -> 27 | AY5: =AX5+1 -> 28 | AZ5: =AY5+1 -> 29 | BA5: =AZ5+1 -> 30 | BB5: =BA5+1 -> 31 | BC5: =BB5+1 -> 32 | BD5: =BC5+1 -> 33 | BE5: =BD5+1 -> 34 | BF5: =BE5+1 -> 35 | BG5: =BF5+1 -> 36 | BH5: =BG5+1 -> 37 | BI5: =BH5+1 -> 38 | BJ5: =BI5+1 -> 39 | BK5: =BJ5+1 -> 40 | BL5: =BK5+1 -> 41 | BM5: =BL5+1 -> 42 | BN5: =BM5+1 -> 43 | BO5: =BN5+1 -> 44 | BP5: =BO5+1 -> 45 | BQ5: =BP5+1 -> 46 | BR5: =BQ5+1 -> 47 | BS5: =BR5+1 -> 48 | BT5: =BS5+1 -> 49 | BU5: =BT5+1 -> 50
C6: =LEFT('Input| Escalations'!B21,1)+1&". Project Details" -> 10. Project Details | F6: =LEFT(C6,2)+1&". Mapping categories" -> 11. Mapping categories | I6: =IFERROR(LEFT(F6,2)+1&". Direct unescalated costs (including gifted assets) ($'000s "&'Input| Escalations'!$C$9&")","") -> 12. Direct unescalated costs (including gifted assets) ($'000s 2017-18) | O6: =LEFT(I6,2)+1&". Internal labour as % of direct costs " -> 13. Internal labour as % of direct costs | R6: =LEFT(O6,2)+1&". Capitalised overheads allocation" -> 14. Capitalised overheads allocation | U6: =LEFT(R6,2)+1&". Capital contributions as % of direct costs" -> 15. Capital contributions as % of direct costs | X6: =LEFT(U6,2)+1&". PTRM asset classes" -> 16. PTRM asset classes
Q7: =IF(SUM(Q9:Q1008)=0,0,1) -> 0 | W7: =IF(SUM(W9:W1008)=0,0,1) -> 0 | BV7: =IF(SUM(BV9:BV1008)=0,0,1) -> 0
C8: Project/Program Inputs | D8: Unique ID | F8: =MID('Input| Setup'!B27, 4, LEN('Input| Setup'!B27)) -> AER categories | G8: =MID('Input| Setup'!B17, 4, LEN('Input| Setup'!B17)) -> RIN categories | I8: =IFERROR('Input| Escalations'!E23,"") -> 2021-22 | J8: =IFERROR('Input| Escalations'!F23,"") -> 2022-23 | K8: =IFERROR('Input| Escalations'!G23,"") -> 2023-24 | L8: =IFERROR('Input| Escalations'!H23,"") -> 2024-25 | M8: =IFERROR('Input| Escalations'!I23,"") -> 2025-26 | O8: Internal labour | P8: Non-labour | R8: Network Overheads Applies | S8: Corporate Overheads Applies | U8: % Capcons - Assets | V8: % Capcons - Cash | X8: =IFERROR(IF(VLOOKUP(X$5,'Input| Setup'!$D$6:$E$55,2,0)=0,"",VLOOKUP(X$5,'Input| Setup'!$D$6:$E$55,2,0)),"") -> Subtransmission | Y8: =IFERROR(IF(VLOOKUP(Y$5,'Input| Setup'!$D$6:$E$55,2,0)=0,"",VLOOKUP(Y$5,'Input| Setup'!$D$6:$E$55,2,0)),"") -> Distribution system assets | Z8: =IFERROR(IF(VLOOKUP(Z$5,'Input| Setup'!$D$6:$E$55,2,0)=0,"",VLOOKUP(Z$5,'Input| Setup'!$D$6:$E$55,2,0)),"") -> Metering | AA8: =IFERROR(IF(VLOOKUP(AA$5,'Input| Setup'!$D$6:$E$55,2,0)=0,"",VLOOKUP(AA$5,'Input| Setup'!$D$6:$E$55,2,0)),"") -> Public Lighting | AB8: =IFERROR(IF(VLOOKUP(AB$5,'Input| Setup'!$D$6:$E$55,2,0)=0,"",VLOOKUP(AB$5,'Input| Setup'!$D$6:$E$55,2,0)),"") -> SCADA & Network Control | AC8: =IFERROR(IF(VLOOKUP(AC$5,'Input| Setup'!$D$6:$E$55,2,0)=0,"",VLOOKUP(AC$5,'Input| Setup'!$D$6:$E$55,2,0)),"") -> Non network general - IT | AD8: =IFERROR(IF(VLOOKUP(AD$5,'Input| Setup'!$D$6:$E$55,2,0)=0,"",VLOOKUP(AD$5,'Input| Setup'!$D$6:$E$55,2,0)),"") -> Non network general - other | AE8: =IFERROR(IF(VLOOKUP(AE$5,'Input| Setup'!$D$6:$E$55,2,0)=0,"",VLOOKUP(AE$5,'Input| Setup'!$D$6:$E$55,2,0)),"") -> Land | AF8: =IFERROR(IF(VLOOKUP(AF$5,'Input| Setup'!$D$6:$E$55,2,0)=0,"",VLOOKUP(AF$5,'Input| Setup'!$D$6:$E$55,2,0)),"") -> Inhouse Software (SL Tax Depn) | AG8: =IFERROR(IF(VLOOKUP(AG$5,'Input| Setup'!$D$6:$E$55,2,0)=0,"",VLOOKUP(AG$5,'Input| Setup'!$D$6:$E$55,2,0)),"") -> Buildings (SL Tax Depn) | AH8: =IFERROR(IF(VLOOKUP(AH$5,'Input| Setup'!$D$6:$E$55,2,0)=0,"",VLOOKUP(AH$5,'Input| Setup'!$D$6:$E$55,2,0)),"") ->  | AI8: =IFERROR(IF(VLOOKUP(AI$5,'Input| Setup'!$D$6:$E$55,2,0)=0,"",VLOOKUP(AI$5,'Input| Setup'!$D$6:$E$55,2,0)),"") ->  | AJ8: =IFERROR(IF(VLOOKUP(AJ$5,'Input| Setup'!$D$6:$E$55,2,0)=0,"",VLOOKUP(AJ$5,'Input| Setup'!$D$6:$E$55,2,0)),"") ->  | AK8: =IFERROR(IF(VLOOKUP(AK$5,'Input| Setup'!$D$6:$E$55,2,0)=0,"",VLOOKUP(AK$5,'Input| Setup'!$D$6:$E$55,2,0)),"") ->  | AL8: =IFERROR(IF(VLOOKUP(AL$5,'Input| Setup'!$D$6:$E$55,2,0)=0,"",VLOOKUP(AL$5,'Input| Setup'!$D$6:$E$55,2,0)),"") ->  | AM8: =IFERROR(IF(VLOOKUP(AM$5,'Input| Setup'!$D$6:$E$55,2,0)=0,"",VLOOKUP(AM$5,'Input| Setup'!$D$6:$E$55,2,0)),"") ->  | AN8: =IFERROR(IF(VLOOKUP(AN$5,'Input| Setup'!$D$6:$E$55,2,0)=0,"",VLOOKUP(AN$5,'Input| Setup'!$D$6:$E$55,2,0)),"") ->  | AO8: =IFERROR(IF(VLOOKUP(AO$5,'Input| Setup'!$D$6:$E$55,2,0)=0,"",VLOOKUP(AO$5,'Input| Setup'!$D$6:$E$55,2,0)),"") ->  | AP8: =IFERROR(IF(VLOOKUP(AP$5,'Input| Setup'!$D$6:$E$55,2,0)=0,"",VLOOKUP(AP$5,'Input| Setup'!$D$6:$E$55,2,0)),"") ->  | AQ8: =IFERROR(IF(VLOOKUP(AQ$5,'Input| Setup'!$D$6:$E$55,2,0)=0,"",VLOOKUP(AQ$5,'Input| Setup'!$D$6:$E$55,2,0)),"") ->  | AR8: =IFERROR(IF(VLOOKUP(AR$5,'Input| Setup'!$D$6:$E$55,2,0)=0,"",VLOOKUP(AR$5,'Input| Setup'!$D$6:$E$55,2,0)),"") ->  | AS8: =IFERROR(IF(VLOOKUP(AS$5,'Input| Setup'!$D$6:$E$55,2,0)=0,"",VLOOKUP(AS$5,'Input| Setup'!$D$6:$E$55,2,0)),"") ->  | AT8: =IFERROR(IF(VLOOKUP(AT$5,'Input| Setup'!$D$6:$E$55,2,0)=0,"",VLOOKUP(AT$5,'Input| Setup'!$D$6:$E$55,2,0)),"") ->  | AU8: =IFERROR(IF(VLOOKUP(AU$5,'Input| Setup'!$D$6:$E$55,2,0)=0,"",VLOOKUP(AU$5,'Input| Setup'!$D$6:$E$55,2,0)),"") ->  | AV8: =IFERROR(IF(VLOOKUP(AV$5,'Input| Setup'!$D$6:$E$55,2,0)=0,"",VLOOKUP(AV$5,'Input| Setup'!$D$6:$E$55,2,0)),"") ->  | AW8: =IFERROR(IF(VLOOKUP(AW$5,'Input| Setup'!$D$6:$E$55,2,0)=0,"",VLOOKUP(AW$5,'Input| Setup'!$D$6:$E$55,2,0)),"") ->  | AX8: =IFERROR(IF(VLOOKUP(AX$5,'Input| Setup'!$D$6:$E$55,2,0)=0,"",VLOOKUP(AX$5,'Input| Setup'!$D$6:$E$55,2,0)),"") ->  | AY8: =IFERROR(IF(VLOOKUP(AY$5,'Input| Setup'!$D$6:$E$55,2,0)=0,"",VLOOKUP(AY$5,'Input| Setup'!$D$6:$E$55,2,0)),"") ->  | AZ8: =IFERROR(IF(VLOOKUP(AZ$5,'Input| Setup'!$D$6:$E$55,2,0)=0,"",VLOOKUP(AZ$5,'Input| Setup'!$D$6:$E$55,2,0)),"") ->  | BA8: =IFERROR(IF(VLOOKUP(BA$5,'Input| Setup'!$D$6:$E$55,2,0)=0,"",VLOOKUP(BA$5,'Input| Setup'!$D$6:$E$55,2,0)),"") ->  | BB8: =IFERROR(IF(VLOOKUP(BB$5,'Input| Setup'!$D$6:$E$55,2,0)=0,"",VLOOKUP(BB$5,'Input| Setup'!$D$6:$E$55,2,0)),"") ->  | BC8: =IFERROR(IF(VLOOKUP(BC$5,'Input| Setup'!$D$6:$E$55,2,0)=0,"",VLOOKUP(BC$5,'Input| Setup'!$D$6:$E$55,2,0)),"") ->  | BD8: =IFERROR(IF(VLOOKUP(BD$5,'Input| Setup'!$D$6:$E$55,2,0)=0,"",VLOOKUP(BD$5,'Input| Setup'!$D$6:$E$55,2,0)),"") ->  | BE8: =IFERROR(IF(VLOOKUP(BE$5,'Input| Setup'!$D$6:$E$55,2,0)=0,"",VLOOKUP(BE$5,'Input| Setup'!$D$6:$E$55,2,0)),"") ->  | BF8: =IFERROR(IF(VLOOKUP(BF$5,'Input| Setup'!$D$6:$E$55,2,0)=0,"",VLOOKUP(BF$5,'Input| Setup'!$D$6:$E$55,2,0)),"") ->  | BG8: =IFERROR(IF(VLOOKUP(BG$5,'Input| Setup'!$D$6:$E$55,2,0)=0,"",VLOOKUP(BG$5,'Input| Setup'!$D$6:$E$55,2,0)),"") ->  | BH8: =IFERROR(IF(VLOOKUP(BH$5,'Input| Setup'!$D$6:$E$55,2,0)=0,"",VLOOKUP(BH$5,'Input| Setup'!$D$6:$E$55,2,0)),"") ->  | BI8: =IFERROR(IF(VLOOKUP(BI$5,'Input| Setup'!$D$6:$E$55,2,0)=0,"",VLOOKUP(BI$5,'Input| Setup'!$D$6:$E$55,2,0)),"") ->  | BJ8: =IFERROR(IF(VLOOKUP(BJ$5,'Input| Setup'!$D$6:$E$55,2,0)=0,"",VLOOKUP(BJ$5,'Input| Setup'!$D$6:$E$55,2,0)),"") ->  | BK8: =IFERROR(IF(VLOOKUP(BK$5,'Input| Setup'!$D$6:$E$55,2,0)=0,"",VLOOKUP(BK$5,'Input| Setup'!$D$6:$E$55,2,0)),"") ->  | BL8: =IFERROR(IF(VLOOKUP(BL$5,'Input| Setup'!$D$6:$E$55,2,0)=0,"",VLOOKUP(BL$5,'Input| Setup'!$D$6:$E$55,2,0)),"") ->  | BM8: =IFERROR(IF(VLOOKUP(BM$5,'Input| Setup'!$D$6:$E$55,2,0)=0,"",VLOOKUP(BM$5,'Input| Setup'!$D$6:$E$55,2,0)),"") ->  | BN8: =IFERROR(IF(VLOOKUP(BN$5,'Input| Setup'!$D$6:$E$55,2,0)=0,"",VLOOKUP(BN$5,'Input| Setup'!$D$6:$E$55,2,0)),"") ->  | BO8: =IFERROR(IF(VLOOKUP(BO$5,'Input| Setup'!$D$6:$E$55,2,0)=0,"",VLOOKUP(BO$5,'Input| Setup'!$D$6:$E$55,2,0)),"") ->  | BP8: =IFERROR(IF(VLOOKUP(BP$5,'Input| Setup'!$D$6:$E$55,2,0)=0,"",VLOOKUP(BP$5,'Input| Setup'!$D$6:$E$55,2,0)),"") ->  | BQ8: =IFERROR(IF(VLOOKUP(BQ$5,'Input| Setup'!$D$6:$E$55,2,0)=0,"",VLOOKUP(BQ$5,'Input| Setup'!$D$6:$E$55,2,0)),"") ->  | BR8: =IFERROR(IF(VLOOKUP(BR$5,'Input| Setup'!$D$6:$E$55,2,0)=0,"",VLOOKUP(BR$5,'Input| Setup'!$D$6:$E$55,2,0)),"") ->  | BS8: =IFERROR(IF(VLOOKUP(BS$5,'Input| Setup'!$D$6:$E$55,2,0)=0,"",VLOOKUP(BS$5,'Input| Setup'!$D$6:$E$55,2,0)),"") ->  | BT8: =IFERROR(IF(VLOOKUP(BT$5,'Input| Setup'!$D$6:$E$55,2,0)=0,"",VLOOKUP(BT$5,'Input| Setup'!$D$6:$E$55,2,0)),"") ->  | BU8: =IFERROR(IF(VLOOKUP(BU$5,'Input| Setup'!$D$6:$E$55,2,0)=0,"",VLOOKUP(BU$5,'Input| Setup'!$D$6:$E$55,2,0)),"") -> 
B9: 1 | C9: Project 1 | D9: 1 | F9: Replacement | G9: Replacement | I9: 2153.287992 | J9: 2200.319782 | K9: 2272.308025 | L9: 2341.067743 | M9: 2409.827462 | O9: 0.4455293133 | P9: =1-O9 -> 0.5544706867 | Q9: =IF(O9>1,1,IF(P9>1,1,IF(SUM(O9:P9)=1,"",))) ->  | R9: Yes | S9: Yes | U9: 0 | V9: 0 | W9: =IF(V9>1,1,IF(U9>1,1,IF(U9+V9>1,1,""))) ->  | X9: 0 | Y9: 1 | Z9: 0 | AA9: 0 | AB9: 0 | AC9: 0 | AD9: 0 | AE9: 0 | AF9: 0 | AG9: 0 | AH9: 0 | AI9: 0 | AJ9: 0 | AK9: 0 | AL9: 0 | AM9: 0 | AN9: 0 | AO9: 0 | AP9: 0 | AQ9: 0 | AR9: 0 | AS9: 0 | AT9: 0 | AU9: 0 | AV9: 0 | AW9: 0 | AX9: 0 | AY9: 0 | AZ9: 0 | BA9: 0 | BB9: 0 | BC9: 0 | BD9: 0 | BE9: 0 | BF9: 0 | BG9: 0 | BH9: 0 | BI9: 0 | BJ9: 0 | BK9: 0 | BL9: 0 | BM9: 0 | BN9: 0 | BO9: 0 | BP9: 0 | BQ9: 0 | BR9: 0 | BS9: 0 | BT9: 0 | BU9: 0 | BV9: =IF(SUM(X9:BU9)=1,"",1) -> 
B10: =IFERROR(B9+1,"") -> 2 | C10: Project 2 | D10: 2 | F10: DER capex | G10: Augmentation | I10: 0 | J10: 0 | K10: 0 | L10: 0 | M10: 0 | O10: 0.9619235595 | P10: 0.03807644054 | R10: Yes | S10: Yes | U10: 0 | V10: 0 | W10: =IF(V10>1,1,IF(U10>1,1,IF(U10+V10>1,1,""))) ->  | X10: 0 | Y10: 1 | Z10: 0 | AA10: 0 | AB10: 0 | AC10: 0 | AD10: 0 | AE10: 0 | AF10: 0 | AG10: 0 | AH10: 0 | AI10: 0 | AJ10: 0 | AK10: 0 | AL10: 0 | AM10: 0 | AN10: 0 | AO10: 0 | AP10: 0 | AQ10: 0 | AR10: 0 | AS10: 0 | AT10: 0 | AU10: 0 | AV10: 0 | AW10: 0 | AX10: 0 | AY10: 0 | AZ10: 0 | BA10: 0 | BB10: 0 | BC10: 0 | BD10: 0 | BE10: 0 | BF10: 0 | BG10: 0 | BH10: 0 | BI10: 0 | BJ10: 0 | BK10: 0 | BL10: 0 | BM10: 0 | BN10: 0 | BO10: 0 | BP10: 0 | BQ10: 0 | BR10: 0 | BS10: 0 | BT10: 0 | BU10: 0 | BV10: =IF(SUM(X10:BU10)=1,"",SUM(X10:BU10)) -> 
B11: =IFERROR(B10+1,"") -> 3 | C11: Project 3 | D11: 3 | F11: Augmentation | G11: Augmentation | I11: 203.9109293 | J11: 208.3647208 | K11: 215.1818255 | L11: 221.693197 | M11: 228.2045685 | O11: 0.1748716688 | P11: 0.8251283312 | Q11: =IF(O11>1,1,IF(P11>1,1,IF(SUM(O11:P11)=1,"",))) ->  | R11: Yes | S11: Yes | U11: 0 | V11: 0.319 | X11: 0 | Y11: 1 | Z11: 0 | AA11: 0 | AB11: 0 | AC11: 0 | AD11: 0 | AE11: 0 | AF11: 0 | AG11: 0 | AH11: 0 | AI11: 0 | AJ11: 0 | AK11: 0 | AL11: 0 | AM11: 0 | AN11: 0 | AO11: 0 | AP11: 0 | AQ11: 0 | AR11: 0 | AS11: 0 | AT11: 0 | AU11: 0 | AV11: 0 | AW11: 0 | AX11: 0 | AY11: 0 | AZ11: 0 | BA11: 0 | BB11: 0 | BC11: 0 | BD11: 0 | BE11: 0 | BF11: 0 | BG11: 0 | BH11: 0 | BI11: 0 | BJ11: 0 | BK11: 0 | BL11: 0 | BM11: 0 | BN11: 0 | BO11: 0 | BP11: 0 | BQ11: 0 | BR11: 0 | BS11: 0 | BT11: 0 | BU11: 0
B12: 4 | C12: Project 4 | D12: 4 | F12: Connections | G12: Connections | I12: 3230.209851 | J12: 3300.763605 | K12: 3408.75526 | L12: 3511.90371 | M12: 3615.05216 | O12: 0.275842646 | P12: 0.724157354 | R12: Yes | S12: Yes | U12: 0 | V12: 0.319 | X12: 0 | Y12: 1 | Z12: 0 | AA12: 0 | AB12: 0 | AC12: 0 | AD12: 0 | AE12: 0 | AF12: 0 | AG12: 0 | AH12: 0 | AI12: 0 | AJ12: 0 | AK12: 0 | AL12: 0 | AM12: 0 | AN12: 0 | AO12: 0 | AP12: 0 | AQ12: 0 | AR12: 0 | AS12: 0 | AT12: 0 | AU12: 0 | AV12: 0 | AW12: 0 | AX12: 0 | AY12: 0 | AZ12: 0 | BA12: 0 | BB12: 0 | BC12: 0 | BD12: 0 | BE12: 0 | BF12: 0 | BG12: 0 | BH12: 0 | BI12: 0 | BJ12: 0 | BK12: 0 | BL12: 0 | BM12: 0 | BN12: 0 | BO12: 0 | BP12: 0 | BQ12: 0 | BR12: 0 | BS12: 0 | BT12: 0 | BU12: 0
B13: 5 | C13: Project 5 | D13: 5 | F13: ICT capex | G13: Other non-network capex | I13: 4058.416747 | J13: 4147.06007 | K13: 4282.740154 | L13: 4412.335262 | M13: 4541.930371 | O13: 0.2735301634 | P13: 0.7264698366 | R13: Yes | S13: Yes | U13: 0 | V13: 0.319 | X13: 0 | Y13: 0 | Z13: 0 | AA13: 0 | AB13: 0 | AC13: 0 | AD13: 0 | AE13: 0 | AF13: 1 | AG13: 0 | AH13: 0 | AI13: 0 | AJ13: 0 | AK13: 0 | AL13: 0 | AM13: 0 | AN13: 0 | AO13: 0 | AP13: 0 | AQ13: 0 | AR13: 0 | AS13: 0 | AT13: 0 | AU13: 0 | AV13: 0 | AW13: 0 | AX13: 0 | AY13: 0 | AZ13: 0 | BA13: 0 | BB13: 0 | BC13: 0 | BD13: 0 | BE13: 0 | BF13: 0 | BG13: 0 | BH13: 0 | BI13: 0 | BJ13: 0 | BK13: 0 | BL13: 0 | BM13: 0 | BN13: 0 | BO13: 0 | BP13: 0 | BQ13: 0 | BR13: 0 | BS13: 0 | BT13: 0 | BU13: 0
B14: 6 | C14: Project 6 | D14: 6 | F14: Property capex | G14: Other non-network capex | I14: 0 | J14: 0 | K14: 0 | L14: 0 | M14: 0 | O14: 0.2735301634 | P14: 0.7264698366 | R14: Yes | S14: Yes | U14: 0 | V14: 0 | X14: 0 | Z14: 0 | AA14: 0 | AB14: 0 | AC14: 0 | AD14: 0 | AE14: 0 | AF14: 0 | AG14: 1 | AH14: 0 | AI14: 0 | AJ14: 0 | AK14: 0 | AL14: 0 | AM14: 0 | AN14: 0 | AO14: 0 | AP14: 0 | AQ14: 0 | AR14: 0 | AS14: 0 | AT14: 0 | AU14: 0 | AV14: 0 | AW14: 0 | AX14: 0 | AY14: 0 | AZ14: 0 | BA14: 0 | BB14: 0 | BC14: 0 | BD14: 0 | BE14: 0 | BF14: 0 | BG14: 0 | BH14: 0 | BI14: 0 | BJ14: 0 | BK14: 0 | BL14: 0 | BM14: 0 | BN14: 0 | BO14: 0 | BP14: 0 | BQ14: 0 | BR14: 0 | BS14: 0 | BT14: 0 | BU14: 0
B15: 7 | C15: Project 7 | D15: 7 | F15: Fleet capex | G15: Other non-network capex | I15: 3304.269148 | J15: 3376.440493 | K15: 3486.908082 | L15: 3592.421425 | M15: 3697.934768 | O15: 0.4133094163 | P15: 0.5866905837 | R15: Yes | S15: Yes | U15: 0 | V15: 0.319 | X15: 0 | Y15: 1 | Z15: 0 | AA15: 0 | AB15: 0 | AC15: 0 | AD15: 0 | AE15: 0 | AF15: 0 | AG15: 0 | AH15: 0 | AI15: 0 | AJ15: 0 | AK15: 0 | AL15: 0 | AM15: 0 | AN15: 0 | AO15: 0 | AP15: 0 | AQ15: 0 | AR15: 0 | AS15: 0 | AT15: 0 | AU15: 0 | AV15: 0 | AW15: 0 | AX15: 0 | AY15: 0 | AZ15: 0 | BA15: 0 | BB15: 0 | BC15: 0 | BD15: 0 | BE15: 0 | BF15: 0 | BG15: 0 | BH15: 0 | BI15: 0 | BJ15: 0 | BK15: 0 | BL15: 0 | BM15: 0 | BN15: 0 | BO15: 0 | BP15: 0 | BQ15: 0 | BR15: 0 | BS15: 0 | BT15: 0 | BU15: 0
B16: 8 | C16: Project 8 | D16: 8 | F16: Other non-network capex | G16: Other non-network capex | I16: 48.66696182 | J16: 49.72993821 | K16: 51.35696122 | L16: 52.91101557 | M16: 54.46506992 | O16: 0.4585136777 | P16: 0.5414863223 | R16: Yes | S16: Yes | U16: 0 | V16: 0.319 | X16: 0 | Y16: 1 | Z16: 0 | AA16: 0 | AB16: 0 | AC16: 0 | AD16: 0 | AE16: 0 | AF16: 0 | AG16: 0 | AH16: 0 | AI16: 0 | AJ16: 0 | AK16: 0 | AL16: 0 | AM16: 0 | AN16: 0 | AO16: 0 | AP16: 0 | AQ16: 0 | AR16: 0 | AS16: 0 | AT16: 0 | AU16: 0 | AV16: 0 | AW16: 0 | AX16: 0 | AY16: 0 | AZ16: 0 | BA16: 0 | BB16: 0 | BC16: 0 | BD16: 0 | BE16: 0 | BF16: 0 | BG16: 0 | BH16: 0 | BI16: 0 | BJ16: 0 | BK16: 0 | BL16: 0 | BM16: 0 | BN16: 0 | BO16: 0 | BP16: 0 | BQ16: 0 | BR16: 0 | BS16: 0 | BT16: 0 | BU16: 0
B17: 9 | C17: Project 9 | D17: 9 | F17: Connections | G17: Connections | I17: 9752.096647 | J17: 9495.509939 | K17: 9672.196608 | L17: 9852.75857 | M17: 9677.546851 | O17: 0.03504506297 | P17: 0.964954937 | R17: Yes | S17: Yes | U17: 0 | V17: 0.707 | X17: 0 | Y17: 1 | Z17: 0 | AA17: 0 | AB17: 0 | AC17: 0 | AD17: 0 | AE17: 0 | AF17: 0 | AG17: 0 | AH17: 0 | AI17: 0 | AJ17: 0 | AK17: 0 | AL17: 0 | AM17: 0 | AN17: 0 | AO17: 0 | AP17: 0 | AQ17: 0 | AR17: 0 | AS17: 0 | AT17: 0 | AU17: 0 | AV17: 0 | AW17: 0 | AX17: 0 | AY17: 0 | AZ17: 0 | BA17: 0 | BB17: 0 | BC17: 0 | BD17: 0 | BE17: 0 | BF17: 0 | BG17: 0 | BH17: 0 | BI17: 0 | BJ17: 0 | BK17: 0 | BL17: 0 | BM17: 0 | BN17: 0 | BO17: 0 | BP17: 0 | BQ17: 0 | BR17: 0 | BS17: 0 | BT17: 0 | BU17: 0
B18: 10 | C18: Project 10 | D18: 10 | F18: Connections | G18: Connections | I18: 4727.599457 | J18: 7264.626685 | K18: 7399.802436 | L18: 7537.943016 | M18: 7403.895688 | O18: 0.1229811311 | P18: 0.8770188689 | R18: Yes | S18: Yes | U18: 0.291 | V18: 0.459 | X18: 0 | Y18: 1 | Z18: 0 | AA18: 0 | AB18: 0 | AC18: 0 | AD18: 0 | AE18: 0 | AF18: 0 | AG18: 0 | AH18: 0 | AI18: 0 | AJ18: 0 | AK18: 0 | AL18: 0 | AM18: 0 | AN18: 0 | AO18: 0 | AP18: 0 | AQ18: 0 | AR18: 0 | AS18: 0 | AT18: 0 | AU18: 0 | AV18: 0 | AW18: 0 | AX18: 0 | AY18: 0 | AZ18: 0 | BA18: 0 | BB18: 0 | BC18: 0 | BD18: 0 | BE18: 0 | BF18: 0 | BG18: 0 | BH18: 0 | BI18: 0 | BJ18: 0 | BK18: 0 | BL18: 0 | BM18: 0 | BN18: 0 | BO18: 0 | BP18: 0 | BQ18: 0 | BR18: 0 | BS18: 0 | BT18: 0 | BU18: 0
B19: 11 | C19: Project 11 | D19: 11 | F19: Connections | G19: Connections | I19: 1967.517964 | J19: 3023.37024 | K19: 3079.627273 | L19: 3137.118199 | M19: 3081.33079 | O19: 0.1388084041 | P19: 0.8611915959 | R19: Yes | S19: Yes | U19: 0.291 | V19: 0.459 | X19: 0 | Y19: 1 | Z19: 0 | AA19: 0 | AB19: 0 | AC19: 0 | AD19: 0 | AE19: 0 | AF19: 0 | AG19: 0 | AH19: 0 | AI19: 0 | AJ19: 0 | AK19: 0 | AL19: 0 | AM19: 0 | AN19: 0 | AO19: 0 | AP19: 0 | AQ19: 0 | AR19: 0 | AS19: 0 | AT19: 0 | AU19: 0 | AV19: 0 | AW19: 0 | AX19: 0 | AY19: 0 | AZ19: 0 | BA19: 0 | BB19: 0 | BC19: 0 | BD19: 0 | BE19: 0 | BF19: 0 | BG19: 0 | BH19: 0 | BI19: 0 | BJ19: 0 | BK19: 0 | BL19: 0 | BM19: 0 | BN19: 0 | BO19: 0 | BP19: 0 | BQ19: 0 | BR19: 0 | BS19: 0 | BT19: 0 | BU19: 0
B20: 12 | C20: Project 12 | D20: 12 | F20: Replacement | G20: Replacement | I20: 2149.832157 | J20: 2167.702383 | K20: 2185.721154 | L20: 2203.889703 | M20: 2222.209276 | O20: 0.4021897503 | P20: 0.5978102497 | R20: Yes | S20: Yes | U20: 0 | V20: 0 | X20: 0 | Y20: 1 | Z20: 0 | AA20: 0 | AB20: 0 | AC20: 0 | AD20: 0 | AE20: 0 | AF20: 0 | AG20: 0 | AH20: 0 | AI20: 0 | AJ20: 0 | AK20: 0 | AL20: 0 | AM20: 0 | AN20: 0 | AO20: 0 | AP20: 0 | AQ20: 0 | AR20: 0 | AS20: 0 | AT20: 0 | AU20: 0 | AV20: 0 | AW20: 0 | AX20: 0 | AY20: 0 | AZ20: 0 | BA20: 0 | BB20: 0 | BC20: 0 | BD20: 0 | BE20: 0 | BF20: 0 | BG20: 0 | BH20: 0 | BI20: 0 | BJ20: 0 | BK20: 0 | BL20: 0 | BM20: 0 | BN20: 0 | BO20: 0 | BP20: 0 | BQ20: 0 | BR20: 0 | BS20: 0 | BT20: 0 | BU20: 0
B21: 13 | C21: Project 13 | D21: 13 | F21: Replacement | G21: Replacement | I21: 365.6347217 | J21: 365.7453393 | K21: 383.5327123 | L21: 399.2216181 | M21: 414.9105239 | O21: 0.1545258455 | P21: 0.8454741545 | R21: Yes | S21: Yes | U21: 0 | V21: 0.99 | X21: 1 | Y21: 0 | Z21: 0 | AA21: 0 | AB21: 0 | AC21: 0 | AD21: 0 | AE21: 0 | AF21: 0 | AG21: 0 | AH21: 0 | AI21: 0 | AJ21: 0 | AK21: 0 | AL21: 0 | AM21: 0 | AN21: 0 | AO21: 0 | AP21: 0 | AQ21: 0 | AR21: 0 | AS21: 0 | AT21: 0 | AU21: 0 | AV21: 0 | AW21: 0 | AX21: 0 | AY21: 0 | AZ21: 0 | BA21: 0 | BB21: 0 | BC21: 0 | BD21: 0 | BE21: 0 | BF21: 0 | BG21: 0 | BH21: 0 | BI21: 0 | BJ21: 0 | BK21: 0 | BL21: 0 | BM21: 0 | BN21: 0 | BO21: 0 | BP21: 0 | BQ21: 0 | BR21: 0 | BS21: 0 | BT21: 0 | BU21: 0
B22: 14 | C22: Project 14 | D22: 14 | F22: Replacement | G22: Replacement | I22: 3693.907665 | J22: 3695.025204 | K22: 3874.726172 | L22: 4033.226899 | M22: 4191.727627 | O22: 0.3651151431 | P22: 0.6348848569 | R22: Yes | S22: Yes | U22: 0 | V22: 0.99 | X22: 0 | Y22: 1 | Z22: 0 | AA22: 0 | AB22: 0 | AC22: 0 | AD22: 0 | AE22: 0 | AF22: 0 | AG22: 0 | AH22: 0 | AI22: 0 | AJ22: 0 | AK22: 0 | AL22: 0 | AM22: 0 | AN22: 0 | AO22: 0 | AP22: 0 | AQ22: 0 | AR22: 0 | AS22: 0 | AT22: 0 | AU22: 0 | AV22: 0 | AW22: 0 | AX22: 0 | AY22: 0 | AZ22: 0 | BA22: 0 | BB22: 0 | BC22: 0 | BD22: 0 | BE22: 0 | BF22: 0 | BG22: 0 | BH22: 0 | BI22: 0 | BJ22: 0 | BK22: 0 | BL22: 0 | BM22: 0 | BN22: 0 | BO22: 0 | BP22: 0 | BQ22: 0 | BR22: 0 | BS22: 0 | BT22: 0 | BU22: 0
B23: 15 | C23: Project 15 | D23: 15 | F23: Replacement | G23: Replacement | I23: 415.4635086 | J23: 415.5892012 | K23: 435.8006416 | L23: 453.6276352 | M23: 471.4546288 | O23: 0.2963431167 | P23: 0.7036568833 | R23: Yes | S23: Yes | U23: 0 | V23: 0.99 | X23: 0 | Y23: 1 | Z23: 0 | AA23: 0 | AB23: 0 | AC23: 0 | AD23: 0 | AE23: 0 | AF23: 0 | AG23: 0 | AH23: 0 | AI23: 0 | AJ23: 0 | AK23: 0 | AL23: 0 | AM23: 0 | AN23: 0 | AO23: 0 | AP23: 0 | AQ23: 0 | AR23: 0 | AS23: 0 | AT23: 0 | AU23: 0 | AV23: 0 | AW23: 0 | AX23: 0 | AY23: 0 | AZ23: 0 | BA23: 0 | BB23: 0 | BC23: 0 | BD23: 0 | BE23: 0 | BF23: 0 | BG23: 0 | BH23: 0 | BI23: 0 | BJ23: 0 | BK23: 0 | BL23: 0 | BM23: 0 | BN23: 0 | BO23: 0 | BP23: 0 | BQ23: 0 | BR23: 0 | BS23: 0 | BT23: 0 | BU23: 0
B24: 16 | C24: Project 16 | D24: 16 | F24: Replacement | G24: Replacement | I24: 402.7268759 | J24: 402.8487153 | K24: 422.4405448 | L24: 439.7210262 | M24: 457.0015077 | O24: 0.3064938036 | P24: 0.6935061964 | R24: Yes | S24: Yes | U24: 0 | V24: 0.99 | X24: 0 | Y24: 1 | Z24: 0 | AA24: 0 | AB24: 0 | AC24: 0 | AD24: 0 | AE24: 0 | AF24: 0 | AG24: 0 | AH24: 0 | AI24: 0 | AJ24: 0 | AK24: 0 | AL24: 0 | AM24: 0 | AN24: 0 | AO24: 0 | AP24: 0 | AQ24: 0 | AR24: 0 | AS24: 0 | AT24: 0 | AU24: 0 | AV24: 0 | AW24: 0 | AX24: 0 | AY24: 0 | AZ24: 0 | BA24: 0 | BB24: 0 | BC24: 0 | BD24: 0 | BE24: 0 | BF24: 0 | BG24: 0 | BH24: 0 | BI24: 0 | BJ24: 0 | BK24: 0 | BL24: 0 | BM24: 0 | BN24: 0 | BO24: 0 | BP24: 0 | BQ24: 0 | BR24: 0 | BS24: 0 | BT24: 0 | BU24: 0
B25: 17 | C25: Project 17 | D25: 17 | F25: Replacement | G25: Replacement | I25: 1176.470052 | J25: 1176.825977 | K25: 1234.058811 | L25: 1284.539597 | M25: 1335.020382 | O25: 0.3047332037 | P25: 0.6952667963 | R25: Yes | S25: Yes | U25: 0 | V25: 0.99 | X25: 0 | Y25: 1 | Z25: 0 | AA25: 0 | AB25: 0 | AC25: 0 | AD25: 0 | AE25: 0 | AF25: 0 | AG25: 0 | AH25: 0 | AI25: 0 | AJ25: 0 | AK25: 0 | AL25: 0 | AM25: 0 | AN25: 0 | AO25: 0 | AP25: 0 | AQ25: 0 | AR25: 0 | AS25: 0 | AT25: 0 | AU25: 0 | AV25: 0 | AW25: 0 | AX25: 0 | AY25: 0 | AZ25: 0 | BA25: 0 | BB25: 0 | BC25: 0 | BD25: 0 | BE25: 0 | BF25: 0 | BG25: 0 | BH25: 0 | BI25: 0 | BJ25: 0 | BK25: 0 | BL25: 0 | BM25: 0 | BN25: 0 | BO25: 0 | BP25: 0 | BQ25: 0 | BR25: 0 | BS25: 0 | BT25: 0 | BU25: 0
B26: 18 | C26: Project 18 | D26: 18 | F26: Replacement | G26: Replacement | I26: 408.5483102 | J26: 408.6719107 | K26: 428.546941 | L26: 446.0772125 | M26: 463.607484 | O26: 0.5492103834 | P26: 0.4507896166 | R26: Yes | S26: Yes | U26: 0 | V26: 0.99 | X26: 0 | Y26: 1 | Z26: 0 | AA26: 0 | AB26: 0 | AC26: 0 | AD26: 0 | AE26: 0 | AF26: 0 | AG26: 0 | AH26: 0 | AI26: 0 | AJ26: 0 | AK26: 0 | AL26: 0 | AM26: 0 | AN26: 0 | AO26: 0 | AP26: 0 | AQ26: 0 | AR26: 0 | AS26: 0 | AT26: 0 | AU26: 0 | AV26: 0 | AW26: 0 | AX26: 0 | AY26: 0 | AZ26: 0 | BA26: 0 | BB26: 0 | BC26: 0 | BD26: 0 | BE26: 0 | BF26: 0 | BG26: 0 | BH26: 0 | BI26: 0 | BJ26: 0 | BK26: 0 | BL26: 0 | BM26: 0 | BN26: 0 | BO26: 0 | BP26: 0 | BQ26: 0 | BR26: 0 | BS26: 0 | BT26: 0 | BU26: 0
B27: 19 | C27: Project 19 | D27: 19 | F27: Connections | G27: Connections | I27: 0 | J27: 0 | K27: 0 | L27: 0 | M27: 0 | O27: 0.1748716688 | P27: 0.8251283312 | R27: Yes | S27: Yes | U27: 0 | V27: 0.319 | X27: 0 | Y27: 1 | Z27: 0 | AA27: 0 | AB27: 0 | AC27: 0 | AD27: 0 | AE27: 0 | AF27: 0 | AG27: 0 | AH27: 0 | AI27: 0 | AJ27: 0 | AK27: 0 | AL27: 0 | AM27: 0 | AN27: 0 | AO27: 0 | AP27: 0 | AQ27: 0 | AR27: 0 | AS27: 0 | AT27: 0 | AU27: 0 | AV27: 0 | AW27: 0 | AX27: 0 | AY27: 0 | AZ27: 0 | BA27: 0 | BB27: 0 | BC27: 0 | BD27: 0 | BE27: 0 | BF27: 0 | BG27: 0 | BH27: 0 | BI27: 0 | BJ27: 0 | BK27: 0 | BL27: 0 | BM27: 0 | BN27: 0 | BO27: 0 | BP27: 0 | BQ27: 0 | BR27: 0 | BS27: 0 | BT27: 0 | BU27: 0
B28: 20 | C28: Project 20 | D28: 20 | F28: Replacement | G28: Replacement | I28: 0 | J28: 0 | K28: 0 | L28: 0 | M28: 0 | O28: 0.1545258455 | P28: 0.8454741545 | R28: Yes | S28: Yes | U28: 0 | V28: 0.99 | X28: 1 | Y28: 0 | Z28: 0 | AA28: 0 | AB28: 0 | AC28: 0 | AD28: 0 | AE28: 0 | AF28: 0 | AG28: 0 | AH28: 0 | AI28: 0 | AJ28: 0 | AK28: 0 | AL28: 0 | AM28: 0 | AN28: 0 | AO28: 0 | AP28: 0 | AQ28: 0 | AR28: 0 | AS28: 0 | AT28: 0 | AU28: 0 | AV28: 0 | AW28: 0 | AX28: 0 | AY28: 0 | AZ28: 0 | BA28: 0 | BB28: 0 | BC28: 0 | BD28: 0 | BE28: 0 | BF28: 0 | BG28: 0 | BH28: 0 | BI28: 0 | BJ28: 0 | BK28: 0 | BL28: 0 | BM28: 0 | BN28: 0 | BO28: 0 | BP28: 0 | BQ28: 0 | BR28: 0 | BS28: 0 | BT28: 0 | BU28: 0
B29: 21 | C29: Project 21 | D29: 21 | F29: Connections | G29: Connections | I29: 1020.330053 | J29: 1612.010526 | K29: 0 | L29: 0 | M29: 0 | O29: 0.1748716688 | P29: 0.8251283312 | R29: Yes | S29: Yes | U29: 0 | V29: 0.319 | X29: 0 | Y29: 1 | Z29: 0 | AA29: 0 | AB29: 0 | AC29: 0 | AD29: 0 | AE29: 0 | AF29: 0 | AG29: 0 | AH29: 0 | AI29: 0 | AJ29: 0 | AK29: 0 | AL29: 0 | AM29: 0 | AN29: 0 | AO29: 0 | AP29: 0 | AQ29: 0 | AR29: 0 | AS29: 0 | AT29: 0 | AU29: 0 | AV29: 0 | AW29: 0 | AX29: 0 | AY29: 0 | AZ29: 0 | BA29: 0 | BB29: 0 | BC29: 0 | BD29: 0 | BE29: 0 | BF29: 0 | BG29: 0 | BH29: 0 | BI29: 0 | BJ29: 0 | BK29: 0 | BL29: 0 | BM29: 0 | BN29: 0 | BO29: 0 | BP29: 0 | BQ29: 0 | BR29: 0 | BS29: 0 | BT29: 0 | BU29: 0
B30: 22 | C30: Project 22 | D30: 22 | F30: Connections | G30: Connections | I30: 0 | J30: 0 | K30: 2120.299401 | L30: 2120.299401 | M30: 0 | O30: 0.1748716688 | P30: 0.8251283312 | R30: Yes | S30: Yes | U30: 0 | V30: 0.319 | X30: 0 | Y30: 1 | Z30: 0 | AA30: 0 | AB30: 0 | AC30: 0 | AD30: 0 | AE30: 0 | AF30: 0 | AG30: 0 | AH30: 0 | AI30: 0 | AJ30: 0 | AK30: 0 | AL30: 0 | AM30: 0 | AN30: 0 | AO30: 0 | AP30: 0 | AQ30: 0 | AR30: 0 | AS30: 0 | AT30: 0 | AU30: 0 | AV30: 0 | AW30: 0 | AX30: 0 | AY30: 0 | AZ30: 0 | BA30: 0 | BB30: 0 | BC30: 0 | BD30: 0 | BE30: 0 | BF30: 0 | BG30: 0 | BH30: 0 | BI30: 0 | BJ30: 0 | BK30: 0 | BL30: 0 | BM30: 0 | BN30: 0 | BO30: 0 | BP30: 0 | BQ30: 0 | BR30: 0 | BS30: 0 | BT30: 0 | BU30: 0
B31: 23 | C31: Project 23 | D31: 23 | F31: Connections | G31: Connections | I31: 3062.82661 | J31: 200 | K31: 0 | L31: 0 | M31: 0 | O31: 0.1748716688 | P31: 0.8251283312 | R31: Yes | S31: Yes | U31: 0 | V31: 0.62 | X31: 0 | Y31: 1 | Z31: 0 | AA31: 0 | AB31: 0 | AC31: 0 | AD31: 0 | AE31: 0 | AF31: 0 | AG31: 0 | AH31: 0 | AI31: 0 | AJ31: 0 | AK31: 0 | AL31: 0 | AM31: 0 | AN31: 0 | AO31: 0 | AP31: 0 | AQ31: 0 | AR31: 0 | AS31: 0 | AT31: 0 | AU31: 0 | AV31: 0 | AW31: 0 | AX31: 0 | AY31: 0 | AZ31: 0 | BA31: 0 | BB31: 0 | BC31: 0 | BD31: 0 | BE31: 0 | BF31: 0 | BG31: 0 | BH31: 0 | BI31: 0 | BJ31: 0 | BK31: 0 | BL31: 0 | BM31: 0 | BN31: 0 | BO31: 0 | BP31: 0 | BQ31: 0 | BR31: 0 | BS31: 0 | BT31: 0 | BU31: 0
B32: 24 | C32: Project 24 | D32: 24 | F32: Connections | G32: Connections | I32: 0 | J32: 0 | K32: 0 | L32: 2209.162276 | M32: 2209.162276 | O32: 0.1748716688 | P32: 0.8251283312 | R32: Yes | S32: Yes | U32: 0 | V32: 0.319 | X32: 0 | Y32: 1 | Z32: 0 | AA32: 0 | AB32: 0 | AC32: 0 | AD32: 0 | AE32: 0 | AF32: 0 | AG32: 0 | AH32: 0 | AI32: 0 | AJ32: 0 | AK32: 0 | AL32: 0 | AM32: 0 | AN32: 0 | AO32: 0 | AP32: 0 | AQ32: 0 | AR32: 0 | AS32: 0 | AT32: 0 | AU32: 0 | AV32: 0 | AW32: 0 | AX32: 0 | AY32: 0 | AZ32: 0 | BA32: 0 | BB32: 0 | BC32: 0 | BD32: 0 | BE32: 0 | BF32: 0 | BG32: 0 | BH32: 0 | BI32: 0 | BJ32: 0 | BK32: 0 | BL32: 0 | BM32: 0 | BN32: 0 | BO32: 0 | BP32: 0 | BQ32: 0 | BR32: 0 | BS32: 0 | BT32: 0 | BU32: 0
B33: 25 | C33: Project 25 | D33: 25 | F33: Connections | G33: Connections | I33: 0 | J33: 0 | K33: 1670.626351 | L33: 3341.252702 | M33: 1670.626351 | O33: 0.1748716688 | P33: 0.8251283312 | R33: Yes | S33: Yes | U33: 0 | V33: 0.319 | X33: 0 | Y33: 1 | Z33: 0 | AA33: 0 | AB33: 0 | AC33: 0 | AD33: 0 | AE33: 0 | AF33: 0 | AG33: 0 | AH33: 0 | AI33: 0 | AJ33: 0 | AK33: 0 | AL33: 0 | AM33: 0 | AN33: 0 | AO33: 0 | AP33: 0 | AQ33: 0 | AR33: 0 | AS33: 0 | AT33: 0 | AU33: 0 | AV33: 0 | AW33: 0 | AX33: 0 | AY33: 0 | AZ33: 0 | BA33: 0 | BB33: 0 | BC33: 0 | BD33: 0 | BE33: 0 | BF33: 0 | BG33: 0 | BH33: 0 | BI33: 0 | BJ33: 0 | BK33: 0 | BL33: 0 | BM33: 0 | BN33: 0 | BO33: 0 | BP33: 0 | BQ33: 0 | BR33: 0 | BS33: 0 | BT33: 0 | BU33: 0
B34: 26 | C34: Project 26 | D34: 26 | F34: Replacement | G34: Replacement | I34: 200 | J34: 200 | K34: 200 | L34: 200 | M34: 200 | O34: 0.2842657178 | P34: 0.7157342822 | R34: No | S34: No | U34: 0 | V34: 0 | X34: 0 | Y34: 0 | Z34: 0 | AA34: 0 | AB34: 1 | AC34: 0 | AD34: 0 | AE34: 0 | AF34: 0 | AG34: 0 | AH34: 0 | AI34: 0 | AJ34: 0 | AK34: 0 | AL34: 0 | AM34: 0 | AN34: 0 | AO34: 0 | AP34: 0 | AQ34: 0 | AR34: 0 | AS34: 0 | AT34: 0 | AU34: 0 | AV34: 0 | AW34: 0 | AX34: 0 | AY34: 0 | AZ34: 0 | BA34: 0 | BB34: 0 | BC34: 0 | BD34: 0 | BE34: 0 | BF34: 0 | BG34: 0 | BH34: 0 | BI34: 0 | BJ34: 0 | BK34: 0 | BL34: 0 | BM34: 0 | BN34: 0 | BO34: 0 | BP34: 0 | BQ34: 0 | BR34: 0 | BS34: 0 | BT34: 0 | BU34: 0
B35: 27 | C35: Project 27 | D35: 27 | F35: ICT capex | G35: Other non-network capex | I35: 413.5 | J35: 313.5 | K35: 0 | L35: 226 | M35: 226 | O35: 0.3492946736 | P35: 0.6507053264 | R35: No | S35: No | U35: 0 | V35: 0 | X35: 0 | Y35: 0 | Z35: 0 | AA35: 0 | AB35: 0 | AC35: 0 | AD35: 0 | AE35: 0 | AF35: 1 | AG35: 0 | AH35: 0 | AI35: 0 | AJ35: 0 | AK35: 0 | AL35: 0 | AM35: 0 | AN35: 0 | AO35: 0 | AP35: 0 | AQ35: 0 | AR35: 0 | AS35: 0 | AT35: 0 | AU35: 0 | AV35: 0 | AW35: 0 | AX35: 0 | AY35: 0 | AZ35: 0 | BA35: 0 | BB35: 0 | BC35: 0 | BD35: 0 | BE35: 0 | BF35: 0 | BG35: 0 | BH35: 0 | BI35: 0 | BJ35: 0 | BK35: 0 | BL35: 0 | BM35: 0 | BN35: 0 | BO35: 0 | BP35: 0 | BQ35: 0 | BR35: 0 | BS35: 0 | BT35: 0 | BU35: 0
B36: 28 | C36: Project 28 | D36: 28 | F36: Replacement | G36: Replacement | I36: 147.5863914 | J36: 0 | K36: 0 | L36: 0 | M36: 0 | O36: 0.2842657178 | P36: 0.7157342822 | R36: No | S36: No | U36: 0 | V36: 0 | X36: 0 | Y36: 0 | Z36: 0 | AA36: 0 | AB36: 1 | AC36: 0 | AD36: 0 | AE36: 0 | AF36: 0 | AG36: 0 | AH36: 0 | AI36: 0 | AJ36: 0 | AK36: 0 | AL36: 0 | AM36: 0 | AN36: 0 | AO36: 0 | AP36: 0 | AQ36: 0 | AR36: 0 | AS36: 0 | AT36: 0 | AU36: 0 | AV36: 0 | AW36: 0 | AX36: 0 | AY36: 0 | AZ36: 0 | BA36: 0 | BB36: 0 | BC36: 0 | BD36: 0 | BE36: 0 | BF36: 0 | BG36: 0 | BH36: 0 | BI36: 0 | BJ36: 0 | BK36: 0 | BL36: 0 | BM36: 0 | BN36: 0 | BO36: 0 | BP36: 0 | BQ36: 0 | BR36: 0 | BS36: 0 | BT36: 0 | BU36: 0
B37: 29 | C37: Project 29 | D37: 29 | F37: ICT capex | G37: Other non-network capex | I37: 0 | J37: 0 | K37: 0 | L37: 0 | M37: 0 | O37: 0.3492946736 | P37: 0.6507053264 | R37: No | S37: No | U37: 0 | V37: 0 | X37: 0 | Y37: 0 | Z37: 0 | AA37: 0 | AB37: 0 | AC37: 0 | AD37: 0 | AE37: 0 | AF37: 1 | AG37: 0 | AH37: 0 | AI37: 0 | AJ37: 0 | AK37: 0 | AL37: 0 | AM37: 0 | AN37: 0 | AO37: 0 | AP37: 0 | AQ37: 0 | AR37: 0 | AS37: 0 | AT37: 0 | AU37: 0 | AV37: 0 | AW37: 0 | AX37: 0 | AY37: 0 | AZ37: 0 | BA37: 0 | BB37: 0 | BC37: 0 | BD37: 0 | BE37: 0 | BF37: 0 | BG37: 0 | BH37: 0 | BI37: 0 | BJ37: 0 | BK37: 0 | BL37: 0 | BM37: 0 | BN37: 0 | BO37: 0 | BP37: 0 | BQ37: 0 | BR37: 0 | BS37: 0 | BT37: 0 | BU37: 0
B38: 30 | C38: Project 30 | D38: 30 | F38: ICT capex | G38: Other non-network capex | I38: 97.5 | J38: 87.5 | K38: 0 | L38: 0 | M38: 0 | O38: 0.3492946736 | P38: 0.6507053264 | R38: No | S38: No | U38: 0 | V38: 0 | X38: 0 | Y38: 0 | Z38: 0 | AA38: 0 | AB38: 0 | AC38: 0 | AD38: 0 | AE38: 0 | AF38: 1 | AG38: 0 | AH38: 0 | AI38: 0 | AJ38: 0 | AK38: 0 | AL38: 0 | AM38: 0 | AN38: 0 | AO38: 0 | AP38: 0 | AQ38: 0 | AR38: 0 | AS38: 0 | AT38: 0 | AU38: 0 | AV38: 0 | AW38: 0 | AX38: 0 | AY38: 0 | AZ38: 0 | BA38: 0 | BB38: 0 | BC38: 0 | BD38: 0 | BE38: 0 | BF38: 0 | BG38: 0 | BH38: 0 | BI38: 0 | BJ38: 0 | BK38: 0 | BL38: 0 | BM38: 0 | BN38: 0 | BO38: 0 | BP38: 0 | BQ38: 0 | BR38: 0 | BS38: 0 | BT38: 0 | BU38: 0
B39: 31 | C39: Project 31 | D39: 31 | F39: ICT capex | G39: Other non-network capex | I39: 90 | J39: 0 | K39: 0 | L39: 0 | M39: 0 | O39: 0.3492946736 | P39: 0.6507053264 | R39: No | S39: No | U39: 0 | V39: 0 | X39: 0 | Y39: 0 | Z39: 0 | AA39: 0 | AB39: 0 | AC39: 0 | AD39: 0 | AE39: 0 | AF39: 1 | AG39: 0 | AH39: 0 | AI39: 0 | AJ39: 0 | AK39: 0 | AL39: 0 | AM39: 0 | AN39: 0 | AO39: 0 | AP39: 0 | AQ39: 0 | AR39: 0 | AS39: 0 | AT39: 0 | AU39: 0 | AV39: 0 | AW39: 0 | AX39: 0 | AY39: 0 | AZ39: 0 | BA39: 0 | BB39: 0 | BC39: 0 | BD39: 0 | BE39: 0 | BF39: 0 | BG39: 0 | BH39: 0 | BI39: 0 | BJ39: 0 | BK39: 0 | BL39: 0 | BM39: 0 | BN39: 0 | BO39: 0 | BP39: 0 | BQ39: 0 | BR39: 0 | BS39: 0 | BT39: 0 | BU39: 0
B40: 32 | C40: Project 32 | D40: 32 | F40: Other non-network capex | G40: Other non-network capex | I40: 242.2619122 | J40: 242.2619122 | K40: 241.4166549 | L40: 240.5713976 | M40: 240.5713976 | O40: 0 | P40: 1 | R40: No | S40: No | U40: 0 | V40: 0 | X40: 0 | Y40: 0 | Z40: 0 | AA40: 0 | AB40: 0 | AC40: 0 | AD40: 1 | AE40: 0 | AF40: 0 | AG40: 0 | AH40: 0 | AI40: 0 | AJ40: 0 | AK40: 0 | AL40: 0 | AM40: 0 | AN40: 0 | AO40: 0 | AP40: 0 | AQ40: 0 | AR40: 0 | AS40: 0 | AT40: 0 | AU40: 0 | AV40: 0 | AW40: 0 | AX40: 0 | AY40: 0 | AZ40: 0 | BA40: 0 | BB40: 0 | BC40: 0 | BD40: 0 | BE40: 0 | BF40: 0 | BG40: 0 | BH40: 0 | BI40: 0 | BJ40: 0 | BK40: 0 | BL40: 0 | BM40: 0 | BN40: 0 | BO40: 0 | BP40: 0 | BQ40: 0 | BR40: 0 | BS40: 0 | BT40: 0 | BU40: 0
B41: 33 | C41: Project 33 | D41: 33 | F41: Other non-network capex | G41: Other non-network capex | I41: 63.30334852 | J41: 63.30334852 | K41: 63.0824817 | L41: 62.86161489 | M41: 62.86161489 | O41: 0 | P41: 1 | R41: No | S41: No | U41: 0 | V41: 0 | X41: 0 | Y41: 0 | Z41: 0 | AA41: 0 | AB41: 0 | AC41: 0 | AD41: 1 | AE41: 0 | AF41: 0 | AG41: 0 | AH41: 0 | AI41: 0 | AJ41: 0 | AK41: 0 | AL41: 0 | AM41: 0 | AN41: 0 | AO41: 0 | AP41: 0 | AQ41: 0 | AR41: 0 | AS41: 0 | AT41: 0 | AU41: 0 | AV41: 0 | AW41: 0 | AX41: 0 | AY41: 0 | AZ41: 0 | BA41: 0 | BB41: 0 | BC41: 0 | BD41: 0 | BE41: 0 | BF41: 0 | BG41: 0 | BH41: 0 | BI41: 0 | BJ41: 0 | BK41: 0 | BL41: 0 | BM41: 0 | BN41: 0 | BO41: 0 | BP41: 0 | BQ41: 0 | BR41: 0 | BS41: 0 | BT41: 0 | BU41: 0
B42: 34 | C42: Project 34 | D42: 34 | F42: Other non-network capex | G42: Other non-network capex | I42: 134.7885477 | J42: 134.7885477 | K42: 134.3182675 | L42: 133.8479872 | M42: 133.8479872 | O42: 0 | P42: 1 | R42: No | S42: No | U42: 0 | V42: 0 | X42: 0 | Y42: 0 | Z42: 0 | AA42: 0 | AB42: 0 | AC42: 0 | AD42: 1 | AE42: 0 | AF42: 0 | AG42: 0 | AH42: 0 | AI42: 0 | AJ42: 0 | AK42: 0 | AL42: 0 | AM42: 0 | AN42: 0 | AO42: 0 | AP42: 0 | AQ42: 0 | AR42: 0 | AS42: 0 | AT42: 0 | AU42: 0 | AV42: 0 | AW42: 0 | AX42: 0 | AY42: 0 | AZ42: 0 | BA42: 0 | BB42: 0 | BC42: 0 | BD42: 0 | BE42: 0 | BF42: 0 | BG42: 0 | BH42: 0 | BI42: 0 | BJ42: 0 | BK42: 0 | BL42: 0 | BM42: 0 | BN42: 0 | BO42: 0 | BP42: 0 | BQ42: 0 | BR42: 0 | BS42: 0 | BT42: 0 | BU42: 0
B43: 35 | C43: Project 35 | D43: 35 | F43: Property capex | G43: Other non-network capex | I43: 34 | J43: 34 | K43: 34 | L43: 34 | M43: 34 | O43: 0.008836083398 | P43: 0.9911639166 | R43: No | S43: No | U43: 0 | V43: 0 | X43: 0 | Y43: 0 | Z43: 0 | AA43: 0 | AB43: 0 | AC43: 0 | AD43: 0 | AE43: 0 | AF43: 0 | AG43: 1 | AH43: 0 | AI43: 0 | AJ43: 0 | AK43: 0 | AL43: 0 | AM43: 0 | AN43: 0 | AO43: 0 | AP43: 0 | AQ43: 0 | AR43: 0 | AS43: 0 | AT43: 0 | AU43: 0 | AV43: 0 | AW43: 0 | AX43: 0 | AY43: 0 | AZ43: 0 | BA43: 0 | BB43: 0 | BC43: 0 | BD43: 0 | BE43: 0 | BF43: 0 | BG43: 0 | BH43: 0 | BI43: 0 | BJ43: 0 | BK43: 0 | BL43: 0 | BM43: 0 | BN43: 0 | BO43: 0 | BP43: 0 | BQ43: 0 | BR43: 0 | BS43: 0 | BT43: 0 | BU43: 0
B44: 36 | C44: Project 36 | D44: 36 | F44: Property capex | G44: Other non-network capex | I44: 99.03370192 | J44: 99.03370192 | K44: 99.03370192 | L44: 99.03370192 | M44: 99.03370192 | O44: 0.008836083398 | P44: 0.9911639166 | R44: No | S44: No | U44: 0 | V44: 0 | X44: 0 | Y44: 0 | Z44: 0 | AA44: 0 | AB44: 0 | AC44: 0 | AD44: 1 | AE44: 0 | AF44: 0 | AG44: 0 | AH44: 0 | AI44: 0 | AJ44: 0 | AK44: 0 | AL44: 0 | AM44: 0 | AN44: 0 | AO44: 0 | AP44: 0 | AQ44: 0 | AR44: 0 | AS44: 0 | AT44: 0 | AU44: 0 | AV44: 0 | AW44: 0 | AX44: 0 | AY44: 0 | AZ44: 0 | BA44: 0 | BB44: 0 | BC44: 0 | BD44: 0 | BE44: 0 | BF44: 0 | BG44: 0 | BH44: 0 | BI44: 0 | BJ44: 0 | BK44: 0 | BL44: 0 | BM44: 0 | BN44: 0 | BO44: 0 | BP44: 0 | BQ44: 0 | BR44: 0 | BS44: 0 | BT44: 0 | BU44: 0
B45: 37 | C45: Project 37 | D45: 37 | F45: Property capex | G45: Other non-network capex | I45: 187.5 | J45: 187.5 | K45: 0 | L45: 0 | M45: 0 | O45: 0.008836083398 | P45: 0.9911639166 | R45: No | S45: No | U45: 0 | V45: 0 | X45: 0 | Y45: 0 | Z45: 0 | AA45: 0 | AB45: 0 | AC45: 0 | AD45: 0 | AE45: 0 | AF45: 0 | AG45: 1 | AH45: 0 | AI45: 0 | AJ45: 0 | AK45: 0 | AL45: 0 | AM45: 0 | AN45: 0 | AO45: 0 | AP45: 0 | AQ45: 0 | AR45: 0 | AS45: 0 | AT45: 0 | AU45: 0 | AV45: 0 | AW45: 0 | AX45: 0 | AY45: 0 | AZ45: 0 | BA45: 0 | BB45: 0 | BC45: 0 | BD45: 0 | BE45: 0 | BF45: 0 | BG45: 0 | BH45: 0 | BI45: 0 | BJ45: 0 | BK45: 0 | BL45: 0 | BM45: 0 | BN45: 0 | BO45: 0 | BP45: 0 | BQ45: 0 | BR45: 0 | BS45: 0 | BT45: 0 | BU45: 0
B46: 38 | C46: Project 38 | D46: 38 | F46: Property capex | G46: Other non-network capex | I46: 546.1417385 | J46: 546.1417385 | K46: 0 | L46: 0 | M46: 0 | O46: 0.008836083398 | P46: 0.9911639166 | R46: No | S46: No | U46: 0 | V46: 0 | X46: 0 | Y46: 0 | Z46: 0 | AA46: 0 | AB46: 0 | AC46: 0 | AD46: 1 | AE46: 0 | AF46: 0 | AG46: 0 | AH46: 0 | AI46: 0 | AJ46: 0 | AK46: 0 | AL46: 0 | AM46: 0 | AN46: 0 | AO46: 0 | AP46: 0 | AQ46: 0 | AR46: 0 | AS46: 0 | AT46: 0 | AU46: 0 | AV46: 0 | AW46: 0 | AX46: 0 | AY46: 0 | AZ46: 0 | BA46: 0 | BB46: 0 | BC46: 0 | BD46: 0 | BE46: 0 | BF46: 0 | BG46: 0 | BH46: 0 | BI46: 0 | BJ46: 0 | BK46: 0 | BL46: 0 | BM46: 0 | BN46: 0 | BO46: 0 | BP46: 0 | BQ46: 0 | BR46: 0 | BS46: 0 | BT46: 0 | BU46: 0
B47: 39 | C47: Project 39 | D47: 39 | F47: Property capex | G47: Other non-network capex | I47: 0 | J47: 24.4875 | K47: 24.4875 | L47: 0 | M47: 0 | O47: 0.008836083398 | P47: 0.9911639166 | R47: No | S47: No | U47: 0 | V47: 0 | X47: 0 | Y47: 0 | Z47: 0 | AA47: 0 | AB47: 0 | AC47: 0 | AD47: 0 | AE47: 0 | AF47: 0 | AG47: 1 | AH47: 0 | AI47: 0 | AJ47: 0 | AK47: 0 | AL47: 0 | AM47: 0 | AN47: 0 | AO47: 0 | AP47: 0 | AQ47: 0 | AR47: 0 | AS47: 0 | AT47: 0 | AU47: 0 | AV47: 0 | AW47: 0 | AX47: 0 | AY47: 0 | AZ47: 0 | BA47: 0 | BB47: 0 | BC47: 0 | BD47: 0 | BE47: 0 | BF47: 0 | BG47: 0 | BH47: 0 | BI47: 0 | BJ47: 0 | BK47: 0 | BL47: 0 | BM47: 0 | BN47: 0 | BO47: 0 | BP47: 0 | BQ47: 0 | BR47: 0 | BS47: 0 | BT47: 0 | BU47: 0
B48: 40 | C48: Project 40 | D48: 40 | F48: Property capex | G48: Other non-network capex | I48: 0 | J48: 71.32611105 | K48: 71.32611105 | L48: 0 | M48: 0 | O48: 0.008836083398 | P48: 0.9911639166 | R48: No | S48: No | U48: 0 | V48: 0 | X48: 0 | Y48: 0 | Z48: 0 | AA48: 0 | AB48: 0 | AC48: 0 | AD48: 1 | AE48: 0 | AF48: 0 | AG48: 0 | AH48: 0 | AI48: 0 | AJ48: 0 | AK48: 0 | AL48: 0 | AM48: 0 | AN48: 0 | AO48: 0 | AP48: 0 | AQ48: 0 | AR48: 0 | AS48: 0 | AT48: 0 | AU48: 0 | AV48: 0 | AW48: 0 | AX48: 0 | AY48: 0 | AZ48: 0 | BA48: 0 | BB48: 0 | BC48: 0 | BD48: 0 | BE48: 0 | BF48: 0 | BG48: 0 | BH48: 0 | BI48: 0 | BJ48: 0 | BK48: 0 | BL48: 0 | BM48: 0 | BN48: 0 | BO48: 0 | BP48: 0 | BQ48: 0 | BR48: 0 | BS48: 0 | BT48: 0 | BU48: 0
B49: 41 | C49: Project 41 | D49: 41 | F49: Property capex | G49: Other non-network capex | I49: 0 | J49: 0 | K49: 121.025 | L49: 121.025 | M49: 0 | O49: 0.008836083398 | P49: 0.9911639166 | R49: No | S49: No | U49: 0 | V49: 0 | X49: 0 | Y49: 0 | Z49: 0 | AA49: 0 | AB49: 0 | AC49: 0 | AD49: 0 | AE49: 0 | AF49: 0 | AG49: 1 | AH49: 0 | AI49: 0 | AJ49: 0 | AK49: 0 | AL49: 0 | AM49: 0 | AN49: 0 | AO49: 0 | AP49: 0 | AQ49: 0 | AR49: 0 | AS49: 0 | AT49: 0 | AU49: 0 | AV49: 0 | AW49: 0 | AX49: 0 | AY49: 0 | AZ49: 0 | BA49: 0 | BB49: 0 | BC49: 0 | BD49: 0 | BE49: 0 | BF49: 0 | BG49: 0 | BH49: 0 | BI49: 0 | BJ49: 0 | BK49: 0 | BL49: 0 | BM49: 0 | BN49: 0 | BO49: 0 | BP49: 0 | BQ49: 0 | BR49: 0 | BS49: 0 | BT49: 0 | BU49: 0
B50: 42 | C50: Project 42 | D50: 42 | F50: Property capex | G50: Other non-network capex | I50: 0 | J50: 0 | K50: 352.5162875 | L50: 352.5162875 | M50: 0 | O50: 0.008836083398 | P50: 0.9911639166 | R50: No | S50: No | U50: 0 | V50: 0 | X50: 0 | Y50: 0 | Z50: 0 | AA50: 0 | AB50: 0 | AC50: 0 | AD50: 1 | AE50: 0 | AF50: 0 | AG50: 0 | AH50: 0 | AI50: 0 | AJ50: 0 | AK50: 0 | AL50: 0 | AM50: 0 | AN50: 0 | AO50: 0 | AP50: 0 | AQ50: 0 | AR50: 0 | AS50: 0 | AT50: 0 | AU50: 0 | AV50: 0 | AW50: 0 | AX50: 0 | AY50: 0 | AZ50: 0 | BA50: 0 | BB50: 0 | BC50: 0 | BD50: 0 | BE50: 0 | BF50: 0 | BG50: 0 | BH50: 0 | BI50: 0 | BJ50: 0 | BK50: 0 | BL50: 0 | BM50: 0 | BN50: 0 | BO50: 0 | BP50: 0 | BQ50: 0 | BR50: 0 | BS50: 0 | BT50: 0 | BU50: 0
B51: 43 | C51: Project 43 | D51: 43 | F51: Property capex | G51: Other non-network capex | I51: 0 | J51: 0 | K51: 0 | L51: 187.5 | M51: 187.5 | O51: 0.008836083398 | P51: 0.9911639166 | R51: No | S51: No | U51: 0 | V51: 0 | X51: 0 | Y51: 0 | Z51: 0 | AA51: 0 | AB51: 0 | AC51: 0 | AD51: 0 | AE51: 0 | AF51: 0 | AG51: 1 | AH51: 0 | AI51: 0 | AJ51: 0 | AK51: 0 | AL51: 0 | AM51: 0 | AN51: 0 | AO51: 0 | AP51: 0 | AQ51: 0 | AR51: 0 | AS51: 0 | AT51: 0 | AU51: 0 | AV51: 0 | AW51: 0 | AX51: 0 | AY51: 0 | AZ51: 0 | BA51: 0 | BB51: 0 | BC51: 0 | BD51: 0 | BE51: 0 | BF51: 0 | BG51: 0 | BH51: 0 | BI51: 0 | BJ51: 0 | BK51: 0 | BL51: 0 | BM51: 0 | BN51: 0 | BO51: 0 | BP51: 0 | BQ51: 0 | BR51: 0 | BS51: 0 | BT51: 0 | BU51: 0
B52: 44 | C52: Project 44 | D52: 44 | F52: Property capex | G52: Other non-network capex | I52: 0 | J52: 0 | K52: 0 | L52: 546.1417385 | M52: 546.1417385 | O52: 0.008836083398 | P52: 0.9911639166 | R52: No | S52: No | U52: 0 | V52: 0 | X52: 0 | Y52: 0 | Z52: 0 | AA52: 0 | AB52: 0 | AC52: 0 | AD52: 1 | AE52: 0 | AF52: 0 | AG52: 0 | AH52: 0 | AI52: 0 | AJ52: 0 | AK52: 0 | AL52: 0 | AM52: 0 | AN52: 0 | AO52: 0 | AP52: 0 | AQ52: 0 | AR52: 0 | AS52: 0 | AT52: 0 | AU52: 0 | AV52: 0 | AW52: 0 | AX52: 0 | AY52: 0 | AZ52: 0 | BA52: 0 | BB52: 0 | BC52: 0 | BD52: 0 | BE52: 0 | BF52: 0 | BG52: 0 | BH52: 0 | BI52: 0 | BJ52: 0 | BK52: 0 | BL52: 0 | BM52: 0 | BN52: 0 | BO52: 0 | BP52: 0 | BQ52: 0 | BR52: 0 | BS52: 0 | BT52: 0 | BU52: 0
B53: 45 | C53: Project 45 | D53: 45 | F53: Fleet capex | G53: Other non-network capex | I53: 1418.729721 | J53: 141.8729721 | K53: 0 | L53: 0 | M53: 0 | O53: 0.2640901951 | P53: 0.7359098049 | R53: No | S53: No | U53: 0 | V53: 0 | X53: 0 | Y53: 0 | Z53: 0 | AA53: 0 | AB53: 0 | AC53: 0 | AD53: 1 | AE53: 0 | AF53: 0 | AG53: 0 | AH53: 0 | AI53: 0 | AJ53: 0 | AK53: 0 | AL53: 0 | AM53: 0 | AN53: 0 | AO53: 0 | AP53: 0 | AQ53: 0 | AR53: 0 | AS53: 0 | AT53: 0 | AU53: 0 | AV53: 0 | AW53: 0 | AX53: 0 | AY53: 0 | AZ53: 0 | BA53: 0 | BB53: 0 | BC53: 0 | BD53: 0 | BE53: 0 | BF53: 0 | BG53: 0 | BH53: 0 | BI53: 0 | BJ53: 0 | BK53: 0 | BL53: 0 | BM53: 0 | BN53: 0 | BO53: 0 | BP53: 0 | BQ53: 0 | BR53: 0 | BS53: 0 | BT53: 0 | BU53: 0
B54: 46 | C54: Project 46 | D54: 46 | F54: Fleet capex | G54: Other non-network capex | I54: 1511.420063 | J54: 331.0369349 | K54: 416.1607182 | L54: 208.0803591 | M54: 614.7828792 | O54: 0.2640901951 | P54: 0.7359098049 | R54: No | S54: No | U54: 0 | V54: 0 | X54: 0 | Y54: 0 | Z54: 0 | AA54: 0 | AB54: 0 | AC54: 0 | AD54: 1 | AE54: 0 | AF54: 0 | AG54: 0 | AH54: 0 | AI54: 0 | AJ54: 0 | AK54: 0 | AL54: 0 | AM54: 0 | AN54: 0 | AO54: 0 | AP54: 0 | AQ54: 0 | AR54: 0 | AS54: 0 | AT54: 0 | AU54: 0 | AV54: 0 | AW54: 0 | AX54: 0 | AY54: 0 | AZ54: 0 | BA54: 0 | BB54: 0 | BC54: 0 | BD54: 0 | BE54: 0 | BF54: 0 | BG54: 0 | BH54: 0 | BI54: 0 | BJ54: 0 | BK54: 0 | BL54: 0 | BM54: 0 | BN54: 0 | BO54: 0 | BP54: 0 | BQ54: 0 | BR54: 0 | BS54: 0 | BT54: 0 | BU54: 0
B55: 47 | C55: Project 47 | D55: 47 | F55: Fleet capex | G55: Other non-network capex | I55: 1145.387795 | J55: 0 | K55: 1035.672696 | L55: 51.07426996 | M55: 455.8851504 | O55: 0 | P55: 1 | R55: No | S55: No | U55: 0 | V55: 0 | X55: 0 | Y55: 0 | Z55: 0 | AA55: 0 | AB55: 0 | AC55: 0 | AD55: 1 | AE55: 0 | AF55: 0 | AG55: 0 | AH55: 0 | AI55: 0 | AJ55: 0 | AK55: 0 | AL55: 0 | AM55: 0 | AN55: 0 | AO55: 0 | AP55: 0 | AQ55: 0 | AR55: 0 | AS55: 0 | AT55: 0 | AU55: 0 | AV55: 0 | AW55: 0 | AX55: 0 | AY55: 0 | AZ55: 0 | BA55: 0 | BB55: 0 | BC55: 0 | BD55: 0 | BE55: 0 | BF55: 0 | BG55: 0 | BH55: 0 | BI55: 0 | BJ55: 0 | BK55: 0 | BL55: 0 | BM55: 0 | BN55: 0 | BO55: 0 | BP55: 0 | BQ55: 0 | BR55: 0 | BS55: 0 | BT55: 0 | BU55: 0
B56: 48 | C56: Project 48 | D56: 48 | F56: Fleet capex | G56: Other non-network capex | I56: 132.414774 | J56: 33.10369349 | K56: 99.31108048 | L56: 198.622161 | M56: 231.7258545 | O56: 0 | P56: 1 | R56: No | S56: No | U56: 0 | V56: 0 | X56: 0 | Y56: 0 | Z56: 0 | AA56: 0 | AB56: 0 | AC56: 0 | AD56: 1 | AE56: 0 | AF56: 0 | AG56: 0 | AH56: 0 | AI56: 0 | AJ56: 0 | AK56: 0 | AL56: 0 | AM56: 0 | AN56: 0 | AO56: 0 | AP56: 0 | AQ56: 0 | AR56: 0 | AS56: 0 | AT56: 0 | AU56: 0 | AV56: 0 | AW56: 0 | AX56: 0 | AY56: 0 | AZ56: 0 | BA56: 0 | BB56: 0 | BC56: 0 | BD56: 0 | BE56: 0 | BF56: 0 | BG56: 0 | BH56: 0 | BI56: 0 | BJ56: 0 | BK56: 0 | BL56: 0 | BM56: 0 | BN56: 0 | BO56: 0 | BP56: 0 | BQ56: 0 | BR56: 0 | BS56: 0 | BT56: 0 | BU56: 0
B57: 49 | C57: Project 49 | D57: 49 | F57: Fleet capex | G57: Other non-network capex | I57: 461.5600693 | J57: 510.7426996 | K57: 62.89701764 | L57: 88.90706253 | M57: 385.2324103 | O57: 0 | P57: 1 | R57: No | S57: No | U57: 0 | V57: 0 | X57: 0 | Y57: 0 | Z57: 0 | AA57: 0 | AB57: 0 | AC57: 0 | AD57: 1 | AE57: 0 | AF57: 0 | AG57: 0 | AH57: 0 | AI57: 0 | AJ57: 0 | AK57: 0 | AL57: 0 | AM57: 0 | AN57: 0 | AO57: 0 | AP57: 0 | AQ57: 0 | AR57: 0 | AS57: 0 | AT57: 0 | AU57: 0 | AV57: 0 | AW57: 0 | AX57: 0 | AY57: 0 | AZ57: 0 | BA57: 0 | BB57: 0 | BC57: 0 | BD57: 0 | BE57: 0 | BF57: 0 | BG57: 0 | BH57: 0 | BI57: 0 | BJ57: 0 | BK57: 0 | BL57: 0 | BM57: 0 | BN57: 0 | BO57: 0 | BP57: 0 | BQ57: 0 | BR57: 0 | BS57: 0 | BT57: 0 | BU57: 0
B58: 50 | C58: Project 50 | D58: 50 | F58: Augmentation | G58: Augmentation | I58: 4500 | J58: 4925.764277 | K58: 0 | L58: 0 | M58: 0 | O58: 0.2638803371 | P58: 0.7361196629 | R58: Yes | S58: Yes | U58: 0 | V58: 0 | X58: 1 | Y58: 0 | Z58: 0 | AA58: 0 | AB58: 0 | AC58: 0 | AD58: 0 | AE58: 0 | AF58: 0 | AG58: 0 | AH58: 0 | AI58: 0 | AJ58: 0 | AK58: 0 | AL58: 0 | AM58: 0 | AN58: 0 | AO58: 0 | AP58: 0 | AQ58: 0 | AR58: 0 | AS58: 0 | AT58: 0 | AU58: 0 | AV58: 0 | AW58: 0 | AX58: 0 | AY58: 0 | AZ58: 0 | BA58: 0 | BB58: 0 | BC58: 0 | BD58: 0 | BE58: 0 | BF58: 0 | BG58: 0 | BH58: 0 | BI58: 0 | BJ58: 0 | BK58: 0 | BL58: 0 | BM58: 0 | BN58: 0 | BO58: 0 | BP58: 0 | BQ58: 0 | BR58: 0 | BS58: 0 | BT58: 0 | BU58: 0
B59: 51 | C59: Project 51 | D59: 51 | F59: Augmentation | G59: Augmentation | I59: 0 | J59: 0 | K59: 0 | L59: 0 | M59: 0 | O59: 0.2638803371 | P59: 0.7361196629 | R59: Yes | S59: Yes | U59: 0 | V59: 0 | X59: 1 | Y59: 0 | Z59: 0 | AA59: 0 | AB59: 0 | AC59: 0 | AD59: 0 | AE59: 0 | AF59: 0 | AG59: 0 | AH59: 0 | AI59: 0 | AJ59: 0 | AK59: 0 | AL59: 0 | AM59: 0 | AN59: 0 | AO59: 0 | AP59: 0 | AQ59: 0 | AR59: 0 | AS59: 0 | AT59: 0 | AU59: 0 | AV59: 0 | AW59: 0 | AX59: 0 | AY59: 0 | AZ59: 0 | BA59: 0 | BB59: 0 | BC59: 0 | BD59: 0 | BE59: 0 | BF59: 0 | BG59: 0 | BH59: 0 | BI59: 0 | BJ59: 0 | BK59: 0 | BL59: 0 | BM59: 0 | BN59: 0 | BO59: 0 | BP59: 0 | BQ59: 0 | BR59: 0 | BS59: 0 | BT59: 0 | BU59: 0
B60: 52 | C60: Project 52 | D60: 52 | F60: Augmentation | G60: Augmentation | I60: 0 | J60: 0 | K60: 0 | L60: 0 | M60: 0 | O60: 0.2638803371 | P60: 0.7361196629 | R60: Yes | S60: Yes | U60: 0 | V60: 0 | X60: 1 | Y60: 0 | Z60: 0 | AA60: 0 | AB60: 0 | AC60: 0 | AD60: 0 | AE60: 0 | AF60: 0 | AG60: 0 | AH60: 0 | AI60: 0 | AJ60: 0 | AK60: 0 | AL60: 0 | AM60: 0 | AN60: 0 | AO60: 0 | AP60: 0 | AQ60: 0 | AR60: 0 | AS60: 0 | AT60: 0 | AU60: 0 | AV60: 0 | AW60: 0 | AX60: 0 | AY60: 0 | AZ60: 0 | BA60: 0 | BB60: 0 | BC60: 0 | BD60: 0 | BE60: 0 | BF60: 0 | BG60: 0 | BH60: 0 | BI60: 0 | BJ60: 0 | BK60: 0 | BL60: 0 | BM60: 0 | BN60: 0 | BO60: 0 | BP60: 0 | BQ60: 0 | BR60: 0 | BS60: 0 | BT60: 0 | BU60: 0
B61: 53 | C61: Project 53 | D61: 53 | F61: Augmentation | G61: Augmentation | I61: 0 | J61: 0 | K61: 0 | L61: 0 | M61: 0 | O61: 0.2638803371 | P61: 0.7361196629 | R61: Yes | S61: Yes | U61: 0 | V61: 0 | X61: 1 | Y61: 0 | Z61: 0 | AA61: 0 | AB61: 0 | AC61: 0 | AD61: 0 | AE61: 0 | AF61: 0 | AG61: 0 | AH61: 0 | AI61: 0 | AJ61: 0 | AK61: 0 | AL61: 0 | AM61: 0 | AN61: 0 | AO61: 0 | AP61: 0 | AQ61: 0 | AR61: 0 | AS61: 0 | AT61: 0 | AU61: 0 | AV61: 0 | AW61: 0 | AX61: 0 | AY61: 0 | AZ61: 0 | BA61: 0 | BB61: 0 | BC61: 0 | BD61: 0 | BE61: 0 | BF61: 0 | BG61: 0 | BH61: 0 | BI61: 0 | BJ61: 0 | BK61: 0 | BL61: 0 | BM61: 0 | BN61: 0 | BO61: 0 | BP61: 0 | BQ61: 0 | BR61: 0 | BS61: 0 | BT61: 0 | BU61: 0
B62: 54 | C62: Project 54 | D62: 54 | F62: Augmentation | G62: Augmentation | I62: 44 | J62: 1144 | K62: 3603.367946 | L62: 0 | M62: 0 | O62: 0.2638803371 | P62: 0.7361196629 | R62: Yes | S62: Yes | U62: 0 | V62: 0 | X62: 1 | Y62: 0 | Z62: 0 | AA62: 0 | AB62: 0 | AC62: 0 | AD62: 0 | AE62: 0 | AF62: 0 | AG62: 0 | AH62: 0 | AI62: 0 | AJ62: 0 | AK62: 0 | AL62: 0 | AM62: 0 | AN62: 0 | AO62: 0 | AP62: 0 | AQ62: 0 | AR62: 0 | AS62: 0 | AT62: 0 | AU62: 0 | AV62: 0 | AW62: 0 | AX62: 0 | AY62: 0 | AZ62: 0 | BA62: 0 | BB62: 0 | BC62: 0 | BD62: 0 | BE62: 0 | BF62: 0 | BG62: 0 | BH62: 0 | BI62: 0 | BJ62: 0 | BK62: 0 | BL62: 0 | BM62: 0 | BN62: 0 | BO62: 0 | BP62: 0 | BQ62: 0 | BR62: 0 | BS62: 0 | BT62: 0 | BU62: 0
B63: 55 | C63: Project 55 | D63: 55 | F63: Augmentation | G63: Augmentation | I63: 6 | J63: 156 | K63: 491.3683563 | L63: 0 | M63: 0 | O63: 0.2389204307 | P63: 0.7610795693 | R63: Yes | S63: Yes | U63: 0 | V63: 0 | X63: 1 | Y63: 0 | Z63: 0 | AA63: 0 | AB63: 0 | AC63: 0 | AD63: 0 | AE63: 0 | AF63: 0 | AG63: 0 | AH63: 0 | AI63: 0 | AJ63: 0 | AK63: 0 | AL63: 0 | AM63: 0 | AN63: 0 | AO63: 0 | AP63: 0 | AQ63: 0 | AR63: 0 | AS63: 0 | AT63: 0 | AU63: 0 | AV63: 0 | AW63: 0 | AX63: 0 | AY63: 0 | AZ63: 0 | BA63: 0 | BB63: 0 | BC63: 0 | BD63: 0 | BE63: 0 | BF63: 0 | BG63: 0 | BH63: 0 | BI63: 0 | BJ63: 0 | BK63: 0 | BL63: 0 | BM63: 0 | BN63: 0 | BO63: 0 | BP63: 0 | BQ63: 0 | BR63: 0 | BS63: 0 | BT63: 0 | BU63: 0
B64: 56 | C64: Project 56 | D64: 56 | F64: Augmentation | G64: Augmentation | I64: 0 | J64: 0 | K64: 0 | L64: 0 | M64: 0 | O64: 0.3758317312 | P64: 0.6241682688 | R64: Yes | S64: Yes | U64: 0 | V64: 0 | X64: 0 | Y64: 1 | Z64: 0 | AA64: 0 | AB64: 0 | AC64: 0 | AD64: 0 | AE64: 0 | AF64: 0 | AG64: 0 | AH64: 0 | AI64: 0 | AJ64: 0 | AK64: 0 | AL64: 0 | AM64: 0 | AN64: 0 | AO64: 0 | AP64: 0 | AQ64: 0 | AR64: 0 | AS64: 0 | AT64: 0 | AU64: 0 | AV64: 0 | AW64: 0 | AX64: 0 | AY64: 0 | AZ64: 0 | BA64: 0 | BB64: 0 | BC64: 0 | BD64: 0 | BE64: 0 | BF64: 0 | BG64: 0 | BH64: 0 | BI64: 0 | BJ64: 0 | BK64: 0 | BL64: 0 | BM64: 0 | BN64: 0 | BO64: 0 | BP64: 0 | BQ64: 0 | BR64: 0 | BS64: 0 | BT64: 0 | BU64: 0
B65: 57 | C65: Project 57 | D65: 57 | F65: Augmentation | G65: Augmentation | I65: 0 | J65: 0 | K65: 0 | L65: 0 | M65: 0 | O65: 0.3758317312 | P65: 0.6241682688 | R65: Yes | S65: Yes | U65: 0 | V65: 0 | X65: 0 | Y65: 1 | Z65: 0 | AA65: 0 | AB65: 0 | AC65: 0 | AD65: 0 | AE65: 0 | AF65: 0 | AG65: 0 | AH65: 0 | AI65: 0 | AJ65: 0 | AK65: 0 | AL65: 0 | AM65: 0 | AN65: 0 | AO65: 0 | AP65: 0 | AQ65: 0 | AR65: 0 | AS65: 0 | AT65: 0 | AU65: 0 | AV65: 0 | AW65: 0 | AX65: 0 | AY65: 0 | AZ65: 0 | BA65: 0 | BB65: 0 | BC65: 0 | BD65: 0 | BE65: 0 | BF65: 0 | BG65: 0 | BH65: 0 | BI65: 0 | BJ65: 0 | BK65: 0 | BL65: 0 | BM65: 0 | BN65: 0 | BO65: 0 | BP65: 0 | BQ65: 0 | BR65: 0 | BS65: 0 | BT65: 0 | BU65: 0
B66: 58 | C66: Project 58 | D66: 58 | F66: Augmentation | G66: Augmentation | I66: 3500 | J66: 2824.542478 | K66: 0 | L66: 0 | M66: 0 | O66: 0.2389204307 | P66: 0.7610795693 | R66: Yes | S66: Yes | U66: 0 | V66: 0 | X66: 1 | Y66: 0 | Z66: 0 | AA66: 0 | AB66: 0 | AC66: 0 | AD66: 0 | AE66: 0 | AF66: 0 | AG66: 0 | AH66: 0 | AI66: 0 | AJ66: 0 | AK66: 0 | AL66: 0 | AM66: 0 | AN66: 0 | AO66: 0 | AP66: 0 | AQ66: 0 | AR66: 0 | AS66: 0 | AT66: 0 | AU66: 0 | AV66: 0 | AW66: 0 | AX66: 0 | AY66: 0 | AZ66: 0 | BA66: 0 | BB66: 0 | BC66: 0 | BD66: 0 | BE66: 0 | BF66: 0 | BG66: 0 | BH66: 0 | BI66: 0 | BJ66: 0 | BK66: 0 | BL66: 0 | BM66: 0 | BN66: 0 | BO66: 0 | BP66: 0 | BQ66: 0 | BR66: 0 | BS66: 0 | BT66: 0 | BU66: 0
B67: 59 | C67: Project 59 | D67: 59 | F67: Augmentation | G67: Augmentation | I67: 60 | J67: 4200 | K67: 6741.6107 | L67: 0 | M67: 0 | O67: 0.3758317312 | P67: 0.6241682688 | R67: Yes | S67: Yes | U67: 0 | V67: 0 | X67: 0 | Y67: 1 | Z67: 0 | AA67: 0 | AB67: 0 | AC67: 0 | AD67: 0 | AE67: 0 | AF67: 0 | AG67: 0 | AH67: 0 | AI67: 0 | AJ67: 0 | AK67: 0 | AL67: 0 | AM67: 0 | AN67: 0 | AO67: 0 | AP67: 0 | AQ67: 0 | AR67: 0 | AS67: 0 | AT67: 0 | AU67: 0 | AV67: 0 | AW67: 0 | AX67: 0 | AY67: 0 | AZ67: 0 | BA67: 0 | BB67: 0 | BC67: 0 | BD67: 0 | BE67: 0 | BF67: 0 | BG67: 0 | BH67: 0 | BI67: 0 | BJ67: 0 | BK67: 0 | BL67: 0 | BM67: 0 | BN67: 0 | BO67: 0 | BP67: 0 | BQ67: 0 | BR67: 0 | BS67: 0 | BT67: 0 | BU67: 0
B68: 60 | C68: Project 60 | D68: 60 | F68: Augmentation | G68: Augmentation | I68: 0 | J68: 30 | K68: 1080 | L68: 5763.525208 | M68: 0 | O68: 0.3758317312 | P68: 0.6241682688 | R68: Yes | S68: Yes | U68: 0 | V68: 0 | X68: 0 | Y68: 1 | Z68: 0 | AA68: 0 | AB68: 0 | AC68: 0 | AD68: 0 | AE68: 0 | AF68: 0 | AG68: 0 | AH68: 0 | AI68: 0 | AJ68: 0 | AK68: 0 | AL68: 0 | AM68: 0 | AN68: 0 | AO68: 0 | AP68: 0 | AQ68: 0 | AR68: 0 | AS68: 0 | AT68: 0 | AU68: 0 | AV68: 0 | AW68: 0 | AX68: 0 | AY68: 0 | AZ68: 0 | BA68: 0 | BB68: 0 | BC68: 0 | BD68: 0 | BE68: 0 | BF68: 0 | BG68: 0 | BH68: 0 | BI68: 0 | BJ68: 0 | BK68: 0 | BL68: 0 | BM68: 0 | BN68: 0 | BO68: 0 | BP68: 0 | BQ68: 0 | BR68: 0 | BS68: 0 | BT68: 0 | BU68: 0
B69: 61 | C69: Project 61 | D69: 61 | F69: Augmentation | G69: Augmentation | I69: 0 | J69: 0 | K69: 0 | L69: 0 | M69: 0 | O69: 0.3758317312 | P69: 0.6241682688 | R69: Yes | S69: Yes | U69: 0 | V69: 0 | X69: 0 | Y69: 1 | Z69: 0 | AA69: 0 | AB69: 0 | AC69: 0 | AD69: 0 | AE69: 0 | AF69: 0 | AG69: 0 | AH69: 0 | AI69: 0 | AJ69: 0 | AK69: 0 | AL69: 0 | AM69: 0 | AN69: 0 | AO69: 0 | AP69: 0 | AQ69: 0 | AR69: 0 | AS69: 0 | AT69: 0 | AU69: 0 | AV69: 0 | AW69: 0 | AX69: 0 | AY69: 0 | AZ69: 0 | BA69: 0 | BB69: 0 | BC69: 0 | BD69: 0 | BE69: 0 | BF69: 0 | BG69: 0 | BH69: 0 | BI69: 0 | BJ69: 0 | BK69: 0 | BL69: 0 | BM69: 0 | BN69: 0 | BO69: 0 | BP69: 0 | BQ69: 0 | BR69: 0 | BS69: 0 | BT69: 0 | BU69: 0
B70: 62 | C70: Project 62 | D70: 62 | F70: Augmentation | G70: Augmentation | I70: 0 | J70: 0 | K70: 0 | L70: 150 | M70: 850 | O70: 0.3758317312 | P70: 0.6241682688 | R70: Yes | S70: Yes | U70: 0 | V70: 0 | X70: 0 | Y70: 1 | Z70: 0 | AA70: 0 | AB70: 0 | AC70: 0 | AD70: 0 | AE70: 0 | AF70: 0 | AG70: 0 | AH70: 0 | AI70: 0 | AJ70: 0 | AK70: 0 | AL70: 0 | AM70: 0 | AN70: 0 | AO70: 0 | AP70: 0 | AQ70: 0 | AR70: 0 | AS70: 0 | AT70: 0 | AU70: 0 | AV70: 0 | AW70: 0 | AX70: 0 | AY70: 0 | AZ70: 0 | BA70: 0 | BB70: 0 | BC70: 0 | BD70: 0 | BE70: 0 | BF70: 0 | BG70: 0 | BH70: 0 | BI70: 0 | BJ70: 0 | BK70: 0 | BL70: 0 | BM70: 0 | BN70: 0 | BO70: 0 | BP70: 0 | BQ70: 0 | BR70: 0 | BS70: 0 | BT70: 0 | BU70: 0
B71: 63 | C71: Project 63 | D71: 63 | F71: Augmentation | G71: Augmentation | I71: 1365.589214 | J71: 0 | K71: 0 | L71: 0 | M71: 0 | O71: 0.3758317312 | P71: 0.6241682688 | R71: Yes | S71: Yes | U71: 0 | V71: 0 | X71: 0 | Y71: 1 | Z71: 0 | AA71: 0 | AB71: 0 | AC71: 0 | AD71: 0 | AE71: 0 | AF71: 0 | AG71: 0 | AH71: 0 | AI71: 0 | AJ71: 0 | AK71: 0 | AL71: 0 | AM71: 0 | AN71: 0 | AO71: 0 | AP71: 0 | AQ71: 0 | AR71: 0 | AS71: 0 | AT71: 0 | AU71: 0 | AV71: 0 | AW71: 0 | AX71: 0 | AY71: 0 | AZ71: 0 | BA71: 0 | BB71: 0 | BC71: 0 | BD71: 0 | BE71: 0 | BF71: 0 | BG71: 0 | BH71: 0 | BI71: 0 | BJ71: 0 | BK71: 0 | BL71: 0 | BM71: 0 | BN71: 0 | BO71: 0 | BP71: 0 | BQ71: 0 | BR71: 0 | BS71: 0 | BT71: 0 | BU71: 0
B72: 64 | C72: Project 64 | D72: 64 | F72: Augmentation | G72: Augmentation | I72: 0 | J72: 0 | K72: 841.1949291 | L72: 317.8740529 | M72: 0 | O72: 0.3758317312 | P72: 0.6241682688 | R72: Yes | S72: Yes | U72: 0 | V72: 0 | X72: 0 | Y72: 1 | Z72: 0 | AA72: 0 | AB72: 0 | AC72: 0 | AD72: 0 | AE72: 0 | AF72: 0 | AG72: 0 | AH72: 0 | AI72: 0 | AJ72: 0 | AK72: 0 | AL72: 0 | AM72: 0 | AN72: 0 | AO72: 0 | AP72: 0 | AQ72: 0 | AR72: 0 | AS72: 0 | AT72: 0 | AU72: 0 | AV72: 0 | AW72: 0 | AX72: 0 | AY72: 0 | AZ72: 0 | BA72: 0 | BB72: 0 | BC72: 0 | BD72: 0 | BE72: 0 | BF72: 0 | BG72: 0 | BH72: 0 | BI72: 0 | BJ72: 0 | BK72: 0 | BL72: 0 | BM72: 0 | BN72: 0 | BO72: 0 | BP72: 0 | BQ72: 0 | BR72: 0 | BS72: 0 | BT72: 0 | BU72: 0
B73: 65 | C73: Project 65 | D73: 65 | F73: Augmentation | G73: Augmentation | I73: 0 | J73: 0 | K73: 0 | L73: 0 | M73: 0 | O73: 0.3758317312 | P73: 0.6241682688 | Q73: =IF(O73>1,1,IF(P73>1,1,IF(SUM(O73:P73)=1,"",))) ->  | R73: Yes | S73: Yes | U73: 0 | V73: 0 | X73: 0 | Y73: 1 | Z73: 0 | AA73: 0 | AB73: 0 | AC73: 0 | AD73: 0 | AE73: 0 | AF73: 0 | AG73: 0 | AH73: 0 | AI73: 0 | AJ73: 0 | AK73: 0 | AL73: 0 | AM73: 0 | AN73: 0 | AO73: 0 | AP73: 0 | AQ73: 0 | AR73: 0 | AS73: 0 | AT73: 0 | AU73: 0 | AV73: 0 | AW73: 0 | AX73: 0 | AY73: 0 | AZ73: 0 | BA73: 0 | BB73: 0 | BC73: 0 | BD73: 0 | BE73: 0 | BF73: 0 | BG73: 0 | BH73: 0 | BI73: 0 | BJ73: 0 | BK73: 0 | BL73: 0 | BM73: 0 | BN73: 0 | BO73: 0 | BP73: 0 | BQ73: 0 | BR73: 0 | BS73: 0 | BT73: 0 | BU73: 0
B74: 66 | C74: Project 66 | D74: 66 | F74: Augmentation | G74: Augmentation | I74: 40 | J74: 900 | K74: 1590.024527 | L74: 0 | M74: 0 | O74: 0.3758317312 | P74: =1-O74 -> 0.6241682688 | R74: Yes | S74: Yes | U74: 0 | V74: 0 | W74: =IF(V74>1,1,IF(U74>1,1,IF(U74+V74>1,1,""))) ->  | X74: 0 | Y74: 1 | Z74: 0 | AA74: 0 | AB74: 0 | AC74: 0 | AD74: 0 | AE74: 0 | AF74: 0 | AG74: 0 | AH74: 0 | AI74: 0 | AJ74: 0 | AK74: 0 | AL74: 0 | AM74: 0 | AN74: 0 | AO74: 0 | AP74: 0 | AQ74: 0 | AR74: 0 | AS74: 0 | AT74: 0 | AU74: 0 | AV74: 0 | AW74: 0 | AX74: 0 | AY74: 0 | AZ74: 0 | BA74: 0 | BB74: 0 | BC74: 0 | BD74: 0 | BE74: 0 | BF74: 0 | BG74: 0 | BH74: 0 | BI74: 0 | BJ74: 0 | BK74: 0 | BL74: 0 | BM74: 0 | BN74: 0 | BO74: 0 | BP74: 0 | BQ74: 0 | BR74: 0 | BS74: 0 | BT74: 0 | BU74: 0 | BV74: =IF(SUM(X74:BU74)=1,"",SUM(X74:BU74)) -> 
B75: =IFERROR(B74+1,"") -> 67 | C75: Project 67 | D75: 67 | F75: Augmentation | G75: Augmentation | I75: 0 | J75: 0 | K75: 0 | L75: 0 | M75: 0 | O75: 0.3758317312 | P75: 0.6241682688 | R75: Yes | S75: Yes | U75: 0 | V75: 0 | X75: 0 | Y75: 1 | Z75: 0 | AA75: 0 | AB75: 0 | AC75: 0 | AD75: 0 | AE75: 0 | AF75: 0 | AG75: 0 | AH75: 0 | AI75: 0 | AJ75: 0 | AK75: 0 | AL75: 0 | AM75: 0 | AN75: 0 | AO75: 0 | AP75: 0 | AQ75: 0 | AR75: 0 | AS75: 0 | AT75: 0 | AU75: 0 | AV75: 0 | AW75: 0 | AX75: 0 | AY75: 0 | AZ75: 0 | BA75: 0 | BB75: 0 | BC75: 0 | BD75: 0 | BE75: 0 | BF75: 0 | BG75: 0 | BH75: 0 | BI75: 0 | BJ75: 0 | BK75: 0 | BL75: 0 | BM75: 0 | BN75: 0 | BO75: 0 | BP75: 0 | BQ75: 0 | BR75: 0 | BS75: 0 | BT75: 0 | BU75: 0
B76: 68 | C76: Project 68 | D76: 68 | F76: Augmentation | G76: Augmentation | I76: 0 | J76: 0 | K76: 0 | L76: 0 | M76: 0 | O76: 0.2389204307 | P76: 0.7610795693 | R76: Yes | S76: Yes | U76: 0 | V76: 0 | X76: 1 | Y76: 0 | Z76: 0 | AA76: 0 | AB76: 0 | AC76: 0 | AD76: 0 | AE76: 0 | AF76: 0 | AG76: 0 | AH76: 0 | AI76: 0 | AJ76: 0 | AK76: 0 | AL76: 0 | AM76: 0 | AN76: 0 | AO76: 0 | AP76: 0 | AQ76: 0 | AR76: 0 | AS76: 0 | AT76: 0 | AU76: 0 | AV76: 0 | AW76: 0 | AX76: 0 | AY76: 0 | AZ76: 0 | BA76: 0 | BB76: 0 | BC76: 0 | BD76: 0 | BE76: 0 | BF76: 0 | BG76: 0 | BH76: 0 | BI76: 0 | BJ76: 0 | BK76: 0 | BL76: 0 | BM76: 0 | BN76: 0 | BO76: 0 | BP76: 0 | BQ76: 0 | BR76: 0 | BS76: 0 | BT76: 0 | BU76: 0
B77: 69 | C77: Project 69 | D77: 69 | F77: Augmentation | G77: Augmentation | I77: 0 | J77: 0 | K77: 0 | L77: 0 | M77: 0 | O77: 0.3758317312 | P77: 0.6241682688 | R77: Yes | S77: Yes | U77: 0 | V77: 0 | X77: 0 | Y77: 1 | Z77: 0 | AA77: 0 | AB77: 0 | AC77: 0 | AD77: 0 | AE77: 0 | AF77: 0 | AG77: 0 | AH77: 0 | AI77: 0 | AJ77: 0 | AK77: 0 | AL77: 0 | AM77: 0 | AN77: 0 | AO77: 0 | AP77: 0 | AQ77: 0 | AR77: 0 | AS77: 0 | AT77: 0 | AU77: 0 | AV77: 0 | AW77: 0 | AX77: 0 | AY77: 0 | AZ77: 0 | BA77: 0 | BB77: 0 | BC77: 0 | BD77: 0 | BE77: 0 | BF77: 0 | BG77: 0 | BH77: 0 | BI77: 0 | BJ77: 0 | BK77: 0 | BL77: 0 | BM77: 0 | BN77: 0 | BO77: 0 | BP77: 0 | BQ77: 0 | BR77: 0 | BS77: 0 | BT77: 0 | BU77: 0
B78: 70 | C78: Project 70 | D78: 70 | F78: Augmentation | G78: Augmentation | I78: 1548.730273 | J78: 0 | K78: 0 | L78: 0 | M78: 0 | O78: 0.3758317312 | P78: 0.6241682688 | R78: Yes | S78: Yes | U78: 0 | V78: 0 | X78: 0 | Y78: 1 | Z78: 0 | AA78: 0 | AB78: 0 | AC78: 0 | AD78: 0 | AE78: 0 | AF78: 0 | AG78: 0 | AH78: 0 | AI78: 0 | AJ78: 0 | AK78: 0 | AL78: 0 | AM78: 0 | AN78: 0 | AO78: 0 | AP78: 0 | AQ78: 0 | AR78: 0 | AS78: 0 | AT78: 0 | AU78: 0 | AV78: 0 | AW78: 0 | AX78: 0 | AY78: 0 | AZ78: 0 | BA78: 0 | BB78: 0 | BC78: 0 | BD78: 0 | BE78: 0 | BF78: 0 | BG78: 0 | BH78: 0 | BI78: 0 | BJ78: 0 | BK78: 0 | BL78: 0 | BM78: 0 | BN78: 0 | BO78: 0 | BP78: 0 | BQ78: 0 | BR78: 0 | BS78: 0 | BT78: 0 | BU78: 0
B79: 71 | C79: Project 71 | D79: 71 | F79: Augmentation | G79: Augmentation | I79: 0 | J79: 30 | K79: 1000 | L79: 1968.215448 | M79: 0 | O79: 0.3758317312 | P79: 0.6241682688 | R79: Yes | S79: Yes | U79: 0 | V79: 0 | X79: 0 | Y79: 1 | Z79: 0 | AA79: 0 | AB79: 0 | AC79: 0 | AD79: 0 | AE79: 0 | AF79: 0 | AG79: 0 | AH79: 0 | AI79: 0 | AJ79: 0 | AK79: 0 | AL79: 0 | AM79: 0 | AN79: 0 | AO79: 0 | AP79: 0 | AQ79: 0 | AR79: 0 | AS79: 0 | AT79: 0 | AU79: 0 | AV79: 0 | AW79: 0 | AX79: 0 | AY79: 0 | AZ79: 0 | BA79: 0 | BB79: 0 | BC79: 0 | BD79: 0 | BE79: 0 | BF79: 0 | BG79: 0 | BH79: 0 | BI79: 0 | BJ79: 0 | BK79: 0 | BL79: 0 | BM79: 0 | BN79: 0 | BO79: 0 | BP79: 0 | BQ79: 0 | BR79: 0 | BS79: 0 | BT79: 0 | BU79: 0
B80: 72 | C80: Project 72 | D80: 72 | F80: Augmentation | G80: Augmentation | I80: 0 | J80: 0 | K80: 0 | L80: 595 | M80: 1290.586323 | O80: 0.3758317312 | P80: 0.6241682688 | R80: Yes | S80: Yes | U80: 0 | V80: 0 | X80: 0 | Y80: 1 | Z80: 0 | AA80: 0 | AB80: 0 | AC80: 0 | AD80: 0 | AE80: 0 | AF80: 0 | AG80: 0 | AH80: 0 | AI80: 0 | AJ80: 0 | AK80: 0 | AL80: 0 | AM80: 0 | AN80: 0 | AO80: 0 | AP80: 0 | AQ80: 0 | AR80: 0 | AS80: 0 | AT80: 0 | AU80: 0 | AV80: 0 | AW80: 0 | AX80: 0 | AY80: 0 | AZ80: 0 | BA80: 0 | BB80: 0 | BC80: 0 | BD80: 0 | BE80: 0 | BF80: 0 | BG80: 0 | BH80: 0 | BI80: 0 | BJ80: 0 | BK80: 0 | BL80: 0 | BM80: 0 | BN80: 0 | BO80: 0 | BP80: 0 | BQ80: 0 | BR80: 0 | BS80: 0 | BT80: 0 | BU80: 0
B81: 73 | C81: Project 73 | D81: 73 | F81: Augmentation | G81: Augmentation | I81: 1600 | J81: 1687.654831 | K81: 0 | L81: 0 | M81: 0 | O81: 0.3758317312 | P81: 0.6241682688 | R81: Yes | S81: Yes | U81: 0 | V81: 0 | X81: 0 | Y81: 1 | Z81: 0 | AA81: 0 | AB81: 0 | AC81: 0 | AD81: 0 | AE81: 0 | AF81: 0 | AG81: 0 | AH81: 0 | AI81: 0 | AJ81: 0 | AK81: 0 | AL81: 0 | AM81: 0 | AN81: 0 | AO81: 0 | AP81: 0 | AQ81: 0 | AR81: 0 | AS81: 0 | AT81: 0 | AU81: 0 | AV81: 0 | AW81: 0 | AX81: 0 | AY81: 0 | AZ81: 0 | BA81: 0 | BB81: 0 | BC81: 0 | BD81: 0 | BE81: 0 | BF81: 0 | BG81: 0 | BH81: 0 | BI81: 0 | BJ81: 0 | BK81: 0 | BL81: 0 | BM81: 0 | BN81: 0 | BO81: 0 | BP81: 0 | BQ81: 0 | BR81: 0 | BS81: 0 | BT81: 0 | BU81: 0
B82: 74 | C82: Project 74 | D82: 74 | F82: Augmentation | G82: Augmentation | I82: 30 | J82: 370 | K82: 674.09876 | L82: 0 | M82: 0 | O82: 0.3758317312 | P82: 0.6241682688 | R82: Yes | S82: Yes | U82: 0 | V82: 0 | X82: 0 | Y82: 1 | Z82: 0 | AA82: 0 | AB82: 0 | AC82: 0 | AD82: 0 | AE82: 0 | AF82: 0 | AG82: 0 | AH82: 0 | AI82: 0 | AJ82: 0 | AK82: 0 | AL82: 0 | AM82: 0 | AN82: 0 | AO82: 0 | AP82: 0 | AQ82: 0 | AR82: 0 | AS82: 0 | AT82: 0 | AU82: 0 | AV82: 0 | AW82: 0 | AX82: 0 | AY82: 0 | AZ82: 0 | BA82: 0 | BB82: 0 | BC82: 0 | BD82: 0 | BE82: 0 | BF82: 0 | BG82: 0 | BH82: 0 | BI82: 0 | BJ82: 0 | BK82: 0 | BL82: 0 | BM82: 0 | BN82: 0 | BO82: 0 | BP82: 0 | BQ82: 0 | BR82: 0 | BS82: 0 | BT82: 0 | BU82: 0
B83: 75 | C83: Project 75 | D83: 75 | F83: Augmentation | G83: Augmentation | I83: 0 | J83: 0 | K83: 0 | L83: 0 | M83: 275 | O83: 0.3758317312 | P83: 0.6241682688 | R83: Yes | S83: Yes | U83: 0 | V83: 0 | X83: 0 | Y83: 1 | Z83: 0 | AA83: 0 | AB83: 0 | AC83: 0 | AD83: 0 | AE83: 0 | AF83: 0 | AG83: 0 | AH83: 0 | AI83: 0 | AJ83: 0 | AK83: 0 | AL83: 0 | AM83: 0 | AN83: 0 | AO83: 0 | AP83: 0 | AQ83: 0 | AR83: 0 | AS83: 0 | AT83: 0 | AU83: 0 | AV83: 0 | AW83: 0 | AX83: 0 | AY83: 0 | AZ83: 0 | BA83: 0 | BB83: 0 | BC83: 0 | BD83: 0 | BE83: 0 | BF83: 0 | BG83: 0 | BH83: 0 | BI83: 0 | BJ83: 0 | BK83: 0 | BL83: 0 | BM83: 0 | BN83: 0 | BO83: 0 | BP83: 0 | BQ83: 0 | BR83: 0 | BS83: 0 | BT83: 0 | BU83: 0
B84: 76 | C84: Project 76 | D84: 76 | F84: Augmentation | G84: Augmentation | I84: 80 | J84: 800 | K84: 1473.98056 | L84: 0 | M84: 0 | O84: 0.3758317312 | P84: 0.6241682688 | R84: Yes | S84: Yes | U84: 0 | V84: 0 | X84: 0 | Y84: 1 | Z84: 0 | AA84: 0 | AB84: 0 | AC84: 0 | AD84: 0 | AE84: 0 | AF84: 0 | AG84: 0 | AH84: 0 | AI84: 0 | AJ84: 0 | AK84: 0 | AL84: 0 | AM84: 0 | AN84: 0 | AO84: 0 | AP84: 0 | AQ84: 0 | AR84: 0 | AS84: 0 | AT84: 0 | AU84: 0 | AV84: 0 | AW84: 0 | AX84: 0 | AY84: 0 | AZ84: 0 | BA84: 0 | BB84: 0 | BC84: 0 | BD84: 0 | BE84: 0 | BF84: 0 | BG84: 0 | BH84: 0 | BI84: 0 | BJ84: 0 | BK84: 0 | BL84: 0 | BM84: 0 | BN84: 0 | BO84: 0 | BP84: 0 | BQ84: 0 | BR84: 0 | BS84: 0 | BT84: 0 | BU84: 0
B85: 77 | C85: Project 77 | D85: 77 | F85: Augmentation | G85: Augmentation | I85: 0 | J85: 60 | K85: 1120 | L85: 731.341703 | M85: 0 | O85: 0.3758317312 | P85: 0.6241682688 | R85: Yes | S85: Yes | U85: 0 | V85: 0 | X85: 0 | Y85: 1 | Z85: 0 | AA85: 0 | AB85: 0 | AC85: 0 | AD85: 0 | AE85: 0 | AF85: 0 | AG85: 0 | AH85: 0 | AI85: 0 | AJ85: 0 | AK85: 0 | AL85: 0 | AM85: 0 | AN85: 0 | AO85: 0 | AP85: 0 | AQ85: 0 | AR85: 0 | AS85: 0 | AT85: 0 | AU85: 0 | AV85: 0 | AW85: 0 | AX85: 0 | AY85: 0 | AZ85: 0 | BA85: 0 | BB85: 0 | BC85: 0 | BD85: 0 | BE85: 0 | BF85: 0 | BG85: 0 | BH85: 0 | BI85: 0 | BJ85: 0 | BK85: 0 | BL85: 0 | BM85: 0 | BN85: 0 | BO85: 0 | BP85: 0 | BQ85: 0 | BR85: 0 | BS85: 0 | BT85: 0 | BU85: 0
B86: 78 | C86: Project 78 | D86: 78 | F86: Augmentation | G86: Augmentation | I86: 1150 | J86: 1353.759645 | K86: 0 | L86: 0 | M86: 0 | O86: 0.3758317312 | P86: 0.6241682688 | R86: Yes | S86: Yes | U86: 0 | V86: 0 | X86: 0 | Y86: 1 | Z86: 0 | AA86: 0 | AB86: 0 | AC86: 0 | AD86: 0 | AE86: 0 | AF86: 0 | AG86: 0 | AH86: 0 | AI86: 0 | AJ86: 0 | AK86: 0 | AL86: 0 | AM86: 0 | AN86: 0 | AO86: 0 | AP86: 0 | AQ86: 0 | AR86: 0 | AS86: 0 | AT86: 0 | AU86: 0 | AV86: 0 | AW86: 0 | AX86: 0 | AY86: 0 | AZ86: 0 | BA86: 0 | BB86: 0 | BC86: 0 | BD86: 0 | BE86: 0 | BF86: 0 | BG86: 0 | BH86: 0 | BI86: 0 | BJ86: 0 | BK86: 0 | BL86: 0 | BM86: 0 | BN86: 0 | BO86: 0 | BP86: 0 | BQ86: 0 | BR86: 0 | BS86: 0 | BT86: 0 | BU86: 0
B87: 79 | C87: Project 79 | D87: 79 | F87: Augmentation | G87: Augmentation | I87: 0 | J87: 0 | K87: 0 | L87: 0 | M87: 0 | O87: 0.7350583406 | P87: 0.2649416594 | R87: Yes | S87: Yes | U87: 0 | V87: 0 | X87: 0 | Y87: 1 | Z87: 0 | AA87: 0 | AB87: 0 | AC87: 0 | AD87: 0 | AE87: 0 | AF87: 0 | AG87: 0 | AH87: 0 | AI87: 0 | AJ87: 0 | AK87: 0 | AL87: 0 | AM87: 0 | AN87: 0 | AO87: 0 | AP87: 0 | AQ87: 0 | AR87: 0 | AS87: 0 | AT87: 0 | AU87: 0 | AV87: 0 | AW87: 0 | AX87: 0 | AY87: 0 | AZ87: 0 | BA87: 0 | BB87: 0 | BC87: 0 | BD87: 0 | BE87: 0 | BF87: 0 | BG87: 0 | BH87: 0 | BI87: 0 | BJ87: 0 | BK87: 0 | BL87: 0 | BM87: 0 | BN87: 0 | BO87: 0 | BP87: 0 | BQ87: 0 | BR87: 0 | BS87: 0 | BT87: 0 | BU87: 0
B88: 80 | C88: Project 80 | D88: 80 | F88: Augmentation | G88: Augmentation | I88: 0 | J88: 0 | K88: 0 | L88: 130 | M88: 112.09695 | O88: 0.7350583406 | P88: 0.2649416594 | R88: Yes | S88: Yes | U88: 0 | V88: 0 | X88: 0 | Y88: 1 | Z88: 0 | AA88: 0 | AB88: 0 | AC88: 0 | AD88: 0 | AE88: 0 | AF88: 0 | AG88: 0 | AH88: 0 | AI88: 0 | AJ88: 0 | AK88: 0 | AL88: 0 | AM88: 0 | AN88: 0 | AO88: 0 | AP88: 0 | AQ88: 0 | AR88: 0 | AS88: 0 | AT88: 0 | AU88: 0 | AV88: 0 | AW88: 0 | AX88: 0 | AY88: 0 | AZ88: 0 | BA88: 0 | BB88: 0 | BC88: 0 | BD88: 0 | BE88: 0 | BF88: 0 | BG88: 0 | BH88: 0 | BI88: 0 | BJ88: 0 | BK88: 0 | BL88: 0 | BM88: 0 | BN88: 0 | BO88: 0 | BP88: 0 | BQ88: 0 | BR88: 0 | BS88: 0 | BT88: 0 | BU88: 0
B89: 81 | C89: Project 81 | D89: 81 | F89: Augmentation | G89: Augmentation | I89: 2456.718 | J89: 2456.718 | K89: 2456.718 | L89: 2456.718 | M89: 2456.718 | O89: 0.4808831669 | P89: 0.5191168331 | R89: Yes | S89: Yes | U89: 0 | V89: 0 | X89: 0 | Y89: 1 | Z89: 0 | AA89: 0 | AB89: 0 | AC89: 0 | AD89: 0 | AE89: 0 | AF89: 0 | AG89: 0 | AH89: 0 | AI89: 0 | AJ89: 0 | AK89: 0 | AL89: 0 | AM89: 0 | AN89: 0 | AO89: 0 | AP89: 0 | AQ89: 0 | AR89: 0 | AS89: 0 | AT89: 0 | AU89: 0 | AV89: 0 | AW89: 0 | AX89: 0 | AY89: 0 | AZ89: 0 | BA89: 0 | BB89: 0 | BC89: 0 | BD89: 0 | BE89: 0 | BF89: 0 | BG89: 0 | BH89: 0 | BI89: 0 | BJ89: 0 | BK89: 0 | BL89: 0 | BM89: 0 | BN89: 0 | BO89: 0 | BP89: 0 | BQ89: 0 | BR89: 0 | BS89: 0 | BT89: 0 | BU89: 0
B90: 82 | C90: Project 82 | D90: 82 | F90: Augmentation | G90: Augmentation | I90: 189.379411 | J90: 189.379411 | K90: 188.718662 | L90: 188.0579129 | M90: 188.0579129 | O90: 0 | P90: 1 | R90: Yes | S90: Yes | U90: 0 | V90: 0 | X90: 0 | Y90: 1 | Z90: 0 | AA90: 0 | AB90: 0 | AC90: 0 | AD90: 0 | AE90: 0 | AF90: 0 | AG90: 0 | AH90: 0 | AI90: 0 | AJ90: 0 | AK90: 0 | AL90: 0 | AM90: 0 | AN90: 0 | AO90: 0 | AP90: 0 | AQ90: 0 | AR90: 0 | AS90: 0 | AT90: 0 | AU90: 0 | AV90: 0 | AW90: 0 | AX90: 0 | AY90: 0 | AZ90: 0 | BA90: 0 | BB90: 0 | BC90: 0 | BD90: 0 | BE90: 0 | BF90: 0 | BG90: 0 | BH90: 0 | BI90: 0 | BJ90: 0 | BK90: 0 | BL90: 0 | BM90: 0 | BN90: 0 | BO90: 0 | BP90: 0 | BQ90: 0 | BR90: 0 | BS90: 0 | BT90: 0 | BU90: 0
B91: 83 | C91: Project 83 | D91: 83 | F91: Augmentation | G91: Augmentation | I91: 643.056248 | J91: 674.6190726 | K91: 674.6190726 | L91: 674.6190726 | M91: 674.6190726 | O91: 0.5373170534 | P91: 0.4626829466 | R91: Yes | S91: Yes | U91: 0 | V91: 0 | X91: 0 | Y91: 1 | Z91: 0 | AA91: 0 | AB91: 0 | AC91: 0 | AD91: 0 | AE91: 0 | AF91: 0 | AG91: 0 | AH91: 0 | AI91: 0 | AJ91: 0 | AK91: 0 | AL91: 0 | AM91: 0 | AN91: 0 | AO91: 0 | AP91: 0 | AQ91: 0 | AR91: 0 | AS91: 0 | AT91: 0 | AU91: 0 | AV91: 0 | AW91: 0 | AX91: 0 | AY91: 0 | AZ91: 0 | BA91: 0 | BB91: 0 | BC91: 0 | BD91: 0 | BE91: 0 | BF91: 0 | BG91: 0 | BH91: 0 | BI91: 0 | BJ91: 0 | BK91: 0 | BL91: 0 | BM91: 0 | BN91: 0 | BO91: 0 | BP91: 0 | BQ91: 0 | BR91: 0 | BS91: 0 | BT91: 0 | BU91: 0
B92: 84 | C92: Project 84 | D92: 84 | F92: Augmentation | G92: Augmentation | I92: 0 | J92: 0 | K92: 0 | L92: 0 | M92: 0 | O92: 0.5373170534 | P92: 0.4626829466 | R92: Yes | S92: Yes | U92: 0 | V92: 0 | X92: 0 | Y92: 1 | Z92: 0 | AA92: 0 | AB92: 0 | AC92: 0 | AD92: 0 | AE92: 0 | AF92: 0 | AG92: 0 | AH92: 0 | AI92: 0 | AJ92: 0 | AK92: 0 | AL92: 0 | AM92: 0 | AN92: 0 | AO92: 0 | AP92: 0 | AQ92: 0 | AR92: 0 | AS92: 0 | AT92: 0 | AU92: 0 | AV92: 0 | AW92: 0 | AX92: 0 | AY92: 0 | AZ92: 0 | BA92: 0 | BB92: 0 | BC92: 0 | BD92: 0 | BE92: 0 | BF92: 0 | BG92: 0 | BH92: 0 | BI92: 0 | BJ92: 0 | BK92: 0 | BL92: 0 | BM92: 0 | BN92: 0 | BO92: 0 | BP92: 0 | BQ92: 0 | BR92: 0 | BS92: 0 | BT92: 0 | BU92: 0
B93: 85 | C93: Project 85 | D93: 85 | F93: Augmentation | G93: Augmentation | I93: 514 | J93: 514 | K93: 514 | L93: 514 | M93: 514 | O93: 0.4623677959 | P93: 0.5376322041 | R93: Yes | S93: Yes | U93: 0 | V93: 0 | X93: 0 | Y93: 1 | Z93: 0 | AA93: 0 | AB93: 0 | AC93: 0 | AD93: 0 | AE93: 0 | AF93: 0 | AG93: 0 | AH93: 0 | AI93: 0 | AJ93: 0 | AK93: 0 | AL93: 0 | AM93: 0 | AN93: 0 | AO93: 0 | AP93: 0 | AQ93: 0 | AR93: 0 | AS93: 0 | AT93: 0 | AU93: 0 | AV93: 0 | AW93: 0 | AX93: 0 | AY93: 0 | AZ93: 0 | BA93: 0 | BB93: 0 | BC93: 0 | BD93: 0 | BE93: 0 | BF93: 0 | BG93: 0 | BH93: 0 | BI93: 0 | BJ93: 0 | BK93: 0 | BL93: 0 | BM93: 0 | BN93: 0 | BO93: 0 | BP93: 0 | BQ93: 0 | BR93: 0 | BS93: 0 | BT93: 0 | BU93: 0
B94: 86 | C94: Project 86 | D94: 86 | F94: Augmentation | G94: Augmentation | I94: 108.8219819 | J94: 0 | K94: 121.0655091 | L94: 121.0655091 | M94: 0 | O94: 0.2640901951 | P94: 0.7359098049 | R94: Yes | S94: Yes | U94: 0 | V94: 0 | X94: 1 | Y94: 0 | Z94: 0 | AA94: 0 | AB94: 0 | AC94: 0 | AD94: 0 | AE94: 0 | AF94: 0 | AG94: 0 | AH94: 0 | AI94: 0 | AJ94: 0 | AK94: 0 | AL94: 0 | AM94: 0 | AN94: 0 | AO94: 0 | AP94: 0 | AQ94: 0 | AR94: 0 | AS94: 0 | AT94: 0 | AU94: 0 | AV94: 0 | AW94: 0 | AX94: 0 | AY94: 0 | AZ94: 0 | BA94: 0 | BB94: 0 | BC94: 0 | BD94: 0 | BE94: 0 | BF94: 0 | BG94: 0 | BH94: 0 | BI94: 0 | BJ94: 0 | BK94: 0 | BL94: 0 | BM94: 0 | BN94: 0 | BO94: 0 | BP94: 0 | BQ94: 0 | BR94: 0 | BS94: 0 | BT94: 0 | BU94: 0
B95: 87 | C95: Project 87 | D95: 87 | F95: ICT capex | G95: Other non-network capex | I95: 0 | J95: 96.47524045 | K95: 96.47524045 | L95: 0 | M95: 0 | O95: 0.3492946736 | P95: 0.6507053264 | R95: No | S95: No | U95: 0 | V95: 0 | X95: 0 | Y95: 0 | Z95: 0 | AA95: 0 | AB95: 0 | AC95: 0 | AD95: 0 | AE95: 0 | AF95: 1 | AG95: 0 | AH95: 0 | AI95: 0 | AJ95: 0 | AK95: 0 | AL95: 0 | AM95: 0 | AN95: 0 | AO95: 0 | AP95: 0 | AQ95: 0 | AR95: 0 | AS95: 0 | AT95: 0 | AU95: 0 | AV95: 0 | AW95: 0 | AX95: 0 | AY95: 0 | AZ95: 0 | BA95: 0 | BB95: 0 | BC95: 0 | BD95: 0 | BE95: 0 | BF95: 0 | BG95: 0 | BH95: 0 | BI95: 0 | BJ95: 0 | BK95: 0 | BL95: 0 | BM95: 0 | BN95: 0 | BO95: 0 | BP95: 0 | BQ95: 0 | BR95: 0 | BS95: 0 | BT95: 0 | BU95: 0
B96: 88 | C96: Project 88 | D96: 88 | F96: Augmentation | G96: Augmentation | I96: 250 | J96: 250 | K96: 250 | L96: 250 | M96: 250 | O96: 0.4623677959 | P96: 0.5376322041 | R96: Yes | S96: Yes | U96: 0 | V96: 0 | X96: 0 | Y96: 1 | Z96: 0 | AA96: 0 | AB96: 0 | AC96: 0 | AD96: 0 | AE96: 0 | AF96: 0 | AG96: 0 | AH96: 0 | AI96: 0 | AJ96: 0 | AK96: 0 | AL96: 0 | AM96: 0 | AN96: 0 | AO96: 0 | AP96: 0 | AQ96: 0 | AR96: 0 | AS96: 0 | AT96: 0 | AU96: 0 | AV96: 0 | AW96: 0 | AX96: 0 | AY96: 0 | AZ96: 0 | BA96: 0 | BB96: 0 | BC96: 0 | BD96: 0 | BE96: 0 | BF96: 0 | BG96: 0 | BH96: 0 | BI96: 0 | BJ96: 0 | BK96: 0 | BL96: 0 | BM96: 0 | BN96: 0 | BO96: 0 | BP96: 0 | BQ96: 0 | BR96: 0 | BS96: 0 | BT96: 0 | BU96: 0
B97: 89 | C97: Project 89 | D97: 89 | F97: Augmentation | G97: Augmentation | I97: 200 | J97: 200 | K97: 200 | L97: 200 | M97: 200 | O97: 0.5373170534 | P97: 0.4626829466 | R97: Yes | S97: Yes | U97: 0 | V97: 0 | X97: 0 | Y97: 1 | Z97: 0 | AA97: 0 | AB97: 0 | AC97: 0 | AD97: 0 | AE97: 0 | AF97: 0 | AG97: 0 | AH97: 0 | AI97: 0 | AJ97: 0 | AK97: 0 | AL97: 0 | AM97: 0 | AN97: 0 | AO97: 0 | AP97: 0 | AQ97: 0 | AR97: 0 | AS97: 0 | AT97: 0 | AU97: 0 | AV97: 0 | AW97: 0 | AX97: 0 | AY97: 0 | AZ97: 0 | BA97: 0 | BB97: 0 | BC97: 0 | BD97: 0 | BE97: 0 | BF97: 0 | BG97: 0 | BH97: 0 | BI97: 0 | BJ97: 0 | BK97: 0 | BL97: 0 | BM97: 0 | BN97: 0 | BO97: 0 | BP97: 0 | BQ97: 0 | BR97: 0 | BS97: 0 | BT97: 0 | BU97: 0
B98: 90 | C98: Project 90 | D98: 90 | F98: DER capex | G98: Other non-network capex | I98: 275 | J98: 50 | K98: 50 | L98: 50 | M98: 50 | O98: 0.3492946736 | P98: 0.6507053264 | R98: No | S98: No | U98: 0 | V98: 0 | X98: 0 | Y98: 0 | Z98: 0 | AA98: 0 | AB98: 0 | AC98: 0 | AD98: 0 | AE98: 0 | AF98: 1 | AG98: 0 | AH98: 0 | AI98: 0 | AJ98: 0 | AK98: 0 | AL98: 0 | AM98: 0 | AN98: 0 | AO98: 0 | AP98: 0 | AQ98: 0 | AR98: 0 | AS98: 0 | AT98: 0 | AU98: 0 | AV98: 0 | AW98: 0 | AX98: 0 | AY98: 0 | AZ98: 0 | BA98: 0 | BB98: 0 | BC98: 0 | BD98: 0 | BE98: 0 | BF98: 0 | BG98: 0 | BH98: 0 | BI98: 0 | BJ98: 0 | BK98: 0 | BL98: 0 | BM98: 0 | BN98: 0 | BO98: 0 | BP98: 0 | BQ98: 0 | BR98: 0 | BS98: 0 | BT98: 0 | BU98: 0
B99: 91 | C99: Project 91 | D99: 91 | F99: Augmentation | G99: Augmentation | I99: 350 | J99: 350 | K99: 350 | L99: 350 | M99: 350 | O99: 0 | P99: 1 | R99: Yes | S99: Yes | U99: 0 | V99: 0 | X99: 0 | Y99: 1 | Z99: 0 | AA99: 0 | AB99: 0 | AC99: 0 | AD99: 0 | AE99: 0 | AF99: 0 | AG99: 0 | AH99: 0 | AI99: 0 | AJ99: 0 | AK99: 0 | AL99: 0 | AM99: 0 | AN99: 0 | AO99: 0 | AP99: 0 | AQ99: 0 | AR99: 0 | AS99: 0 | AT99: 0 | AU99: 0 | AV99: 0 | AW99: 0 | AX99: 0 | AY99: 0 | AZ99: 0 | BA99: 0 | BB99: 0 | BC99: 0 | BD99: 0 | BE99: 0 | BF99: 0 | BG99: 0 | BH99: 0 | BI99: 0 | BJ99: 0 | BK99: 0 | BL99: 0 | BM99: 0 | BN99: 0 | BO99: 0 | BP99: 0 | BQ99: 0 | BR99: 0 | BS99: 0 | BT99: 0 | BU99: 0
B100: 92 | C100: Project 92 | D100: 92 | F100: DER capex | G100: Other non-network capex | I100: 600 | J100: 500 | K100: 0 | L100: 0 | M100: 0 | O100: 0.3492946736 | P100: 0.6507053264 | R100: No | S100: No | U100: 0 | V100: 0 | X100: 0 | Y100: 0 | Z100: 0 | AA100: 0 | AB100: 0 | AC100: 0 | AD100: 0 | AE100: 0 | AF100: 1 | AG100: 0 | AH100: 0 | AI100: 0 | AJ100: 0 | AK100: 0 | AL100: 0 | AM100: 0 | AN100: 0 | AO100: 0 | AP100: 0 | AQ100: 0 | AR100: 0 | AS100: 0 | AT100: 0 | AU100: 0 | AV100: 0 | AW100: 0 | AX100: 0 | AY100: 0 | AZ100: 0 | BA100: 0 | BB100: 0 | BC100: 0 | BD100: 0 | BE100: 0 | BF100: 0 | BG100: 0 | BH100: 0 | BI100: 0 | BJ100: 0 | BK100: 0 | BL100: 0 | BM100: 0 | BN100: 0 | BO100: 0 | BP100: 0 | BQ100: 0 | BR100: 0 | BS100: 0 | BT100: 0 | BU100: 0
B101: 93 | C101: Project 93 | D101: 93 | F101: DER capex | G101: Other non-network capex | I101: 0 | J101: 450 | K101: 3000 | L101: 0 | M101: 0 | O101: 0.3492946736 | P101: 0.6507053264 | R101: No | S101: No | U101: 0 | V101: 0 | X101: 0 | Y101: 0 | Z101: 0 | AA101: 0 | AB101: 0 | AC101: 0 | AD101: 0 | AE101: 0 | AF101: 1 | AG101: 0 | AH101: 0 | AI101: 0 | AJ101: 0 | AK101: 0 | AL101: 0 | AM101: 0 | AN101: 0 | AO101: 0 | AP101: 0 | AQ101: 0 | AR101: 0 | AS101: 0 | AT101: 0 | AU101: 0 | AV101: 0 | AW101: 0 | AX101: 0 | AY101: 0 | AZ101: 0 | BA101: 0 | BB101: 0 | BC101: 0 | BD101: 0 | BE101: 0 | BF101: 0 | BG101: 0 | BH101: 0 | BI101: 0 | BJ101: 0 | BK101: 0 | BL101: 0 | BM101: 0 | BN101: 0 | BO101: 0 | BP101: 0 | BQ101: 0 | BR101: 0 | BS101: 0 | BT101: 0 | BU101: 0
B102: 94 | C102: Project 94 | D102: 94 | F102: DER capex | G102: Other non-network capex | I102: 0 | J102: 0 | K102: 0 | L102: 1200 | M102: 1000 | O102: 0.3492946736 | P102: 0.6507053264 | R102: No | S102: No | U102: 0 | V102: 0 | X102: 0 | Y102: 0 | Z102: 0 | AA102: 0 | AB102: 0 | AC102: 0 | AD102: 0 | AE102: 0 | AF102: 1 | AG102: 0 | AH102: 0 | AI102: 0 | AJ102: 0 | AK102: 0 | AL102: 0 | AM102: 0 | AN102: 0 | AO102: 0 | AP102: 0 | AQ102: 0 | AR102: 0 | AS102: 0 | AT102: 0 | AU102: 0 | AV102: 0 | AW102: 0 | AX102: 0 | AY102: 0 | AZ102: 0 | BA102: 0 | BB102: 0 | BC102: 0 | BD102: 0 | BE102: 0 | BF102: 0 | BG102: 0 | BH102: 0 | BI102: 0 | BJ102: 0 | BK102: 0 | BL102: 0 | BM102: 0 | BN102: 0 | BO102: 0 | BP102: 0 | BQ102: 0 | BR102: 0 | BS102: 0 | BT102: 0 | BU102: 0
B103: 95 | C103: Project 95 | D103: 95 | F103: Augmentation | G103: Augmentation | I103: 625 | J103: 875 | K103: 1125 | L103: 1375 | M103: 1500 | O103: 0.5373170534 | P103: 0.4626829466 | R103: Yes | S103: Yes | U103: 0 | V103: 0 | X103: 0 | Y103: 1 | Z103: 0 | AA103: 0 | AB103: 0 | AC103: 0 | AD103: 0 | AE103: 0 | AF103: 0 | AG103: 0 | AH103: 0 | AI103: 0 | AJ103: 0 | AK103: 0 | AL103: 0 | AM103: 0 | AN103: 0 | AO103: 0 | AP103: 0 | AQ103: 0 | AR103: 0 | AS103: 0 | AT103: 0 | AU103: 0 | AV103: 0 | AW103: 0 | AX103: 0 | AY103: 0 | AZ103: 0 | BA103: 0 | BB103: 0 | BC103: 0 | BD103: 0 | BE103: 0 | BF103: 0 | BG103: 0 | BH103: 0 | BI103: 0 | BJ103: 0 | BK103: 0 | BL103: 0 | BM103: 0 | BN103: 0 | BO103: 0 | BP103: 0 | BQ103: 0 | BR103: 0 | BS103: 0 | BT103: 0 | BU103: 0
B104: 96 | C104: Project 96 | D104: 96 | F104: Augmentation | G104: Augmentation | I104: 100 | J104: 100 | K104: 100 | L104: 100 | M104: 100 | O104: 0.2640901951 | P104: 0.7359098049 | R104: Yes | S104: Yes | U104: 0 | V104: 0 | X104: 0 | Y104: 1 | Z104: 0 | AA104: 0 | AB104: 0 | AC104: 0 | AD104: 0 | AE104: 0 | AF104: 0 | AG104: 0 | AH104: 0 | AI104: 0 | AJ104: 0 | AK104: 0 | AL104: 0 | AM104: 0 | AN104: 0 | AO104: 0 | AP104: 0 | AQ104: 0 | AR104: 0 | AS104: 0 | AT104: 0 | AU104: 0 | AV104: 0 | AW104: 0 | AX104: 0 | AY104: 0 | AZ104: 0 | BA104: 0 | BB104: 0 | BC104: 0 | BD104: 0 | BE104: 0 | BF104: 0 | BG104: 0 | BH104: 0 | BI104: 0 | BJ104: 0 | BK104: 0 | BL104: 0 | BM104: 0 | BN104: 0 | BO104: 0 | BP104: 0 | BQ104: 0 | BR104: 0 | BS104: 0 | BT104: 0 | BU104: 0
B105: 97 | C105: Project 97 | D105: 97 | F105: DER capex | G105: Other non-network capex | I105: 0 | J105: 0 | K105: 50 | L105: 250 | M105: 200 | O105: 0.3492946736 | P105: 0.6507053264 | R105: No | S105: No | U105: 0 | V105: 0 | X105: 0 | Y105: 0 | Z105: 0 | AA105: 0 | AB105: 0 | AC105: 0 | AD105: 0 | AE105: 0 | AF105: 1 | AG105: 0 | AH105: 0 | AI105: 0 | AJ105: 0 | AK105: 0 | AL105: 0 | AM105: 0 | AN105: 0 | AO105: 0 | AP105: 0 | AQ105: 0 | AR105: 0 | AS105: 0 | AT105: 0 | AU105: 0 | AV105: 0 | AW105: 0 | AX105: 0 | AY105: 0 | AZ105: 0 | BA105: 0 | BB105: 0 | BC105: 0 | BD105: 0 | BE105: 0 | BF105: 0 | BG105: 0 | BH105: 0 | BI105: 0 | BJ105: 0 | BK105: 0 | BL105: 0 | BM105: 0 | BN105: 0 | BO105: 0 | BP105: 0 | BQ105: 0 | BR105: 0 | BS105: 0 | BT105: 0 | BU105: 0
B106: 98 | C106: Project 98 | D106: 98 | F106: Augmentation | G106: Augmentation | I106: 0 | J106: 0 | K106: 500 | L106: 500 | M106: 500 | O106: 0.2640901951 | P106: 0.7359098049 | R106: Yes | S106: Yes | U106: 0 | V106: 0 | X106: 1 | Y106: 0 | Z106: 0 | AA106: 0 | AB106: 0 | AC106: 0 | AD106: 0 | AE106: 0 | AF106: 0 | AG106: 0 | AH106: 0 | AI106: 0 | AJ106: 0 | AK106: 0 | AL106: 0 | AM106: 0 | AN106: 0 | AO106: 0 | AP106: 0 | AQ106: 0 | AR106: 0 | AS106: 0 | AT106: 0 | AU106: 0 | AV106: 0 | AW106: 0 | AX106: 0 | AY106: 0 | AZ106: 0 | BA106: 0 | BB106: 0 | BC106: 0 | BD106: 0 | BE106: 0 | BF106: 0 | BG106: 0 | BH106: 0 | BI106: 0 | BJ106: 0 | BK106: 0 | BL106: 0 | BM106: 0 | BN106: 0 | BO106: 0 | BP106: 0 | BQ106: 0 | BR106: 0 | BS106: 0 | BT106: 0 | BU106: 0
B107: 99 | C107: Project 99 | D107: 99 | F107: DER capex | G107: Other non-network capex | I107: 0 | J107: 0 | K107: 0 | L107: 0 | M107: 0 | O107: 0.3492946736 | P107: 0.6507053264 | R107: No | S107: No | U107: 0 | V107: 0 | X107: 0 | Y107: 0 | Z107: 0 | AA107: 0 | AB107: 0 | AC107: 0 | AD107: 0 | AE107: 0 | AF107: 1 | AG107: 0 | AH107: 0 | AI107: 0 | AJ107: 0 | AK107: 0 | AL107: 0 | AM107: 0 | AN107: 0 | AO107: 0 | AP107: 0 | AQ107: 0 | AR107: 0 | AS107: 0 | AT107: 0 | AU107: 0 | AV107: 0 | AW107: 0 | AX107: 0 | AY107: 0 | AZ107: 0 | BA107: 0 | BB107: 0 | BC107: 0 | BD107: 0 | BE107: 0 | BF107: 0 | BG107: 0 | BH107: 0 | BI107: 0 | BJ107: 0 | BK107: 0 | BL107: 0 | BM107: 0 | BN107: 0 | BO107: 0 | BP107: 0 | BQ107: 0 | BR107: 0 | BS107: 0 | BT107: 0 | BU107: 0
B108: 100 | C108: Project 100 | D108: 100 | F108: Augmentation | G108: Augmentation | I108: 0 | J108: 0 | K108: 0 | L108: 0 | M108: 0 | O108: 0.2640901951 | P108: 0.7359098049 | R108: Yes | S108: Yes | U108: 0 | V108: 0 | X108: 1 | Y108: 0 | Z108: 0 | AA108: 0 | AB108: 0 | AC108: 0 | AD108: 0 | AE108: 0 | AF108: 0 | AG108: 0 | AH108: 0 | AI108: 0 | AJ108: 0 | AK108: 0 | AL108: 0 | AM108: 0 | AN108: 0 | AO108: 0 | AP108: 0 | AQ108: 0 | AR108: 0 | AS108: 0 | AT108: 0 | AU108: 0 | AV108: 0 | AW108: 0 | AX108: 0 | AY108: 0 | AZ108: 0 | BA108: 0 | BB108: 0 | BC108: 0 | BD108: 0 | BE108: 0 | BF108: 0 | BG108: 0 | BH108: 0 | BI108: 0 | BJ108: 0 | BK108: 0 | BL108: 0 | BM108: 0 | BN108: 0 | BO108: 0 | BP108: 0 | BQ108: 0 | BR108: 0 | BS108: 0 | BT108: 0 | BU108: 0
B109: 101 | C109: Project 101 | D109: 101 | F109: Augmentation | G109: Augmentation | I109: 0 | J109: 0 | K109: 0 | L109: 0 | M109: 0 | O109: 0 | P109: 1 | R109: No | S109: No | U109: 0 | V109: 0 | X109: 0 | Y109: 0 | Z109: 0 | AA109: 0 | AB109: 0 | AC109: 0 | AD109: 0 | AE109: 1 | AF109: 0 | AG109: 0 | AH109: 0 | AI109: 0 | AJ109: 0 | AK109: 0 | AL109: 0 | AM109: 0 | AN109: 0 | AO109: 0 | AP109: 0 | AQ109: 0 | AR109: 0 | AS109: 0 | AT109: 0 | AU109: 0 | AV109: 0 | AW109: 0 | AX109: 0 | AY109: 0 | AZ109: 0 | BA109: 0 | BB109: 0 | BC109: 0 | BD109: 0 | BE109: 0 | BF109: 0 | BG109: 0 | BH109: 0 | BI109: 0 | BJ109: 0 | BK109: 0 | BL109: 0 | BM109: 0 | BN109: 0 | BO109: 0 | BP109: 0 | BQ109: 0 | BR109: 0 | BS109: 0 | BT109: 0 | BU109: 0
B110: 102 | C110: Project 102 | D110: 102 | F110: Augmentation | G110: Augmentation | I110: 0 | J110: 0 | K110: 0 | L110: 0 | M110: 0 | O110: 0.7350583406 | P110: 0.2649416594 | R110: Yes | S110: Yes | U110: 0 | V110: 0 | X110: 0 | Y110: 1 | Z110: 0 | AA110: 0 | AB110: 0 | AC110: 0 | AD110: 0 | AE110: 0 | AF110: 0 | AG110: 0 | AH110: 0 | AI110: 0 | AJ110: 0 | AK110: 0 | AL110: 0 | AM110: 0 | AN110: 0 | AO110: 0 | AP110: 0 | AQ110: 0 | AR110: 0 | AS110: 0 | AT110: 0 | AU110: 0 | AV110: 0 | AW110: 0 | AX110: 0 | AY110: 0 | AZ110: 0 | BA110: 0 | BB110: 0 | BC110: 0 | BD110: 0 | BE110: 0 | BF110: 0 | BG110: 0 | BH110: 0 | BI110: 0 | BJ110: 0 | BK110: 0 | BL110: 0 | BM110: 0 | BN110: 0 | BO110: 0 | BP110: 0 | BQ110: 0 | BR110: 0 | BS110: 0 | BT110: 0 | BU110: 0
B111: 103 | C111: Project 103 | D111: 103 | F111: Augmentation | G111: Augmentation | I111: 0 | J111: 0 | K111: 0 | L111: 0 | M111: 0 | O111: 0.2389204307 | P111: 0.7610795693 | R111: Yes | S111: Yes | U111: 0 | V111: 0 | X111: 1 | Y111: 0 | Z111: 0 | AA111: 0 | AB111: 0 | AC111: 0 | AD111: 0 | AE111: 0 | AF111: 0 | AG111: 0 | AH111: 0 | AI111: 0 | AJ111: 0 | AK111: 0 | AL111: 0 | AM111: 0 | AN111: 0 | AO111: 0 | AP111: 0 | AQ111: 0 | AR111: 0 | AS111: 0 | AT111: 0 | AU111: 0 | AV111: 0 | AW111: 0 | AX111: 0 | AY111: 0 | AZ111: 0 | BA111: 0 | BB111: 0 | BC111: 0 | BD111: 0 | BE111: 0 | BF111: 0 | BG111: 0 | BH111: 0 | BI111: 0 | BJ111: 0 | BK111: 0 | BL111: 0 | BM111: 0 | BN111: 0 | BO111: 0 | BP111: 0 | BQ111: 0 | BR111: 0 | BS111: 0 | BT111: 0 | BU111: 0
B112: 104 | C112: Project 104 | D112: 104 | F112: Augmentation | G112: Augmentation | I112: 0 | J112: 0 | K112: 0 | L112: 0 | M112: 0 | O112: 0.2389204307 | P112: 0.7610795693 | R112: Yes | S112: Yes | U112: 0 | V112: 0 | X112: 1 | Y112: 0 | Z112: 0 | AA112: 0 | AB112: 0 | AC112: 0 | AD112: 0 | AE112: 0 | AF112: 0 | AG112: 0 | AH112: 0 | AI112: 0 | AJ112: 0 | AK112: 0 | AL112: 0 | AM112: 0 | AN112: 0 | AO112: 0 | AP112: 0 | AQ112: 0 | AR112: 0 | AS112: 0 | AT112: 0 | AU112: 0 | AV112: 0 | AW112: 0 | AX112: 0 | AY112: 0 | AZ112: 0 | BA112: 0 | BB112: 0 | BC112: 0 | BD112: 0 | BE112: 0 | BF112: 0 | BG112: 0 | BH112: 0 | BI112: 0 | BJ112: 0 | BK112: 0 | BL112: 0 | BM112: 0 | BN112: 0 | BO112: 0 | BP112: 0 | BQ112: 0 | BR112: 0 | BS112: 0 | BT112: 0 | BU112: 0
B113: 105 | C113: Project 105 | D113: 105 | F113: Augmentation | G113: Augmentation | I113: 0 | J113: 0 | K113: 0 | L113: 0 | M113: 0 | O113: 0.2389204307 | P113: 0.7610795693 | R113: Yes | S113: Yes | U113: 0 | V113: 0 | X113: 1 | Y113: 0 | Z113: 0 | AA113: 0 | AB113: 0 | AC113: 0 | AD113: 0 | AE113: 0 | AF113: 0 | AG113: 0 | AH113: 0 | AI113: 0 | AJ113: 0 | AK113: 0 | AL113: 0 | AM113: 0 | AN113: 0 | AO113: 0 | AP113: 0 | AQ113: 0 | AR113: 0 | AS113: 0 | AT113: 0 | AU113: 0 | AV113: 0 | AW113: 0 | AX113: 0 | AY113: 0 | AZ113: 0 | BA113: 0 | BB113: 0 | BC113: 0 | BD113: 0 | BE113: 0 | BF113: 0 | BG113: 0 | BH113: 0 | BI113: 0 | BJ113: 0 | BK113: 0 | BL113: 0 | BM113: 0 | BN113: 0 | BO113: 0 | BP113: 0 | BQ113: 0 | BR113: 0 | BS113: 0 | BT113: 0 | BU113: 0
B114: 106 | C114: Project 106 | D114: 106 | F114: Augmentation | G114: Augmentation | I114: 300 | J114: 300 | K114: 150 | L114: 0 | M114: 0 | O114: 0.2640901951 | P114: 0.7359098049 | R114: Yes | S114: Yes | U114: 0 | V114: 0 | X114: 1 | Y114: 0 | Z114: 0 | AA114: 0 | AB114: 0 | AC114: 0 | AD114: 0 | AE114: 0 | AF114: 0 | AG114: 0 | AH114: 0 | AI114: 0 | AJ114: 0 | AK114: 0 | AL114: 0 | AM114: 0 | AN114: 0 | AO114: 0 | AP114: 0 | AQ114: 0 | AR114: 0 | AS114: 0 | AT114: 0 | AU114: 0 | AV114: 0 | AW114: 0 | AX114: 0 | AY114: 0 | AZ114: 0 | BA114: 0 | BB114: 0 | BC114: 0 | BD114: 0 | BE114: 0 | BF114: 0 | BG114: 0 | BH114: 0 | BI114: 0 | BJ114: 0 | BK114: 0 | BL114: 0 | BM114: 0 | BN114: 0 | BO114: 0 | BP114: 0 | BQ114: 0 | BR114: 0 | BS114: 0 | BT114: 0 | BU114: 0
B115: 107 | C115: Project 107 | D115: 107 | F115: Augmentation | G115: Augmentation | I115: 0 | J115: 256.8702331 | K115: 0 | L115: 0 | M115: 0 | O115: 0.2389204307 | P115: 0.7610795693 | R115: Yes | S115: Yes | U115: 0 | V115: 0 | X115: 1 | Y115: 0 | Z115: 0 | AA115: 0 | AB115: 0 | AC115: 0 | AD115: 0 | AE115: 0 | AF115: 0 | AG115: 0 | AH115: 0 | AI115: 0 | AJ115: 0 | AK115: 0 | AL115: 0 | AM115: 0 | AN115: 0 | AO115: 0 | AP115: 0 | AQ115: 0 | AR115: 0 | AS115: 0 | AT115: 0 | AU115: 0 | AV115: 0 | AW115: 0 | AX115: 0 | AY115: 0 | AZ115: 0 | BA115: 0 | BB115: 0 | BC115: 0 | BD115: 0 | BE115: 0 | BF115: 0 | BG115: 0 | BH115: 0 | BI115: 0 | BJ115: 0 | BK115: 0 | BL115: 0 | BM115: 0 | BN115: 0 | BO115: 0 | BP115: 0 | BQ115: 0 | BR115: 0 | BS115: 0 | BT115: 0 | BU115: 0
B116: 108 | C116: Project 108 | D116: 108 | F116: Augmentation | G116: Augmentation | I116: 0 | J116: 0 | K116: 0 | L116: 0 | M116: 0 | O116: 0.2640901951 | P116: 0.7359098049 | R116: Yes | S116: Yes | U116: 0 | V116: 0 | X116: 1 | Y116: 0 | Z116: 0 | AA116: 0 | AB116: 0 | AC116: 0 | AD116: 0 | AE116: 0 | AF116: 0 | AG116: 0 | AH116: 0 | AI116: 0 | AJ116: 0 | AK116: 0 | AL116: 0 | AM116: 0 | AN116: 0 | AO116: 0 | AP116: 0 | AQ116: 0 | AR116: 0 | AS116: 0 | AT116: 0 | AU116: 0 | AV116: 0 | AW116: 0 | AX116: 0 | AY116: 0 | AZ116: 0 | BA116: 0 | BB116: 0 | BC116: 0 | BD116: 0 | BE116: 0 | BF116: 0 | BG116: 0 | BH116: 0 | BI116: 0 | BJ116: 0 | BK116: 0 | BL116: 0 | BM116: 0 | BN116: 0 | BO116: 0 | BP116: 0 | BQ116: 0 | BR116: 0 | BS116: 0 | BT116: 0 | BU116: 0
B117: 109 | C117: Project 109 | D117: 109 | F117: Augmentation | G117: Augmentation | I117: 0 | J117: 0 | K117: 156.2969823 | L117: 156.2969823 | M117: 0 | O117: 0.2640901951 | P117: 0.7359098049 | R117: Yes | S117: Yes | U117: 0 | V117: 0 | X117: 1 | Y117: 0 | Z117: 0 | AA117: 0 | AB117: 0 | AC117: 0 | AD117: 0 | AE117: 0 | AF117: 0 | AG117: 0 | AH117: 0 | AI117: 0 | AJ117: 0 | AK117: 0 | AL117: 0 | AM117: 0 | AN117: 0 | AO117: 0 | AP117: 0 | AQ117: 0 | AR117: 0 | AS117: 0 | AT117: 0 | AU117: 0 | AV117: 0 | AW117: 0 | AX117: 0 | AY117: 0 | AZ117: 0 | BA117: 0 | BB117: 0 | BC117: 0 | BD117: 0 | BE117: 0 | BF117: 0 | BG117: 0 | BH117: 0 | BI117: 0 | BJ117: 0 | BK117: 0 | BL117: 0 | BM117: 0 | BN117: 0 | BO117: 0 | BP117: 0 | BQ117: 0 | BR117: 0 | BS117: 0 | BT117: 0 | BU117: 0
B118: 110 | C118: Project 110 | D118: 110 | F118: Replacement | G118: Replacement | I118: 0 | J118: 0 | K118: 0 | L118: 0 | M118: 0 | O118: 0.9906644768 | P118: 0.009335523173 | R118: Yes | S118: Yes | U118: 0 | V118: 0 | X118: 1 | Y118: 0 | Z118: 0 | AA118: 0 | AB118: 0 | AC118: 0 | AD118: 0 | AE118: 0 | AF118: 0 | AG118: 0 | AH118: 0 | AI118: 0 | AJ118: 0 | AK118: 0 | AL118: 0 | AM118: 0 | AN118: 0 | AO118: 0 | AP118: 0 | AQ118: 0 | AR118: 0 | AS118: 0 | AT118: 0 | AU118: 0 | AV118: 0 | AW118: 0 | AX118: 0 | AY118: 0 | AZ118: 0 | BA118: 0 | BB118: 0 | BC118: 0 | BD118: 0 | BE118: 0 | BF118: 0 | BG118: 0 | BH118: 0 | BI118: 0 | BJ118: 0 | BK118: 0 | BL118: 0 | BM118: 0 | BN118: 0 | BO118: 0 | BP118: 0 | BQ118: 0 | BR118: 0 | BS118: 0 | BT118: 0 | BU118: 0
B119: 111 | C119: Project 111 | D119: 111 | F119: Replacement | G119: Replacement | I119: 0 | J119: 0 | K119: 0 | L119: 0 | M119: 0 | O119: 0.9906644768 | P119: 0.009335523173 | R119: Yes | S119: Yes | U119: 0 | V119: 0 | X119: 1 | Y119: 0 | Z119: 0 | AA119: 0 | AB119: 0 | AC119: 0 | AD119: 0 | AE119: 0 | AF119: 0 | AG119: 0 | AH119: 0 | AI119: 0 | AJ119: 0 | AK119: 0 | AL119: 0 | AM119: 0 | AN119: 0 | AO119: 0 | AP119: 0 | AQ119: 0 | AR119: 0 | AS119: 0 | AT119: 0 | AU119: 0 | AV119: 0 | AW119: 0 | AX119: 0 | AY119: 0 | AZ119: 0 | BA119: 0 | BB119: 0 | BC119: 0 | BD119: 0 | BE119: 0 | BF119: 0 | BG119: 0 | BH119: 0 | BI119: 0 | BJ119: 0 | BK119: 0 | BL119: 0 | BM119: 0 | BN119: 0 | BO119: 0 | BP119: 0 | BQ119: 0 | BR119: 0 | BS119: 0 | BT119: 0 | BU119: 0
B120: 112 | C120: Project 112 | D120: 112 | F120: Replacement | G120: Replacement | I120: 200 | J120: 200 | K120: 200 | L120: 200 | M120: 200 | O120: 0.4612831539 | P120: 0.5387168461 | R120: Yes | S120: Yes | U120: 0 | V120: 0 | X120: 1 | Y120: 0 | Z120: 0 | AA120: 0 | AB120: 0 | AC120: 0 | AD120: 0 | AE120: 0 | AF120: 0 | AG120: 0 | AH120: 0 | AI120: 0 | AJ120: 0 | AK120: 0 | AL120: 0 | AM120: 0 | AN120: 0 | AO120: 0 | AP120: 0 | AQ120: 0 | AR120: 0 | AS120: 0 | AT120: 0 | AU120: 0 | AV120: 0 | AW120: 0 | AX120: 0 | AY120: 0 | AZ120: 0 | BA120: 0 | BB120: 0 | BC120: 0 | BD120: 0 | BE120: 0 | BF120: 0 | BG120: 0 | BH120: 0 | BI120: 0 | BJ120: 0 | BK120: 0 | BL120: 0 | BM120: 0 | BN120: 0 | BO120: 0 | BP120: 0 | BQ120: 0 | BR120: 0 | BS120: 0 | BT120: 0 | BU120: 0
B121: 113 | C121: Project 113 | D121: 113 | F121: Replacement | G121: Replacement | I121: 0 | J121: 0 | K121: 0 | L121: 0 | M121: 0 | O121: 0.4612831539 | P121: 0.5387168461 | R121: Yes | S121: Yes | U121: 0 | V121: 0 | X121: 1 | Y121: 0 | Z121: 0 | AA121: 0 | AB121: 0 | AC121: 0 | AD121: 0 | AE121: 0 | AF121: 0 | AG121: 0 | AH121: 0 | AI121: 0 | AJ121: 0 | AK121: 0 | AL121: 0 | AM121: 0 | AN121: 0 | AO121: 0 | AP121: 0 | AQ121: 0 | AR121: 0 | AS121: 0 | AT121: 0 | AU121: 0 | AV121: 0 | AW121: 0 | AX121: 0 | AY121: 0 | AZ121: 0 | BA121: 0 | BB121: 0 | BC121: 0 | BD121: 0 | BE121: 0 | BF121: 0 | BG121: 0 | BH121: 0 | BI121: 0 | BJ121: 0 | BK121: 0 | BL121: 0 | BM121: 0 | BN121: 0 | BO121: 0 | BP121: 0 | BQ121: 0 | BR121: 0 | BS121: 0 | BT121: 0 | BU121: 0
B122: 114 | C122: Project 114 | D122: 114 | F122: Replacement | G122: Replacement | I122: 650 | J122: 0 | K122: 0 | L122: 0 | M122: 0 | O122: 0.4612831539 | P122: 0.5387168461 | R122: Yes | S122: Yes | U122: 0 | V122: 0 | X122: 1 | Y122: 0 | Z122: 0 | AA122: 0 | AB122: 0 | AC122: 0 | AD122: 0 | AE122: 0 | AF122: 0 | AG122: 0 | AH122: 0 | AI122: 0 | AJ122: 0 | AK122: 0 | AL122: 0 | AM122: 0 | AN122: 0 | AO122: 0 | AP122: 0 | AQ122: 0 | AR122: 0 | AS122: 0 | AT122: 0 | AU122: 0 | AV122: 0 | AW122: 0 | AX122: 0 | AY122: 0 | AZ122: 0 | BA122: 0 | BB122: 0 | BC122: 0 | BD122: 0 | BE122: 0 | BF122: 0 | BG122: 0 | BH122: 0 | BI122: 0 | BJ122: 0 | BK122: 0 | BL122: 0 | BM122: 0 | BN122: 0 | BO122: 0 | BP122: 0 | BQ122: 0 | BR122: 0 | BS122: 0 | BT122: 0 | BU122: 0
B123: 115 | C123: Project 115 | D123: 115 | F123: Replacement | G123: Replacement | I123: 134.2125311 | J123: 2833.77848 | K123: 1699.565948 | L123: 0 | M123: 0 | O123: 0.4612831539 | P123: 0.5387168461 | R123: Yes | S123: Yes | U123: 0 | V123: 0 | X123: 1 | Y123: 0 | Z123: 0 | AA123: 0 | AB123: 0 | AC123: 0 | AD123: 0 | AE123: 0 | AF123: 0 | AG123: 0 | AH123: 0 | AI123: 0 | AJ123: 0 | AK123: 0 | AL123: 0 | AM123: 0 | AN123: 0 | AO123: 0 | AP123: 0 | AQ123: 0 | AR123: 0 | AS123: 0 | AT123: 0 | AU123: 0 | AV123: 0 | AW123: 0 | AX123: 0 | AY123: 0 | AZ123: 0 | BA123: 0 | BB123: 0 | BC123: 0 | BD123: 0 | BE123: 0 | BF123: 0 | BG123: 0 | BH123: 0 | BI123: 0 | BJ123: 0 | BK123: 0 | BL123: 0 | BM123: 0 | BN123: 0 | BO123: 0 | BP123: 0 | BQ123: 0 | BR123: 0 | BS123: 0 | BT123: 0 | BU123: 0
B124: 116 | C124: Project 116 | D124: 116 | F124: Replacement | G124: Replacement | I124: 1887.5164 | J124: 0 | K124: 0 | L124: 0 | M124: 0 | O124: 0.4612831539 | P124: 0.5387168461 | R124: Yes | S124: Yes | U124: 0 | V124: 0 | X124: 1 | Y124: 0 | Z124: 0 | AA124: 0 | AB124: 0 | AC124: 0 | AD124: 0 | AE124: 0 | AF124: 0 | AG124: 0 | AH124: 0 | AI124: 0 | AJ124: 0 | AK124: 0 | AL124: 0 | AM124: 0 | AN124: 0 | AO124: 0 | AP124: 0 | AQ124: 0 | AR124: 0 | AS124: 0 | AT124: 0 | AU124: 0 | AV124: 0 | AW124: 0 | AX124: 0 | AY124: 0 | AZ124: 0 | BA124: 0 | BB124: 0 | BC124: 0 | BD124: 0 | BE124: 0 | BF124: 0 | BG124: 0 | BH124: 0 | BI124: 0 | BJ124: 0 | BK124: 0 | BL124: 0 | BM124: 0 | BN124: 0 | BO124: 0 | BP124: 0 | BQ124: 0 | BR124: 0 | BS124: 0 | BT124: 0 | BU124: 0
B125: 117 | C125: Project 117 | D125: 117 | F125: Replacement | G125: Replacement | I125: 0 | J125: 0 | K125: 0 | L125: 943.3885 | M125: 1193.3885 | O125: 0.4612831539 | P125: 0.5387168461 | R125: Yes | S125: Yes | U125: 0 | V125: 0 | X125: 1 | Y125: 0 | Z125: 0 | AA125: 0 | AB125: 0 | AC125: 0 | AD125: 0 | AE125: 0 | AF125: 0 | AG125: 0 | AH125: 0 | AI125: 0 | AJ125: 0 | AK125: 0 | AL125: 0 | AM125: 0 | AN125: 0 | AO125: 0 | AP125: 0 | AQ125: 0 | AR125: 0 | AS125: 0 | AT125: 0 | AU125: 0 | AV125: 0 | AW125: 0 | AX125: 0 | AY125: 0 | AZ125: 0 | BA125: 0 | BB125: 0 | BC125: 0 | BD125: 0 | BE125: 0 | BF125: 0 | BG125: 0 | BH125: 0 | BI125: 0 | BJ125: 0 | BK125: 0 | BL125: 0 | BM125: 0 | BN125: 0 | BO125: 0 | BP125: 0 | BQ125: 0 | BR125: 0 | BS125: 0 | BT125: 0 | BU125: 0
B126: 118 | C126: Project 118 | D126: 118 | F126: Replacement | G126: Replacement | I126: 441.5 | J126: 397 | K126: 496 | L126: 535.5 | M126: 238 | O126: 0.4612831539 | P126: 0.5387168461 | R126: Yes | S126: Yes | U126: 0 | V126: 0 | X126: 1 | Y126: 0 | Z126: 0 | AA126: 0 | AB126: 0 | AC126: 0 | AD126: 0 | AE126: 0 | AF126: 0 | AG126: 0 | AH126: 0 | AI126: 0 | AJ126: 0 | AK126: 0 | AL126: 0 | AM126: 0 | AN126: 0 | AO126: 0 | AP126: 0 | AQ126: 0 | AR126: 0 | AS126: 0 | AT126: 0 | AU126: 0 | AV126: 0 | AW126: 0 | AX126: 0 | AY126: 0 | AZ126: 0 | BA126: 0 | BB126: 0 | BC126: 0 | BD126: 0 | BE126: 0 | BF126: 0 | BG126: 0 | BH126: 0 | BI126: 0 | BJ126: 0 | BK126: 0 | BL126: 0 | BM126: 0 | BN126: 0 | BO126: 0 | BP126: 0 | BQ126: 0 | BR126: 0 | BS126: 0 | BT126: 0 | BU126: 0
B127: 119 | C127: Project 119 | D127: 119 | F127: Replacement | G127: Replacement | I127: 92 | J127: 52 | K127: 20 | L127: 102 | M127: 127.5 | O127: 0.4612831539 | P127: 0.5387168461 | R127: Yes | S127: Yes | U127: 0 | V127: 0 | X127: 1 | Y127: 0 | Z127: 0 | AA127: 0 | AB127: 0 | AC127: 0 | AD127: 0 | AE127: 0 | AF127: 0 | AG127: 0 | AH127: 0 | AI127: 0 | AJ127: 0 | AK127: 0 | AL127: 0 | AM127: 0 | AN127: 0 | AO127: 0 | AP127: 0 | AQ127: 0 | AR127: 0 | AS127: 0 | AT127: 0 | AU127: 0 | AV127: 0 | AW127: 0 | AX127: 0 | AY127: 0 | AZ127: 0 | BA127: 0 | BB127: 0 | BC127: 0 | BD127: 0 | BE127: 0 | BF127: 0 | BG127: 0 | BH127: 0 | BI127: 0 | BJ127: 0 | BK127: 0 | BL127: 0 | BM127: 0 | BN127: 0 | BO127: 0 | BP127: 0 | BQ127: 0 | BR127: 0 | BS127: 0 | BT127: 0 | BU127: 0
B128: 120 | C128: Project 120 | D128: 120 | F128: Replacement | G128: Replacement | I128: 80.5025937 | J128: 80.5025937 | K128: 0 | L128: 0 | M128: 0 | O128: 0.4612831539 | P128: 0.5387168461 | R128: Yes | S128: Yes | U128: 0 | V128: 0 | X128: 1 | Y128: 0 | Z128: 0 | AA128: 0 | AB128: 0 | AC128: 0 | AD128: 0 | AE128: 0 | AF128: 0 | AG128: 0 | AH128: 0 | AI128: 0 | AJ128: 0 | AK128: 0 | AL128: 0 | AM128: 0 | AN128: 0 | AO128: 0 | AP128: 0 | AQ128: 0 | AR128: 0 | AS128: 0 | AT128: 0 | AU128: 0 | AV128: 0 | AW128: 0 | AX128: 0 | AY128: 0 | AZ128: 0 | BA128: 0 | BB128: 0 | BC128: 0 | BD128: 0 | BE128: 0 | BF128: 0 | BG128: 0 | BH128: 0 | BI128: 0 | BJ128: 0 | BK128: 0 | BL128: 0 | BM128: 0 | BN128: 0 | BO128: 0 | BP128: 0 | BQ128: 0 | BR128: 0 | BS128: 0 | BT128: 0 | BU128: 0
B129: 121 | C129: Project 121 | D129: 121 | F129: Replacement | G129: Replacement | I129: 701.3624427 | J129: 0 | K129: 0 | L129: 0 | M129: 0 | O129: 0.4612831539 | P129: 0.5387168461 | R129: Yes | S129: Yes | U129: 0 | V129: 0 | X129: 0 | Y129: 1 | Z129: 0 | AA129: 0 | AB129: 0 | AC129: 0 | AD129: 0 | AE129: 0 | AF129: 0 | AG129: 0 | AH129: 0 | AI129: 0 | AJ129: 0 | AK129: 0 | AL129: 0 | AM129: 0 | AN129: 0 | AO129: 0 | AP129: 0 | AQ129: 0 | AR129: 0 | AS129: 0 | AT129: 0 | AU129: 0 | AV129: 0 | AW129: 0 | AX129: 0 | AY129: 0 | AZ129: 0 | BA129: 0 | BB129: 0 | BC129: 0 | BD129: 0 | BE129: 0 | BF129: 0 | BG129: 0 | BH129: 0 | BI129: 0 | BJ129: 0 | BK129: 0 | BL129: 0 | BM129: 0 | BN129: 0 | BO129: 0 | BP129: 0 | BQ129: 0 | BR129: 0 | BS129: 0 | BT129: 0 | BU129: 0
B130: 122 | C130: Project 122 | D130: 122 | F130: Replacement | G130: Replacement | I130: 0 | J130: 0 | K130: 0 | L130: 0 | M130: 1800 | O130: 0.4612831539 | P130: 0.5387168461 | R130: Yes | S130: Yes | U130: 0 | V130: 0 | X130: 1 | Y130: 0 | Z130: 0 | AA130: 0 | AB130: 0 | AC130: 0 | AD130: 0 | AE130: 0 | AF130: 0 | AG130: 0 | AH130: 0 | AI130: 0 | AJ130: 0 | AK130: 0 | AL130: 0 | AM130: 0 | AN130: 0 | AO130: 0 | AP130: 0 | AQ130: 0 | AR130: 0 | AS130: 0 | AT130: 0 | AU130: 0 | AV130: 0 | AW130: 0 | AX130: 0 | AY130: 0 | AZ130: 0 | BA130: 0 | BB130: 0 | BC130: 0 | BD130: 0 | BE130: 0 | BF130: 0 | BG130: 0 | BH130: 0 | BI130: 0 | BJ130: 0 | BK130: 0 | BL130: 0 | BM130: 0 | BN130: 0 | BO130: 0 | BP130: 0 | BQ130: 0 | BR130: 0 | BS130: 0 | BT130: 0 | BU130: 0
B131: 123 | C131: Project 123 | D131: 123 | F131: Replacement | G131: Replacement | I131: 0 | J131: 0 | K131: 0 | L131: 0 | M131: 0 | O131: 0.4612831539 | P131: 0.5387168461 | R131: Yes | S131: Yes | U131: 0 | V131: 0 | X131: 1 | Y131: 0 | Z131: 0 | AA131: 0 | AB131: 0 | AC131: 0 | AD131: 0 | AE131: 0 | AF131: 0 | AG131: 0 | AH131: 0 | AI131: 0 | AJ131: 0 | AK131: 0 | AL131: 0 | AM131: 0 | AN131: 0 | AO131: 0 | AP131: 0 | AQ131: 0 | AR131: 0 | AS131: 0 | AT131: 0 | AU131: 0 | AV131: 0 | AW131: 0 | AX131: 0 | AY131: 0 | AZ131: 0 | BA131: 0 | BB131: 0 | BC131: 0 | BD131: 0 | BE131: 0 | BF131: 0 | BG131: 0 | BH131: 0 | BI131: 0 | BJ131: 0 | BK131: 0 | BL131: 0 | BM131: 0 | BN131: 0 | BO131: 0 | BP131: 0 | BQ131: 0 | BR131: 0 | BS131: 0 | BT131: 0 | BU131: 0
B132: 124 | C132: Project 124 | D132: 124 | F132: Replacement | G132: Replacement | I132: 53.13351838 | J132: 53.1335 | K132: 53.1335 | L132: 0 | M132: 0 | O132: 0.4612831539 | P132: 0.5387168461 | R132: Yes | S132: Yes | U132: 0 | V132: 0 | X132: 1 | Y132: 0 | Z132: 0 | AA132: 0 | AB132: 0 | AC132: 0 | AD132: 0 | AE132: 0 | AF132: 0 | AG132: 0 | AH132: 0 | AI132: 0 | AJ132: 0 | AK132: 0 | AL132: 0 | AM132: 0 | AN132: 0 | AO132: 0 | AP132: 0 | AQ132: 0 | AR132: 0 | AS132: 0 | AT132: 0 | AU132: 0 | AV132: 0 | AW132: 0 | AX132: 0 | AY132: 0 | AZ132: 0 | BA132: 0 | BB132: 0 | BC132: 0 | BD132: 0 | BE132: 0 | BF132: 0 | BG132: 0 | BH132: 0 | BI132: 0 | BJ132: 0 | BK132: 0 | BL132: 0 | BM132: 0 | BN132: 0 | BO132: 0 | BP132: 0 | BQ132: 0 | BR132: 0 | BS132: 0 | BT132: 0 | BU132: 0
B133: 125 | C133: Project 125 | D133: 125 | F133: Replacement | G133: Replacement | I133: 531.3351838 | J133: 531.3351838 | K133: 265.6675919 | L133: 0 | M133: 0 | O133: 0.4612831539 | P133: 0.5387168461 | R133: Yes | S133: Yes | U133: 0 | V133: 0 | X133: 1 | Y133: 0 | Z133: 0 | AA133: 0 | AB133: 0 | AC133: 0 | AD133: 0 | AE133: 0 | AF133: 0 | AG133: 0 | AH133: 0 | AI133: 0 | AJ133: 0 | AK133: 0 | AL133: 0 | AM133: 0 | AN133: 0 | AO133: 0 | AP133: 0 | AQ133: 0 | AR133: 0 | AS133: 0 | AT133: 0 | AU133: 0 | AV133: 0 | AW133: 0 | AX133: 0 | AY133: 0 | AZ133: 0 | BA133: 0 | BB133: 0 | BC133: 0 | BD133: 0 | BE133: 0 | BF133: 0 | BG133: 0 | BH133: 0 | BI133: 0 | BJ133: 0 | BK133: 0 | BL133: 0 | BM133: 0 | BN133: 0 | BO133: 0 | BP133: 0 | BQ133: 0 | BR133: 0 | BS133: 0 | BT133: 0 | BU133: 0
B134: 126 | C134: Project 126 | D134: 126 | F134: Replacement | G134: Replacement | I134: 200 | J134: 400 | K134: 200 | L134: 0 | M134: 0 | O134: 0.4612831539 | P134: 0.5387168461 | R134: Yes | S134: Yes | U134: 0 | V134: 0 | X134: 1 | Y134: 0 | Z134: 0 | AA134: 0 | AB134: 0 | AC134: 0 | AD134: 0 | AE134: 0 | AF134: 0 | AG134: 0 | AH134: 0 | AI134: 0 | AJ134: 0 | AK134: 0 | AL134: 0 | AM134: 0 | AN134: 0 | AO134: 0 | AP134: 0 | AQ134: 0 | AR134: 0 | AS134: 0 | AT134: 0 | AU134: 0 | AV134: 0 | AW134: 0 | AX134: 0 | AY134: 0 | AZ134: 0 | BA134: 0 | BB134: 0 | BC134: 0 | BD134: 0 | BE134: 0 | BF134: 0 | BG134: 0 | BH134: 0 | BI134: 0 | BJ134: 0 | BK134: 0 | BL134: 0 | BM134: 0 | BN134: 0 | BO134: 0 | BP134: 0 | BQ134: 0 | BR134: 0 | BS134: 0 | BT134: 0 | BU134: 0
B135: 127 | C135: Project 127 | D135: 127 | F135: Replacement | G135: Replacement | I135: 0 | J135: 0 | K135: 0 | L135: 165 | M135: 165 | O135: 0.4612831539 | P135: 0.5387168461 | R135: Yes | S135: Yes | U135: 0 | V135: 0 | X135: 1 | Y135: 0 | Z135: 0 | AA135: 0 | AB135: 0 | AC135: 0 | AD135: 0 | AE135: 0 | AF135: 0 | AG135: 0 | AH135: 0 | AI135: 0 | AJ135: 0 | AK135: 0 | AL135: 0 | AM135: 0 | AN135: 0 | AO135: 0 | AP135: 0 | AQ135: 0 | AR135: 0 | AS135: 0 | AT135: 0 | AU135: 0 | AV135: 0 | AW135: 0 | AX135: 0 | AY135: 0 | AZ135: 0 | BA135: 0 | BB135: 0 | BC135: 0 | BD135: 0 | BE135: 0 | BF135: 0 | BG135: 0 | BH135: 0 | BI135: 0 | BJ135: 0 | BK135: 0 | BL135: 0 | BM135: 0 | BN135: 0 | BO135: 0 | BP135: 0 | BQ135: 0 | BR135: 0 | BS135: 0 | BT135: 0 | BU135: 0
B136: 128 | C136: Project 128 | D136: 128 | F136: Replacement | G136: Replacement | I136: 0 | J136: 0 | K136: 1006.681686 | L136: 2770.278351 | M136: 2256.688144 | O136: 0.4612831539 | P136: 0.5387168461 | R136: Yes | S136: Yes | U136: 0 | V136: 0 | X136: 1 | Y136: 0 | Z136: 0 | AA136: 0 | AB136: 0 | AC136: 0 | AD136: 0 | AE136: 0 | AF136: 0 | AG136: 0 | AH136: 0 | AI136: 0 | AJ136: 0 | AK136: 0 | AL136: 0 | AM136: 0 | AN136: 0 | AO136: 0 | AP136: 0 | AQ136: 0 | AR136: 0 | AS136: 0 | AT136: 0 | AU136: 0 | AV136: 0 | AW136: 0 | AX136: 0 | AY136: 0 | AZ136: 0 | BA136: 0 | BB136: 0 | BC136: 0 | BD136: 0 | BE136: 0 | BF136: 0 | BG136: 0 | BH136: 0 | BI136: 0 | BJ136: 0 | BK136: 0 | BL136: 0 | BM136: 0 | BN136: 0 | BO136: 0 | BP136: 0 | BQ136: 0 | BR136: 0 | BS136: 0 | BT136: 0 | BU136: 0
B137: 129 | C137: Project 129 | D137: 129 | F137: Replacement | G137: Replacement | I137: 98.45984443 | J137: 98.45984443 | K137: 98.1163158 | L137: 97.77278718 | M137: 97.77278718 | O137: 0.2777506367 | P137: 0.7222493633 | Q137: =IF(O137>1,1,IF(P137>1,1,IF(SUM(O137:P137)=1,"",))) ->  | R137: Yes | S137: Yes | U137: 0 | V137: 0 | X137: 1 | Y137: 0 | Z137: 0 | AA137: 0 | AB137: 0 | AC137: 0 | AD137: 0 | AE137: 0 | AF137: 0 | AG137: 0 | AH137: 0 | AI137: 0 | AJ137: 0 | AK137: 0 | AL137: 0 | AM137: 0 | AN137: 0 | AO137: 0 | AP137: 0 | AQ137: 0 | AR137: 0 | AS137: 0 | AT137: 0 | AU137: 0 | AV137: 0 | AW137: 0 | AX137: 0 | AY137: 0 | AZ137: 0 | BA137: 0 | BB137: 0 | BC137: 0 | BD137: 0 | BE137: 0 | BF137: 0 | BG137: 0 | BH137: 0 | BI137: 0 | BJ137: 0 | BK137: 0 | BL137: 0 | BM137: 0 | BN137: 0 | BO137: 0 | BP137: 0 | BQ137: 0 | BR137: 0 | BS137: 0 | BT137: 0 | BU137: 0
B138: 130 | C138: Project 130 | D138: 130 | F138: Replacement | G138: Replacement | I138: 0 | J138: 982.7624207 | K138: 0 | L138: 0 | M138: 0 | O138: 0.2777506367 | P138: =1-O138 -> 0.7222493633 | R138: Yes | S138: Yes | U138: 0 | V138: 0 | W138: =IF(V138>1,1,IF(U138>1,1,IF(U138+V138>1,1,""))) ->  | X138: 1 | Y138: 0 | Z138: 0 | AA138: 0 | AB138: 0 | AC138: 0 | AD138: 0 | AE138: 0 | AF138: 0 | AG138: 0 | AH138: 0 | AI138: 0 | AJ138: 0 | AK138: 0 | AL138: 0 | AM138: 0 | AN138: 0 | AO138: 0 | AP138: 0 | AQ138: 0 | AR138: 0 | AS138: 0 | AT138: 0 | AU138: 0 | AV138: 0 | AW138: 0 | AX138: 0 | AY138: 0 | AZ138: 0 | BA138: 0 | BB138: 0 | BC138: 0 | BD138: 0 | BE138: 0 | BF138: 0 | BG138: 0 | BH138: 0 | BI138: 0 | BJ138: 0 | BK138: 0 | BL138: 0 | BM138: 0 | BN138: 0 | BO138: 0 | BP138: 0 | BQ138: 0 | BR138: 0 | BS138: 0 | BT138: 0 | BU138: 0 | BV138: =IF(SUM(X138:BU138)=1,"",SUM(X138:BU138)) -> 
B139: =IFERROR(B138+1,"") -> 131 | C139: Project 131 | D139: 131 | F139: Replacement | G139: Replacement | I139: 0 | J139: 0 | K139: 0 | L139: 0 | M139: 0 | O139: 0.2777506367 | P139: 0.7222493633 | R139: Yes | S139: Yes | U139: 0 | V139: 0 | X139: 1 | Y139: 0 | Z139: 0 | AA139: 0 | AB139: 0 | AC139: 0 | AD139: 0 | AE139: 0 | AF139: 0 | AG139: 0 | AH139: 0 | AI139: 0 | AJ139: 0 | AK139: 0 | AL139: 0 | AM139: 0 | AN139: 0 | AO139: 0 | AP139: 0 | AQ139: 0 | AR139: 0 | AS139: 0 | AT139: 0 | AU139: 0 | AV139: 0 | AW139: 0 | AX139: 0 | AY139: 0 | AZ139: 0 | BA139: 0 | BB139: 0 | BC139: 0 | BD139: 0 | BE139: 0 | BF139: 0 | BG139: 0 | BH139: 0 | BI139: 0 | BJ139: 0 | BK139: 0 | BL139: 0 | BM139: 0 | BN139: 0 | BO139: 0 | BP139: 0 | BQ139: 0 | BR139: 0 | BS139: 0 | BT139: 0 | BU139: 0
B140: 132 | C140: Project 132 | D140: 132 | F140: Replacement | G140: Replacement | I140: 54.143 | J140: 0 | K140: 0 | L140: 0 | M140: 0 | O140: 0.2777506367 | P140: 0.7222493633 | R140: Yes | S140: Yes | U140: 0 | V140: 0 | X140: 1 | Y140: 0 | Z140: 0 | AA140: 0 | AB140: 0 | AC140: 0 | AD140: 0 | AE140: 0 | AF140: 0 | AG140: 0 | AH140: 0 | AI140: 0 | AJ140: 0 | AK140: 0 | AL140: 0 | AM140: 0 | AN140: 0 | AO140: 0 | AP140: 0 | AQ140: 0 | AR140: 0 | AS140: 0 | AT140: 0 | AU140: 0 | AV140: 0 | AW140: 0 | AX140: 0 | AY140: 0 | AZ140: 0 | BA140: 0 | BB140: 0 | BC140: 0 | BD140: 0 | BE140: 0 | BF140: 0 | BG140: 0 | BH140: 0 | BI140: 0 | BJ140: 0 | BK140: 0 | BL140: 0 | BM140: 0 | BN140: 0 | BO140: 0 | BP140: 0 | BQ140: 0 | BR140: 0 | BS140: 0 | BT140: 0 | BU140: 0
B141: 133 | C141: Project 133 | D141: 133 | F141: Replacement | G141: Replacement | I141: 466.6650107 | J141: 0 | K141: 0 | L141: 0 | M141: 0 | O141: 0.2777506367 | P141: 0.7222493633 | R141: Yes | S141: Yes | U141: 0 | V141: 0 | X141: 1 | Y141: 0 | Z141: 0 | AA141: 0 | AB141: 0 | AC141: 0 | AD141: 0 | AE141: 0 | AF141: 0 | AG141: 0 | AH141: 0 | AI141: 0 | AJ141: 0 | AK141: 0 | AL141: 0 | AM141: 0 | AN141: 0 | AO141: 0 | AP141: 0 | AQ141: 0 | AR141: 0 | AS141: 0 | AT141: 0 | AU141: 0 | AV141: 0 | AW141: 0 | AX141: 0 | AY141: 0 | AZ141: 0 | BA141: 0 | BB141: 0 | BC141: 0 | BD141: 0 | BE141: 0 | BF141: 0 | BG141: 0 | BH141: 0 | BI141: 0 | BJ141: 0 | BK141: 0 | BL141: 0 | BM141: 0 | BN141: 0 | BO141: 0 | BP141: 0 | BQ141: 0 | BR141: 0 | BS141: 0 | BT141: 0 | BU141: 0
B142: 134 | C142: Project 134 | D142: 134 | F142: Replacement | G142: Replacement | I142: 2527.6956 | J142: 0 | K142: 0 | L142: 0 | M142: 0 | O142: 0.2777506367 | P142: 0.7222493633 | R142: Yes | S142: Yes | U142: 0 | V142: 0 | X142: 1 | Y142: 0 | Z142: 0 | AA142: 0 | AB142: 0 | AC142: 0 | AD142: 0 | AE142: 0 | AF142: 0 | AG142: 0 | AH142: 0 | AI142: 0 | AJ142: 0 | AK142: 0 | AL142: 0 | AM142: 0 | AN142: 0 | AO142: 0 | AP142: 0 | AQ142: 0 | AR142: 0 | AS142: 0 | AT142: 0 | AU142: 0 | AV142: 0 | AW142: 0 | AX142: 0 | AY142: 0 | AZ142: 0 | BA142: 0 | BB142: 0 | BC142: 0 | BD142: 0 | BE142: 0 | BF142: 0 | BG142: 0 | BH142: 0 | BI142: 0 | BJ142: 0 | BK142: 0 | BL142: 0 | BM142: 0 | BN142: 0 | BO142: 0 | BP142: 0 | BQ142: 0 | BR142: 0 | BS142: 0 | BT142: 0 | BU142: 0
B143: 135 | C143: Project 135 | D143: 135 | F143: Replacement | G143: Replacement | I143: 0 | J143: 312.3852085 | K143: 0 | L143: 0 | M143: 0 | O143: 0.2777506367 | P143: 0.7222493633 | R143: Yes | S143: Yes | U143: 0 | V143: 0 | X143: 1 | Y143: 0 | Z143: 0 | AA143: 0 | AB143: 0 | AC143: 0 | AD143: 0 | AE143: 0 | AF143: 0 | AG143: 0 | AH143: 0 | AI143: 0 | AJ143: 0 | AK143: 0 | AL143: 0 | AM143: 0 | AN143: 0 | AO143: 0 | AP143: 0 | AQ143: 0 | AR143: 0 | AS143: 0 | AT143: 0 | AU143: 0 | AV143: 0 | AW143: 0 | AX143: 0 | AY143: 0 | AZ143: 0 | BA143: 0 | BB143: 0 | BC143: 0 | BD143: 0 | BE143: 0 | BF143: 0 | BG143: 0 | BH143: 0 | BI143: 0 | BJ143: 0 | BK143: 0 | BL143: 0 | BM143: 0 | BN143: 0 | BO143: 0 | BP143: 0 | BQ143: 0 | BR143: 0 | BS143: 0 | BT143: 0 | BU143: 0
B144: 136 | C144: Project 136 | D144: 136 | F144: Replacement | G144: Replacement | I144: 0 | J144: 0 | K144: 0 | L144: 0 | M144: 0 | O144: 0.2777506367 | P144: 0.7222493633 | R144: Yes | S144: Yes | U144: 0 | V144: 0 | X144: 1 | Y144: 0 | Z144: 0 | AA144: 0 | AB144: 0 | AC144: 0 | AD144: 0 | AE144: 0 | AF144: 0 | AG144: 0 | AH144: 0 | AI144: 0 | AJ144: 0 | AK144: 0 | AL144: 0 | AM144: 0 | AN144: 0 | AO144: 0 | AP144: 0 | AQ144: 0 | AR144: 0 | AS144: 0 | AT144: 0 | AU144: 0 | AV144: 0 | AW144: 0 | AX144: 0 | AY144: 0 | AZ144: 0 | BA144: 0 | BB144: 0 | BC144: 0 | BD144: 0 | BE144: 0 | BF144: 0 | BG144: 0 | BH144: 0 | BI144: 0 | BJ144: 0 | BK144: 0 | BL144: 0 | BM144: 0 | BN144: 0 | BO144: 0 | BP144: 0 | BQ144: 0 | BR144: 0 | BS144: 0 | BT144: 0 | BU144: 0
B145: 137 | C145: Project 137 | D145: 137 | F145: Replacement | G145: Replacement | I145: 0 | J145: 0 | K145: 0 | L145: 0 | M145: 0 | O145: 0.2777506367 | P145: 0.7222493633 | R145: Yes | S145: Yes | U145: 0 | V145: 0 | X145: 1 | Y145: 0 | Z145: 0 | AA145: 0 | AB145: 0 | AC145: 0 | AD145: 0 | AE145: 0 | AF145: 0 | AG145: 0 | AH145: 0 | AI145: 0 | AJ145: 0 | AK145: 0 | AL145: 0 | AM145: 0 | AN145: 0 | AO145: 0 | AP145: 0 | AQ145: 0 | AR145: 0 | AS145: 0 | AT145: 0 | AU145: 0 | AV145: 0 | AW145: 0 | AX145: 0 | AY145: 0 | AZ145: 0 | BA145: 0 | BB145: 0 | BC145: 0 | BD145: 0 | BE145: 0 | BF145: 0 | BG145: 0 | BH145: 0 | BI145: 0 | BJ145: 0 | BK145: 0 | BL145: 0 | BM145: 0 | BN145: 0 | BO145: 0 | BP145: 0 | BQ145: 0 | BR145: 0 | BS145: 0 | BT145: 0 | BU145: 0
B146: 138 | C146: Project 138 | D146: 138 | F146: Replacement | G146: Replacement | I146: 0 | J146: 0 | K146: 0 | L146: 0 | M146: 0 | O146: 0.2777506367 | P146: 0.7222493633 | R146: Yes | S146: Yes | U146: 0 | V146: 0 | X146: 1 | Y146: 0 | Z146: 0 | AA146: 0 | AB146: 0 | AC146: 0 | AD146: 0 | AE146: 0 | AF146: 0 | AG146: 0 | AH146: 0 | AI146: 0 | AJ146: 0 | AK146: 0 | AL146: 0 | AM146: 0 | AN146: 0 | AO146: 0 | AP146: 0 | AQ146: 0 | AR146: 0 | AS146: 0 | AT146: 0 | AU146: 0 | AV146: 0 | AW146: 0 | AX146: 0 | AY146: 0 | AZ146: 0 | BA146: 0 | BB146: 0 | BC146: 0 | BD146: 0 | BE146: 0 | BF146: 0 | BG146: 0 | BH146: 0 | BI146: 0 | BJ146: 0 | BK146: 0 | BL146: 0 | BM146: 0 | BN146: 0 | BO146: 0 | BP146: 0 | BQ146: 0 | BR146: 0 | BS146: 0 | BT146: 0 | BU146: 0
B147: 139 | C147: Project 139 | D147: 139 | F147: Replacement | G147: Replacement | I147: 10 | J147: 10 | K147: 10 | L147: 10 | M147: 10 | O147: 0.2777506367 | P147: 0.7222493633 | R147: Yes | S147: Yes | U147: 0 | V147: 0 | X147: 1 | Y147: 0 | Z147: 0 | AA147: 0 | AB147: 0 | AC147: 0 | AD147: 0 | AE147: 0 | AF147: 0 | AG147: 0 | AH147: 0 | AI147: 0 | AJ147: 0 | AK147: 0 | AL147: 0 | AM147: 0 | AN147: 0 | AO147: 0 | AP147: 0 | AQ147: 0 | AR147: 0 | AS147: 0 | AT147: 0 | AU147: 0 | AV147: 0 | AW147: 0 | AX147: 0 | AY147: 0 | AZ147: 0 | BA147: 0 | BB147: 0 | BC147: 0 | BD147: 0 | BE147: 0 | BF147: 0 | BG147: 0 | BH147: 0 | BI147: 0 | BJ147: 0 | BK147: 0 | BL147: 0 | BM147: 0 | BN147: 0 | BO147: 0 | BP147: 0 | BQ147: 0 | BR147: 0 | BS147: 0 | BT147: 0 | BU147: 0
B148: 140 | C148: Project 140 | D148: 140 | F148: Replacement | G148: Replacement | I148: 30 | J148: 30 | K148: 30 | L148: 30 | M148: 30 | O148: 0.2777506367 | P148: 0.7222493633 | R148: Yes | S148: Yes | U148: 0 | V148: 0 | X148: 1 | Y148: 0 | Z148: 0 | AA148: 0 | AB148: 0 | AC148: 0 | AD148: 0 | AE148: 0 | AF148: 0 | AG148: 0 | AH148: 0 | AI148: 0 | AJ148: 0 | AK148: 0 | AL148: 0 | AM148: 0 | AN148: 0 | AO148: 0 | AP148: 0 | AQ148: 0 | AR148: 0 | AS148: 0 | AT148: 0 | AU148: 0 | AV148: 0 | AW148: 0 | AX148: 0 | AY148: 0 | AZ148: 0 | BA148: 0 | BB148: 0 | BC148: 0 | BD148: 0 | BE148: 0 | BF148: 0 | BG148: 0 | BH148: 0 | BI148: 0 | BJ148: 0 | BK148: 0 | BL148: 0 | BM148: 0 | BN148: 0 | BO148: 0 | BP148: 0 | BQ148: 0 | BR148: 0 | BS148: 0 | BT148: 0 | BU148: 0
B149: 141 | C149: Project 141 | D149: 141 | F149: Replacement | G149: Replacement | I149: 0 | J149: 0 | K149: 0 | L149: 0 | M149: 0 | O149: 0.2777506367 | P149: 0.7222493633 | R149: Yes | S149: Yes | U149: 0 | V149: 0 | X149: 1 | Y149: 0 | Z149: 0 | AA149: 0 | AB149: 0 | AC149: 0 | AD149: 0 | AE149: 0 | AF149: 0 | AG149: 0 | AH149: 0 | AI149: 0 | AJ149: 0 | AK149: 0 | AL149: 0 | AM149: 0 | AN149: 0 | AO149: 0 | AP149: 0 | AQ149: 0 | AR149: 0 | AS149: 0 | AT149: 0 | AU149: 0 | AV149: 0 | AW149: 0 | AX149: 0 | AY149: 0 | AZ149: 0 | BA149: 0 | BB149: 0 | BC149: 0 | BD149: 0 | BE149: 0 | BF149: 0 | BG149: 0 | BH149: 0 | BI149: 0 | BJ149: 0 | BK149: 0 | BL149: 0 | BM149: 0 | BN149: 0 | BO149: 0 | BP149: 0 | BQ149: 0 | BR149: 0 | BS149: 0 | BT149: 0 | BU149: 0
B150: 142 | C150: Project 142 | D150: 142 | F150: Replacement | G150: Replacement | I150: 0 | J150: 0 | K150: 0 | L150: 0 | M150: 0 | O150: 0.2777506367 | P150: 0.7222493633 | R150: Yes | S150: Yes | U150: 0 | V150: 0 | X150: 1 | Y150: 0 | Z150: 0 | AA150: 0 | AB150: 0 | AC150: 0 | AD150: 0 | AE150: 0 | AF150: 0 | AG150: 0 | AH150: 0 | AI150: 0 | AJ150: 0 | AK150: 0 | AL150: 0 | AM150: 0 | AN150: 0 | AO150: 0 | AP150: 0 | AQ150: 0 | AR150: 0 | AS150: 0 | AT150: 0 | AU150: 0 | AV150: 0 | AW150: 0 | AX150: 0 | AY150: 0 | AZ150: 0 | BA150: 0 | BB150: 0 | BC150: 0 | BD150: 0 | BE150: 0 | BF150: 0 | BG150: 0 | BH150: 0 | BI150: 0 | BJ150: 0 | BK150: 0 | BL150: 0 | BM150: 0 | BN150: 0 | BO150: 0 | BP150: 0 | BQ150: 0 | BR150: 0 | BS150: 0 | BT150: 0 | BU150: 0
B151: 143 | C151: Project 143 | D151: 143 | F151: Replacement | G151: Replacement | I151: 2045.513 | J151: 0 | K151: 0 | L151: 0 | M151: 0 | O151: 0.2777506367 | P151: 0.7222493633 | R151: Yes | S151: Yes | U151: 0 | V151: 0 | X151: 1 | Y151: 0 | Z151: 0 | AA151: 0 | AB151: 0 | AC151: 0 | AD151: 0 | AE151: 0 | AF151: 0 | AG151: 0 | AH151: 0 | AI151: 0 | AJ151: 0 | AK151: 0 | AL151: 0 | AM151: 0 | AN151: 0 | AO151: 0 | AP151: 0 | AQ151: 0 | AR151: 0 | AS151: 0 | AT151: 0 | AU151: 0 | AV151: 0 | AW151: 0 | AX151: 0 | AY151: 0 | AZ151: 0 | BA151: 0 | BB151: 0 | BC151: 0 | BD151: 0 | BE151: 0 | BF151: 0 | BG151: 0 | BH151: 0 | BI151: 0 | BJ151: 0 | BK151: 0 | BL151: 0 | BM151: 0 | BN151: 0 | BO151: 0 | BP151: 0 | BQ151: 0 | BR151: 0 | BS151: 0 | BT151: 0 | BU151: 0
B152: 144 | C152: Project 144 | D152: 144 | F152: Replacement | G152: Replacement | I152: 92.4658514 | J152: 92.4658514 | K152: 92.4658514 | L152: 91.82062051 | M152: 91.82062051 | O152: 0.2777506367 | P152: 0.7222493633 | R152: Yes | S152: Yes | U152: 0 | V152: 0 | X152: 1 | Y152: 0 | Z152: 0 | AA152: 0 | AB152: 0 | AC152: 0 | AD152: 0 | AE152: 0 | AF152: 0 | AG152: 0 | AH152: 0 | AI152: 0 | AJ152: 0 | AK152: 0 | AL152: 0 | AM152: 0 | AN152: 0 | AO152: 0 | AP152: 0 | AQ152: 0 | AR152: 0 | AS152: 0 | AT152: 0 | AU152: 0 | AV152: 0 | AW152: 0 | AX152: 0 | AY152: 0 | AZ152: 0 | BA152: 0 | BB152: 0 | BC152: 0 | BD152: 0 | BE152: 0 | BF152: 0 | BG152: 0 | BH152: 0 | BI152: 0 | BJ152: 0 | BK152: 0 | BL152: 0 | BM152: 0 | BN152: 0 | BO152: 0 | BP152: 0 | BQ152: 0 | BR152: 0 | BS152: 0 | BT152: 0 | BU152: 0
B153: 145 | C153: Project 145 | D153: 145 | F153: Replacement | G153: Replacement | I153: 0 | J153: 0 | K153: 0 | L153: 0 | M153: 0 | O153: 0.2777506367 | P153: 0.7222493633 | R153: Yes | S153: Yes | U153: 0 | V153: 0 | X153: 1 | Y153: 0 | Z153: 0 | AA153: 0 | AB153: 0 | AC153: 0 | AD153: 0 | AE153: 0 | AF153: 0 | AG153: 0 | AH153: 0 | AI153: 0 | AJ153: 0 | AK153: 0 | AL153: 0 | AM153: 0 | AN153: 0 | AO153: 0 | AP153: 0 | AQ153: 0 | AR153: 0 | AS153: 0 | AT153: 0 | AU153: 0 | AV153: 0 | AW153: 0 | AX153: 0 | AY153: 0 | AZ153: 0 | BA153: 0 | BB153: 0 | BC153: 0 | BD153: 0 | BE153: 0 | BF153: 0 | BG153: 0 | BH153: 0 | BI153: 0 | BJ153: 0 | BK153: 0 | BL153: 0 | BM153: 0 | BN153: 0 | BO153: 0 | BP153: 0 | BQ153: 0 | BR153: 0 | BS153: 0 | BT153: 0 | BU153: 0
B154: 146 | C154: Project 146 | D154: 146 | F154: Replacement | G154: Replacement | I154: 52.78909094 | J154: 52.78909094 | K154: 52.6049086 | L154: 52.42072627 | M154: 52.42072627 | O154: 0.2777506367 | P154: 0.7222493633 | R154: Yes | S154: Yes | U154: 0 | V154: 0 | X154: 1 | Y154: 0 | Z154: 0 | AA154: 0 | AB154: 0 | AC154: 0 | AD154: 0 | AE154: 0 | AF154: 0 | AG154: 0 | AH154: 0 | AI154: 0 | AJ154: 0 | AK154: 0 | AL154: 0 | AM154: 0 | AN154: 0 | AO154: 0 | AP154: 0 | AQ154: 0 | AR154: 0 | AS154: 0 | AT154: 0 | AU154: 0 | AV154: 0 | AW154: 0 | AX154: 0 | AY154: 0 | AZ154: 0 | BA154: 0 | BB154: 0 | BC154: 0 | BD154: 0 | BE154: 0 | BF154: 0 | BG154: 0 | BH154: 0 | BI154: 0 | BJ154: 0 | BK154: 0 | BL154: 0 | BM154: 0 | BN154: 0 | BO154: 0 | BP154: 0 | BQ154: 0 | BR154: 0 | BS154: 0 | BT154: 0 | BU154: 0
B155: 147 | C155: Project 147 | D155: 147 | F155: Replacement | G155: Replacement | I155: 79.18363641 | J155: 79.18363641 | K155: 0 | L155: 78.63108941 | M155: 78.63108941 | O155: 0.2777506367 | P155: 0.7222493633 | R155: Yes | S155: Yes | U155: 0 | V155: 0 | X155: 1 | Y155: 0 | Z155: 0 | AA155: 0 | AB155: 0 | AC155: 0 | AD155: 0 | AE155: 0 | AF155: 0 | AG155: 0 | AH155: 0 | AI155: 0 | AJ155: 0 | AK155: 0 | AL155: 0 | AM155: 0 | AN155: 0 | AO155: 0 | AP155: 0 | AQ155: 0 | AR155: 0 | AS155: 0 | AT155: 0 | AU155: 0 | AV155: 0 | AW155: 0 | AX155: 0 | AY155: 0 | AZ155: 0 | BA155: 0 | BB155: 0 | BC155: 0 | BD155: 0 | BE155: 0 | BF155: 0 | BG155: 0 | BH155: 0 | BI155: 0 | BJ155: 0 | BK155: 0 | BL155: 0 | BM155: 0 | BN155: 0 | BO155: 0 | BP155: 0 | BQ155: 0 | BR155: 0 | BS155: 0 | BT155: 0 | BU155: 0
B156: 148 | C156: Project 148 | D156: 148 | F156: Replacement | G156: Replacement | I156: 57.20920197 | J156: 114.4184039 | K156: 57.20920197 | L156: 0 | M156: 0 | O156: 0.2777506367 | P156: 0.7222493633 | R156: Yes | S156: Yes | U156: 0 | V156: 0 | X156: 1 | Y156: 0 | Z156: 0 | AA156: 0 | AB156: 0 | AC156: 0 | AD156: 0 | AE156: 0 | AF156: 0 | AG156: 0 | AH156: 0 | AI156: 0 | AJ156: 0 | AK156: 0 | AL156: 0 | AM156: 0 | AN156: 0 | AO156: 0 | AP156: 0 | AQ156: 0 | AR156: 0 | AS156: 0 | AT156: 0 | AU156: 0 | AV156: 0 | AW156: 0 | AX156: 0 | AY156: 0 | AZ156: 0 | BA156: 0 | BB156: 0 | BC156: 0 | BD156: 0 | BE156: 0 | BF156: 0 | BG156: 0 | BH156: 0 | BI156: 0 | BJ156: 0 | BK156: 0 | BL156: 0 | BM156: 0 | BN156: 0 | BO156: 0 | BP156: 0 | BQ156: 0 | BR156: 0 | BS156: 0 | BT156: 0 | BU156: 0
B157: 149 | C157: Project 149 | D157: 149 | F157: Replacement | G157: Replacement | I157: 79.18363641 | J157: 79.18363641 | K157: 79.18363641 | L157: 78.63108941 | M157: 78.63108941 | O157: 0.2777506367 | P157: 0.7222493633 | R157: Yes | S157: Yes | U157: 0 | V157: 0 | X157: 1 | Y157: 0 | Z157: 0 | AA157: 0 | AB157: 0 | AC157: 0 | AD157: 0 | AE157: 0 | AF157: 0 | AG157: 0 | AH157: 0 | AI157: 0 | AJ157: 0 | AK157: 0 | AL157: 0 | AM157: 0 | AN157: 0 | AO157: 0 | AP157: 0 | AQ157: 0 | AR157: 0 | AS157: 0 | AT157: 0 | AU157: 0 | AV157: 0 | AW157: 0 | AX157: 0 | AY157: 0 | AZ157: 0 | BA157: 0 | BB157: 0 | BC157: 0 | BD157: 0 | BE157: 0 | BF157: 0 | BG157: 0 | BH157: 0 | BI157: 0 | BJ157: 0 | BK157: 0 | BL157: 0 | BM157: 0 | BN157: 0 | BO157: 0 | BP157: 0 | BQ157: 0 | BR157: 0 | BS157: 0 | BT157: 0 | BU157: 0
B158: 150 | C158: Project 150 | D158: 150 | F158: Replacement | G158: Replacement | I158: 0 | J158: 0 | K158: 931.4072165 | L158: 3044.221649 | M158: 2612.814433 | O158: 0.2777506367 | P158: 0.7222493633 | R158: Yes | S158: Yes | U158: 0 | V158: 0 | X158: 1 | Y158: 0 | Z158: 0 | AA158: 0 | AB158: 0 | AC158: 0 | AD158: 0 | AE158: 0 | AF158: 0 | AG158: 0 | AH158: 0 | AI158: 0 | AJ158: 0 | AK158: 0 | AL158: 0 | AM158: 0 | AN158: 0 | AO158: 0 | AP158: 0 | AQ158: 0 | AR158: 0 | AS158: 0 | AT158: 0 | AU158: 0 | AV158: 0 | AW158: 0 | AX158: 0 | AY158: 0 | AZ158: 0 | BA158: 0 | BB158: 0 | BC158: 0 | BD158: 0 | BE158: 0 | BF158: 0 | BG158: 0 | BH158: 0 | BI158: 0 | BJ158: 0 | BK158: 0 | BL158: 0 | BM158: 0 | BN158: 0 | BO158: 0 | BP158: 0 | BQ158: 0 | BR158: 0 | BS158: 0 | BT158: 0 | BU158: 0
B159: 151 | C159: Project 151 | D159: 151 | F159: Replacement | G159: Replacement | I159: 105.5781819 | J159: 105.5781819 | K159: 104.8414525 | L159: 104.8414525 | M159: 0 | O159: 0.2777506367 | P159: 0.7222493633 | R159: Yes | S159: Yes | U159: 0 | V159: 0 | X159: 1 | Y159: 0 | Z159: 0 | AA159: 0 | AB159: 0 | AC159: 0 | AD159: 0 | AE159: 0 | AF159: 0 | AG159: 0 | AH159: 0 | AI159: 0 | AJ159: 0 | AK159: 0 | AL159: 0 | AM159: 0 | AN159: 0 | AO159: 0 | AP159: 0 | AQ159: 0 | AR159: 0 | AS159: 0 | AT159: 0 | AU159: 0 | AV159: 0 | AW159: 0 | AX159: 0 | AY159: 0 | AZ159: 0 | BA159: 0 | BB159: 0 | BC159: 0 | BD159: 0 | BE159: 0 | BF159: 0 | BG159: 0 | BH159: 0 | BI159: 0 | BJ159: 0 | BK159: 0 | BL159: 0 | BM159: 0 | BN159: 0 | BO159: 0 | BP159: 0 | BQ159: 0 | BR159: 0 | BS159: 0 | BT159: 0 | BU159: 0
B160: 152 | C160: Project 152 | D160: 152 | F160: Replacement | G160: Replacement | I160: 100 | J160: 100 | K160: 100 | L160: 100 | M160: 100 | O160: 0.2777506367 | P160: 0.7222493633 | R160: Yes | S160: Yes | U160: 0 | V160: 0 | X160: 1 | Y160: 0 | Z160: 0 | AA160: 0 | AB160: 0 | AC160: 0 | AD160: 0 | AE160: 0 | AF160: 0 | AG160: 0 | AH160: 0 | AI160: 0 | AJ160: 0 | AK160: 0 | AL160: 0 | AM160: 0 | AN160: 0 | AO160: 0 | AP160: 0 | AQ160: 0 | AR160: 0 | AS160: 0 | AT160: 0 | AU160: 0 | AV160: 0 | AW160: 0 | AX160: 0 | AY160: 0 | AZ160: 0 | BA160: 0 | BB160: 0 | BC160: 0 | BD160: 0 | BE160: 0 | BF160: 0 | BG160: 0 | BH160: 0 | BI160: 0 | BJ160: 0 | BK160: 0 | BL160: 0 | BM160: 0 | BN160: 0 | BO160: 0 | BP160: 0 | BQ160: 0 | BR160: 0 | BS160: 0 | BT160: 0 | BU160: 0
B161: 153 | C161: Project 153 | D161: 153 | F161: Replacement | G161: Replacement | I161: 211.1563637 | J161: 211.1563637 | K161: 211.1563637 | L161: 209.6829051 | M161: 209.6829051 | O161: 0.2777506367 | P161: 0.7222493633 | R161: Yes | S161: Yes | U161: 0 | V161: 0 | X161: 1 | Y161: 0 | Z161: 0 | AA161: 0 | AB161: 0 | AC161: 0 | AD161: 0 | AE161: 0 | AF161: 0 | AG161: 0 | AH161: 0 | AI161: 0 | AJ161: 0 | AK161: 0 | AL161: 0 | AM161: 0 | AN161: 0 | AO161: 0 | AP161: 0 | AQ161: 0 | AR161: 0 | AS161: 0 | AT161: 0 | AU161: 0 | AV161: 0 | AW161: 0 | AX161: 0 | AY161: 0 | AZ161: 0 | BA161: 0 | BB161: 0 | BC161: 0 | BD161: 0 | BE161: 0 | BF161: 0 | BG161: 0 | BH161: 0 | BI161: 0 | BJ161: 0 | BK161: 0 | BL161: 0 | BM161: 0 | BN161: 0 | BO161: 0 | BP161: 0 | BQ161: 0 | BR161: 0 | BS161: 0 | BT161: 0 | BU161: 0
B162: 154 | C162: Project 154 | D162: 154 | F162: Replacement | G162: Replacement | I162: 212.360561 | J162: 2552.507809 | K162: 2233.444333 | L162: 0 | M162: 0 | O162: 0.2777506367 | P162: 0.7222493633 | R162: Yes | S162: Yes | U162: 0 | V162: 0 | X162: 1 | Y162: 0 | Z162: 0 | AA162: 0 | AB162: 0 | AC162: 0 | AD162: 0 | AE162: 0 | AF162: 0 | AG162: 0 | AH162: 0 | AI162: 0 | AJ162: 0 | AK162: 0 | AL162: 0 | AM162: 0 | AN162: 0 | AO162: 0 | AP162: 0 | AQ162: 0 | AR162: 0 | AS162: 0 | AT162: 0 | AU162: 0 | AV162: 0 | AW162: 0 | AX162: 0 | AY162: 0 | AZ162: 0 | BA162: 0 | BB162: 0 | BC162: 0 | BD162: 0 | BE162: 0 | BF162: 0 | BG162: 0 | BH162: 0 | BI162: 0 | BJ162: 0 | BK162: 0 | BL162: 0 | BM162: 0 | BN162: 0 | BO162: 0 | BP162: 0 | BQ162: 0 | BR162: 0 | BS162: 0 | BT162: 0 | BU162: 0
B163: 155 | C163: Project 155 | D163: 155 | F163: Replacement | G163: Replacement | I163: 0 | J163: 400 | K163: 400 | L163: 0 | M163: 0 | O163: 0.2777506367 | P163: 0.7222493633 | R163: Yes | S163: Yes | U163: 0 | V163: 0 | X163: 1 | Y163: 0 | Z163: 0 | AA163: 0 | AB163: 0 | AC163: 0 | AD163: 0 | AE163: 0 | AF163: 0 | AG163: 0 | AH163: 0 | AI163: 0 | AJ163: 0 | AK163: 0 | AL163: 0 | AM163: 0 | AN163: 0 | AO163: 0 | AP163: 0 | AQ163: 0 | AR163: 0 | AS163: 0 | AT163: 0 | AU163: 0 | AV163: 0 | AW163: 0 | AX163: 0 | AY163: 0 | AZ163: 0 | BA163: 0 | BB163: 0 | BC163: 0 | BD163: 0 | BE163: 0 | BF163: 0 | BG163: 0 | BH163: 0 | BI163: 0 | BJ163: 0 | BK163: 0 | BL163: 0 | BM163: 0 | BN163: 0 | BO163: 0 | BP163: 0 | BQ163: 0 | BR163: 0 | BS163: 0 | BT163: 0 | BU163: 0
B164: 156 | C164: Project 156 | D164: 156 | F164: Replacement | G164: Replacement | I164: 0 | J164: 0 | K164: 337.850182 | L164: 337.850182 | M164: 0 | O164: 0.2777506367 | P164: 0.7222493633 | R164: Yes | S164: Yes | U164: 0 | V164: 0 | X164: 1 | Y164: 0 | Z164: 0 | AA164: 0 | AB164: 0 | AC164: 0 | AD164: 0 | AE164: 0 | AF164: 0 | AG164: 0 | AH164: 0 | AI164: 0 | AJ164: 0 | AK164: 0 | AL164: 0 | AM164: 0 | AN164: 0 | AO164: 0 | AP164: 0 | AQ164: 0 | AR164: 0 | AS164: 0 | AT164: 0 | AU164: 0 | AV164: 0 | AW164: 0 | AX164: 0 | AY164: 0 | AZ164: 0 | BA164: 0 | BB164: 0 | BC164: 0 | BD164: 0 | BE164: 0 | BF164: 0 | BG164: 0 | BH164: 0 | BI164: 0 | BJ164: 0 | BK164: 0 | BL164: 0 | BM164: 0 | BN164: 0 | BO164: 0 | BP164: 0 | BQ164: 0 | BR164: 0 | BS164: 0 | BT164: 0 | BU164: 0
B165: 157 | C165: Project 157 | D165: 157 | F165: Replacement | G165: Replacement | I165: 358.812 | J165: 0 | K165: 0 | L165: 0 | M165: 0 | O165: 0.2777506367 | P165: 0.7222493633 | R165: Yes | S165: Yes | U165: 0 | V165: 0 | X165: 1 | Y165: 0 | Z165: 0 | AA165: 0 | AB165: 0 | AC165: 0 | AD165: 0 | AE165: 0 | AF165: 0 | AG165: 0 | AH165: 0 | AI165: 0 | AJ165: 0 | AK165: 0 | AL165: 0 | AM165: 0 | AN165: 0 | AO165: 0 | AP165: 0 | AQ165: 0 | AR165: 0 | AS165: 0 | AT165: 0 | AU165: 0 | AV165: 0 | AW165: 0 | AX165: 0 | AY165: 0 | AZ165: 0 | BA165: 0 | BB165: 0 | BC165: 0 | BD165: 0 | BE165: 0 | BF165: 0 | BG165: 0 | BH165: 0 | BI165: 0 | BJ165: 0 | BK165: 0 | BL165: 0 | BM165: 0 | BN165: 0 | BO165: 0 | BP165: 0 | BQ165: 0 | BR165: 0 | BS165: 0 | BT165: 0 | BU165: 0
B166: 158 | C166: Project 158 | D166: 158 | F166: Replacement | G166: Replacement | I166: 2750 | J166: 0 | K166: 0 | L166: 0 | M166: 0 | O166: 0.2777506367 | P166: 0.7222493633 | R166: Yes | S166: Yes | U166: 0 | V166: 0 | X166: 1 | Y166: 0 | Z166: 0 | AA166: 0 | AB166: 0 | AC166: 0 | AD166: 0 | AE166: 0 | AF166: 0 | AG166: 0 | AH166: 0 | AI166: 0 | AJ166: 0 | AK166: 0 | AL166: 0 | AM166: 0 | AN166: 0 | AO166: 0 | AP166: 0 | AQ166: 0 | AR166: 0 | AS166: 0 | AT166: 0 | AU166: 0 | AV166: 0 | AW166: 0 | AX166: 0 | AY166: 0 | AZ166: 0 | BA166: 0 | BB166: 0 | BC166: 0 | BD166: 0 | BE166: 0 | BF166: 0 | BG166: 0 | BH166: 0 | BI166: 0 | BJ166: 0 | BK166: 0 | BL166: 0 | BM166: 0 | BN166: 0 | BO166: 0 | BP166: 0 | BQ166: 0 | BR166: 0 | BS166: 0 | BT166: 0 | BU166: 0
B167: 159 | C167: Project 159 | D167: 159 | F167: Replacement | G167: Replacement | I167: 0 | J167: 0 | K167: 0 | L167: 262.1036314 | M167: 262.1036314 | O167: 0.2777506367 | P167: 0.7222493633 | R167: Yes | S167: Yes | U167: 0 | V167: 0 | X167: 1 | Y167: 0 | Z167: 0 | AA167: 0 | AB167: 0 | AC167: 0 | AD167: 0 | AE167: 0 | AF167: 0 | AG167: 0 | AH167: 0 | AI167: 0 | AJ167: 0 | AK167: 0 | AL167: 0 | AM167: 0 | AN167: 0 | AO167: 0 | AP167: 0 | AQ167: 0 | AR167: 0 | AS167: 0 | AT167: 0 | AU167: 0 | AV167: 0 | AW167: 0 | AX167: 0 | AY167: 0 | AZ167: 0 | BA167: 0 | BB167: 0 | BC167: 0 | BD167: 0 | BE167: 0 | BF167: 0 | BG167: 0 | BH167: 0 | BI167: 0 | BJ167: 0 | BK167: 0 | BL167: 0 | BM167: 0 | BN167: 0 | BO167: 0 | BP167: 0 | BQ167: 0 | BR167: 0 | BS167: 0 | BT167: 0 | BU167: 0
B168: 160 | C168: Project 160 | D168: 160 | F168: Replacement | G168: Replacement | I168: 78.5 | J168: 0 | K168: 0 | L168: 0 | M168: 0 | O168: 0.2777506367 | P168: 0.7222493633 | R168: Yes | S168: Yes | U168: 0 | V168: 0 | X168: 1 | Y168: 0 | Z168: 0 | AA168: 0 | AB168: 0 | AC168: 0 | AD168: 0 | AE168: 0 | AF168: 0 | AG168: 0 | AH168: 0 | AI168: 0 | AJ168: 0 | AK168: 0 | AL168: 0 | AM168: 0 | AN168: 0 | AO168: 0 | AP168: 0 | AQ168: 0 | AR168: 0 | AS168: 0 | AT168: 0 | AU168: 0 | AV168: 0 | AW168: 0 | AX168: 0 | AY168: 0 | AZ168: 0 | BA168: 0 | BB168: 0 | BC168: 0 | BD168: 0 | BE168: 0 | BF168: 0 | BG168: 0 | BH168: 0 | BI168: 0 | BJ168: 0 | BK168: 0 | BL168: 0 | BM168: 0 | BN168: 0 | BO168: 0 | BP168: 0 | BQ168: 0 | BR168: 0 | BS168: 0 | BT168: 0 | BU168: 0
B169: 161 | C169: Project 161 | D169: 161 | F169: Replacement | G169: Replacement | I169: 276.32 | J169: 140.47 | K169: 0 | L169: 0 | M169: 0 | O169: 0.2777506367 | P169: 0.7222493633 | R169: Yes | S169: Yes | U169: 0 | V169: 0 | X169: 1 | Y169: 0 | Z169: 0 | AA169: 0 | AB169: 0 | AC169: 0 | AD169: 0 | AE169: 0 | AF169: 0 | AG169: 0 | AH169: 0 | AI169: 0 | AJ169: 0 | AK169: 0 | AL169: 0 | AM169: 0 | AN169: 0 | AO169: 0 | AP169: 0 | AQ169: 0 | AR169: 0 | AS169: 0 | AT169: 0 | AU169: 0 | AV169: 0 | AW169: 0 | AX169: 0 | AY169: 0 | AZ169: 0 | BA169: 0 | BB169: 0 | BC169: 0 | BD169: 0 | BE169: 0 | BF169: 0 | BG169: 0 | BH169: 0 | BI169: 0 | BJ169: 0 | BK169: 0 | BL169: 0 | BM169: 0 | BN169: 0 | BO169: 0 | BP169: 0 | BQ169: 0 | BR169: 0 | BS169: 0 | BT169: 0 | BU169: 0
B170: 162 | C170: Project 162 | D170: 162 | F170: Replacement | G170: Replacement | I170: 50 | J170: 50 | K170: 50 | L170: 50 | M170: 50 | O170: 0.2777506367 | P170: 0.7222493633 | R170: Yes | S170: Yes | U170: 0 | V170: 0 | X170: 1 | Y170: 0 | Z170: 0 | AA170: 0 | AB170: 0 | AC170: 0 | AD170: 0 | AE170: 0 | AF170: 0 | AG170: 0 | AH170: 0 | AI170: 0 | AJ170: 0 | AK170: 0 | AL170: 0 | AM170: 0 | AN170: 0 | AO170: 0 | AP170: 0 | AQ170: 0 | AR170: 0 | AS170: 0 | AT170: 0 | AU170: 0 | AV170: 0 | AW170: 0 | AX170: 0 | AY170: 0 | AZ170: 0 | BA170: 0 | BB170: 0 | BC170: 0 | BD170: 0 | BE170: 0 | BF170: 0 | BG170: 0 | BH170: 0 | BI170: 0 | BJ170: 0 | BK170: 0 | BL170: 0 | BM170: 0 | BN170: 0 | BO170: 0 | BP170: 0 | BQ170: 0 | BR170: 0 | BS170: 0 | BT170: 0 | BU170: 0
B171: 163 | C171: Project 163 | D171: 163 | F171: Replacement | G171: Replacement | I171: 58.70021481 | J171: 58.70021481 | K171: 58.49540844 | L171: 58.29060206 | M171: 58.49540844 | O171: 0.7763372674 | P171: 0.2236627326 | R171: Yes | S171: Yes | U171: 0 | V171: 0 | X171: 0 | Y171: 1 | Z171: 0 | AA171: 0 | AB171: 0 | AC171: 0 | AD171: 0 | AE171: 0 | AF171: 0 | AG171: 0 | AH171: 0 | AI171: 0 | AJ171: 0 | AK171: 0 | AL171: 0 | AM171: 0 | AN171: 0 | AO171: 0 | AP171: 0 | AQ171: 0 | AR171: 0 | AS171: 0 | AT171: 0 | AU171: 0 | AV171: 0 | AW171: 0 | AX171: 0 | AY171: 0 | AZ171: 0 | BA171: 0 | BB171: 0 | BC171: 0 | BD171: 0 | BE171: 0 | BF171: 0 | BG171: 0 | BH171: 0 | BI171: 0 | BJ171: 0 | BK171: 0 | BL171: 0 | BM171: 0 | BN171: 0 | BO171: 0 | BP171: 0 | BQ171: 0 | BR171: 0 | BS171: 0 | BT171: 0 | BU171: 0
B172: 164 | C172: Project 164 | D172: 164 | F172: Replacement | G172: Replacement | I172: 37.04919559 | J172: 37.04919559 | K172: 39.62425555 | L172: 42.19931551 | M172: 39.62425555 | O172: 0.6932282239 | P172: 0.3067717761 | R172: Yes | S172: Yes | U172: 0 | V172: 0 | X172: 0 | Y172: 1 | Z172: 0 | AA172: 0 | AB172: 0 | AC172: 0 | AD172: 0 | AE172: 0 | AF172: 0 | AG172: 0 | AH172: 0 | AI172: 0 | AJ172: 0 | AK172: 0 | AL172: 0 | AM172: 0 | AN172: 0 | AO172: 0 | AP172: 0 | AQ172: 0 | AR172: 0 | AS172: 0 | AT172: 0 | AU172: 0 | AV172: 0 | AW172: 0 | AX172: 0 | AY172: 0 | AZ172: 0 | BA172: 0 | BB172: 0 | BC172: 0 | BD172: 0 | BE172: 0 | BF172: 0 | BG172: 0 | BH172: 0 | BI172: 0 | BJ172: 0 | BK172: 0 | BL172: 0 | BM172: 0 | BN172: 0 | BO172: 0 | BP172: 0 | BQ172: 0 | BR172: 0 | BS172: 0 | BT172: 0 | BU172: 0
B173: 165 | C173: Project 165 | D173: 165 | F173: Replacement | G173: Replacement | I173: 27.624 | J173: 27.624 | K173: 27.624 | L173: 27.624 | M173: 27.624 | O173: 0.6484460272 | P173: 0.3515539728 | R173: Yes | S173: Yes | U173: 0 | V173: 0 | X173: 0 | Y173: 1 | Z173: 0 | AA173: 0 | AB173: 0 | AC173: 0 | AD173: 0 | AE173: 0 | AF173: 0 | AG173: 0 | AH173: 0 | AI173: 0 | AJ173: 0 | AK173: 0 | AL173: 0 | AM173: 0 | AN173: 0 | AO173: 0 | AP173: 0 | AQ173: 0 | AR173: 0 | AS173: 0 | AT173: 0 | AU173: 0 | AV173: 0 | AW173: 0 | AX173: 0 | AY173: 0 | AZ173: 0 | BA173: 0 | BB173: 0 | BC173: 0 | BD173: 0 | BE173: 0 | BF173: 0 | BG173: 0 | BH173: 0 | BI173: 0 | BJ173: 0 | BK173: 0 | BL173: 0 | BM173: 0 | BN173: 0 | BO173: 0 | BP173: 0 | BQ173: 0 | BR173: 0 | BS173: 0 | BT173: 0 | BU173: 0
B174: 166 | C174: Project 166 | D174: 166 | F174: Replacement | G174: Replacement | I174: 4.968 | J174: 4.968 | K174: 4.968 | L174: 4.968 | M174: 4.968 | O174: 0.7489653197 | P174: 0.2510346803 | R174: Yes | S174: Yes | U174: 0 | V174: 0 | X174: 0 | Y174: 1 | Z174: 0 | AA174: 0 | AB174: 0 | AC174: 0 | AD174: 0 | AE174: 0 | AF174: 0 | AG174: 0 | AH174: 0 | AI174: 0 | AJ174: 0 | AK174: 0 | AL174: 0 | AM174: 0 | AN174: 0 | AO174: 0 | AP174: 0 | AQ174: 0 | AR174: 0 | AS174: 0 | AT174: 0 | AU174: 0 | AV174: 0 | AW174: 0 | AX174: 0 | AY174: 0 | AZ174: 0 | BA174: 0 | BB174: 0 | BC174: 0 | BD174: 0 | BE174: 0 | BF174: 0 | BG174: 0 | BH174: 0 | BI174: 0 | BJ174: 0 | BK174: 0 | BL174: 0 | BM174: 0 | BN174: 0 | BO174: 0 | BP174: 0 | BQ174: 0 | BR174: 0 | BS174: 0 | BT174: 0 | BU174: 0
B175: 167 | C175: Project 167 | D175: 167 | F175: Replacement | G175: Replacement | I175: 124.51 | J175: 151.765 | K175: 154.4905 | L175: 109.0655 | M175: 88.17 | O175: 0.2640901951 | P175: 0.7359098049 | R175: Yes | S175: Yes | U175: 0 | V175: 0 | X175: 0 | Y175: 1 | Z175: 0 | AA175: 0 | AB175: 0 | AC175: 0 | AD175: 0 | AE175: 0 | AF175: 0 | AG175: 0 | AH175: 0 | AI175: 0 | AJ175: 0 | AK175: 0 | AL175: 0 | AM175: 0 | AN175: 0 | AO175: 0 | AP175: 0 | AQ175: 0 | AR175: 0 | AS175: 0 | AT175: 0 | AU175: 0 | AV175: 0 | AW175: 0 | AX175: 0 | AY175: 0 | AZ175: 0 | BA175: 0 | BB175: 0 | BC175: 0 | BD175: 0 | BE175: 0 | BF175: 0 | BG175: 0 | BH175: 0 | BI175: 0 | BJ175: 0 | BK175: 0 | BL175: 0 | BM175: 0 | BN175: 0 | BO175: 0 | BP175: 0 | BQ175: 0 | BR175: 0 | BS175: 0 | BT175: 0 | BU175: 0
B176: 168 | C176: Project 168 | D176: 168 | F176: Replacement | G176: Replacement | I176: 28.735 | J176: 28.735 | K176: 28.735 | L176: 28.735 | M176: 28.735 | O176: 0.473601221 | P176: 0.526398779 | R176: Yes | S176: Yes | U176: 0 | V176: 0 | X176: 0 | Y176: 1 | Z176: 0 | AA176: 0 | AB176: 0 | AC176: 0 | AD176: 0 | AE176: 0 | AF176: 0 | AG176: 0 | AH176: 0 | AI176: 0 | AJ176: 0 | AK176: 0 | AL176: 0 | AM176: 0 | AN176: 0 | AO176: 0 | AP176: 0 | AQ176: 0 | AR176: 0 | AS176: 0 | AT176: 0 | AU176: 0 | AV176: 0 | AW176: 0 | AX176: 0 | AY176: 0 | AZ176: 0 | BA176: 0 | BB176: 0 | BC176: 0 | BD176: 0 | BE176: 0 | BF176: 0 | BG176: 0 | BH176: 0 | BI176: 0 | BJ176: 0 | BK176: 0 | BL176: 0 | BM176: 0 | BN176: 0 | BO176: 0 | BP176: 0 | BQ176: 0 | BR176: 0 | BS176: 0 | BT176: 0 | BU176: 0
B177: 169 | C177: Project 169 | D177: 169 | F177: Replacement | G177: Replacement | I177: 260 | J177: 260 | K177: 260 | L177: 260 | M177: 260 | O177: 0.5422275505 | P177: 0.4577724495 | R177: Yes | S177: Yes | U177: 0 | V177: 0 | X177: 0 | Y177: 1 | Z177: 0 | AA177: 0 | AB177: 0 | AC177: 0 | AD177: 0 | AE177: 0 | AF177: 0 | AG177: 0 | AH177: 0 | AI177: 0 | AJ177: 0 | AK177: 0 | AL177: 0 | AM177: 0 | AN177: 0 | AO177: 0 | AP177: 0 | AQ177: 0 | AR177: 0 | AS177: 0 | AT177: 0 | AU177: 0 | AV177: 0 | AW177: 0 | AX177: 0 | AY177: 0 | AZ177: 0 | BA177: 0 | BB177: 0 | BC177: 0 | BD177: 0 | BE177: 0 | BF177: 0 | BG177: 0 | BH177: 0 | BI177: 0 | BJ177: 0 | BK177: 0 | BL177: 0 | BM177: 0 | BN177: 0 | BO177: 0 | BP177: 0 | BQ177: 0 | BR177: 0 | BS177: 0 | BT177: 0 | BU177: 0
B178: 170 | C178: Project 170 | D178: 170 | F178: Replacement | G178: Replacement | I178: 208.116305 | J178: 200.1087519 | K178: 206.8495392 | L178: 221.5978797 | M178: 214.8570923 | O178: 0.3134803941 | P178: 0.6865196059 | R178: Yes | S178: Yes | U178: 0 | V178: 0 | X178: 0 | Y178: 1 | Z178: 0 | AA178: 0 | AB178: 0 | AC178: 0 | AD178: 0 | AE178: 0 | AF178: 0 | AG178: 0 | AH178: 0 | AI178: 0 | AJ178: 0 | AK178: 0 | AL178: 0 | AM178: 0 | AN178: 0 | AO178: 0 | AP178: 0 | AQ178: 0 | AR178: 0 | AS178: 0 | AT178: 0 | AU178: 0 | AV178: 0 | AW178: 0 | AX178: 0 | AY178: 0 | AZ178: 0 | BA178: 0 | BB178: 0 | BC178: 0 | BD178: 0 | BE178: 0 | BF178: 0 | BG178: 0 | BH178: 0 | BI178: 0 | BJ178: 0 | BK178: 0 | BL178: 0 | BM178: 0 | BN178: 0 | BO178: 0 | BP178: 0 | BQ178: 0 | BR178: 0 | BS178: 0 | BT178: 0 | BU178: 0
B179: 171 | C179: Project 171 | D179: 171 | F179: Replacement | G179: Replacement | I179: 730.9367818 | J179: 730.9367818 | K179: 730.9367818 | L179: 730.9367818 | M179: 730.9367818 | O179: 0.3134803941 | P179: 0.6865196059 | R179: Yes | S179: Yes | U179: 0 | V179: 0 | X179: 0 | Y179: 1 | Z179: 0 | AA179: 0 | AB179: 0 | AC179: 0 | AD179: 0 | AE179: 0 | AF179: 0 | AG179: 0 | AH179: 0 | AI179: 0 | AJ179: 0 | AK179: 0 | AL179: 0 | AM179: 0 | AN179: 0 | AO179: 0 | AP179: 0 | AQ179: 0 | AR179: 0 | AS179: 0 | AT179: 0 | AU179: 0 | AV179: 0 | AW179: 0 | AX179: 0 | AY179: 0 | AZ179: 0 | BA179: 0 | BB179: 0 | BC179: 0 | BD179: 0 | BE179: 0 | BF179: 0 | BG179: 0 | BH179: 0 | BI179: 0 | BJ179: 0 | BK179: 0 | BL179: 0 | BM179: 0 | BN179: 0 | BO179: 0 | BP179: 0 | BQ179: 0 | BR179: 0 | BS179: 0 | BT179: 0 | BU179: 0
B180: 172 | C180: Project 172 | D180: 172 | F180: Replacement | G180: Replacement | I180: 215.0791956 | J180: 215.0791956 | K180: 214.3287794 | L180: 213.5783632 | M180: 214.3287794 | O180: 0.4088952146 | P180: 0.5911047854 | R180: Yes | S180: Yes | U180: 0 | V180: 0 | X180: 0 | Y180: 1 | Z180: 0 | AA180: 0 | AB180: 0 | AC180: 0 | AD180: 0 | AE180: 0 | AF180: 0 | AG180: 0 | AH180: 0 | AI180: 0 | AJ180: 0 | AK180: 0 | AL180: 0 | AM180: 0 | AN180: 0 | AO180: 0 | AP180: 0 | AQ180: 0 | AR180: 0 | AS180: 0 | AT180: 0 | AU180: 0 | AV180: 0 | AW180: 0 | AX180: 0 | AY180: 0 | AZ180: 0 | BA180: 0 | BB180: 0 | BC180: 0 | BD180: 0 | BE180: 0 | BF180: 0 | BG180: 0 | BH180: 0 | BI180: 0 | BJ180: 0 | BK180: 0 | BL180: 0 | BM180: 0 | BN180: 0 | BO180: 0 | BP180: 0 | BQ180: 0 | BR180: 0 | BS180: 0 | BT180: 0 | BU180: 0
B181: 173 | C181: Project 173 | D181: 173 | F181: Replacement | G181: Replacement | I181: 252.6 | J181: 202.08 | K181: 202.08 | L181: 151.56 | M181: 202.08 | O181: 0.3897263153 | P181: 0.6102736847 | R181: Yes | S181: Yes | U181: 0 | V181: 0 | X181: 0 | Y181: 1 | Z181: 0 | AA181: 0 | AB181: 0 | AC181: 0 | AD181: 0 | AE181: 0 | AF181: 0 | AG181: 0 | AH181: 0 | AI181: 0 | AJ181: 0 | AK181: 0 | AL181: 0 | AM181: 0 | AN181: 0 | AO181: 0 | AP181: 0 | AQ181: 0 | AR181: 0 | AS181: 0 | AT181: 0 | AU181: 0 | AV181: 0 | AW181: 0 | AX181: 0 | AY181: 0 | AZ181: 0 | BA181: 0 | BB181: 0 | BC181: 0 | BD181: 0 | BE181: 0 | BF181: 0 | BG181: 0 | BH181: 0 | BI181: 0 | BJ181: 0 | BK181: 0 | BL181: 0 | BM181: 0 | BN181: 0 | BO181: 0 | BP181: 0 | BQ181: 0 | BR181: 0 | BS181: 0 | BT181: 0 | BU181: 0
B182: 174 | C182: Project 174 | D182: 174 | F182: Replacement | G182: Replacement | I182: 19.81133618 | J182: 19.81133618 | K182: 22.47918473 | L182: 25.14703327 | M182: 22.47918473 | O182: 0.6893947715 | P182: 0.3106052285 | R182: Yes | S182: Yes | U182: 0 | V182: 0 | X182: 0 | Y182: 1 | Z182: 0 | AA182: 0 | AB182: 0 | AC182: 0 | AD182: 0 | AE182: 0 | AF182: 0 | AG182: 0 | AH182: 0 | AI182: 0 | AJ182: 0 | AK182: 0 | AL182: 0 | AM182: 0 | AN182: 0 | AO182: 0 | AP182: 0 | AQ182: 0 | AR182: 0 | AS182: 0 | AT182: 0 | AU182: 0 | AV182: 0 | AW182: 0 | AX182: 0 | AY182: 0 | AZ182: 0 | BA182: 0 | BB182: 0 | BC182: 0 | BD182: 0 | BE182: 0 | BF182: 0 | BG182: 0 | BH182: 0 | BI182: 0 | BJ182: 0 | BK182: 0 | BL182: 0 | BM182: 0 | BN182: 0 | BO182: 0 | BP182: 0 | BQ182: 0 | BR182: 0 | BS182: 0 | BT182: 0 | BU182: 0
B183: 175 | C183: Project 175 | D183: 175 | F183: Replacement | G183: Replacement | I183: 350 | J183: 350 | K183: 350 | L183: 350 | M183: 350 | O183: 0.4647096142 | P183: 0.5352903858 | R183: Yes | S183: Yes | U183: 0 | V183: 0 | X183: 0 | Y183: 1 | Z183: 0 | AA183: 0 | AB183: 0 | AC183: 0 | AD183: 0 | AE183: 0 | AF183: 0 | AG183: 0 | AH183: 0 | AI183: 0 | AJ183: 0 | AK183: 0 | AL183: 0 | AM183: 0 | AN183: 0 | AO183: 0 | AP183: 0 | AQ183: 0 | AR183: 0 | AS183: 0 | AT183: 0 | AU183: 0 | AV183: 0 | AW183: 0 | AX183: 0 | AY183: 0 | AZ183: 0 | BA183: 0 | BB183: 0 | BC183: 0 | BD183: 0 | BE183: 0 | BF183: 0 | BG183: 0 | BH183: 0 | BI183: 0 | BJ183: 0 | BK183: 0 | BL183: 0 | BM183: 0 | BN183: 0 | BO183: 0 | BP183: 0 | BQ183: 0 | BR183: 0 | BS183: 0 | BT183: 0 | BU183: 0
B184: 176 | C184: Project 176 | D184: 176 | F184: Replacement | G184: Replacement | I184: 0 | J184: 0 | K184: 0 | L184: 0 | M184: 0 | O184: 0.4647096142 | P184: 0.5352903858 | R184: Yes | S184: Yes | U184: 0 | V184: 0 | X184: 0 | Y184: 1 | Z184: 0 | AA184: 0 | AB184: 0 | AC184: 0 | AD184: 0 | AE184: 0 | AF184: 0 | AG184: 0 | AH184: 0 | AI184: 0 | AJ184: 0 | AK184: 0 | AL184: 0 | AM184: 0 | AN184: 0 | AO184: 0 | AP184: 0 | AQ184: 0 | AR184: 0 | AS184: 0 | AT184: 0 | AU184: 0 | AV184: 0 | AW184: 0 | AX184: 0 | AY184: 0 | AZ184: 0 | BA184: 0 | BB184: 0 | BC184: 0 | BD184: 0 | BE184: 0 | BF184: 0 | BG184: 0 | BH184: 0 | BI184: 0 | BJ184: 0 | BK184: 0 | BL184: 0 | BM184: 0 | BN184: 0 | BO184: 0 | BP184: 0 | BQ184: 0 | BR184: 0 | BS184: 0 | BT184: 0 | BU184: 0
B185: 177 | C185: Project 177 | D185: 177 | F185: Replacement | G185: Replacement | I185: 0 | J185: 0 | K185: 0 | L185: 0 | M185: 0 | O185: 0.4647096142 | P185: 0.5352903858 | R185: Yes | S185: Yes | U185: 0 | V185: 0 | X185: 0 | Y185: 1 | Z185: 0 | AA185: 0 | AB185: 0 | AC185: 0 | AD185: 0 | AE185: 0 | AF185: 0 | AG185: 0 | AH185: 0 | AI185: 0 | AJ185: 0 | AK185: 0 | AL185: 0 | AM185: 0 | AN185: 0 | AO185: 0 | AP185: 0 | AQ185: 0 | AR185: 0 | AS185: 0 | AT185: 0 | AU185: 0 | AV185: 0 | AW185: 0 | AX185: 0 | AY185: 0 | AZ185: 0 | BA185: 0 | BB185: 0 | BC185: 0 | BD185: 0 | BE185: 0 | BF185: 0 | BG185: 0 | BH185: 0 | BI185: 0 | BJ185: 0 | BK185: 0 | BL185: 0 | BM185: 0 | BN185: 0 | BO185: 0 | BP185: 0 | BQ185: 0 | BR185: 0 | BS185: 0 | BT185: 0 | BU185: 0
B186: 178 | C186: Project 178 | D186: 178 | F186: Replacement | G186: Replacement | I186: 300.0253072 | J186: 287.7917854 | K186: 299.7196417 | L186: 323.8810198 | M186: 311.9531635 | O186: 0.5422275505 | P186: 0.4577724495 | R186: Yes | S186: Yes | U186: 0 | V186: 0 | X186: 0 | Y186: 1 | Z186: 0 | AA186: 0 | AB186: 0 | AC186: 0 | AD186: 0 | AE186: 0 | AF186: 0 | AG186: 0 | AH186: 0 | AI186: 0 | AJ186: 0 | AK186: 0 | AL186: 0 | AM186: 0 | AN186: 0 | AO186: 0 | AP186: 0 | AQ186: 0 | AR186: 0 | AS186: 0 | AT186: 0 | AU186: 0 | AV186: 0 | AW186: 0 | AX186: 0 | AY186: 0 | AZ186: 0 | BA186: 0 | BB186: 0 | BC186: 0 | BD186: 0 | BE186: 0 | BF186: 0 | BG186: 0 | BH186: 0 | BI186: 0 | BJ186: 0 | BK186: 0 | BL186: 0 | BM186: 0 | BN186: 0 | BO186: 0 | BP186: 0 | BQ186: 0 | BR186: 0 | BS186: 0 | BT186: 0 | BU186: 0
B187: 179 | C187: Project 179 | D187: 179 | F187: Replacement | G187: Replacement | I187: 0 | J187: 0 | K187: 0 | L187: 0 | M187: 0 | O187: 0.5422275505 | P187: 0.4577724495 | R187: Yes | S187: Yes | U187: 0 | V187: 0 | X187: 0 | Y187: 1 | Z187: 0 | AA187: 0 | AB187: 0 | AC187: 0 | AD187: 0 | AE187: 0 | AF187: 0 | AG187: 0 | AH187: 0 | AI187: 0 | AJ187: 0 | AK187: 0 | AL187: 0 | AM187: 0 | AN187: 0 | AO187: 0 | AP187: 0 | AQ187: 0 | AR187: 0 | AS187: 0 | AT187: 0 | AU187: 0 | AV187: 0 | AW187: 0 | AX187: 0 | AY187: 0 | AZ187: 0 | BA187: 0 | BB187: 0 | BC187: 0 | BD187: 0 | BE187: 0 | BF187: 0 | BG187: 0 | BH187: 0 | BI187: 0 | BJ187: 0 | BK187: 0 | BL187: 0 | BM187: 0 | BN187: 0 | BO187: 0 | BP187: 0 | BQ187: 0 | BR187: 0 | BS187: 0 | BT187: 0 | BU187: 0
B188: 180 | C188: Project 180 | D188: 180 | F188: Replacement | G188: Replacement | I188: 0 | J188: 0 | K188: 0 | L188: 0 | M188: 0 | O188: 0.5422275505 | P188: 0.4577724495 | R188: Yes | S188: Yes | U188: 0 | V188: 0 | X188: 0 | Y188: 1 | Z188: 0 | AA188: 0 | AB188: 0 | AC188: 0 | AD188: 0 | AE188: 0 | AF188: 0 | AG188: 0 | AH188: 0 | AI188: 0 | AJ188: 0 | AK188: 0 | AL188: 0 | AM188: 0 | AN188: 0 | AO188: 0 | AP188: 0 | AQ188: 0 | AR188: 0 | AS188: 0 | AT188: 0 | AU188: 0 | AV188: 0 | AW188: 0 | AX188: 0 | AY188: 0 | AZ188: 0 | BA188: 0 | BB188: 0 | BC188: 0 | BD188: 0 | BE188: 0 | BF188: 0 | BG188: 0 | BH188: 0 | BI188: 0 | BJ188: 0 | BK188: 0 | BL188: 0 | BM188: 0 | BN188: 0 | BO188: 0 | BP188: 0 | BQ188: 0 | BR188: 0 | BS188: 0 | BT188: 0 | BU188: 0
B189: 181 | C189: Project 181 | D189: 181 | F189: Replacement | G189: Replacement | I189: 155 | J189: 0 | K189: 0 | L189: 0 | M189: 155 | O189: 0.5422275505 | P189: 0.4577724495 | R189: Yes | S189: Yes | U189: 0 | V189: 0 | X189: 0 | Y189: 1 | Z189: 0 | AA189: 0 | AB189: 0 | AC189: 0 | AD189: 0 | AE189: 0 | AF189: 0 | AG189: 0 | AH189: 0 | AI189: 0 | AJ189: 0 | AK189: 0 | AL189: 0 | AM189: 0 | AN189: 0 | AO189: 0 | AP189: 0 | AQ189: 0 | AR189: 0 | AS189: 0 | AT189: 0 | AU189: 0 | AV189: 0 | AW189: 0 | AX189: 0 | AY189: 0 | AZ189: 0 | BA189: 0 | BB189: 0 | BC189: 0 | BD189: 0 | BE189: 0 | BF189: 0 | BG189: 0 | BH189: 0 | BI189: 0 | BJ189: 0 | BK189: 0 | BL189: 0 | BM189: 0 | BN189: 0 | BO189: 0 | BP189: 0 | BQ189: 0 | BR189: 0 | BS189: 0 | BT189: 0 | BU189: 0
B190: 182 | C190: Project 182 | D190: 182 | F190: Replacement | G190: Replacement | I190: 155 | J190: 155 | K190: 0 | L190: 0 | M190: 0 | O190: 0.5422275505 | P190: 0.4577724495 | R190: Yes | S190: Yes | U190: 0 | V190: 0 | X190: 0 | Y190: 1 | Z190: 0 | AA190: 0 | AB190: 0 | AC190: 0 | AD190: 0 | AE190: 0 | AF190: 0 | AG190: 0 | AH190: 0 | AI190: 0 | AJ190: 0 | AK190: 0 | AL190: 0 | AM190: 0 | AN190: 0 | AO190: 0 | AP190: 0 | AQ190: 0 | AR190: 0 | AS190: 0 | AT190: 0 | AU190: 0 | AV190: 0 | AW190: 0 | AX190: 0 | AY190: 0 | AZ190: 0 | BA190: 0 | BB190: 0 | BC190: 0 | BD190: 0 | BE190: 0 | BF190: 0 | BG190: 0 | BH190: 0 | BI190: 0 | BJ190: 0 | BK190: 0 | BL190: 0 | BM190: 0 | BN190: 0 | BO190: 0 | BP190: 0 | BQ190: 0 | BR190: 0 | BS190: 0 | BT190: 0 | BU190: 0
B191: 183 | C191: Project 183 | D191: 183 | F191: Replacement | G191: Replacement | I191: 264.4875255 | J191: 264.4875255 | K191: 263.5647226 | L191: 262.6419196 | M191: 263.5647226 | O191: 0.2271135779 | P191: 0.7728864221 | R191: Yes | S191: Yes | U191: 0 | V191: 0 | X191: 0 | Y191: 1 | Z191: 0 | AA191: 0 | AB191: 0 | AC191: 0 | AD191: 0 | AE191: 0 | AF191: 0 | AG191: 0 | AH191: 0 | AI191: 0 | AJ191: 0 | AK191: 0 | AL191: 0 | AM191: 0 | AN191: 0 | AO191: 0 | AP191: 0 | AQ191: 0 | AR191: 0 | AS191: 0 | AT191: 0 | AU191: 0 | AV191: 0 | AW191: 0 | AX191: 0 | AY191: 0 | AZ191: 0 | BA191: 0 | BB191: 0 | BC191: 0 | BD191: 0 | BE191: 0 | BF191: 0 | BG191: 0 | BH191: 0 | BI191: 0 | BJ191: 0 | BK191: 0 | BL191: 0 | BM191: 0 | BN191: 0 | BO191: 0 | BP191: 0 | BQ191: 0 | BR191: 0 | BS191: 0 | BT191: 0 | BU191: 0
B192: 184 | C192: Project 184 | D192: 184 | F192: Replacement | G192: Replacement | I192: 96.19308074 | J192: 91.20883862 | K192: 91.70671757 | L192: 98.40138124 | M192: 96.69095968 | O192: 0.7374394832 | P192: 0.2625605168 | R192: Yes | S192: Yes | U192: 0 | V192: 0 | X192: 0 | Y192: 1 | Z192: 0 | AA192: 0 | AB192: 0 | AC192: 0 | AD192: 0 | AE192: 0 | AF192: 0 | AG192: 0 | AH192: 0 | AI192: 0 | AJ192: 0 | AK192: 0 | AL192: 0 | AM192: 0 | AN192: 0 | AO192: 0 | AP192: 0 | AQ192: 0 | AR192: 0 | AS192: 0 | AT192: 0 | AU192: 0 | AV192: 0 | AW192: 0 | AX192: 0 | AY192: 0 | AZ192: 0 | BA192: 0 | BB192: 0 | BC192: 0 | BD192: 0 | BE192: 0 | BF192: 0 | BG192: 0 | BH192: 0 | BI192: 0 | BJ192: 0 | BK192: 0 | BL192: 0 | BM192: 0 | BN192: 0 | BO192: 0 | BP192: 0 | BQ192: 0 | BR192: 0 | BS192: 0 | BT192: 0 | BU192: 0
B193: 185 | C193: Project 185 | D193: 185 | F193: Replacement | G193: Replacement | I193: 119.6081583 | J193: 119.6081583 | K193: 120.0392251 | L193: 120.4702919 | M193: 120.0392251 | O193: 0.7471338853 | P193: 0.2528661147 | R193: Yes | S193: Yes | U193: 0 | V193: 0 | X193: 0 | Y193: 1 | Z193: 0 | AA193: 0 | AB193: 0 | AC193: 0 | AD193: 0 | AE193: 0 | AF193: 0 | AG193: 0 | AH193: 0 | AI193: 0 | AJ193: 0 | AK193: 0 | AL193: 0 | AM193: 0 | AN193: 0 | AO193: 0 | AP193: 0 | AQ193: 0 | AR193: 0 | AS193: 0 | AT193: 0 | AU193: 0 | AV193: 0 | AW193: 0 | AX193: 0 | AY193: 0 | AZ193: 0 | BA193: 0 | BB193: 0 | BC193: 0 | BD193: 0 | BE193: 0 | BF193: 0 | BG193: 0 | BH193: 0 | BI193: 0 | BJ193: 0 | BK193: 0 | BL193: 0 | BM193: 0 | BN193: 0 | BO193: 0 | BP193: 0 | BQ193: 0 | BR193: 0 | BS193: 0 | BT193: 0 | BU193: 0
B194: 186 | C194: Project 186 | D194: 186 | F194: Replacement | G194: Replacement | I194: 440.1090968 | J194: 440.1090968 | K194: 441.4150309 | L194: 442.7209649 | M194: 441.4150309 | O194: 0.8724485868 | P194: 0.1275514132 | R194: Yes | S194: Yes | U194: 0 | V194: 0 | X194: 0 | Y194: 1 | Z194: 0 | AA194: 0 | AB194: 0 | AC194: 0 | AD194: 0 | AE194: 0 | AF194: 0 | AG194: 0 | AH194: 0 | AI194: 0 | AJ194: 0 | AK194: 0 | AL194: 0 | AM194: 0 | AN194: 0 | AO194: 0 | AP194: 0 | AQ194: 0 | AR194: 0 | AS194: 0 | AT194: 0 | AU194: 0 | AV194: 0 | AW194: 0 | AX194: 0 | AY194: 0 | AZ194: 0 | BA194: 0 | BB194: 0 | BC194: 0 | BD194: 0 | BE194: 0 | BF194: 0 | BG194: 0 | BH194: 0 | BI194: 0 | BJ194: 0 | BK194: 0 | BL194: 0 | BM194: 0 | BN194: 0 | BO194: 0 | BP194: 0 | BQ194: 0 | BR194: 0 | BS194: 0 | BT194: 0 | BU194: 0
B195: 187 | C195: Project 187 | D195: 187 | F195: Replacement | G195: Replacement | I195: 101.625049 | J195: 101.625049 | K195: 101.9913048 | L195: 102.3575606 | M195: 101.9913048 | O195: 0.4531432331 | P195: 0.5468567669 | R195: Yes | S195: Yes | U195: 0 | V195: 0 | X195: 0 | Y195: 1 | Z195: 0 | AA195: 0 | AB195: 0 | AC195: 0 | AD195: 0 | AE195: 0 | AF195: 0 | AG195: 0 | AH195: 0 | AI195: 0 | AJ195: 0 | AK195: 0 | AL195: 0 | AM195: 0 | AN195: 0 | AO195: 0 | AP195: 0 | AQ195: 0 | AR195: 0 | AS195: 0 | AT195: 0 | AU195: 0 | AV195: 0 | AW195: 0 | AX195: 0 | AY195: 0 | AZ195: 0 | BA195: 0 | BB195: 0 | BC195: 0 | BD195: 0 | BE195: 0 | BF195: 0 | BG195: 0 | BH195: 0 | BI195: 0 | BJ195: 0 | BK195: 0 | BL195: 0 | BM195: 0 | BN195: 0 | BO195: 0 | BP195: 0 | BQ195: 0 | BR195: 0 | BS195: 0 | BT195: 0 | BU195: 0
B196: 188 | C196: Project 188 | D196: 188 | F196: Replacement | G196: Replacement | I196: 8.067466495 | J196: 8.067466495 | K196: 8.099315546 | L196: 8.131164598 | M196: 8.099315546 | O196: 0.2454832497 | P196: 0.7545167503 | R196: Yes | S196: Yes | U196: 0 | V196: 0 | X196: 0 | Y196: 1 | Z196: 0 | AA196: 0 | AB196: 0 | AC196: 0 | AD196: 0 | AE196: 0 | AF196: 0 | AG196: 0 | AH196: 0 | AI196: 0 | AJ196: 0 | AK196: 0 | AL196: 0 | AM196: 0 | AN196: 0 | AO196: 0 | AP196: 0 | AQ196: 0 | AR196: 0 | AS196: 0 | AT196: 0 | AU196: 0 | AV196: 0 | AW196: 0 | AX196: 0 | AY196: 0 | AZ196: 0 | BA196: 0 | BB196: 0 | BC196: 0 | BD196: 0 | BE196: 0 | BF196: 0 | BG196: 0 | BH196: 0 | BI196: 0 | BJ196: 0 | BK196: 0 | BL196: 0 | BM196: 0 | BN196: 0 | BO196: 0 | BP196: 0 | BQ196: 0 | BR196: 0 | BS196: 0 | BT196: 0 | BU196: 0
B197: 189 | C197: Project 189 | D197: 189 | F197: Replacement | G197: Replacement | I197: 223.3349958 | J197: 223.3349958 | K197: 224.7348191 | L197: 226.1346424 | M197: 224.7348191 | O197: 0.2034553871 | P197: 0.7965446129 | R197: Yes | S197: Yes | U197: 0 | V197: 0 | X197: 0 | Y197: 1 | Z197: 0 | AA197: 0 | AB197: 0 | AC197: 0 | AD197: 0 | AE197: 0 | AF197: 0 | AG197: 0 | AH197: 0 | AI197: 0 | AJ197: 0 | AK197: 0 | AL197: 0 | AM197: 0 | AN197: 0 | AO197: 0 | AP197: 0 | AQ197: 0 | AR197: 0 | AS197: 0 | AT197: 0 | AU197: 0 | AV197: 0 | AW197: 0 | AX197: 0 | AY197: 0 | AZ197: 0 | BA197: 0 | BB197: 0 | BC197: 0 | BD197: 0 | BE197: 0 | BF197: 0 | BG197: 0 | BH197: 0 | BI197: 0 | BJ197: 0 | BK197: 0 | BL197: 0 | BM197: 0 | BN197: 0 | BO197: 0 | BP197: 0 | BQ197: 0 | BR197: 0 | BS197: 0 | BT197: 0 | BU197: 0
B198: 190 | C198: Project 190 | D198: 190 | F198: Replacement | G198: Replacement | I198: 2991.181214 | J198: 2991.181214 | K198: 2991.181214 | L198: 2991.181214 | M198: 2991.181214 | O198: 0.2034553871 | P198: 0.7965446129 | R198: Yes | S198: Yes | U198: 0 | V198: 0 | X198: 0 | Y198: 1 | Z198: 0 | AA198: 0 | AB198: 0 | AC198: 0 | AD198: 0 | AE198: 0 | AF198: 0 | AG198: 0 | AH198: 0 | AI198: 0 | AJ198: 0 | AK198: 0 | AL198: 0 | AM198: 0 | AN198: 0 | AO198: 0 | AP198: 0 | AQ198: 0 | AR198: 0 | AS198: 0 | AT198: 0 | AU198: 0 | AV198: 0 | AW198: 0 | AX198: 0 | AY198: 0 | AZ198: 0 | BA198: 0 | BB198: 0 | BC198: 0 | BD198: 0 | BE198: 0 | BF198: 0 | BG198: 0 | BH198: 0 | BI198: 0 | BJ198: 0 | BK198: 0 | BL198: 0 | BM198: 0 | BN198: 0 | BO198: 0 | BP198: 0 | BQ198: 0 | BR198: 0 | BS198: 0 | BT198: 0 | BU198: 0
B199: 191 | C199: Project 191 | D199: 191 | F199: Replacement | G199: Replacement | I199: 98.12468719 | J199: 98.12468719 | K199: 98.47832771 | L199: 98.83196823 | M199: 98.47832771 | O199: 0 | P199: 1 | R199: Yes | S199: Yes | U199: 0 | V199: 0 | X199: 0 | Y199: 1 | Z199: 0 | AA199: 0 | AB199: 0 | AC199: 0 | AD199: 0 | AE199: 0 | AF199: 0 | AG199: 0 | AH199: 0 | AI199: 0 | AJ199: 0 | AK199: 0 | AL199: 0 | AM199: 0 | AN199: 0 | AO199: 0 | AP199: 0 | AQ199: 0 | AR199: 0 | AS199: 0 | AT199: 0 | AU199: 0 | AV199: 0 | AW199: 0 | AX199: 0 | AY199: 0 | AZ199: 0 | BA199: 0 | BB199: 0 | BC199: 0 | BD199: 0 | BE199: 0 | BF199: 0 | BG199: 0 | BH199: 0 | BI199: 0 | BJ199: 0 | BK199: 0 | BL199: 0 | BM199: 0 | BN199: 0 | BO199: 0 | BP199: 0 | BQ199: 0 | BR199: 0 | BS199: 0 | BT199: 0 | BU199: 0
B200: 192 | C200: Project 192 | D200: 192 | F200: Replacement | G200: Replacement | I200: 390.597605 | J200: 359.9438357 | K200: 359.8921327 | L200: 390.4941989 | M200: 390.545902 | O200: 0.7368666847 | P200: 0.2631333153 | R200: Yes | S200: Yes | U200: 0 | V200: 0 | X200: 0 | Y200: 1 | Z200: 0 | AA200: 0 | AB200: 0 | AC200: 0 | AD200: 0 | AE200: 0 | AF200: 0 | AG200: 0 | AH200: 0 | AI200: 0 | AJ200: 0 | AK200: 0 | AL200: 0 | AM200: 0 | AN200: 0 | AO200: 0 | AP200: 0 | AQ200: 0 | AR200: 0 | AS200: 0 | AT200: 0 | AU200: 0 | AV200: 0 | AW200: 0 | AX200: 0 | AY200: 0 | AZ200: 0 | BA200: 0 | BB200: 0 | BC200: 0 | BD200: 0 | BE200: 0 | BF200: 0 | BG200: 0 | BH200: 0 | BI200: 0 | BJ200: 0 | BK200: 0 | BL200: 0 | BM200: 0 | BN200: 0 | BO200: 0 | BP200: 0 | BQ200: 0 | BR200: 0 | BS200: 0 | BT200: 0 | BU200: 0
B201: 193 | C201: Project 193 | D201: 193 | F201: Replacement | G201: Replacement | I201: 0 | J201: 200 | K201: 400 | L201: 200 | M201: 0 | O201: 0.7368666847 | P201: 0.2631333153 | Q201: =IF(O201>1,1,IF(P201>1,1,IF(SUM(O201:P201)=1,"",))) ->  | R201: Yes | S201: Yes | U201: 0 | V201: 0 | X201: 0 | Y201: 1 | Z201: 0 | AA201: 0 | AB201: 0 | AC201: 0 | AD201: 0 | AE201: 0 | AF201: 0 | AG201: 0 | AH201: 0 | AI201: 0 | AJ201: 0 | AK201: 0 | AL201: 0 | AM201: 0 | AN201: 0 | AO201: 0 | AP201: 0 | AQ201: 0 | AR201: 0 | AS201: 0 | AT201: 0 | AU201: 0 | AV201: 0 | AW201: 0 | AX201: 0 | AY201: 0 | AZ201: 0 | BA201: 0 | BB201: 0 | BC201: 0 | BD201: 0 | BE201: 0 | BF201: 0 | BG201: 0 | BH201: 0 | BI201: 0 | BJ201: 0 | BK201: 0 | BL201: 0 | BM201: 0 | BN201: 0 | BO201: 0 | BP201: 0 | BQ201: 0 | BR201: 0 | BS201: 0 | BT201: 0 | BU201: 0
... 807 more rows

Sheet Input| Disposals
C1: =IFERROR(Index!B1,"") -> AER Capex Forecast Model | D1: Sheet Validation | E1: ='Model Validation'!$C$9 -> 0 | H1: Key: | I1: Input
C2: =IFERROR(MID(CELL("filename",B1),FIND("]",CELL("filename",B1))+1,255),"") -> Input| Disposals
C5: =IFERROR(LEFT('Input| Projects'!X6,2)+1&". Forecast asset disposals ($'000s "&'Input| Escalations'!$C$9&")","") -> 17. Forecast asset disposals ($'000s 2017-18) | L5: =IFERROR(LEFT(C5,2)+1&". Forecast asset disposals ($'000s "&'Input| Escalations'!$J$14&")","") -> 18. Forecast asset disposals ($'000s June 2021)
L6: =IF(ABS(D58*'Input| Escalations'!$J$19-L58)<0.000001,0,1) -> 0 | M6: =IF(ABS(E58*'Input| Escalations'!$J$19-M58)<0.000001,0,1) -> 0 | N6: =IF(ABS(F58*'Input| Escalations'!$J$19-N58)<0.000001,0,1) -> 0 | O6: =IF(ABS(G58*'Input| Escalations'!$J$19-O58)<0.000001,0,1) -> 0 | P6: =IF(ABS(H58*'Input| Escalations'!$J$19-P58)<0.000001,0,1) -> 0
C7: RAB Asset Categories | D7: =IFERROR('Input| Escalations'!E23,"") -> 2021-22 | E7: =IFERROR('Input| Escalations'!F23,"") -> 2022-23 | F7: =IFERROR('Input| Escalations'!G23,"") -> 2023-24 | G7: =IFERROR('Input| Escalations'!H23,"") -> 2024-25 | H7: =IFERROR('Input| Escalations'!I23,"") -> 2025-26 | I7: Total | L7: =D7 -> 2021-22 | M7: =E7 -> 2022-23 | N7: =F7 -> 2023-24 | O7: =G7 -> 2024-25 | P7: =H7 -> 2025-26 | Q7: Total
B8: 1 | C8: =IFERROR(IF('Input| Setup'!E6="","",'Input| Setup'!E6),"") -> Subtransmission | I8: =IFERROR(IF(SUM(D8:H8)=0,"",SUM(D8:H8)),"") ->  | K8: =B8 -> 1 | L8: =IFERROR(D8*'Input| Escalations'!$J$19,"") -> 0 | M8: =IFERROR(E8*'Input| Escalations'!$J$19,"") -> 0 | N8: =IFERROR(F8*'Input| Escalations'!$J$19,"") -> 0 | O8: =IFERROR(G8*'Input| Escalations'!$J$19,"") -> 0 | P8: =IFERROR(H8*'Input| Escalations'!$J$19,"") -> 0 | Q8: =IFERROR(IF(SUM(L8:P8)=0,"",SUM(L8:P8)),"") -> 
B9: =IFERROR(B8+1,"") -> 2 | C9: =IFERROR(IF('Input| Setup'!E7="","",'Input| Setup'!E7),"") -> Distribution system assets | K9: =B9 -> 2 | L9: =IFERROR(D9*'Input| Escalations'!$J$19,"") -> 0 | M9: =IFERROR(E9*'Input| Escalations'!$J$19,"") -> 0 | N9: =IFERROR(F9*'Input| Escalations'!$J$19,"") -> 0 | O9: =IFERROR(G9*'Input| Escalations'!$J$19,"") -> 0 | P9: =IFERROR(H9*'Input| Escalations'!$J$19,"") -> 0 | Q9: =IFERROR(IF(SUM(L9:P9)=0,"",SUM(L9:P9)),"") -> 
B10: =IFERROR(B9+1,"") -> 3 | C10: =IFERROR(IF('Input| Setup'!E8="","",'Input| Setup'!E8),"") -> Metering | K10: 3 | L10: =IFERROR(D10*'Input| Escalations'!$J$19,"") -> 0 | M10: =IFERROR(E10*'Input| Escalations'!$J$19,"") -> 0 | N10: =IFERROR(F10*'Input| Escalations'!$J$19,"") -> 0 | O10: =IFERROR(G10*'Input| Escalations'!$J$19,"") -> 0 | P10: =IFERROR(H10*'Input| Escalations'!$J$19,"") -> 0
B11: 4 | C11: =IFERROR(IF('Input| Setup'!E9="","",'Input| Setup'!E9),"") -> Public Lighting | K11: 4 | L11: =IFERROR(D11*'Input| Escalations'!$J$19,"") -> 0 | M11: =IFERROR(E11*'Input| Escalations'!$J$19,"") -> 0 | N11: =IFERROR(F11*'Input| Escalations'!$J$19,"") -> 0 | O11: =IFERROR(G11*'Input| Escalations'!$J$19,"") -> 0 | P11: =IFERROR(H11*'Input| Escalations'!$J$19,"") -> 0
B12: 5 | C12: =IFERROR(IF('Input| Setup'!E10="","",'Input| Setup'!E10),"") -> SCADA & Network Control | K12: 5 | L12: =IFERROR(D12*'Input| Escalations'!$J$19,"") -> 0 | M12: =IFERROR(E12*'Input| Escalations'!$J$19,"") -> 0 | N12: =IFERROR(F12*'Input| Escalations'!$J$19,"") -> 0 | O12: =IFERROR(G12*'Input| Escalations'!$J$19,"") -> 0 | P12: =IFERROR(H12*'Input| Escalations'!$J$19,"") -> 0
B13: 6 | C13: =IFERROR(IF('Input| Setup'!E11="","",'Input| Setup'!E11),"") -> Non network general - IT | K13: 6 | L13: =IFERROR(D13*'Input| Escalations'!$J$19,"") -> 0 | M13: =IFERROR(E13*'Input| Escalations'!$J$19,"") -> 0 | N13: =IFERROR(F13*'Input| Escalations'!$J$19,"") -> 0 | O13: =IFERROR(G13*'Input| Escalations'!$J$19,"") -> 0 | P13: =IFERROR(H13*'Input| Escalations'!$J$19,"") -> 0
B14: 7 | C14: =IFERROR(IF('Input| Setup'!E12="","",'Input| Setup'!E12),"") -> Non network general - other | D14: 50 | E14: 40 | F14: 30 | G14: 20 | H14: 10 | I14: =IFERROR(IF(SUM(D14:H14)=0,"",SUM(D14:H14)),"") -> 150 | K14: 7 | L14: =IFERROR(D14*'Input| Escalations'!$J$19,"") -> 53.04496767 | M14: =IFERROR(E14*'Input| Escalations'!$J$19,"") -> 42.43597414 | N14: =IFERROR(F14*'Input| Escalations'!$J$19,"") -> 31.8269806 | O14: =IFERROR(G14*'Input| Escalations'!$J$19,"") -> 21.21798707 | P14: =IFERROR(H14*'Input| Escalations'!$J$19,"") -> 10.60899353 | Q14: 159.134903
B15: 8 | C15: =IFERROR(IF('Input| Setup'!E13="","",'Input| Setup'!E13),"") -> Land | I15: =IFERROR(IF(SUM(D15:H15)=0,"",SUM(D15:H15)),"") ->  | K15: 8 | L15: =IFERROR(D15*'Input| Escalations'!$J$19,"") -> 0 | M15: =IFERROR(E15*'Input| Escalations'!$J$19,"") -> 0 | N15: =IFERROR(F15*'Input| Escalations'!$J$19,"") -> 0 | O15: =IFERROR(G15*'Input| Escalations'!$J$19,"") -> 0 | P15: =IFERROR(H15*'Input| Escalations'!$J$19,"") -> 0
B16: 9 | C16: =IFERROR(IF('Input| Setup'!E14="","",'Input| Setup'!E14),"") -> Inhouse Software (SL Tax Depn) | K16: 9 | L16: =IFERROR(D16*'Input| Escalations'!$J$19,"") -> 0 | M16: =IFERROR(E16*'Input| Escalations'!$J$19,"") -> 0 | N16: =IFERROR(F16*'Input| Escalations'!$J$19,"") -> 0 | O16: =IFERROR(G16*'Input| Escalations'!$J$19,"") -> 0 | P16: =IFERROR(H16*'Input| Escalations'!$J$19,"") -> 0
B17: 10 | C17: =IFERROR(IF('Input| Setup'!E15="","",'Input| Setup'!E15),"") -> Buildings (SL Tax Depn) | K17: 10 | L17: =IFERROR(D17*'Input| Escalations'!$J$19,"") -> 0 | M17: =IFERROR(E17*'Input| Escalations'!$J$19,"") -> 0 | N17: =IFERROR(F17*'Input| Escalations'!$J$19,"") -> 0 | O17: =IFERROR(G17*'Input| Escalations'!$J$19,"") -> 0 | P17: =IFERROR(H17*'Input| Escalations'!$J$19,"") -> 0
B18: 11 | C18: =IFERROR(IF('Input| Setup'!E16="","",'Input| Setup'!E16),"") ->  | K18: 11 | L18: =IFERROR(D18*'Input| Escalations'!$J$19,"") -> 0 | M18: =IFERROR(E18*'Input| Escalations'!$J$19,"") -> 0 | N18: =IFERROR(F18*'Input| Escalations'!$J$19,"") -> 0 | O18: =IFERROR(G18*'Input| Escalations'!$J$19,"") -> 0 | P18: =IFERROR(H18*'Input| Escalations'!$J$19,"") -> 0
B19: 12 | C19: =IFERROR(IF('Input| Setup'!E17="","",'Input| Setup'!E17),"") ->  | K19: 12 | L19: =IFERROR(D19*'Input| Escalations'!$J$19,"") -> 0 | M19: =IFERROR(E19*'Input| Escalations'!$J$19,"") -> 0 | N19: =IFERROR(F19*'Input| Escalations'!$J$19,"") -> 0 | O19: =IFERROR(G19*'Input| Escalations'!$J$19,"") -> 0 | P19: =IFERROR(H19*'Input| Escalations'!$J$19,"") -> 0
B20: 13 | C20: =IFERROR(IF('Input| Setup'!E18="","",'Input| Setup'!E18),"") ->  | K20: 13 | L20: =IFERROR(D20*'Input| Escalations'!$J$19,"") -> 0 | M20: =IFERROR(E20*'Input| Escalations'!$J$19,"") -> 0 | N20: =IFERROR(F20*'Input| Escalations'!$J$19,"") -> 0 | O20: =IFERROR(G20*'Input| Escalations'!$J$19,"") -> 0 | P20: =IFERROR(H20*'Input| Escalations'!$J$19,"") -> 0
B21: 14 | C21: =IFERROR(IF('Input| Setup'!E19="","",'Input| Setup'!E19),"") ->  | K21: 14 | L21: =IFERROR(D21*'Input| Escalations'!$J$19,"") -> 0 | M21: =IFERROR(E21*'Input| Escalations'!$J$19,"") -> 0 | N21: =IFERROR(F21*'Input| Escalations'!$J$19,"") -> 0 | O21: =IFERROR(G21*'Input| Escalations'!$J$19,"") -> 0 | P21: =IFERROR(H21*'Input| Escalations'!$J$19,"") -> 0
B22: 15 | C22: =IFERROR(IF('Input| Setup'!E20="","",'Input| Setup'!E20),"") ->  | K22: 15 | L22: =IFERROR(D22*'Input| Escalations'!$J$19,"") -> 0 | M22: =IFERROR(E22*'Input| Escalations'!$J$19,"") -> 0 | N22: =IFERROR(F22*'Input| Escalations'!$J$19,"") -> 0 | O22: =IFERROR(G22*'Input| Escalations'!$J$19,"") -> 0 | P22: =IFERROR(H22*'Input| Escalations'!$J$19,"") -> 0
B23: 16 | C23: =IFERROR(IF('Input| Setup'!E21="","",'Input| Setup'!E21),"") ->  | K23: 16 | L23: =IFERROR(D23*'Input| Escalations'!$J$19,"") -> 0 | M23: =IFERROR(E23*'Input| Escalations'!$J$19,"") -> 0 | N23: =IFERROR(F23*'Input| Escalations'!$J$19,"") -> 0 | O23: =IFERROR(G23*'Input| Escalations'!$J$19,"") -> 0 | P23: =IFERROR(H23*'Input| Escalations'!$J$19,"") -> 0
B24: 17 | C24: =IFERROR(IF('Input| Setup'!E22="","",'Input| Setup'!E22),"") ->  | K24: 17 | L24: =IFERROR(D24*'Input| Escalations'!$J$19,"") -> 0 | M24: =IFERROR(E24*'Input| Escalations'!$J$19,"") -> 0 | N24: =IFERROR(F24*'Input| Escalations'!$J$19,"") -> 0 | O24: =IFERROR(G24*'Input| Escalations'!$J$19,"") -> 0 | P24: =IFERROR(H24*'Input| Escalations'!$J$19,"") -> 0
B25: 18 | C25: =IFERROR(IF('Input| Setup'!E23="","",'Input| Setup'!E23),"") ->  | K25: 18 | L25: =IFERROR(D25*'Input| Escalations'!$J$19,"") -> 0 | M25: =IFERROR(E25*'Input| Escalations'!$J$19,"") -> 0 | N25: =IFERROR(F25*'Input| Escalations'!$J$19,"") -> 0 | O25: =IFERROR(G25*'Input| Escalations'!$J$19,"") -> 0 | P25: =IFERROR(H25*'Input| Escalations'!$J$19,"") -> 0
B26: 19 | C26: =IFERROR(IF('Input| Setup'!E24="","",'Input| Setup'!E24),"") ->  | K26: 19 | L26: =IFERROR(D26*'Input| Escalations'!$J$19,"") -> 0 | M26: =IFERROR(E26*'Input| Escalations'!$J$19,"") -> 0 | N26: =IFERROR(F26*'Input| Escalations'!$J$19,"") -> 0 | O26: =IFERROR(G26*'Input| Escalations'!$J$19,"") -> 0 | P26: =IFERROR(H26*'Input| Escalations'!$J$19,"") -> 0
B27: 20 | C27: =IFERROR(IF('Input| Setup'!E25="","",'Input| Setup'!E25),"") ->  | K27: 20 | L27: =IFERROR(D27*'Input| Escalations'!$J$19,"") -> 0 | M27: =IFERROR(E27*'Input| Escalations'!$J$19,"") -> 0 | N27: =IFERROR(F27*'Input| Escalations'!$J$19,"") -> 0 | O27: =IFERROR(G27*'Input| Escalations'!$J$19,"") -> 0 | P27: =IFERROR(H27*'Input| Escalations'!$J$19,"") -> 0
B28: 21 | C28: =IFERROR(IF('Input| Setup'!E26="","",'Input| Setup'!E26),"") ->  | K28: 21 | L28: =IFERROR(D28*'Input| Escalations'!$J$19,"") -> 0 | M28: =IFERROR(E28*'Input| Escalations'!$J$19,"") -> 0 | N28: =IFERROR(F28*'Input| Escalations'!$J$19,"") -> 0 | O28: =IFERROR(G28*'Input| Escalations'!$J$19,"") -> 0 | P28: =IFERROR(H28*'Input| Escalations'!$J$19,"") -> 0
B29: 22 | C29: =IFERROR(IF('Input| Setup'!E27="","",'Input| Setup'!E27),"") ->  | K29: 22 | L29: =IFERROR(D29*'Input| Escalations'!$J$19,"") -> 0 | M29: =IFERROR(E29*'Input| Escalations'!$J$19,"") -> 0 | N29: =IFERROR(F29*'Input| Escalations'!$J$19,"") -> 0 | O29: =IFERROR(G29*'Input| Escalations'!$J$19,"") -> 0 | P29: =IFERROR(H29*'Input| Escalations'!$J$19,"") -> 0
B30: 23 | C30: =IFERROR(IF('Input| Setup'!E28="","",'Input| Setup'!E28),"") ->  | K30: 23 | L30: =IFERROR(D30*'Input| Escalations'!$J$19,"") -> 0 | M30: =IFERROR(E30*'Input| Escalations'!$J$19,"") -> 0 | N30: =IFERROR(F30*'Input| Escalations'!$J$19,"") -> 0 | O30: =IFERROR(G30*'Input| Escalations'!$J$19,"") -> 0 | P30: =IFERROR(H30*'Input| Escalations'!$J$19,"") -> 0
B31: 24 | C31: =IFERROR(IF('Input| Setup'!E29="","",'Input| Setup'!E29),"") ->  | K31: 24 | L31: =IFERROR(D31*'Input| Escalations'!$J$19,"") -> 0 | M31: =IFERROR(E31*'Input| Escalations'!$J$19,"") -> 0 | N31: =IFERROR(F31*'Input| Escalations'!$J$19,"") -> 0 | O31: =IFERROR(G31*'Input| Escalations'!$J$19,"") -> 0 | P31: =IFERROR(H31*'Input| Escalations'!$J$19,"") -> 0
B32: 25 | C32: =IFERROR(IF('Input| Setup'!E30="","",'Input| Setup'!E30),"") ->  | K32: 25 | L32: =IFERROR(D32*'Input| Escalations'!$J$19,"") -> 0 | M32: =IFERROR(E32*'Input| Escalations'!$J$19,"") -> 0 | N32: =IFERROR(F32*'Input| Escalations'!$J$19,"") -> 0 | O32: =IFERROR(G32*'Input| Escalations'!$J$19,"") -> 0 | P32: =IFERROR(H32*'Input| Escalations'!$J$19,"") -> 0
B33: 26 | C33: =IFERROR(IF('Input| Setup'!E31="","",'Input| Setup'!E31),"") ->  | K33: 26 | L33: =IFERROR(D33*'Input| Escalations'!$J$19,"") -> 0 | M33: =IFERROR(E33*'Input| Escalations'!$J$19,"") -> 0 | N33: =IFERROR(F33*'Input| Escalations'!$J$19,"") -> 0 | O33: =IFERROR(G33*'Input| Escalations'!$J$19,"") -> 0 | P33: =IFERROR(H33*'Input| Escalations'!$J$19,"") -> 0
B34: 27 | C34: =IFERROR(IF('Input| Setup'!E32="","",'Input| Setup'!E32),"") ->  | K34: 27 | L34: =IFERROR(D34*'Input| Escalations'!$J$19,"") -> 0 | M34: =IFERROR(E34*'Input| Escalations'!$J$19,"") -> 0 | N34: =IFERROR(F34*'Input| Escalations'!$J$19,"") -> 0 | O34: =IFERROR(G34*'Input| Escalations'!$J$19,"") -> 0 | P34: =IFERROR(H34*'Input| Escalations'!$J$19,"") -> 0
B35: 28 | C35: =IFERROR(IF('Input| Setup'!E33="","",'Input| Setup'!E33),"") ->  | K35: 28 | L35: =IFERROR(D35*'Input| Escalations'!$J$19,"") -> 0 | M35: =IFERROR(E35*'Input| Escalations'!$J$19,"") -> 0 | N35: =IFERROR(F35*'Input| Escalations'!$J$19,"") -> 0 | O35: =IFERROR(G35*'Input| Escalations'!$J$19,"") -> 0 | P35: =IFERROR(H35*'Input| Escalations'!$J$19,"") -> 0
B36: 29 | C36: =IFERROR(IF('Input| Setup'!E34="","",'Input| Setup'!E34),"") ->  | K36: 29 | L36: =IFERROR(D36*'Input| Escalations'!$J$19,"") -> 0 | M36: =IFERROR(E36*'Input| Escalations'!$J$19,"") -> 0 | N36: =IFERROR(F36*'Input| Escalations'!$J$19,"") -> 0 | O36: =IFERROR(G36*'Input| Escalations'!$J$19,"") -> 0 | P36: =IFERROR(H36*'Input| Escalations'!$J$19,"") -> 0
B37: 30 | C37: =IFERROR(IF('Input| Setup'!E35="","",'Input| Setup'!E35),"") ->  | K37: 30 | L37: =IFERROR(D37*'Input| Escalations'!$J$19,"") -> 0 | M37: =IFERROR(E37*'Input| Escalations'!$J$19,"") -> 0 | N37: =IFERROR(F37*'Input| Escalations'!$J$19,"") -> 0 | O37: =IFERROR(G37*'Input| Escalations'!$J$19,"") -> 0 | P37: =IFERROR(H37*'Input| Escalations'!$J$19,"") -> 0
B38: 31 | C38: =IFERROR(IF('Input| Setup'!E36="","",'Input| Setup'!E36),"") ->  | K38: 31 | L38: =IFERROR(D38*'Input| Escalations'!$J$19,"") -> 0 | M38: =IFERROR(E38*'Input| Escalations'!$J$19,"") -> 0 | N38: =IFERROR(F38*'Input| Escalations'!$J$19,"") -> 0 | O38: =IFERROR(G38*'Input| Escalations'!$J$19,"") -> 0 | P38: =IFERROR(H38*'Input| Escalations'!$J$19,"") -> 0
B39: 32 | C39: =IFERROR(IF('Input| Setup'!E37="","",'Input| Setup'!E37),"") ->  | K39: 32 | L39: =IFERROR(D39*'Input| Escalations'!$J$19,"") -> 0 | M39: =IFERROR(E39*'Input| Escalations'!$J$19,"") -> 0 | N39: =IFERROR(F39*'Input| Escalations'!$J$19,"") -> 0 | O39: =IFERROR(G39*'Input| Escalations'!$J$19,"") -> 0 | P39: =IFERROR(H39*'Input| Escalations'!$J$19,"") -> 0
B40: 33 | C40: =IFERROR(IF('Input| Setup'!E38="","",'Input| Setup'!E38),"") ->  | K40: 33 | L40: =IFERROR(D40*'Input| Escalations'!$J$19,"") -> 0 | M40: =IFERROR(E40*'Input| Escalations'!$J$19,"") -> 0 | N40: =IFERROR(F40*'Input| Escalations'!$J$19,"") -> 0 | O40: =IFERROR(G40*'Input| Escalations'!$J$19,"") -> 0 | P40: =IFERROR(H40*'Input| Escalations'!$J$19,"") -> 0
B41: 34 | C41: =IFERROR(IF('Input| Setup'!E39="","",'Input| Setup'!E39),"") ->  | K41: 34 | L41: =IFERROR(D41*'Input| Escalations'!$J$19,"") -> 0 | M41: =IFERROR(E41*'Input| Escalations'!$J$19,"") -> 0 | N41: =IFERROR(F41*'Input| Escalations'!$J$19,"") -> 0 | O41: =IFERROR(G41*'Input| Escalations'!$J$19,"") -> 0 | P41: =IFERROR(H41*'Input| Escalations'!$J$19,"") -> 0
B42: 35 | C42: =IFERROR(IF('Input| Setup'!E40="","",'Input| Setup'!E40),"") ->  | K42: 35 | L42: =IFERROR(D42*'Input| Escalations'!$J$19,"") -> 0 | M42: =IFERROR(E42*'Input| Escalations'!$J$19,"") -> 0 | N42: =IFERROR(F42*'Input| Escalations'!$J$19,"") -> 0 | O42: =IFERROR(G42*'Input| Escalations'!$J$19,"") -> 0 | P42: =IFERROR(H42*'Input| Escalations'!$J$19,"") -> 0
B43: 36 | C43: =IFERROR(IF('Input| Setup'!E41="","",'Input| Setup'!E41),"") ->  | K43: 36 | L43: =IFERROR(D43*'Input| Escalations'!$J$19,"") -> 0 | M43: =IFERROR(E43*'Input| Escalations'!$J$19,"") -> 0 | N43: =IFERROR(F43*'Input| Escalations'!$J$19,"") -> 0 | O43: =IFERROR(G43*'Input| Escalations'!$J$19,"") -> 0 | P43: =IFERROR(H43*'Input| Escalations'!$J$19,"") -> 0
B44: 37 | C44: =IFERROR(IF('Input| Setup'!E42="","",'Input| Setup'!E42),"") ->  | K44: 37 | L44: =IFERROR(D44*'Input| Escalations'!$J$19,"") -> 0 | M44: =IFERROR(E44*'Input| Escalations'!$J$19,"") -> 0 | N44: =IFERROR(F44*'Input| Escalations'!$J$19,"") -> 0 | O44: =IFERROR(G44*'Input| Escalations'!$J$19,"") -> 0 | P44: =IFERROR(H44*'Input| Escalations'!$J$19,"") -> 0
B45: 38 | C45: =IFERROR(IF('Input| Setup'!E43="","",'Input| Setup'!E43),"") ->  | K45: 38 | L45: =IFERROR(D45*'Input| Escalations'!$J$19,"") -> 0 | M45: =IFERROR(E45*'Input| Escalations'!$J$19,"") -> 0 | N45: =IFERROR(F45*'Input| Escalations'!$J$19,"") -> 0 | O45: =IFERROR(G45*'Input| Escalations'!$J$19,"") -> 0 | P45: =IFERROR(H45*'Input| Escalations'!$J$19,"") -> 0
B46: 39 | C46: =IFERROR(IF('Input| Setup'!E44="","",'Input| Setup'!E44),"") ->  | K46: 39 | L46: =IFERROR(D46*'Input| Escalations'!$J$19,"") -> 0 | M46: =IFERROR(E46*'Input| Escalations'!$J$19,"") -> 0 | N46: =IFERROR(F46*'Input| Escalations'!$J$19,"") -> 0 | O46: =IFERROR(G46*'Input| Escalations'!$J$19,"") -> 0 | P46: =IFERROR(H46*'Input| Escalations'!$J$19,"") -> 0
B47: 40 | C47: =IFERROR(IF('Input| Setup'!E45="","",'Input| Setup'!E45),"") ->  | K47: 40 | L47: =IFERROR(D47*'Input| Escalations'!$J$19,"") -> 0 | M47: =IFERROR(E47*'Input| Escalations'!$J$19,"") -> 0 | N47: =IFERROR(F47*'Input| Escalations'!$J$19,"") -> 0 | O47: =IFERROR(G47*'Input| Escalations'!$J$19,"") -> 0 | P47: =IFERROR(H47*'Input| Escalations'!$J$19,"") -> 0
B48: 41 | C48: =IFERROR(IF('Input| Setup'!E46="","",'Input| Setup'!E46),"") ->  | K48: 41 | L48: =IFERROR(D48*'Input| Escalations'!$J$19,"") -> 0 | M48: =IFERROR(E48*'Input| Escalations'!$J$19,"") -> 0 | N48: =IFERROR(F48*'Input| Escalations'!$J$19,"") -> 0 | O48: =IFERROR(G48*'Input| Escalations'!$J$19,"") -> 0 | P48: =IFERROR(H48*'Input| Escalations'!$J$19,"") -> 0
B49: 42 | C49: =IFERROR(IF('Input| Setup'!E47="","",'Input| Setup'!E47),"") ->  | K49: 42 | L49: =IFERROR(D49*'Input| Escalations'!$J$19,"") -> 0 | M49: =IFERROR(E49*'Input| Escalations'!$J$19,"") -> 0 | N49: =IFERROR(F49*'Input| Escalations'!$J$19,"") -> 0 | O49: =IFERROR(G49*'Input| Escalations'!$J$19,"") -> 0 | P49: =IFERROR(H49*'Input| Escalations'!$J$19,"") -> 0
B50: 43 | C50: =IFERROR(IF('Input| Setup'!E48="","",'Input| Setup'!E48),"") ->  | K50: 43 | L50: =IFERROR(D50*'Input| Escalations'!$J$19,"") -> 0 | M50: =IFERROR(E50*'Input| Escalations'!$J$19,"") -> 0 | N50: =IFERROR(F50*'Input| Escalations'!$J$19,"") -> 0 | O50: =IFERROR(G50*'Input| Escalations'!$J$19,"") -> 0 | P50: =IFERROR(H50*'Input| Escalations'!$J$19,"") -> 0
B51: 44 | C51: =IFERROR(IF('Input| Setup'!E49="","",'Input| Setup'!E49),"") ->  | K51: 44 | L51: =IFERROR(D51*'Input| Escalations'!$J$19,"") -> 0 | M51: =IFERROR(E51*'Input| Escalations'!$J$19,"") -> 0 | N51: =IFERROR(F51*'Input| Escalations'!$J$19,"") -> 0 | O51: =IFERROR(G51*'Input| Escalations'!$J$19,"") -> 0 | P51: =IFERROR(H51*'Input| Escalations'!$J$19,"") -> 0
B52: 45 | C52: =IFERROR(IF('Input| Setup'!E50="","",'Input| Setup'!E50),"") ->  | K52: 45 | L52: =IFERROR(D52*'Input| Escalations'!$J$19,"") -> 0 | M52: =IFERROR(E52*'Input| Escalations'!$J$19,"") -> 0 | N52: =IFERROR(F52*'Input| Escalations'!$J$19,"") -> 0 | O52: =IFERROR(G52*'Input| Escalations'!$J$19,"") -> 0 | P52: =IFERROR(H52*'Input| Escalations'!$J$19,"") -> 0
B53: 46 | C53: =IFERROR(IF('Input| Setup'!E51="","",'Input| Setup'!E51),"") ->  | K53: 46 | L53: =IFERROR(D53*'Input| Escalations'!$J$19,"") -> 0 | M53: =IFERROR(E53*'Input| Escalations'!$J$19,"") -> 0 | N53: =IFERROR(F53*'Input| Escalations'!$J$19,"") -> 0 | O53: =IFERROR(G53*'Input| Escalations'!$J$19,"") -> 0 | P53: =IFERROR(H53*'Input| Escalations'!$J$19,"") -> 0
B54: 47 | C54: =IFERROR(IF('Input| Setup'!E52="","",'Input| Setup'!E52),"") ->  | K54: 47 | L54: =IFERROR(D54*'Input| Escalations'!$J$19,"") -> 0 | M54: =IFERROR(E54*'Input| Escalations'!$J$19,"") -> 0 | N54: =IFERROR(F54*'Input| Escalations'!$J$19,"") -> 0 | O54: =IFERROR(G54*'Input| Escalations'!$J$19,"") -> 0 | P54: =IFERROR(H54*'Input| Escalations'!$J$19,"") -> 0
B55: 48 | C55: =IFERROR(IF('Input| Setup'!E53="","",'Input| Setup'!E53),"") ->  | K55: 48 | L55: =IFERROR(D55*'Input| Escalations'!$J$19,"") -> 0 | M55: =IFERROR(E55*'Input| Escalations'!$J$19,"") -> 0 | N55: =IFERROR(F55*'Input| Escalations'!$J$19,"") -> 0 | O55: =IFERROR(G55*'Input| Escalations'!$J$19,"") -> 0 | P55: =IFERROR(H55*'Input| Escalations'!$J$19,"") -> 0
B56: 49 | C56: =IFERROR(IF('Input| Setup'!E54="","",'Input| Setup'!E54),"") ->  | K56: 49 | L56: =IFERROR(D56*'Input| Escalations'!$J$19,"") -> 0 | M56: =IFERROR(E56*'Input| Escalations'!$J$19,"") -> 0 | N56: =IFERROR(F56*'Input| Escalations'!$J$19,"") -> 0 | O56: =IFERROR(G56*'Input| Escalations'!$J$19,"") -> 0 | P56: =IFERROR(H56*'Input| Escalations'!$J$19,"") -> 0
B57: 50 | C57: =IFERROR(IF('Input| Setup'!E55="","",'Input| Setup'!E55),"") ->  | K57: 50 | L57: =IFERROR(D57*'Input| Escalations'!$J$19,"") -> 0 | M57: =IFERROR(E57*'Input| Escalations'!$J$19,"") -> 0 | N57: =IFERROR(F57*'Input| Escalations'!$J$19,"") -> 0 | O57: =IFERROR(G57*'Input| Escalations'!$J$19,"") -> 0 | P57: =IFERROR(H57*'Input| Escalations'!$J$19,"") -> 0
C58: =IFERROR(IF('Input| Setup'!E56="","",'Input| Setup'!E56),"") ->  | D58: =IFERROR(SUM(D8:D57),"") -> 50 | E58: =IFERROR(SUM(E8:E57),"") -> 40 | F58: 30 | G58: 20 | H58: 10 | I58: 150 | L58: =IFERROR(SUM(L8:L57),"") -> 53.04496767 | M58: 42.43597414 | N58: 31.8269806 | O58: 21.21798707 | P58: 10.60899353 | Q58: 159.134903
C59: =IFERROR(IF('Input| Setup'!E57="","",'Input| Setup'!E57),"") -> 

Sheet Input| Expensing
B1: =IFERROR(Index!B1,"") -> AER Capex Forecast Model | D1: Sheet Validation | E1: ='Model Validation'!$C$10 -> 0 | G1: Key: | H1: Input
B2: =IFERROR(MID(CELL("filename",A1),FIND("]",CELL("filename",A1))+1,255),"") -> Input| Expensing
C5: =LEFT('Input| Disposals'!L5,2)+1&". Immediate expensing (% to be immediately expensed)" -> 19. Immediate expensing (% to be immediately expensed)
I6: =IF(SUM(I8:I17)=0,0,1) -> 0
C7: RAB Asset Categories | D7: =IFERROR('Input| Escalations'!E23,"") -> 2021-22 | E7: =IFERROR('Input| Escalations'!F23,"") -> 2022-23 | F7: =IFERROR('Input| Escalations'!G23,"") -> 2023-24 | G7: =IFERROR('Input| Escalations'!H23,"") -> 2024-25 | H7: =IFERROR('Input| Escalations'!I23,"") -> 2025-26
B8: 1 | C8: =IFERROR(IF('Input| Setup'!E6="","",'Input| Setup'!E6),"") -> Subtransmission | D8: 0.005 | E8: 0.005 | F8: 0.005 | G8: 1 | H8: 0.005 | I8: =IF(H8>1,1,IF(G8>1,1,IF(F8>1,1,IF(E8>1,1,IF(D8>1,1,""))))) -> 
B9: =IFERROR(B8+1,"") -> 2 | C9: =IFERROR(IF('Input| Setup'!E7="","",'Input| Setup'!E7),"") -> Distribution system assets | D9: 0.02 | E9: 0.02 | F9: 0.02 | G9: 0.02 | H9: 0.02 | I9: =IF(H9>1,1,IF(G9>1,1,IF(F9>1,1,IF(E9>1,1,IF(D9>1,1,""))))) -> 
B10: =IFERROR(B9+1,"") -> 3 | C10: =IFERROR(IF('Input| Setup'!E8="","",'Input| Setup'!E8),"") -> Metering | D10: 0 | E10: 0 | F10: 0 | G10: 0 | H10: 0
B11: 4 | C11: =IFERROR(IF('Input| Setup'!E9="","",'Input| Setup'!E9),"") -> Public Lighting | D11: 0 | E11: 0 | F11: 0 | G11: 0 | H11: 0
B12: 5 | C12: =IFERROR(IF('Input| Setup'!E10="","",'Input| Setup'!E10),"") -> SCADA & Network Control | D12: 0.02 | E12: 0.02 | F12: 0.02 | G12: 0.02 | H12: 0.02
B13: 6 | C13: =IFERROR(IF('Input| Setup'!E11="","",'Input| Setup'!E11),"") -> Non network general - IT | D13: 0 | E13: 0 | F13: 0 | G13: 0 | H13: 0
B14: 7 | C14: =IFERROR(IF('Input| Setup'!E12="","",'Input| Setup'!E12),"") -> Non network general - other | D14: 0 | E14: 0 | F14: 0 | G14: 0 | H14: 0
B15: 8 | C15: =IFERROR(IF('Input| Setup'!E13="","",'Input| Setup'!E13),"") -> Land | D15: 0 | E15: 0 | F15: 0 | G15: 0 | H15: 0
B16: 9 | C16: =IFERROR(IF('Input| Setup'!E14="","",'Input| Setup'!E14),"") -> Inhouse Software (SL Tax Depn) | D16: 0 | E16: 0 | F16: 0 | G16: 0 | H16: 0
B17: 10 | C17: =IFERROR(IF('Input| Setup'!E15="","",'Input| Setup'!E15),"") -> Buildings (SL Tax Depn) | D17: 0 | E17: 0 | F17: 0 | G17: 0 | H17: 0
B18: 11 | C18: =IFERROR(IF('Input| Setup'!E16="","",'Input| Setup'!E16),"") -> 
B19: 12 | C19: =IFERROR(IF('Input| Setup'!E17="","",'Input| Setup'!E17),"") -> 
B20: 13 | C20: =IFERROR(IF('Input| Setup'!E18="","",'Input| Setup'!E18),"") -> 
B21: 14 | C21: =IFERROR(IF('Input| Setup'!E19="","",'Input| Setup'!E19),"") -> 
B22: 15 | C22: =IFERROR(IF('Input| Setup'!E20="","",'Input| Setup'!E20),"") -> 
B23: 16 | C23: =IFERROR(IF('Input| Setup'!E21="","",'Input| Setup'!E21),"") -> 
B24: 17 | C24: =IFERROR(IF('Input| Setup'!E22="","",'Input| Setup'!E22),"") -> 
B25: 18 | C25: =IFERROR(IF('Input| Setup'!E23="","",'Input| Setup'!E23),"") -> 
B26: 19 | C26: =IFERROR(IF('Input| Setup'!E24="","",'Input| Setup'!E24),"") -> 
B27: 20 | C27: =IFERROR(IF('Input| Setup'!E25="","",'Input| Setup'!E25),"") -> 
B28: 21 | C28: =IFERROR(IF('Input| Setup'!E26="","",'Input| Setup'!E26),"") -> 
B29: 22 | C29: =IFERROR(IF('Input| Setup'!E27="","",'Input| Setup'!E27),"") -> 
B30: 23 | C30: =IFERROR(IF('Input| Setup'!E28="","",'Input| Setup'!E28),"") -> 
B31: 24 | C31: =IFERROR(IF('Input| Setup'!E29="","",'Input| Setup'!E29),"") -> 
B32: 25 | C32: =IFERROR(IF('Input| Setup'!E30="","",'Input| Setup'!E30),"") -> 
B33: 26 | C33: =IFERROR(IF('Input| Setup'!E31="","",'Input| Setup'!E31),"") -> 
B34: 27 | C34: =IFERROR(IF('Input| Setup'!E32="","",'Input| Setup'!E32),"") -> 
B35: 28 | C35: =IFERROR(IF('Input| Setup'!E33="","",'Input| Setup'!E33),"") -> 
B36: 29 | C36: =IFERROR(IF('Input| Setup'!E34="","",'Input| Setup'!E34),"") -> 
B37: 30 | C37: =IFERROR(IF('Input| Setup'!E35="","",'Input| Setup'!E35),"") -> 
B38: 31 | C38: =IFERROR(IF('Input| Setup'!E36="","",'Input| Setup'!E36),"") -> 
B39: 32 | C39: =IFERROR(IF('Input| Setup'!E37="","",'Input| Setup'!E37),"") -> 
B40: 33 | C40: =IFERROR(IF('Input| Setup'!E38="","",'Input| Setup'!E38),"") -> 
B41: 34 | C41: =IFERROR(IF('Input| Setup'!E39="","",'Input| Setup'!E39),"") -> 
B42: 35 | C42: =IFERROR(IF('Input| Setup'!E40="","",'Input| Setup'!E40),"") -> 
B43: 36 | C43: =IFERROR(IF('Input| Setup'!E41="","",'Input| Setup'!E41),"") -> 
B44: 37 | C44: =IFERROR(IF('Input| Setup'!E42="","",'Input| Setup'!E42),"") -> 
B45: 38 | C45: =IFERROR(IF('Input| Setup'!E43="","",'Input| Setup'!E43),"") -> 
B46: 39 | C46: =IFERROR(IF('Input| Setup'!E44="","",'Input| Setup'!E44),"") -> 
B47: 40 | C47: =IFERROR(IF('Input| Setup'!E45="","",'Input| Setup'!E45),"") -> 
B48: 41 | C48: =IFERROR(IF('Input| Setup'!E46="","",'Input| Setup'!E46),"") -> 
B49: 42 | C49: =IFERROR(IF('Input| Setup'!E47="","",'Input| Setup'!E47),"") -> 
B50: 43 | C50: =IFERROR(IF('Input| Setup'!E48="","",'Input| Setup'!E48),"") -> 
B51: 44 | C51: =IFERROR(IF('Input| Setup'!E49="","",'Input| Setup'!E49),"") -> 
B52: 45 | C52: =IFERROR(IF('Input| Setup'!E50="","",'Input| Setup'!E50),"") -> 
B53: 46 | C53: =IFERROR(IF('Input| Setup'!E51="","",'Input| Setup'!E51),"") -> 
B54: 47 | C54: =IFERROR(IF('Input| Setup'!E52="","",'Input| Setup'!E52),"") -> 
B55: 48 | C55: =IFERROR(IF('Input| Setup'!E53="","",'Input| Setup'!E53),"") -> 
B56: 49 | C56: =IFERROR(IF('Input| Setup'!E54="","",'Input| Setup'!E54),"") -> 
B57: 50 | C57: =IFERROR(IF('Input| Setup'!E55="","",'Input| Setup'!E55),"") -> 

Sheet Input| Overheads
B1: =IFERROR(Index!B1,"") -> AER Capex Forecast Model | C1: Sheet Validation | D1: ='Model Validation'!$C$11 -> 0 | F1: Key: | G1: Input | H1: Input - optional
B2: =IFERROR(MID(CELL("filename",A1),FIND("]",CELL("filename",A1))+1,255),"") -> Input| Overheads
B5: =LEFT('Input| Expensing'!C5,2)+1&". Forecast capitalised overheads" -> 20. Forecast capitalised overheads | C5: NOTE: only fill in this table if you wish to substitute forecast capitalised overheads using an alternative method
B7: ="Unescalated capitalised overheads ($'000 "&'Input| Escalations'!D10&" "&'Input| Escalations'!C10&")" -> Unescalated capitalised overheads ($'000 June 2021) | C7: =IFERROR('Input| Escalations'!E23,"") -> 2021-22 | D7: =IFERROR('Input| Escalations'!F23,"") -> 2022-23 | E7: =IFERROR('Input| Escalations'!G23,"") -> 2023-24 | F7: =IFERROR('Input| Escalations'!H23,"") -> 2024-25 | G7: =IFERROR('Input| Escalations'!I23,"") -> 2025-26 | H7: Total
B8: Capitalised overheads - network | H8: =IF(SUM(C8:G8)>0,SUM(C8:G8),"") -> 
B9: Capitalised overheads - corporate | H9: =IF(SUM(C9:G9)>0,SUM(C9:G9),"") -> 
B10: Total forecast capitalised overheads | C10: =IF((C8+C9)>0,C8+C9,"") ->  | D10: =IF((D8+D9)>0,D8+D9,"") -> 
B13: =LEFT(B5,2)+1&". Historical expenditure (nominal)" -> 21. Historical expenditure (nominal) | C13: NOTE: please only include actual expenditure (i.e. exclude estimates)
B15: Capitalised overheads, nominal ($'000) | C15: =IFERROR('Input| Escalations'!D14,"") -> 2016-17 | D15: =IFERROR('Input| Escalations'!E14,"") -> 2017-18 | E15: =IFERROR('Input| Escalations'!F14,"") -> 2018-19 | F15: =IFERROR('Input| Escalations'!G14,"") -> 2019-20
B16: Capitalised network overheads | C16: 16053.20307 | D16: 16053.20307 | E16: 16053.20307 | F16: 16053.20307
B17: Capitalised corporate overheads | C17: 11372.35236 | D17: 11372.35236 | E17: 11372.35236 | F17: 11372.35236
B20: Total direct capex that attract overheads, nominal ($'000) | C20: =IFERROR(C15,"") -> 2016-17 | D20: =IFERROR(D15,"") -> 2017-18 | E20: =IFERROR(E15,"") -> 2018-19 | F20: =IFERROR(F15,"") -> 2019-20
B21: ="Total Capex - Direct costs that attract network OHs" -> Total Capex - Direct costs that attract network OHs | C21: 83888.1908 | D21: 83975.99637 | E21: 83797.37285 | F21: 84419.84568
B22: ="Total Capex - Direct costs that attract corporate OHs" -> Total Capex - Direct costs that attract corporate OHs | C22: 83888.1908 | D22: 83975.99637 | E22: 83797.37285 | F22: 84419.84568
B25: =LEFT(B13,2)+1&". Forecast real price escalation for capitalised overheads" -> 22. Forecast real price escalation for capitalised overheads
C27: Internal Labour | D27: Non-Labour | E27: =IF(SUM(E28:E29)=0,0,1) -> 0
B28: Real cost escalation split - Network | C28: 0.32 | D28: =1-C28 -> 0.68 | E28: =IF(C28>1,1,IF(D28>1,1,IF(SUM(C28:D28)=1,"",))) -> 
B29: Real cost escalation split - Corporate | C29: 0.32 | D29: =1-C29 -> 0.68 | E29: =IF(C29>1,1,IF(D29>1,1,IF(SUM(C29:D29)=1,"",))) -> 

Sheet Calc| Overheads Allocation
B1: =Index!B1 -> AER Capex Forecast Model | D1: Sheet Validation | E1: ='Model Validation'!$C$12 -> 0
B2: =MID(CELL("filename",A1),FIND("]",CELL("filename",A1))+1,255) -> Calc| Overheads Allocation
B5: Outputs: forecast capitalised overheads
B7: =LEFT('Input| Overheads'!B25,2)+1&". Overheads rate to be applied to forecast escalated direct costs (%)" -> 23. Overheads rate to be applied to forecast escalated direct costs (%) | C7: Note: forecast overheads are spread across all direct costs that attract overheads, including gifted assets if applicable
C8: =IFERROR('Input| Escalations'!E23,"") -> 2021-22 | D8: =IFERROR('Input| Escalations'!F23,"") -> 2022-23 | E8: =IFERROR('Input| Escalations'!G23,"") -> 2023-24 | F8: =IFERROR('Input| Escalations'!H23,"") -> 2024-25 | G8: =IFERROR('Input| Escalations'!I23,"") -> 2025-26
B9: Overheads Rate - Network | C9: =C15/C42 -> 0.1612216194 | D9: 0.1615735156 | E9: 0.1618991145 | F9: 0.1622931922 | G9: 0.162808349
B10: Overheads Rate - Corporate | C10: 0.1142120396 | D10: 0.1144613286 | E10: 0.1146919882 | F10: 0.1149711593 | G10: 0.1153361049
B13: =LEFT(B7,2)+1&". Forecast capitalised overheads (incl. gifted assets overheads)" -> 24. Forecast capitalised overheads (incl. gifted assets overheads)
B14: ="Escalated capitalised overheads, ($'000s "&'Input| Escalations'!D10&" "&'Input| Escalations'!C10&")" -> Escalated capitalised overheads, ($'000s June 2021) | C14: =C$8 -> 2021-22 | D14: =D$8 -> 2022-23 | E14: 2023-24 | F14: 2024-25 | G14: 2025-26 | H14: Total
B15: Capitalised overheads - network | C15: =C59*C65 -> 20196.83239 | D15: 21403.06508 | E15: 18128.22741 | F15: 16986.13906 | G15: 15313.51522 | H15: =SUM(C15:G15) -> 92027.77917
B16: Capitalised overheads - corporate | C16: 14307.76734 | D16: 15162.28236 | E16: 12842.33364 | F16: 12033.25952 | G16: 10848.34536 | H16: =SUM(C16:G16) -> 65193.98822
B17: Total forecast capitalised overheads | C17: =C15+C16 -> 34504.59972 | D17: =D15+D16 -> 36565.34745 | E17: 30970.56106 | F17: 29019.39858 | G17: 26161.86058 | H17: 157221.7674
B20: =LEFT(B13,2)+1&". Forecast capitalised overheads (excl. gifted assets overheads)" -> 25. Forecast capitalised overheads (excl. gifted assets overheads) | C20: Note: this table aligns with the capitalised overheads included in the PTRM gross capex table
B21: =B14 -> Escalated capitalised overheads, ($'000s June 2021) | C21: =C$8 -> 2021-22 | D21: =D$8 -> 2022-23 | E21: 2023-24 | F21: 2024-25 | G21: 2025-26 | H21: Total
B22: Capitalised overheads - network | C22: =C15-'Calc| Project Costs'!BO5 -> 19861.74198 | D22: =D15-'Calc| Project Costs'!BP5 -> 20886.57429 | E22: =E15-'Calc| Project Costs'!BQ5 -> 17600.63808 | F22: =F15-'Calc| Project Costs'!BR5 -> 16446.86371 | G22: =G15-'Calc| Project Costs'!BS5 -> 14781.46742 | H22: =SUM(C22:G22) -> 89577.28548
B23: Capitalised overheads - corporate | C23: =C16-'Calc| Project Costs'!BU5 -> 14070.3838 | D23: =D16-'Calc| Project Costs'!BV5 -> 14796.39181 | E23: =E16-'Calc| Project Costs'!BW5 -> 12468.58071 | F23: =F16-'Calc| Project Costs'!BX5 -> 11651.22802 | G23: =G16-'Calc| Project Costs'!BY5 -> 10471.43397 | H23: =SUM(C23:G23) -> 63458.0183
B24: Total forecast capitalised overheads | C24: =C22+C23 -> 33932.12578 | D24: =D22+D23 -> 35682.9661 | E24: 30069.21879 | F24: 28098.09173 | G24: 25252.90139 | H24: 153035.3038
B27: Calculations: historical expenditure
B29: =LEFT(B20,2)+1&". Capitalised overheads, ($'000s "&'Input| Escalations'!D10&" "&'Input| Escalations'!C10&")" -> 26. Capitalised overheads, ($'000s June 2021) | C29: ='Input| Overheads'!C15 -> 2016-17 | D29: ='Input| Overheads'!D15 -> 2017-18 | E29: ='Input| Overheads'!E15 -> 2018-19 | F29: ='Input| Overheads'!F15 -> 2019-20 | G29: Average
B30: Capitalised network overheads | C30: ='Input| Overheads'!C16*INDEX('Input| Escalations'!$C$14:$I$19,5,MATCH(C29,'Input| Escalations'!$C$14:$I$14,0)) -> 17282.21036 | D30: ='Input| Overheads'!D16*INDEX('Input| Escalations'!$C$14:$I$19,5,MATCH(D29,'Input| Escalations'!$C$14:$I$14,0)) -> 17030.83276 | E30: ='Input| Overheads'!E16*INDEX('Input| Escalations'!$C$14:$I$19,5,MATCH(E29,'Input| Escalations'!$C$14:$I$14,0)) -> 16711.7895 | F30: ='Input| Overheads'!F16*INDEX('Input| Escalations'!$C$14:$I$19,5,MATCH(F29,'Input| Escalations'!$C$14:$I$14,0)) -> 16418.85717 | G30: =AVERAGE(C30:F30) -> 16860.92245
B31: Capitalised corporate overheads | C31: ='Input| Overheads'!C17*INDEX('Input| Escalations'!$C$14:$I$19,5,MATCH(C29,'Input| Escalations'!$C$14:$I$14,0)) -> 12243.00129 | D31: ='Input| Overheads'!D17*INDEX('Input| Escalations'!$C$14:$I$19,5,MATCH(D29,'Input| Escalations'!$C$14:$I$14,0)) -> 12064.92127 | E31: ='Input| Overheads'!E17*INDEX('Input| Escalations'!$C$14:$I$19,5,MATCH(E29,'Input| Escalations'!$C$14:$I$14,0)) -> 11838.90579 | F31: ='Input| Overheads'!F17*INDEX('Input| Escalations'!$C$14:$I$19,5,MATCH(F29,'Input| Escalations'!$C$14:$I$14,0)) -> 11631.38773 | G31: =AVERAGE(C31:F31) -> 11944.55402
B34: =LEFT(B29,2)+1&". Total direct capex that attract capitalised overheads, ($'000s "&'Input| Escalations'!D10&" "&'Input| Escalations'!C10&")" -> 27. Total direct capex that attract capitalised overheads, ($'000s June 2021) | C34: ='Input| Overheads'!C15 -> 2016-17 | D34: ='Input| Overheads'!D15 -> 2017-18 | E34: ='Input| Overheads'!E15 -> 2018-19 | F34: ='Input| Overheads'!F15 -> 2019-20 | G34: Average
B35: ="Total Capex - Direct costs that attract network OHs" -> Total Capex - Direct costs that attract network OHs | C35: ='Input| Overheads'!C21*INDEX('Input| Escalations'!$C$14:$I$19,5,MATCH(C29,'Input| Escalations'!$C$14:$I$14,0)) -> 90310.53516 | D35: ='Input| Overheads'!D21*INDEX('Input| Escalations'!$C$14:$I$19,5,MATCH(D29,'Input| Escalations'!$C$14:$I$14,0)) -> 89090.08025 | E35: ='Input| Overheads'!E21*INDEX('Input| Escalations'!$C$14:$I$19,5,MATCH(E29,'Input| Escalations'!$C$14:$I$14,0)) -> 87235.17978 | F35: ='Input| Overheads'!F21*INDEX('Input| Escalations'!$C$14:$I$19,5,MATCH(F29,'Input| Escalations'!$C$14:$I$14,0)) -> 86342.73065 | G35: =AVERAGE(C35:F35) -> 88244.63146
B36: ="Total Capex - Direct costs that attract corporate OHs" -> Total Capex - Direct costs that attract corporate OHs | C36: ='Input| Overheads'!C22*INDEX('Input| Escalations'!$C$14:$I$19,5,MATCH(C29,'Input| Escalations'!$C$14:$I$14,0)) -> 90310.53516 | D36: ='Input| Overheads'!D22*INDEX('Input| Escalations'!$C$14:$I$19,5,MATCH(D29,'Input| Escalations'!$C$14:$I$14,0)) -> 89090.08025 | E36: ='Input| Overheads'!E22*INDEX('Input| Escalations'!$C$14:$I$19,5,MATCH(E29,'Input| Escalations'!$C$14:$I$14,0)) -> 87235.17978 | F36: ='Input| Overheads'!F22*INDEX('Input| Escalations'!$C$14:$I$19,5,MATCH(F29,'Input| Escalations'!$C$14:$I$14,0)) -> 86342.73065 | G36: =AVERAGE(C36:F36) -> 88244.63146
B39: Calculations: forecast expenditure
B41: =LEFT(B34,2)+1&". Escalated direct costs, ($'000s "&'Input| Escalations'!D10&" "&'Input| Escalations'!C10&")" -> 28. Escalated direct costs, ($'000s June 2021) | C41: =C$8 -> 2021-22 | D41: =D$8 -> 2022-23 | E41: 2023-24 | F41: 2024-25 | G41: 2025-26 | H41: Average
B42: Total Capex - Direct costs that attracts network OHs | C42: =SUMIF('Input| Projects'!$R$9:$R$1008,"Yes",'Calc| Project Costs'!S$9:S$1008) -> 125273.7223 | D42: =SUMIF('Input| Projects'!$R$9:$R$1008,"Yes",'Calc| Project Costs'!T$9:T$1008) -> 132466.4194 | E42: =SUMIF('Input| Projects'!$R$9:$R$1008,"Yes",'Calc| Project Costs'!U$9:U$1008) -> 111972.3692 | F42: =SUMIF('Input| Projects'!$R$9:$R$1008,"Yes",'Calc| Project Costs'!V$9:V$1008) -> 104663.2877 | G42: =SUMIF('Input| Projects'!$R$9:$R$1008,"Yes",'Calc| Project Costs'!W$9:W$1008) -> 94058.5376 | H42: =AVERAGE(C42:G42) -> 113686.8672
B43: Total Capex - Direct costs that attracts corporate OHs | C43: =SUMIF('Input| Projects'!$S$9:$S$1008,"Yes",'Calc| Project Costs'!S$9:S$1008) -> 125273.7223 | D43: =SUMIF('Input| Projects'!$S$9:$S$1008,"Yes",'Calc| Project Costs'!T$9:T$1008) -> 132466.4194 | E43: =SUMIF('Input| Projects'!$S$9:$S$1008,"Yes",'Calc| Project Costs'!U$9:U$1008) -> 111972.3692 | F43: =SUMIF('Input| Projects'!$S$9:$S$1008,"Yes",'Calc| Project Costs'!V$9:V$1008) -> 104663.2877 | G43: =SUMIF('Input| Projects'!$S$9:$S$1008,"Yes",'Calc| Project Costs'!W$9:W$1008) -> 94058.5376 | H43: =AVERAGE(C43:G43) -> 113686.8672
B46: =LEFT(B41,2)+1&". Change in direct costs attracting capitalised overheads" -> 29. Change in direct costs attracting capitalised overheads | C46: Current period | D46: Forecast period | E46: Change
C47: ="($'000s "&'Input| Escalations'!D10&" "&'Input| Escalations'!C10&")" -> ($'000s June 2021) | D47: =C47 -> ($'000s June 2021) | E47: %
B48: ="Direct costs that attract network OHs (annual average)" -> Direct costs that attract network OHs (annual average) | C48: =G35 -> 88244.63146 | D48: =H42 -> 113686.8672 | E48: =(D48-C48)/C48 -> 0.2883148285
B49: ="Direct costs that attract corporate OHs (annual average)" -> Direct costs that attract corporate OHs (annual average) | C49: =G36 -> 88244.63146 | D49: =H43 -> 113686.8672 | E49: =(D49-C49)/C49 -> 0.2883148285
B52: =LEFT(B46,2)+1&". Unescalated capitalised overheads, "&C47 -> 30. Unescalated capitalised overheads, ($'000s June 2021) | C52: Annual | D52: Total period | E52: Overhead rate (%)
C53: =C47 -> ($'000s June 2021) | D53: =D47 -> ($'000s June 2021) | E53: %
B54: Capitalised overheads - network | C54: ='Calc| Overheads Allocation'!G30*(1+(E48/4)) -> 18076.23594 | D54: =5*C54 -> 90381.1797 | E54: =C54/H42 -> 0.1590002115
B55: Capitalised overheads - corporate | C55: ='Calc| Overheads Allocation'!G31*(1+(E49/4)) -> 12805.50203 | D55: =5*C55 -> 64027.51015 | E55: =C55/H43 -> 0.1126383578
B58: =LEFT(B52,2)+1&". Annual unescalated capitalised overheads, "&C47 -> 31. Annual unescalated capitalised overheads, ($'000s June 2021) | C58: =C$8 -> 2021-22 | D58: =D$8 -> 2022-23 | E58: 2023-24 | F58: 2024-25 | G58: 2025-26 | H58: Total | I58: =SUM(I59:I61) -> 0
B59: Capitalised overheads - network | C59: =IF('Input| Overheads'!C8="",$E$54*C42,'Input| Overheads'!C8) -> 19918.54835 | D59: =IF('Input| Overheads'!D8="",$E$54*D42,'Input| Overheads'!D8) -> 21062.18871 | E59: =IF('Input| Overheads'!E8="",$E$54*E42,'Input| Overheads'!E8) -> 17803.63038 | F59: =IF('Input| Overheads'!F8="",$E$54*F42,'Input| Overheads'!F8) -> 16641.48488 | G59: =IF('Input| Overheads'!G8="",$E$54*G42,'Input| Overheads'!G8) -> 14955.32738 | H59: =SUM(C59:G59) -> 90381.1797 | I59: =IF(H59='Input| Overheads'!H8,"",IF('Input| Overheads'!H8="","",1)) -> 
B60: Capitalised overheads - corporate | C60: =IF('Input| Overheads'!C9="",$E$55*C43,'Input| Overheads'!C9) -> 14110.62636 | D60: =IF('Input| Overheads'!D9="",$E$55*D43,'Input| Overheads'!D9) -> 14920.79995 | E60: =IF('Input| Overheads'!E9="",$E$55*E43,'Input| Overheads'!E9) -> 12612.38378 | F60: =IF('Input| Overheads'!F9="",$E$55*F43,'Input| Overheads'!F9) -> 11789.10085 | G60: =IF('Input| Overheads'!G9="",$E$55*G43,'Input| Overheads'!G9) -> 10594.59921 | H60: =SUM(C60:G60) -> 64027.51015 | I60: =IF(H60='Input| Overheads'!H9,"",IF('Input| Overheads'!H9="","",1)) -> 
B61: Total forecast capitalised overheads | C61: =C59+C60 -> 34029.17471 | D61: =D59+D60 -> 35982.98866 | E61: 30416.01416 | F61: 28430.58573 | G61: 25549.92659 | H61: 154408.6899 | I61: =IF(H61='Input| Overheads'!H10,"",IF('Input| Overheads'!H10="","",1)) -> 
B64: =LEFT(B58,2)+1&". Real cost escalation - index" -> 32. Real cost escalation - index | C64: =C$8 -> 2021-22 | D64: =D$8 -> 2022-23 | E64: 2023-24 | F64: 2024-25 | G64: 2025-26
B65: Real Cost Escalation Rate - Network | C65: =IFERROR('Input| Overheads'!$C28*(INDEX('Input| Escalations'!$C$23:$I$25,3,MATCH(C$64,'Input| Escalations'!$C$23:$I$23,0))-1)+1,"") -> 1.0139711 | D65: =IFERROR('Input| Overheads'!$C28*(INDEX('Input| Escalations'!$C$23:$I$25,3,MATCH(D$64,'Input| Escalations'!$C$23:$I$23,0))-1)+1,"") -> 1.016184281 | E65: =IFERROR('Input| Overheads'!$C28*(INDEX('Input| Escalations'!$C$23:$I$25,3,MATCH(E$64,'Input| Escalations'!$C$23:$I$23,0))-1)+1,"") -> 1.01823207 | F65: =IFERROR('Input| Overheads'!$C28*(INDEX('Input| Escalations'!$C$23:$I$25,3,MATCH(F$64,'Input| Escalations'!$C$23:$I$23,0))-1)+1,"") -> 1.020710542 | G65: =IFERROR('Input| Overheads'!$C28*(INDEX('Input| Escalations'!$C$23:$I$25,3,MATCH(G$64,'Input| Escalations'!$C$23:$I$23,0))-1)+1,"") -> 1.023950519
B66: Real Cost Escalation Rate - Corporate | C66: =IFERROR('Input| Overheads'!$C29*(INDEX('Input| Escalations'!$C$23:$I$25,3,MATCH(C$64,'Input| Escalations'!$C$23:$I$23,0))-1)+1,"") -> 1.0139711 | D66: =IFERROR('Input| Overheads'!$C29*(INDEX('Input| Escalations'!$C$23:$I$25,3,MATCH(D$64,'Input| Escalations'!$C$23:$I$23,0))-1)+1,"") -> 1.016184281 | E66: =IFERROR('Input| Overheads'!$C29*(INDEX('Input| Escalations'!$C$23:$I$25,3,MATCH(E$64,'Input| Escalations'!$C$23:$I$23,0))-1)+1,"") -> 1.01823207 | F66: =IFERROR('Input| Overheads'!$C29*(INDEX('Input| Escalations'!$C$23:$I$25,3,MATCH(F$64,'Input| Escalations'!$C$23:$I$23,0))-1)+1,"") -> 1.020710542 | G66: =IFERROR('Input| Overheads'!$C29*(INDEX('Input| Escalations'!$C$23:$I$25,3,MATCH(G$64,'Input| Escalations'!$C$23:$I$23,0))-1)+1,"") -> 1.023950519

Sheet Calc| Project Costs
C1: =IFERROR(Index!B1,"") -> AER Capex Forecast Model | D1: Sheet Validation | E1: ='Model Validation'!$C$13 -> 0
C2: =IFERROR(MID(CELL("filename",B1),FIND("]",CELL("filename",B1))+1,255),"") -> Calc| Project Costs
Y4: Capital contributions (cash and gifted assets) | AK4: Gross direct capex | AQ4: Capitalised overheads | BI4: Capitalised overheads allocated to cash capcons | BO4: Capitalised overheads allocated to gifted assets capcons | CG4: Gross capex for PTRM table
G5: =IFERROR(SUM(G9:G1008),"") -> 161466.7517 | H5: =IFERROR(SUM(H9:H1008),"") -> 155079.3422 | I5: 135178.8937 | J5: 126076.1359 | K5: 104285.5923 | S5: =IFERROR(SUM(S9:S1008),"") -> 163818.473 | T5: =IFERROR(SUM(T9:T1008),"") -> 157842.3712 | U5: 137588.1976 | V5: 128631.2321 | W5: 106715.8596 | Y5: 2078.445838 | Z5: 3196.630303 | AA5: 3258.753668 | AB5: 3322.846412 | AC5: 3267.939289 | AE5: 25706.03572 | AF5: 26128.07484 | AG5: 27023.76034 | AH5: 26922.60211 | AI5: 25869.17979 | AK5: 161740.0272 | AL5: 154645.7409 | AM5: 134329.444 | AN5: 125308.3856 | AO5: 103447.9203 | AQ5: 20196.83239 | AR5: 21403.06508 | AS5: 18128.22741 | AT5: 16986.13906 | AU5: 15313.51522 | AW5: 14307.76734 | AX5: 15162.28236 | AY5: 12842.33364 | AZ5: 12033.25952 | BA5: 10848.34536 | BC5: 34504.59972 | BD5: 36565.34745 | BE5: 30970.56106 | BF5: 29019.39858 | BG5: 26161.86058 | BI5: 7080.307477 | BJ5: 7212.259067 | BK5: 7474.531671 | BL5: 7464.677813 | BM5: 7195.368885 | BO5: =IFERROR(SUM(BO9:BO1008),"") -> 335.0904038 | BP5: 516.4907961 | BQ5: 527.5893332 | BR5: 539.2753512 | BS5: 532.0478005 | BU5: =IFERROR(SUM(BU9:BU1008),"") -> 237.3835383 | BV5: 365.8905516 | BW5: 373.7529373 | BX5: 382.0315041 | BY5: 376.9113886 | CA5: =IFERROR(SUM(CA9:CA1008),"") -> 572.4739421 | CB5: 882.3813477 | CC5: 901.3422705 | CD5: 921.3068553 | CE5: 908.9591891 | CG5: =IFERROR(SUM(CG9:CG1008),"") -> 195672.1529 | CH5: =IFERROR(SUM(CH9:CH1008),"") -> 190328.707 | CI5: =IFERROR(SUM(CI9:CI1008),"") -> 164398.6628 | CJ5: =IFERROR(SUM(CJ9:CJ1008),"") -> 153406.4774 | CK5: =IFERROR(SUM(CK9:CK1008),"") -> 128700.8217
C6: =IFERROR('Input| Projects'!C8,"") -> Project/Program Inputs | D6: =IFERROR('Input| Projects'!D8,"") -> Unique ID | E6: =IFERROR('Input| Projects'!F8,"") -> AER categories | G6: =IFERROR(LEFT('Calc| Overheads Allocation'!B64,2)+1&". Direct unescalated costs (incl. gifted assets), $000s ($"&'Input| Escalations'!$C$10&" "&'Input| Escalations'!$D$10&")","") -> 33. Direct unescalated costs (incl. gifted assets), $000s ($2021 June) | M6: =LEFT(G6,2)+1&". Compound real cost escalation rates" -> 34. Compound real cost escalation rates | S6: =IFERROR(LEFT(M6,2)+1&". Direct escalated costs (Including gifted assets) ($'000s "&'Input| Escalations'!D10&" "&'Input| Escalations'!C10&")","") -> 35. Direct escalated costs (Including gifted assets) ($'000s June 2021) | Y6: =IFERROR(LEFT(S6,2)+1&". Direct escalated gifted assets ($'000s "&'Input| Escalations'!D10&" "&'Input| Escalations'!C10&")","") -> 36. Direct escalated gifted assets ($'000s June 2021) | AE6: =IFERROR(LEFT(Y6,2)+1&". Direct escalated cash contributions ($'000s "&'Input| Escalations'!D10&" "&'Input| Escalations'!C10&")","") -> 37. Direct escalated cash contributions ($'000s June 2021) | AK6: =IFERROR(LEFT(AE6,2)+1&". Direct escalated costs (excluding gifted assets) ($'000s "&'Input| Escalations'!D10&" "&'Input| Escalations'!C10&")","") -> 38. Direct escalated costs (excluding gifted assets) ($'000s June 2021) | AQ6: =IFERROR(LEFT(AK6,2)+1&". Network overheads ($'000s "&'Input| Escalations'!D10&" "&'Input| Escalations'!C10&")","") -> 39. Network overheads ($'000s June 2021) | AW6: =IFERROR(LEFT(AQ6,2)+1&". Corporate overheads ($'000s "&'Input| Escalations'!D10&" "&'Input| Escalations'!C10&")","") -> 40. Corporate overheads ($'000s June 2021) | BC6: =IFERROR(LEFT(AW6,2)+1&". Total capitalised overheads ($'000s "&'Input| Escalations'!D10&" "&'Input| Escalations'!C10&")","") -> 41. Total capitalised overheads ($'000s June 2021) | BI6: =IFERROR(LEFT(BC6,2)+1&". Total overheads allocated to cash contributions ($'000s "&'Input| Escalations'!D10&" "&'Input| Escalations'!C10&")","") -> 42. Total overheads allocated to cash contributions ($'000s June 2021) | BO6: =IFERROR(LEFT(BI6,2)+1&". Network overheads allocated to gifted assets ($'000s "&'Input| Escalations'!D10&" "&'Input| Escalations'!C10&")","") -> 43. Network overheads allocated to gifted assets ($'000s June 2021) | BU6: =IFERROR(LEFT(BO6,2)+1&". Corporate overheads allocated to gifted assets ($'000s "&'Input| Escalations'!D10&" "&'Input| Escalations'!C10&")","") -> 44. Corporate overheads allocated to gifted assets ($'000s June 2021) | CA6: =IFERROR(LEFT(BU6,2)+1&". Total overheads allocated to gifted assets ($'000s "&'Input| Escalations'!D10&" "&'Input| Escalations'!C10&")","") -> 45. Total overheads allocated to gifted assets ($'000s June 2021) | CG6: =IFERROR(LEFT(CA6,2)+1&". Total Escalated costs (Excluding gifted assets) ($'000s "&'Input| Escalations'!D10&" "&'Input| Escalations'!C10&")","") -> 46. Total Escalated costs (Excluding gifted assets) ($'000s June 2021)
L7: =IF(SUM(G5:K5)=SUM('Input| Projects'!I5:M5)*'Input| Escalations'!$J$19,0,1) -> 0 | S7: =IF(SUMPRODUCT(G9:G1008,M9:M1008)-SUM(S5)<0.0000001,0,1) -> 0 | T7: 0 | U7: 0 | V7: 0 | W7: 0 | Y7: =IF(SUMPRODUCT(S9:S1008,'Input| Projects'!$U$9:$U$1008)=Y5,0,1) -> 0 | Z7: =IF(SUMPRODUCT(T9:T1008,'Input| Projects'!$U$9:$U$1008)=Z5,0,1) -> 0 | AA7: =IF(SUMPRODUCT(U9:U1008,'Input| Projects'!$U$9:$U$1008)=AA5,0,1) -> 0 | AB7: =IF(SUMPRODUCT(V9:V1008,'Input| Projects'!$U$9:$U$1008)=AB5,0,1) -> 0 | AC7: =IF(SUMPRODUCT(W9:W1008,'Input| Projects'!$U$9:$U$1008)=AC5,0,1) -> 0 | AE7: =IF(SUMPRODUCT(S9:S1008,'Input| Projects'!$V$9:$V$1008)=AE5,0,1) -> 0 | AF7: =IF(SUMPRODUCT(T9:T1008,'Input| Projects'!$V$9:$V$1008)=AF5,0,1) -> 0 | AG7: =IF(SUMPRODUCT(U9:U1008,'Input| Projects'!$V$9:$V$1008)=AG5,0,1) -> 0 | AH7: =IF(SUMPRODUCT(V9:V1008,'Input| Projects'!$V$9:$V$1008)=AH5,0,1) -> 0 | AI7: =IF(SUMPRODUCT(W9:W1008,'Input| Projects'!$V$9:$V$1008)=AI5,0,1) -> 0 | AK7: =IF(S5-Y5=AK5,0,1) -> 0 | AL7: =IF(T5-Z5=AL5,0,1) -> 0 | AM7: =IF(U5-AA5=AM5,0,1) -> 0 | AN7: =IF(V5-AB5=AN5,0,1) -> 0 | AO7: =IF(W5-AC5=AO5,0,1) -> 0 | AQ7: =IF(ABS(SUM('Calc| Overheads Allocation'!C15)-AQ5)<0.0000001,0,1) -> 0 | AR7: =IF(ABS(SUM('Calc| Overheads Allocation'!D15)-AR5)<0.0000001,0,1) -> 0 | AS7: =IF(ABS(SUM('Calc| Overheads Allocation'!E15)-AS5)<0.0000001,0,1) -> 0 | AT7: =IF(ABS(SUM('Calc| Overheads Allocation'!F15)-AT5)<0.0000001,0,1) -> 0 | AU7: =IF(ABS(SUM('Calc| Overheads Allocation'!G15)-AU5)<0.0000001,0,1) -> 0 | AW7: =IF(ABS(SUM('Calc| Overheads Allocation'!C16)-AW5)<0.0000001,0,1) -> 0 | AX7: =IF(ABS(SUM('Calc| Overheads Allocation'!D16)-AX5)<0.0000001,0,1) -> 0 | AY7: =IF(ABS(SUM('Calc| Overheads Allocation'!E16)-AY5)<0.0000001,0,1) -> 0 | AZ7: =IF(ABS(SUM('Calc| Overheads Allocation'!F16)-AZ5)<0.0000001,0,1) -> 0 | BA7: =IF(ABS(SUM('Calc| Overheads Allocation'!G16)-BA5)<0.0000001,0,1) -> 0 | BC7: =IF(ABS('Calc| Overheads Allocation'!C17-BC5)<0.0000001,0,1) -> 0 | BD7: =IF(ABS('Calc| Overheads Allocation'!D17-BD5)<0.0000001,0,1) -> 0 | BE7: =IF(ABS('Calc| Overheads Allocation'!E17-BE5)<0.0000001,0,1) -> 0 | BF7: =IF(ABS('Calc| Overheads Allocation'!F17-BF5)<0.0000001,0,1) -> 0 | BG7: =IF(ABS('Calc| Overheads Allocation'!G17-BG5)<0.0000001,0,1) -> 0 | BI7: =IF(SUMPRODUCT(BC9:BC1008,'Input| Projects'!$V$9:$V$1008)=BI5,0,1) -> 0 | BJ7: =IF(SUMPRODUCT(BD9:BD1008,'Input| Projects'!$V$9:$V$1008)=BJ5,0,1) -> 0 | BK7: =IF(SUMPRODUCT(BE9:BE1008,'Input| Projects'!$V$9:$V$1008)=BK5,0,1) -> 0 | BL7: =IF(SUMPRODUCT(BF9:BF1008,'Input| Projects'!$V$9:$V$1008)=BL5,0,1) -> 0 | BM7: =IF(SUMPRODUCT(BG9:BG1008,'Input| Projects'!$V$9:$V$1008)=BM5,0,1) -> 0 | BO7: =IF(SUMPRODUCT(AQ9:AQ1008,'Input| Projects'!$U$9:$U$1008)=BO5,0,1) -> 0 | BP7: =IF(SUMPRODUCT(AR9:AR1008,'Input| Projects'!$U$9:$U$1008)=BP5,0,1) -> 0 | BQ7: =IF(SUMPRODUCT(AS9:AS1008,'Input| Projects'!$U$9:$U$1008)=BQ5,0,1) -> 0 | BR7: =IF(SUMPRODUCT(AT9:AT1008,'Input| Projects'!$U$9:$U$1008)=BR5,0,1) -> 0 | BS7: =IF(SUMPRODUCT(AU9:AU1008,'Input| Projects'!$U$9:$U$1008)=BS5,0,1) -> 0 | BU7: =IF(SUMPRODUCT(AW9:AW1008,'Input| Projects'!$U$9:$U$1008)=BU5,0,1) -> 0 | BV7: =IF(SUMPRODUCT(AX9:AX1008,'Input| Projects'!$U$9:$U$1008)=BV5,0,1) -> 0 | BW7: =IF(SUMPRODUCT(AY9:AY1008,'Input| Projects'!$U$9:$U$1008)=BW5,0,1) -> 0 | BX7: =IF(SUMPRODUCT(AZ9:AZ1008,'Input| Projects'!$U$9:$U$1008)=BX5,0,1) -> 0 | BY7: =IF(SUMPRODUCT(BA9:BA1008,'Input| Projects'!$U$9:$U$1008)=BY5,0,1) -> 0 | CA7: =IF(SUMPRODUCT(BC9:BC1008,'Input| Projects'!$U$9:$U$1008)=CA5,0,1) -> 0 | CB7: =IF(SUMPRODUCT(BD9:BD1008,'Input| Projects'!$U$9:$U$1008)=CB5,0,1) -> 0 | CC7: =IF(SUMPRODUCT(BE9:BE1008,'Input| Projects'!$U$9:$U$1008)=CC5,0,1) -> 0 | CD7: =IF(SUMPRODUCT(BF9:BF1008,'Input| Projects'!$U$9:$U$1008)=CD5,0,1) -> 0 | CE7: =IF(SUMPRODUCT(BG9:BG1008,'Input| Projects'!$U$9:$U$1008)=CE5,0,1) -> 0 | CG7: =IF(ABS(CG5-(AK5+BC5-CA5))<0.0000001,0,1) -> 0 | CH7: =IF(ABS(CH5-(AL5+BD5-CB5))<0.0000001,0,1) -> 0 | CI7: =IF(ABS(CI5-(AM5+BE5-CC5))<0.0000001,0,1) -> 0 | CJ7: =IF(ABS(CJ5-(AN5+BF5-CD5))<0.0000001,0,1) -> 0 | CK7: =IF(ABS(CK5-(AO5+BG5-CE5))<0.0000001,0,1) -> 0
G8: =IFERROR('Input| Escalations'!E23,"") -> 2021-22 | H8: =IFERROR('Input| Escalations'!F23,"") -> 2022-23 | I8: =IFERROR('Input| Escalations'!G23,"") -> 2023-24 | J8: =IFERROR('Input| Escalations'!H23,"") -> 2024-25 | K8: =IFERROR('Input| Escalations'!I23,"") -> 2025-26 | M8: =G8 -> 2021-22 | N8: =H8 -> 2022-23 | O8: 2023-24 | P8: 2024-25 | Q8: 2025-26 | S8: =M8 -> 2021-22 | T8: =N8 -> 2022-23 | U8: =O8 -> 2023-24 | V8: =P8 -> 2024-25 | W8: =Q8 -> 2025-26 | Y8: =S8 -> 2021-22 | Z8: =T8 -> 2022-23 | AA8: =U8 -> 2023-24 | AB8: =V8 -> 2024-25 | AC8: =W8 -> 2025-26 | AE8: =Y8 -> 2021-22 | AF8: =Z8 -> 2022-23 | AG8: =AA8 -> 2023-24 | AH8: =AB8 -> 2024-25 | AI8: =AC8 -> 2025-26 | AK8: =AE8 -> 2021-22 | AL8: =AF8 -> 2022-23 | AM8: =AG8 -> 2023-24 | AN8: =AH8 -> 2024-25 | AO8: =AI8 -> 2025-26 | AQ8: =AK8 -> 2021-22 | AR8: =AL8 -> 2022-23 | AS8: =AM8 -> 2023-24 | AT8: =AN8 -> 2024-25 | AU8: =AO8 -> 2025-26 | AW8: =AQ8 -> 2021-22 | AX8: =AR8 -> 2022-23 | AY8: =AS8 -> 2023-24 | AZ8: =AT8 -> 2024-25 | BA8: =AU8 -> 2025-26 | BC8: =AW8 -> 2021-22 | BD8: =AX8 -> 2022-23 | BE8: =AY8 -> 2023-24 | BF8: =AZ8 -> 2024-25 | BG8: =BA8 -> 2025-26 | BI8: =CG8 -> 2021-22 | BJ8: =CH8 -> 2022-23 | BK8: =CI8 -> 2023-24 | BL8: =CJ8 -> 2024-25 | BM8: =CK8 -> 2025-26 | BO8: =BI8 -> 2021-22 | BP8: =BJ8 -> 2022-23 | BQ8: =BK8 -> 2023-24 | BR8: =BL8 -> 2024-25 | BS8: =BM8 -> 2025-26 | BU8: =BO8 -> 2021-22 | BV8: =BP8 -> 2022-23 | BW8: =BQ8 -> 2023-24 | BX8: =BR8 -> 2024-25 | BY8: =BS8 -> 2025-26 | CA8: =BU8 -> 2021-22 | CB8: =BV8 -> 2022-23 | CC8: =BW8 -> 2023-24 | CD8: =BX8 -> 2024-25 | CE8: =BY8 -> 2025-26 | CG8: =BC8 -> 2021-22 | CH8: =BD8 -> 2022-23 | CI8: =BE8 -> 2023-24 | CJ8: =BF8 -> 2024-25 | CK8: =BG8 -> 2025-26
B9: =IFERROR('Input| Projects'!B9,"") -> 1 | C9: =IFERROR(IF('Input| Projects'!C9="","",'Input| Projects'!C9),"") -> Project 1 | D9: =IFERROR(IF('Input| Projects'!D9="","",'Input| Projects'!D9),"") -> 1 | E9: =IFERROR(IF('Input| Projects'!F9="","",'Input| Projects'!F9),"") -> Replacement | G9: =IFERROR('Input| Projects'!I9*'Input| Escalations'!$J$19,"") -> 2284.421838 | H9: =IFERROR('Input| Projects'!J9*'Input| Escalations'!$J$19,"") -> 2334.317834 | I9: =IFERROR('Input| Projects'!K9*'Input| Escalations'!$J$19,"") -> 2410.690115 | J9: =IFERROR('Input| Projects'!L9*'Input| Escalations'!$J$19,"") -> 2483.637255 | K9: =IFERROR('Input| Projects'!M9*'Input| Escalations'!$J$19,"") -> 2556.584396 | L9: =IF(SUM(G9:K9)=SUM('Input| Projects'!I9:M9)*'Input| Escalations'!$J$19,"",1) ->  | M9: =IF($C9="","",IFERROR('Input| Projects'!$O9*(INDEX('Input| Escalations'!$C$23:$I$25,3,MATCH('Calc| Project Costs'!M$8,'Input| Escalations'!$C$23:$I$23,0))-1)+1,"")) -> 1.019451671 | N9: =IF($C9="","",IFERROR('Input| Projects'!$O9*(INDEX('Input| Escalations'!$C$23:$I$25,3,MATCH('Calc| Project Costs'!N$8,'Input| Escalations'!$C$23:$I$23,0))-1)+1,"")) -> 1.022533036 | O9: =IF($C9="","",IFERROR('Input| Projects'!$O9*(INDEX('Input| Escalations'!$C$23:$I$25,3,MATCH('Calc| Project Costs'!O$8,'Input| Escalations'!$C$23:$I$23,0))-1)+1,"")) -> 1.02538413 | P9: =IF($C9="","",IFERROR('Input| Projects'!$O9*(INDEX('Input| Escalations'!$C$23:$I$25,3,MATCH('Calc| Project Costs'!P$8,'Input| Escalations'!$C$23:$I$23,0))-1)+1,"")) -> 1.028834855 | Q9: =IF($C9="","",IFERROR('Input| Projects'!$O9*(INDEX('Input| Escalations'!$C$23:$I$25,3,MATCH('Calc| Project Costs'!Q$8,'Input| Escalations'!$C$23:$I$23,0))-1)+1,"")) -> 1.033345806 | S9: =IFERROR(G9*M9,"") -> 2328.85766 | T9: =IFERROR(H9*N9,"") -> 2386.917101 | U9: =IFERROR(I9*O9,"") -> 2471.883386 | V9: =IFERROR(J9*P9,"") -> 2555.252577 | W9: 2641.835764 | Y9: =IFERROR(S9*'Input| Projects'!$U9,"") -> 0 | Z9: =IFERROR(T9*'Input| Projects'!$U9,"") -> 0 | AA9: =IFERROR(U9*'Input| Projects'!$U9,"") -> 0 | AB9: =IFERROR(V9*'Input| Projects'!$U9,"") -> 0 | AC9: =IFERROR(W9*'Input| Projects'!$U9,"") -> 0 | AE9: =IFERROR(S9*'Input| Projects'!$V9,"") -> 0 | AF9: =IFERROR(T9*'Input| Projects'!$V9,"") -> 0 | AG9: =IFERROR(U9*'Input| Projects'!$V9,"") -> 0 | AH9: =IFERROR(V9*'Input| Projects'!$V9,"") -> 0 | AI9: =IFERROR(W9*'Input| Projects'!$V9,"") -> 0 | AK9: =IFERROR(S9-Y9,"") -> 2328.85766 | AL9: =IFERROR(T9-Z9,"") -> 2386.917101 | AM9: =IFERROR(U9-AA9,"") -> 2471.883386 | AN9: =IFERROR(V9-AB9,"") -> 2555.252577 | AO9: =IFERROR(W9-AC9,"") -> 2641.835764 | AQ9: =IFERROR(IF('Input| Projects'!$R9="Yes", S9*'Calc| Overheads Allocation'!C$9,0),"") -> 375.4622034 | AR9: =IFERROR(IF('Input| Projects'!$R9="Yes", T9*'Calc| Overheads Allocation'!D$9,0),"") -> 385.6625875 | AS9: =IFERROR(IF('Input| Projects'!$R9="Yes", U9*'Calc| Overheads Allocation'!E$9,0),"") -> 400.1957313 | AT9: =IFERROR(IF('Input| Projects'!$R9="Yes", V9*'Calc| Overheads Allocation'!F$9,0),"") -> 414.7000975 | AU9: =IFERROR(IF('Input| Projects'!$R9="Yes", W9*'Calc| Overheads Allocation'!G$9,0),"") -> 430.1129192 | AW9: =IFERROR(IF('Input| Projects'!$S9="Yes", S9*'Calc| Overheads Allocation'!C$10,0),"") -> 265.9835833 | AX9: =IFERROR(IF('Input| Projects'!$S9="Yes", T9*'Calc| Overheads Allocation'!D$10,0),"") -> 273.2097027 | AY9: =IFERROR(IF('Input| Projects'!$S9="Yes", U9*'Calc| Overheads Allocation'!E$10,0),"") -> 283.5052202 | AZ9: =IFERROR(IF('Input| Projects'!$S9="Yes", V9*'Calc| Overheads Allocation'!F$10,0),"") -> 293.780351 | BA9: =IFERROR(IF('Input| Projects'!$S9="Yes", W9*'Calc| Overheads Allocation'!G$10,0),"") -> 304.6990468 | BC9: =IFERROR(SUM(AQ9,AW9),"") -> 641.4457867 | BD9: =IFERROR(SUM(AR9,AX9),"") -> 658.8722901 | BE9: =IFERROR(SUM(AS9,AY9),"") -> 683.7009515 | BF9: =IFERROR(SUM(AT9,AZ9),"") -> 708.4804485 | BG9: =IFERROR(SUM(AU9,BA9),"") -> 734.811966 | BI9: =IFERROR(BC9*'Input| Projects'!$V9,"") -> 0 | BJ9: =IFERROR(BD9*'Input| Projects'!$V9,"") -> 0 | BK9: =IFERROR(BE9*'Input| Projects'!$V9,"") -> 0 | BL9: =IFERROR(BF9*'Input| Projects'!$V9,"") -> 0 | BM9: =IFERROR(BG9*'Input| Projects'!$V9,"") -> 0 | BO9: =IFERROR(AQ9*'Input| Projects'!$U9,"") -> 0 | BP9: =IFERROR(AR9*'Input| Projects'!$U9,"") -> 0 | BQ9: =IFERROR(AS9*'Input| Projects'!$U9,"") -> 0 | BR9: =IFERROR(AT9*'Input| Projects'!$U9,"") -> 0 | BS9: =IFERROR(AU9*'Input| Projects'!$U9,"") -> 0 | BU9: =IFERROR(AW9*'Input| Projects'!$U9,"") -> 0 | BV9: =IFERROR(AX9*'Input| Projects'!$U9,"") -> 0 | BW9: =IFERROR(AY9*'Input| Projects'!$U9,"") -> 0 | BX9: =IFERROR(AZ9*'Input| Projects'!$U9,"") -> 0 | BY9: =IFERROR(BA9*'Input| Projects'!$U9,"") -> 0 | CA9: =IFERROR(BC9*'Input| Projects'!$U9,"") -> 0 | CB9: =IFERROR(BD9*'Input| Projects'!$U9,"") -> 0 | CC9: =IFERROR(BE9*'Input| Projects'!$U9,"") -> 0 | CD9: =IFERROR(BF9*'Input| Projects'!$U9,"") -> 0 | CE9: =IFERROR(BG9*'Input| Projects'!$U9,"") -> 0 | CG9: =IFERROR(SUM(AK9,BC9)-CA9,"") -> 2970.303447 | CH9: =IFERROR(SUM(AL9,BD9)-CB9,"") -> 3045.789391 | CI9: =IFERROR(SUM(AM9,BE9)-CC9,"") -> 3155.584337 | CJ9: =IFERROR(SUM(AN9,BF9)-CD9,"") -> 3263.733025 | CK9: =IFERROR(SUM(AO9,BG9)-CE9,"") -> 3376.64773
B10: =IFERROR('Input| Projects'!B10,"") -> 2 | C10: =IFERROR(IF('Input| Projects'!C10="","",'Input| Projects'!C10),"") -> Project 2 | D10: =IFERROR(IF('Input| Projects'!D10="","",'Input| Projects'!D10),"") -> 2 | E10: =IFERROR(IF('Input| Projects'!F10="","",'Input| Projects'!F10),"") -> DER capex | G10: =IFERROR('Input| Projects'!I10*'Input| Escalations'!$J$19,"") -> 0 | H10: =IFERROR('Input| Projects'!J10*'Input| Escalations'!$J$19,"") -> 0 | I10: =IFERROR('Input| Projects'!K10*'Input| Escalations'!$J$19,"") -> 0 | J10: =IFERROR('Input| Projects'!L10*'Input| Escalations'!$J$19,"") -> 0 | K10: =IFERROR('Input| Projects'!M10*'Input| Escalations'!$J$19,"") -> 0 | L10: =IF(SUM(G10:K10)=SUM('Input| Projects'!I10:M10)*'Input| Escalations'!$J$19,"",1) ->  | M10: =IF($C10="","",IFERROR('Input| Projects'!$O10*(INDEX('Input| Escalations'!$C$23:$I$25,3,MATCH('Calc| Project Costs'!M$8,'Input| Escalations'!$C$23:$I$23,0))-1)+1,"")) -> 1.041997283 | N10: =IF($C10="","",IFERROR('Input| Projects'!$O10*(INDEX('Input| Escalations'!$C$23:$I$25,3,MATCH('Calc| Project Costs'!N$8,'Input| Escalations'!$C$23:$I$23,0))-1)+1,"")) -> 1.048650128 | O10: =IF($C10="","",IFERROR('Input| Projects'!$O10*(INDEX('Input| Escalations'!$C$23:$I$25,3,MATCH('Calc| Project Costs'!O$8,'Input| Escalations'!$C$23:$I$23,0))-1)+1,"")) -> 1.054805805 | P10: =IF($C10="","",IFERROR('Input| Projects'!$O10*(INDEX('Input| Escalations'!$C$23:$I$25,3,MATCH('Calc| Project Costs'!P$8,'Input| Escalations'!$C$23:$I$23,0))-1)+1,"")) -> 1.062256121 | Q10: =IF($C10="","",IFERROR('Input| Projects'!$O10*(INDEX('Input| Escalations'!$C$23:$I$25,3,MATCH('Calc| Project Costs'!Q$8,'Input| Escalations'!$C$23:$I$23,0))-1)+1,"")) -> 1.071995525 | S10: =IFERROR(G10*M10,"") -> 0 | T10: 0 | U10: 0 | V10: 0 | W10: =IFERROR(K10*Q10,"") -> 0 | Y10: =IFERROR(S10*'Input| Projects'!$U10,"") -> 0 | Z10: =IFERROR(T10*'Input| Projects'!$U10,"") -> 0 | AA10: =IFERROR(U10*'Input| Projects'!$U10,"") -> 0 | AB10: =IFERROR(V10*'Input| Projects'!$U10,"") -> 0 | AC10: =IFERROR(W10*'Input| Projects'!$U10,"") -> 0 | AE10: =IFERROR(S10*'Input| Projects'!$V10,"") -> 0 | AF10: =IFERROR(T10*'Input| Projects'!$V10,"") -> 0 | AG10: =IFERROR(U10*'Input| Projects'!$V10,"") -> 0 | AH10: =IFERROR(V10*'Input| Projects'!$V10,"") -> 0 | AI10: =IFERROR(W10*'Input| Projects'!$V10,"") -> 0 | AK10: =IFERROR(S10-Y10,"") -> 0 | AL10: 0 | AM10: 0 | AN10: 0 | AO10: 0 | AQ10: =IFERROR(IF('Input| Projects'!$R10="Yes", S10*'Calc| Overheads Allocation'!C$9,0),"") -> 0 | AR10: =IFERROR(IF('Input| Projects'!$R10="Yes", T10*'Calc| Overheads Allocation'!D$9,0),"") -> 0 | AS10: =IFERROR(IF('Input| Projects'!$R10="Yes", U10*'Calc| Overheads Allocation'!E$9,0),"") -> 0 | AT10: =IFERROR(IF('Input| Projects'!$R10="Yes", V10*'Calc| Overheads Allocation'!F$9,0),"") -> 0 | AU10: =IFERROR(IF('Input| Projects'!$R10="Yes", W10*'Calc| Overheads Allocation'!G$9,0),"") -> 0 | AW10: =IFERROR(IF('Input| Projects'!$S10="Yes", S10*'Calc| Overheads Allocation'!C$10,0),"") -> 0 | AX10: =IFERROR(IF('Input| Projects'!$S10="Yes", T10*'Calc| Overheads Allocation'!D$10,0),"") -> 0 | AY10: =IFERROR(IF('Input| Projects'!$S10="Yes", U10*'Calc| Overheads Allocation'!E$10,0),"") -> 0 | AZ10: =IFERROR(IF('Input| Projects'!$S10="Yes", V10*'Calc| Overheads Allocation'!F$10,0),"") -> 0 | BA10: =IFERROR(IF('Input| Projects'!$S10="Yes", W10*'Calc| Overheads Allocation'!G$10,0),"") -> 0 | BC10: =IFERROR(SUM(AQ10,AW10),"") -> 0 | BD10: 0 | BE10: 0 | BF10: 0 | BG10: 0 | BI10: =IFERROR(BC10*'Input| Projects'!$V10,"") -> 0 | BJ10: =IFERROR(BD10*'Input| Projects'!$V10,"") -> 0 | BK10: =IFERROR(BE10*'Input| Projects'!$V10,"") -> 0 | BL10: =IFERROR(BF10*'Input| Projects'!$V10,"") -> 0 | BM10: =IFERROR(BG10*'Input| Projects'!$V10,"") -> 0 | BO10: =IFERROR(AQ10*'Input| Projects'!$U10,"") -> 0 | BP10: =IFERROR(AR10*'Input| Projects'!$U10,"") -> 0 | BQ10: =IFERROR(AS10*'Input| Projects'!$U10,"") -> 0 | BR10: =IFERROR(AT10*'Input| Projects'!$U10,"") -> 0 | BS10: =IFERROR(AU10*'Input| Projects'!$U10,"") -> 0 | BU10: =IFERROR(AW10*'Input| Projects'!$U10,"") -> 0 | BV10: =IFERROR(AX10*'Input| Projects'!$U10,"") -> 0 | BW10: =IFERROR(AY10*'Input| Projects'!$U10,"") -> 0 | BX10: =IFERROR(AZ10*'Input| Projects'!$U10,"") -> 0 | BY10: =IFERROR(BA10*'Input| Projects'!$U10,"") -> 0 | CA10: =IFERROR(BC10*'Input| Projects'!$U10,"") -> 0 | CB10: =IFERROR(BD10*'Input| Projects'!$U10,"") -> 0 | CC10: =IFERROR(BE10*'Input| Projects'!$U10,"") -> 0 | CD10: =IFERROR(BF10*'Input| Projects'!$U10,"") -> 0 | CE10: =IFERROR(BG10*'Input| Projects'!$U10,"") -> 0 | CG10: 0 | CH10: 0 | CI10: 0 | CJ10: 0 | CK10: 0
B11: =IFERROR('Input| Projects'!B11,"") -> 3 | C11: =IFERROR(IF('Input| Projects'!C11="","",'Input| Projects'!C11),"") -> Project 3 | D11: =IFERROR(IF('Input| Projects'!D11="","",'Input| Projects'!D11),"") -> 3 | E11: =IFERROR(IF('Input| Projects'!F11="","",'Input| Projects'!F11),"") -> Augmentation | G11: =IFERROR('Input| Projects'!I11*'Input| Escalations'!$J$19,"") -> 216.328973 | H11: =IFERROR('Input| Projects'!J11*'Input| Escalations'!$J$19,"") -> 221.0539976 | I11: =IFERROR('Input| Projects'!K11*'Input| Escalations'!$J$19,"") -> 228.2862596 | J11: =IFERROR('Input| Projects'!L11*'Input| Escalations'!$J$19,"") -> 235.1941694 | K11: =IFERROR('Input| Projects'!M11*'Input| Escalations'!$J$19,"") -> 242.1020791 | L11: =IF(SUM(G11:K11)=SUM('Input| Projects'!I11:M11)*'Input| Escalations'!$J$19,"",1) ->  | M11: =IF($C11="","",IFERROR('Input| Projects'!$O11*(INDEX('Input| Escalations'!$C$23:$I$25,3,MATCH('Calc| Project Costs'!M$8,'Input| Escalations'!$C$23:$I$23,0))-1)+1,"")) -> 1.007634843 | N11: =IF($C11="","",IFERROR('Input| Projects'!$O11*(INDEX('Input| Escalations'!$C$23:$I$25,3,MATCH('Calc| Project Costs'!N$8,'Input| Escalations'!$C$23:$I$23,0))-1)+1,"")) -> 1.008844288 | O11: =IF($C11="","",IFERROR('Input| Projects'!$O11*(INDEX('Input| Escalations'!$C$23:$I$25,3,MATCH('Calc| Project Costs'!O$8,'Input| Escalations'!$C$23:$I$23,0))-1)+1,"")) -> 1.009963352 | P11: =IF($C11="","",IFERROR('Input| Projects'!$O11*(INDEX('Input| Escalations'!$C$23:$I$25,3,MATCH('Calc| Project Costs'!P$8,'Input| Escalations'!$C$23:$I$23,0))-1)+1,"")) -> 1.011317772 | Q11: =IF($C11="","",IFERROR('Input| Projects'!$O11*(INDEX('Input| Escalations'!$C$23:$I$25,3,MATCH('Calc| Project Costs'!Q$8,'Input| Escalations'!$C$23:$I$23,0))-1)+1,"")) -> 1.013088335 | S11: 217.9806106 | T11: 223.0090628 | U11: 230.5607558 | V11: 237.8560434 | W11: 245.2707922 | Y11: =IFERROR(S11*'Input| Projects'!$U11,"") -> 0 | Z11: =IFERROR(T11*'Input| Projects'!$U11,"") -> 0 | AA11: =IFERROR(U11*'Input| Projects'!$U11,"") -> 0 | AB11: =IFERROR(V11*'Input| Projects'!$U11,"") -> 0 | AC11: =IFERROR(W11*'Input| Projects'!$U11,"") -> 0 | AE11: =IFERROR(S11*'Input| Projects'!$V11,"") -> 69.53581479 | AF11: =IFERROR(T11*'Input| Projects'!$V11,"") -> 71.13989104 | AG11: =IFERROR(U11*'Input| Projects'!$V11,"") -> 73.54888111 | AH11: =IFERROR(V11*'Input| Projects'!$V11,"") -> 75.87607784 | AI11: =IFERROR(W11*'Input| Projects'!$V11,"") -> 78.24138271 | AK11: 217.9806106 | AL11: 223.0090628 | AM11: 230.5607558 | AN11: 237.8560434 | AO11: 245.2707922 | AQ11: =IFERROR(IF('Input| Projects'!$R11="Yes", S11*'Calc| Overheads Allocation'!C$9,0),"") -> 35.14318705 | AR11: =IFERROR(IF('Input| Projects'!$R11="Yes", T11*'Calc| Overheads Allocation'!D$9,0),"") -> 36.03235829 | AS11: =IFERROR(IF('Input| Projects'!$R11="Yes", U11*'Calc| Overheads Allocation'!E$9,0),"") -> 37.32758221 | AT11: =IFERROR(IF('Input| Projects'!$R11="Yes", V11*'Calc| Overheads Allocation'!F$9,0),"") -> 38.60241656 | AU11: =IFERROR(IF('Input| Projects'!$R11="Yes", W11*'Calc| Overheads Allocation'!G$9,0),"") -> 39.93213275 | AW11: =IFERROR(IF('Input| Projects'!$S11="Yes", S11*'Calc| Overheads Allocation'!C$10,0),"") -> 24.89601013 | AX11: =IFERROR(IF('Input| Projects'!$S11="Yes", T11*'Calc| Overheads Allocation'!D$10,0),"") -> 25.52591362 | AY11: =IFERROR(IF('Input| Projects'!$S11="Yes", U11*'Calc| Overheads Allocation'!E$10,0),"") -> 26.44347149 | AZ11: =IFERROR(IF('Input| Projects'!$S11="Yes", V11*'Calc| Overheads Allocation'!F$10,0),"") -> 27.34658506 | BA11: =IFERROR(IF('Input| Projects'!$S11="Yes", W11*'Calc| Overheads Allocation'!G$10,0),"") -> 28.28857782 | BC11: 60.03919718 | BD11: 61.55827191 | BE11: 63.77105369 | BF11: 65.94900161 | BG11: 68.22071056 | BI11: =IFERROR(BC11*'Input| Projects'!$V11,"") -> 19.1525039 | BJ11: =IFERROR(BD11*'Input| Projects'!$V11,"") -> 19.63708874 | BK11: =IFERROR(BE11*'Input| Projects'!$V11,"") -> 20.34296613 | BL11: =IFERROR(BF11*'Input| Projects'!$V11,"") -> 21.03773151 | BM11: =IFERROR(BG11*'Input| Projects'!$V11,"") -> 21.76240667 | BO11: =IFERROR(AQ11*'Input| Projects'!$U11,"") -> 0 | BP11: =IFERROR(AR11*'Input| Projects'!$U11,"") -> 0 | BQ11: =IFERROR(AS11*'Input| Projects'!$U11,"") -> 0 | BR11: =IFERROR(AT11*'Input| Projects'!$U11,"") -> 0 | BS11: =IFERROR(AU11*'Input| Projects'!$U11,"") -> 0 | BU11: =IFERROR(AW11*'Input| Projects'!$U11,"") -> 0 | BV11: =IFERROR(AX11*'Input| Projects'!$U11,"") -> 0 | BW11: =IFERROR(AY11*'Input| Projects'!$U11,"") -> 0 | BX11: =IFERROR(AZ11*'Input| Projects'!$U11,"") -> 0 | BY11: =IFERROR(BA11*'Input| Projects'!$U11,"") -> 0 | CA11: =IFERROR(BC11*'Input| Projects'!$U11,"") -> 0 | CB11: =IFERROR(BD11*'Input| Projects'!$U11,"") -> 0 | CC11: =IFERROR(BE11*'Input| Projects'!$U11,"") -> 0 | CD11: =IFERROR(BF11*'Input| Projects'!$U11,"") -> 0 | CE11: =IFERROR(BG11*'Input| Projects'!$U11,"") -> 0 | CG11: 278.0198078 | CH11: 284.5673347 | CI11: 294.3318095 | CJ11: 303.805045 | CK11: 313.4915028
B12: =IFERROR('Input| Projects'!B12,"") -> 4 | C12: =IFERROR(IF('Input| Projects'!C12="","",'Input| Projects'!C12),"") -> Project 4 | D12: =IFERROR(IF('Input| Projects'!D12="","",'Input| Projects'!D12),"") -> 4 | E12: =IFERROR(IF('Input| Projects'!F12="","",'Input| Projects'!F12),"") -> Connections | G12: =IFERROR('Input| Projects'!I12*'Input| Escalations'!$J$19,"") -> 3426.927543 | H12: =IFERROR('Input| Projects'!J12*'Input| Escalations'!$J$19,"") -> 3501.777974 | I12: =IFERROR('Input| Projects'!K12*'Input| Escalations'!$J$19,"") -> 3616.346251 | J12: =IFERROR('Input| Projects'!L12*'Input| Escalations'!$J$19,"") -> 3725.776375 | K12: =IFERROR('Input| Projects'!M12*'Input| Escalations'!$J$19,"") -> 3835.206499 | L12: =IF(SUM(G12:K12)=SUM('Input| Projects'!I12:M12)*'Input| Escalations'!$J$19,"",1) ->  | M12: =IF($C12="","",IFERROR('Input| Projects'!$O12*(INDEX('Input| Escalations'!$C$23:$I$25,3,MATCH('Calc| Project Costs'!M$8,'Input| Escalations'!$C$23:$I$23,0))-1)+1,"")) -> 1.012043204 | N12: =IF($C12="","",IFERROR('Input| Projects'!$O12*(INDEX('Input| Escalations'!$C$23:$I$25,3,MATCH('Calc| Project Costs'!N$8,'Input| Escalations'!$C$23:$I$23,0))-1)+1,"")) -> 1.013950984 | O12: =IF($C12="","",IFERROR('Input| Projects'!$O12*(INDEX('Input| Escalations'!$C$23:$I$25,3,MATCH('Calc| Project Costs'!O$8,'Input| Escalations'!$C$23:$I$23,0))-1)+1,"")) -> 1.015716195 | P12: =IF($C12="","",IFERROR('Input| Projects'!$O12*(INDEX('Input| Escalations'!$C$23:$I$25,3,MATCH('Calc| Project Costs'!P$8,'Input| Escalations'!$C$23:$I$23,0))-1)+1,"")) -> 1.017852659 | Q12: =IF($C12="","",IFERROR('Input| Projects'!$O12*(INDEX('Input| Escalations'!$C$23:$I$25,3,MATCH('Calc| Project Costs'!Q$8,'Input| Escalations'!$C$23:$I$23,0))-1)+1,"")) -> 1.020645545 | S12: 3468.19873 | T12: 3550.631222 | U12: 3673.181454 | V12: 3792.291389 | W12: 3914.386427 | Y12: =IFERROR(S12*'Input| Projects'!$U12,"") -> 0 | Z12: =IFERROR(T12*'Input| Projects'!$U12,"") -> 0 | AA12: =IFERROR(U12*'Input| Projects'!$U12,"") -> 0 | AB12: =IFERROR(V12*'Input| Projects'!$U12,"") -> 0 | AC12: =IFERROR(W12*'Input| Projects'!$U12,"") -> 0 | AE12: =IFERROR(S12*'Input| Projects'!$V12,"") -> 1106.355395 | AF12: =IFERROR(T12*'Input| Projects'!$V12,"") -> 1132.65136 | AG12: =IFERROR(U12*'Input| Projects'!$V12,"") -> 1171.744884 | AH12: =IFERROR(V12*'Input| Projects'!$V12,"") -> 1209.740953 | AI12: =IFERROR(W12*'Input| Projects'!$V12,"") -> 1248.68927 | AK12: 3468.19873 | AL12: 3550.631222 | AM12: 3673.181454 | AN12: 3792.291389 | AO12: 3914.386427 | AQ12: =IFERROR(IF('Input| Projects'!$R12="Yes", S12*'Calc| Overheads Allocation'!C$9,0),"") -> 559.1486157 | AR12: =IFERROR(IF('Input| Projects'!$R12="Yes", T12*'Calc| Overheads Allocation'!D$9,0),"") -> 573.6879691 | AS12: =IFERROR(IF('Input| Projects'!$R12="Yes", U12*'Calc| Overheads Allocation'!E$9,0),"") -> 594.6848248 | AT12: =IFERROR(IF('Input| Projects'!$R12="Yes", V12*'Calc| Overheads Allocation'!F$9,0),"") -> 615.4630752 | AU12: =IFERROR(IF('Input| Projects'!$R12="Yes", W12*'Calc| Overheads Allocation'!G$9,0),"") -> 637.2947917 | AW12: =IFERROR(IF('Input| Projects'!$S12="Yes", S12*'Calc| Overheads Allocation'!C$10,0),"") -> 396.1100506 | AX12: =IFERROR(IF('Input| Projects'!$S12="Yes", T12*'Calc| Overheads Allocation'!D$10,0),"") -> 406.409967 | AY12: =IFERROR(IF('Input| Projects'!$S12="Yes", U12*'Calc| Overheads Allocation'!E$10,0),"") -> 421.284484 | AZ12: =IFERROR(IF('Input| Projects'!$S12="Yes", V12*'Calc| Overheads Allocation'!F$10,0),"") -> 436.0041374 | BA12: =IFERROR(IF('Input| Projects'!$S12="Yes", W12*'Calc| Overheads Allocation'!G$10,0),"") -> 451.4700835 | BC12: 955.2586663 | BD12: 980.0979361 | BE12: 1015.969309 | BF12: 1051.467213 | BG12: 1088.764875 | BI12: =IFERROR(BC12*'Input| Projects'!$V12,"") -> 304.7275145 | BJ12: =IFERROR(BD12*'Input| Projects'!$V12,"") -> 312.6512416 | BK12: =IFERROR(BE12*'Input| Projects'!$V12,"") -> 324.0942095 | BL12: =IFERROR(BF12*'Input| Projects'!$V12,"") -> 335.4180408 | BM12: =IFERROR(BG12*'Input| Projects'!$V12,"") -> 347.3159952 | BO12: =IFERROR(AQ12*'Input| Projects'!$U12,"") -> 0 | BP12: =IFERROR(AR12*'Input| Projects'!$U12,"") -> 0 | BQ12: =IFERROR(AS12*'Input| Projects'!$U12,"") -> 0 | BR12: =IFERROR(AT12*'Input| Projects'!$U12,"") -> 0 | BS12: =IFERROR(AU12*'Input| Projects'!$U12,"") -> 0 | BU12: =IFERROR(AW12*'Input| Projects'!$U12,"") -> 0 | BV12: =IFERROR(AX12*'Input| Projects'!$U12,"") -> 0 | BW12: =IFERROR(AY12*'Input| Projects'!$U12,"") -> 0 | BX12: =IFERROR(AZ12*'Input| Projects'!$U12,"") -> 0 | BY12: =IFERROR(BA12*'Input| Projects'!$U12,"") -> 0 | CA12: =IFERROR(BC12*'Input| Projects'!$U12,"") -> 0 | CB12: =IFERROR(BD12*'Input| Projects'!$U12,"") -> 0 | CC12: =IFERROR(BE12*'Input| Projects'!$U12,"") -> 0 | CD12: =IFERROR(BF12*'Input| Projects'!$U12,"") -> 0 | CE12: =IFERROR(BG12*'Input| Projects'!$U12,"") -> 0 | CG12: 4423.457396 | CH12: 4530.729158 | CI12: 4689.150763 | CJ12: 4843.758602 | CK12: 5003.151302
B13: =IFERROR('Input| Projects'!B13,"") -> 5 | C13: =IFERROR(IF('Input| Projects'!C13="","",'Input| Projects'!C13),"") -> Project 5 | D13: =IFERROR(IF('Input| Projects'!D13="","",'Input| Projects'!D13),"") -> 5 | E13: =IFERROR(IF('Input| Projects'!F13="","",'Input| Projects'!F13),"") -> ICT capex | G13: =IFERROR('Input| Projects'!I13*'Input| Escalations'!$J$19,"") -> 4305.571703 | H13: =IFERROR('Input| Projects'!J13*'Input| Escalations'!$J$19,"") -> 4399.613347 | I13: =IFERROR('Input| Projects'!K13*'Input| Escalations'!$J$19,"") -> 4543.55626 | J13: =IFERROR('Input| Projects'!L13*'Input| Escalations'!$J$19,"") -> 4681.043627 | K13: =IFERROR('Input| Projects'!M13*'Input| Escalations'!$J$19,"") -> 4818.530994 | L13: =IF(SUM(G13:K13)=SUM('Input| Projects'!I13:M13)*'Input| Escalations'!$J$19,"",1) ->  | M13: =IF($C13="","",IFERROR('Input| Projects'!$O13*(INDEX('Input| Escalations'!$C$23:$I$25,3,MATCH('Calc| Project Costs'!M$8,'Input| Escalations'!$C$23:$I$23,0))-1)+1,"")) -> 1.011942242 | N13: =IF($C13="","",IFERROR('Input| Projects'!$O13*(INDEX('Input| Escalations'!$C$23:$I$25,3,MATCH('Calc| Project Costs'!N$8,'Input| Escalations'!$C$23:$I$23,0))-1)+1,"")) -> 1.013834028 | O13: =IF($C13="","",IFERROR('Input| Projects'!$O13*(INDEX('Input| Escalations'!$C$23:$I$25,3,MATCH('Calc| Project Costs'!O$8,'Input| Escalations'!$C$23:$I$23,0))-1)+1,"")) -> 1.015584441 | P13: =IF($C13="","",IFERROR('Input| Projects'!$O13*(INDEX('Input| Escalations'!$C$23:$I$25,3,MATCH('Calc| Project Costs'!P$8,'Input| Escalations'!$C$23:$I$23,0))-1)+1,"")) -> 1.017702994 | Q13: =IF($C13="","",IFERROR('Input| Projects'!$O13*(INDEX('Input| Escalations'!$C$23:$I$25,3,MATCH('Calc| Project Costs'!Q$8,'Input| Escalations'!$C$23:$I$23,0))-1)+1,"")) -> 1.020472466 | S13: 4356.989881 | T13: 4460.477721 | U13: 4614.365043 | V13: 4763.912114 | W13: 4917.178207 | Y13: =IFERROR(S13*'Input| Projects'!$U13,"") -> 0 | Z13: =IFERROR(T13*'Input| Projects'!$U13,"") -> 0 | AA13: =IFERROR(U13*'Input| Projects'!$U13,"") -> 0 | AB13: =IFERROR(V13*'Input| Projects'!$U13,"") -> 0 | AC13: =IFERROR(W13*'Input| Projects'!$U13,"") -> 0 | AE13: =IFERROR(S13*'Input| Projects'!$V13,"") -> 1389.879772 | AF13: =IFERROR(T13*'Input| Projects'!$V13,"") -> 1422.892393 | AG13: =IFERROR(U13*'Input| Projects'!$V13,"") -> 1471.982449 | AH13: =IFERROR(V13*'Input| Projects'!$V13,"") -> 1519.687964 | AI13: =IFERROR(W13*'Input| Projects'!$V13,"") -> 1568.579848 | AK13: 4356.989881 | AL13: 4460.477721 | AM13: 4614.365043 | AN13: 4763.912114 | AO13: 4917.178207 | AQ13: =IFERROR(IF('Input| Projects'!$R13="Yes", S13*'Calc| Overheads Allocation'!C$9,0),"") -> 702.4409644 | AR13: =IFERROR(IF('Input| Projects'!$R13="Yes", T13*'Calc| Overheads Allocation'!D$9,0),"") -> 720.6950666 | AS13: =IFERROR(IF('Input| Projects'!$R13="Yes", U13*'Calc| Overheads Allocation'!E$9,0),"") -> 747.0616145 | AT13: =IFERROR(IF('Input| Projects'!$R13="Yes", V13*'Calc| Overheads Allocation'!F$9,0),"") -> 773.1505041 | AU13: =IFERROR(IF('Input| Projects'!$R13="Yes", W13*'Calc| Overheads Allocation'!G$9,0),"") -> 800.5576659 | AW13: =IFERROR(IF('Input| Projects'!$S13="Yes", S13*'Calc| Overheads Allocation'!C$10,0),"") -> 497.6207008 | AX13: =IFERROR(IF('Input| Projects'!$S13="Yes", T13*'Calc| Overheads Allocation'!D$10,0),"") -> 510.5522062 | AY13: =IFERROR(IF('Input| Projects'!$S13="Yes", U13*'Calc| Overheads Allocation'!E$10,0),"") -> 529.2307012 | AZ13: =IFERROR(IF('Input| Projects'!$S13="Yes", V13*'Calc| Overheads Allocation'!F$10,0),"") -> 547.7124985 | BA13: =IFERROR(IF('Input| Projects'!$S13="Yes", W13*'Calc| Overheads Allocation'!G$10,0),"") -> 567.1281815 | BC13: 1200.061665 | BD13: 1231.247273 | BE13: 1276.292316 | BF13: 1320.863003 | BG13: 1367.685847 | BI13: =IFERROR(BC13*'Input| Projects'!$V13,"") -> 382.8196712 | BJ13: =IFERROR(BD13*'Input| Projects'!$V13,"") -> 392.76788 | BK13: =IFERROR(BE13*'Input| Projects'!$V13,"") -> 407.1372487 | BL13: =IFERROR(BF13*'Input| Projects'!$V13,"") -> 421.3552978 | BM13: =IFERROR(BG13*'Input| Projects'!$V13,"") -> 436.2917853 | BO13: =IFERROR(AQ13*'Input| Projects'!$U13,"") -> 0 | BP13: =IFERROR(AR13*'Input| Projects'!$U13,"") -> 0 | BQ13: =IFERROR(AS13*'Input| Projects'!$U13,"") -> 0 | BR13: =IFERROR(AT13*'Input| Projects'!$U13,"") -> 0 | BS13: =IFERROR(AU13*'Input| Projects'!$U13,"") -> 0 | BU13: =IFERROR(AW13*'Input| Projects'!$U13,"") -> 0 | BV13: =IFERROR(AX13*'Input| Projects'!$U13,"") -> 0 | BW13: =IFERROR(AY13*'Input| Projects'!$U13,"") -> 0 | BX13: =IFERROR(AZ13*'Input| Projects'!$U13,"") -> 0 | BY13: =IFERROR(BA13*'Input| Projects'!$U13,"") -> 0 | CA13: =IFERROR(BC13*'Input| Projects'!$U13,"") -> 0 | CB13: =IFERROR(BD13*'Input| Projects'!$U13,"") -> 0 | CC13: =IFERROR(BE13*'Input| Projects'!$U13,"") -> 0 | CD13: =IFERROR(BF13*'Input| Projects'!$U13,"") -> 0 | CE13: =IFERROR(BG13*'Input| Projects'!$U13,"") -> 0 | CG13: 5557.051546 | CH13: 5691.724994 | CI13: 5890.657359 | CJ13: 6084.775116 | CK13: 6284.864055
B14: =IFERROR('Input| Projects'!B14,"") -> 6 | C14: =IFERROR(IF('Input| Projects'!C14="","",'Input| Projects'!C14),"") -> Project 6 | D14: =IFERROR(IF('Input| Projects'!D14="","",'Input| Projects'!D14),"") -> 6 | E14: =IFERROR(IF('Input| Projects'!F14="","",'Input| Projects'!F14),"") -> Property capex | G14: =IFERROR('Input| Projects'!I14*'Input| Escalations'!$J$19,"") -> 0 | H14: =IFERROR('Input| Projects'!J14*'Input| Escalations'!$J$19,"") -> 0 | I14: =IFERROR('Input| Projects'!K14*'Input| Escalations'!$J$19,"") -> 0 | J14: =IFERROR('Input| Projects'!L14*'Input| Escalations'!$J$19,"") -> 0 | K14: =IFERROR('Input| Projects'!M14*'Input| Escalations'!$J$19,"") -> 0 | L14: =IF(SUM(G14:K14)=SUM('Input| Projects'!I14:M14)*'Input| Escalations'!$J$19,"",1) ->  | M14: =IF($C14="","",IFERROR('Input| Projects'!$O14*(INDEX('Input| Escalations'!$C$23:$I$25,3,MATCH('Calc| Project Costs'!M$8,'Input| Escalations'!$C$23:$I$23,0))-1)+1,"")) -> 1.011942242 | N14: =IF($C14="","",IFERROR('Input| Projects'!$O14*(INDEX('Input| Escalations'!$C$23:$I$25,3,MATCH('Calc| Project Costs'!N$8,'Input| Escalations'!$C$23:$I$23,0))-1)+1,"")) -> 1.013834028 | O14: =IF($C14="","",IFERROR('Input| Projects'!$O14*(INDEX('Input| Escalations'!$C$23:$I$25,3,MATCH('Calc| Project Costs'!O$8,'Input| Escalations'!$C$23:$I$23,0))-1)+1,"")) -> 1.015584441 | P14: =IF($C14="","",IFERROR('Input| Projects'!$O14*(INDEX('Input| Escalations'!$C$23:$I$25,3,MATCH('Calc| Project Costs'!P$8,'Input| Escalations'!$C$23:$I$23,0))-1)+1,"")) -> 1.017702994 | Q14: =IF($C14="","",IFERROR('Input| Projects'!$O14*(INDEX('Input| Escalations'!$C$23:$I$25,3,MATCH('Calc| Project Costs'!Q$8,'Input| Escalations'!$C$23:$I$23,0))-1)+1,"")) -> 1.020472466 | S14: 0 | T14: 0 | U14: 0 | V14: 0 | W14: 0 | Y14: =IFERROR(S14*'Input| Projects'!$U14,"") -> 0 | Z14: =IFERROR(T14*'Input| Projects'!$U14,"") -> 0 | AA14: =IFERROR(U14*'Input| Projects'!$U14,"") -> 0 | AB14: =IFERROR(V14*'Input| Projects'!$U14,"") -> 0 | AC14: =IFERROR(W14*'Input| Projects'!$U14,"") -> 0 | AE14: =IFERROR(S14*'Input| Projects'!$V14,"") -> 0 | AF14: =IFERROR(T14*'Input| Projects'!$V14,"") -> 0 | AG14: =IFERROR(U14*'Input| Projects'!$V14,"") -> 0 | AH14: =IFERROR(V14*'Input| Projects'!$V14,"") -> 0 | AI14: =IFERROR(W14*'Input| Projects'!$V14,"") -> 0 | AK14: 0 | AL14: 0 | AM14: 0 | AN14: 0 | AO14: 0 | AQ14: =IFERROR(IF('Input| Projects'!$R14="Yes", S14*'Calc| Overheads Allocation'!C$9,0),"") -> 0 | AR14: =IFERROR(IF('Input| Projects'!$R14="Yes", T14*'Calc| Overheads Allocation'!D$9,0),"") -> 0 | AS14: =IFERROR(IF('Input| Projects'!$R14="Yes", U14*'Calc| Overheads Allocation'!E$9,0),"") -> 0 | AT14: =IFERROR(IF('Input| Projects'!$R14="Yes", V14*'Calc| Overheads Allocation'!F$9,0),"") -> 0 | AU14: =IFERROR(IF('Input| Projects'!$R14="Yes", W14*'Calc| Overheads Allocation'!G$9,0),"") -> 0 | AW14: =IFERROR(IF('Input| Projects'!$S14="Yes", S14*'Calc| Overheads Allocation'!C$10,0),"") -> 0 | AX14: =IFERROR(IF('Input| Projects'!$S14="Yes", T14*'Calc| Overheads Allocation'!D$10,0),"") -> 0 | AY14: =IFERROR(IF('Input| Projects'!$S14="Yes", U14*'Calc| Overheads Allocation'!E$10,0),"") -> 0 | AZ14: =IFERROR(IF('Input| Projects'!$S14="Yes", V14*'Calc| Overheads Allocation'!F$10,0),"") -> 0 | BA14: =IFERROR(IF('Input| Projects'!$S14="Yes", W14*'Calc| Overheads Allocation'!G$10,0),"") -> 0 | BC14: 0 | BD14: 0 | BE14: 0 | BF14: 0 | BG14: 0 | BI14: =IFERROR(BC14*'Input| Projects'!$V14,"") -> 0 | BJ14: =IFERROR(BD14*'Input| Projects'!$V14,"") -> 0 | BK14: =IFERROR(BE14*'Input| Projects'!$V14,"") -> 0 | BL14: =IFERROR(BF14*'Input| Projects'!$V14,"") -> 0 | BM14: =IFERROR(BG14*'Input| Projects'!$V14,"") -> 0 | BO14: =IFERROR(AQ14*'Input| Projects'!$U14,"") -> 0 | BP14: =IFERROR(AR14*'Input| Projects'!$U14,"") -> 0 | BQ14: =IFERROR(AS14*'Input| Projects'!$U14,"") -> 0 | BR14: =IFERROR(AT14*'Input| Projects'!$U14,"") -> 0 | BS14: =IFERROR(AU14*'Input| Projects'!$U14,"") -> 0 | BU14: =IFERROR(AW14*'Input| Projects'!$U14,"") -> 0 | BV14: =IFERROR(AX14*'Input| Projects'!$U14,"") -> 0 | BW14: =IFERROR(AY14*'Input| Projects'!$U14,"") -> 0 | BX14: =IFERROR(AZ14*'Input| Projects'!$U14,"") -> 0 | BY14: =IFERROR(BA14*'Input| Projects'!$U14,"") -> 0 | CA14: =IFERROR(BC14*'Input| Projects'!$U14,"") -> 0 | CB14: =IFERROR(BD14*'Input| Projects'!$U14,"") -> 0 | CC14: =IFERROR(BE14*'Input| Projects'!$U14,"") -> 0 | CD14: =IFERROR(BF14*'Input| Projects'!$U14,"") -> 0 | CE14: =IFERROR(BG14*'Input| Projects'!$U14,"") -> 0 | CG14: 0 | CH14: 0 | CI14: 0 | CJ14: 0 | CK14: 0
B15: =IFERROR('Input| Projects'!B15,"") -> 7 | C15: =IFERROR(IF('Input| Projects'!C15="","",'Input| Projects'!C15),"") -> Project 7 | D15: =IFERROR(IF('Input| Projects'!D15="","",'Input| Projects'!D15),"") -> 7 | E15: =IFERROR(IF('Input| Projects'!F15="","",'Input| Projects'!F15),"") -> Fleet capex | G15: =IFERROR('Input| Projects'!I15*'Input| Escalations'!$J$19,"") -> 3505.497002 | H15: =IFERROR('Input| Projects'!J15*'Input| Escalations'!$J$19,"") -> 3582.063536 | I15: =IFERROR('Input| Projects'!K15*'Input| Escalations'!$J$19,"") -> 3699.25853 | J15: =IFERROR('Input| Projects'!L15*'Input| Escalations'!$J$19,"") -> 3811.197567 | K15: =IFERROR('Input| Projects'!M15*'Input| Escalations'!$J$19,"") -> 3923.136605 | L15: =IF(SUM(G15:K15)=SUM('Input| Projects'!I15:M15)*'Input| Escalations'!$J$19,"",1) ->  | M15: =IF($C15="","",IFERROR('Input| Projects'!$O15*(INDEX('Input| Escalations'!$C$23:$I$25,3,MATCH('Calc| Project Costs'!M$8,'Input| Escalations'!$C$23:$I$23,0))-1)+1,"")) -> 1.01804496 | N15: =IF($C15="","",IFERROR('Input| Projects'!$O15*(INDEX('Input| Escalations'!$C$23:$I$25,3,MATCH('Calc| Project Costs'!N$8,'Input| Escalations'!$C$23:$I$23,0))-1)+1,"")) -> 1.020903486 | O15: =IF($C15="","",IFERROR('Input| Projects'!$O15*(INDEX('Input| Escalations'!$C$23:$I$25,3,MATCH('Calc| Project Costs'!O$8,'Input| Escalations'!$C$23:$I$23,0))-1)+1,"")) -> 1.023548394 | P15: =IF($C15="","",IFERROR('Input| Projects'!$O15*(INDEX('Input| Escalations'!$C$23:$I$25,3,MATCH('Calc| Project Costs'!P$8,'Input| Escalations'!$C$23:$I$23,0))-1)+1,"")) -> 1.026749569 | Q15: =IF($C15="","",IFERROR('Input| Projects'!$O15*(INDEX('Input| Escalations'!$C$23:$I$25,3,MATCH('Calc| Project Costs'!Q$8,'Input| Escalations'!$C$23:$I$23,0))-1)+1,"")) -> 1.030934296 | S15: 3568.753556 | T15: 3656.941152 | U15: 3786.370128 | V15: 3913.145461 | W15: 4044.496075 | Y15: =IFERROR(S15*'Input| Projects'!$U15,"") -> 0 | Z15: =IFERROR(T15*'Input| Projects'!$U15,"") -> 0 | AA15: =IFERROR(U15*'Input| Projects'!$U15,"") -> 0 | AB15: =IFERROR(V15*'Input| Projects'!$U15,"") -> 0 | AC15: =IFERROR(W15*'Input| Projects'!$U15,"") -> 0 | AE15: =IFERROR(S15*'Input| Projects'!$V15,"") -> 1138.432384 | AF15: =IFERROR(T15*'Input| Projects'!$V15,"") -> 1166.564227 | AG15: =IFERROR(U15*'Input| Projects'!$V15,"") -> 1207.852071 | AH15: =IFERROR(V15*'Input| Projects'!$V15,"") -> 1248.293402 | AI15: =IFERROR(W15*'Input| Projects'!$V15,"") -> 1290.194248 | AK15: 3568.753556 | AL15: 3656.941152 | AM15: 3786.370128 | AN15: 3913.145461 | AO15: 4044.496075 | AQ15: =IFERROR(IF('Input| Projects'!$R15="Yes", S15*'Calc| Overheads Allocation'!C$9,0),"") -> 575.3602276 | AR15: =IFERROR(IF('Input| Projects'!$R15="Yes", T15*'Calc| Overheads Allocation'!D$9,0),"") -> 590.8648382 | AS15: =IFERROR(IF('Input| Projects'!$R15="Yes", U15*'Calc| Overheads Allocation'!E$9,0),"") -> 613.0099709 | AT15: =IFERROR(IF('Input| Projects'!$R15="Yes", V15*'Calc| Overheads Allocation'!F$9,0),"") -> 635.0768683 | AU15: =IFERROR(IF('Input| Projects'!$R15="Yes", W15*'Calc| Overheads Allocation'!G$9,0),"") -> 658.4777287 | AW15: =IFERROR(IF('Input| Projects'!$S15="Yes", S15*'Calc| Overheads Allocation'!C$10,0),"") -> 407.5946224 | AX15: =IFERROR(IF('Input| Projects'!$S15="Yes", T15*'Calc| Overheads Allocation'!D$10,0),"") -> 418.5783429 | AY15: =IFERROR(IF('Input| Projects'!$S15="Yes", U15*'Calc| Overheads Allocation'!E$10,0),"") -> 434.2663181 | AZ15: =IFERROR(IF('Input| Projects'!$S15="Yes", V15*'Calc| Overheads Allocation'!F$10,0),"") -> 449.8988702 | BA15: =IFERROR(IF('Input| Projects'!$S15="Yes", W15*'Calc| Overheads Allocation'!G$10,0),"") -> 466.4764235 | BC15: 982.9548501 | BD15: 1009.443181 | BE15: 1047.276289 | BF15: 1084.975738 | BG15: 1124.954152 | BI15: =IFERROR(BC15*'Input| Projects'!$V15,"") -> 313.5625972 | BJ15: =IFERROR(BD15*'Input| Projects'!$V15,"") -> 322.0123748 | BK15: =IFERROR(BE15*'Input| Projects'!$V15,"") -> 334.0811362 | BL15: =IFERROR(BF15*'Input| Projects'!$V15,"") -> 346.1072606 | BM15: =IFERROR(BG15*'Input| Projects'!$V15,"") -> 358.8603746 | BO15: =IFERROR(AQ15*'Input| Projects'!$U15,"") -> 0 | BP15: =IFERROR(AR15*'Input| Projects'!$U15,"") -> 0 | BQ15: =IFERROR(AS15*'Input| Projects'!$U15,"") -> 0 | BR15: =IFERROR(AT15*'Input| Projects'!$U15,"") -> 0 | BS15: =IFERROR(AU15*'Input| Projects'!$U15,"") -> 0 | BU15: =IFERROR(AW15*'Input| Projects'!$U15,"") -> 0 | BV15: =IFERROR(AX15*'Input| Projects'!$U15,"") -> 0 | BW15: =IFERROR(AY15*'Input| Projects'!$U15,"") -> 0 | BX15: =IFERROR(AZ15*'Input| Projects'!$U15,"") -> 0 | BY15: =IFERROR(BA15*'Input| Projects'!$U15,"") -> 0 | CA15: =IFERROR(BC15*'Input| Projects'!$U15,"") -> 0 | CB15: =IFERROR(BD15*'Input| Projects'!$U15,"") -> 0 | CC15: =IFERROR(BE15*'Input| Projects'!$U15,"") -> 0 | CD15: =IFERROR(BF15*'Input| Projects'!$U15,"") -> 0 | CE15: =IFERROR(BG15*'Input| Projects'!$U15,"") -> 0 | CG15: 4551.708406 | CH15: 4666.384333 | CI15: 4833.646417 | CJ15: 4998.121199 | CK15: 5169.450227
B16: =IFERROR('Input| Projects'!B16,"") -> 8 | C16: =IFERROR(IF('Input| Projects'!C16="","",'Input| Projects'!C16),"") -> Project 8 | D16: =IFERROR(IF('Input| Projects'!D16="","",'Input| Projects'!D16),"") -> 8 | E16: =IFERROR(IF('Input| Projects'!F16="","",'Input| Projects'!F16),"") -> Other non-network capex | G16: =IFERROR('Input| Projects'!I16*'Input| Escalations'!$J$19,"") -> 51.63074832 | H16: =IFERROR('Input| Projects'!J16*'Input| Escalations'!$J$19,"") -> 52.75845929 | I16: =IFERROR('Input| Projects'!K16*'Input| Escalations'!$J$19,"") -> 54.48456695 | J16: =IFERROR('Input| Projects'!L16*'Input| Escalations'!$J$19,"") -> 56.13326221 | K16: =IFERROR('Input| Projects'!M16*'Input| Escalations'!$J$19,"") -> 57.78195746 | L16: =IF(SUM(G16:K16)=SUM('Input| Projects'!I16:M16)*'Input| Escalations'!$J$19,"",1) ->  | M16: =IF($C16="","",IFERROR('Input| Projects'!$O16*(INDEX('Input| Escalations'!$C$23:$I$25,3,MATCH('Calc| Project Costs'!M$8,'Input| Escalations'!$C$23:$I$23,0))-1)+1,"")) -> 1.020018564 | N16: =IF($C16="","",IFERROR('Input| Projects'!$O16*(INDEX('Input| Escalations'!$C$23:$I$25,3,MATCH('Calc| Project Costs'!N$8,'Input| Escalations'!$C$23:$I$23,0))-1)+1,"")) -> 1.023189732 | O16: =IF($C16="","",IFERROR('Input| Projects'!$O16*(INDEX('Input| Escalations'!$C$23:$I$25,3,MATCH('Calc| Project Costs'!O$8,'Input| Escalations'!$C$23:$I$23,0))-1)+1,"")) -> 1.026123917 | P16: =IF($C16="","",IFERROR('Input| Projects'!$O16*(INDEX('Input| Escalations'!$C$23:$I$25,3,MATCH('Calc| Project Costs'!P$8,'Input| Escalations'!$C$23:$I$23,0))-1)+1,"")) -> 1.029675209 | Q16: =IF($C16="","",IFERROR('Input| Projects'!$O16*(INDEX('Input| Escalations'!$C$23:$I$25,3,MATCH('Calc| Project Costs'!Q$8,'Input| Escalations'!$C$23:$I$23,0))-1)+1,"")) -> 1.034317626 | S16: 52.66432177 | T16: 53.9819138 | U16: 55.90791725 | V16: 57.79902851 | W16: 59.76489707 | Y16: =IFERROR(S16*'Input| Projects'!$U16,"") -> 0 | Z16: =IFERROR(T16*'Input| Projects'!$U16,"") -> 0 | AA16: =IFERROR(U16*'Input| Projects'!$U16,"") -> 0 | AB16: =IFERROR(V16*'Input| Projects'!$U16,"") -> 0 | AC16: =IFERROR(W16*'Input| Projects'!$U16,"") -> 0 | AE16: =IFERROR(S16*'Input| Projects'!$V16,"") -> 16.79991864 | AF16: =IFERROR(T16*'Input| Projects'!$V16,"") -> 17.2202305 | AG16: =IFERROR(U16*'Input| Projects'!$V16,"") -> 17.8346256 | AH16: =IFERROR(V16*'Input| Projects'!$V16,"") -> 18.4378901 | AI16: =IFERROR(W16*'Input| Projects'!$V16,"") -> 19.06500217 | AK16: 52.66432177 | AL16: 53.9819138 | AM16: 55.90791725 | AN16: 57.79902851 | AO16: 59.76489707 | AQ16: =IFERROR(IF('Input| Projects'!$R16="Yes", S16*'Calc| Overheads Allocation'!C$9,0),"") -> 8.490627241 | AR16: =IFERROR(IF('Input| Projects'!$R16="Yes", T16*'Calc| Overheads Allocation'!D$9,0),"") -> 8.722047591 | AS16: =IFERROR(IF('Input| Projects'!$R16="Yes", U16*'Calc| Overheads Allocation'!E$9,0),"") -> 9.051442296 | AT16: =IFERROR(IF('Input| Projects'!$R16="Yes", V16*'Calc| Overheads Allocation'!F$9,0),"") -> 9.380388842 | AU16: =IFERROR(IF('Input| Projects'!$R16="Yes", W16*'Calc| Overheads Allocation'!G$9,0),"") -> 9.730224223 | AW16: =IFERROR(IF('Input| Projects'!$S16="Yes", S16*'Calc| Overheads Allocation'!C$10,0),"") -> 6.014899603 | AX16: =IFERROR(IF('Input| Projects'!$S16="Yes", T16*'Calc| Overheads Allocation'!D$10,0),"") -> 6.178841574 | AY16: =IFERROR(IF('Input| Projects'!$S16="Yes", U16*'Calc| Overheads Allocation'!E$10,0),"") -> 6.412190187 | AZ16: =IFERROR(IF('Input| Projects'!$S16="Yes", V16*'Calc| Overheads Allocation'!F$10,0),"") -> 6.645221315 | BA16: =IFERROR(IF('Input| Projects'!$S16="Yes", W16*'Calc| Overheads Allocation'!G$10,0),"") -> 6.893050437 | BC16: 14.50552684 | BD16: 14.90088916 | BE16: 15.46363248 | BF16: 16.02561016 | BG16: 16.62327466 | BI16: =IFERROR(BC16*'Input| Projects'!$V16,"") -> 4.627263063 | BJ16: =IFERROR(BD16*'Input| Projects'!$V16,"") -> 4.753383644 | BK16: =IFERROR(BE16*'Input| Projects'!$V16,"") -> 4.932898762 | BL16: =IFERROR(BF16*'Input| Projects'!$V16,"") -> 5.11216964 | BM16: =IFERROR(BG16*'Input| Projects'!$V16,"") -> 5.302824617 | BO16: =IFERROR(AQ16*'Input| Projects'!$U16,"") -> 0 | BP16: =IFERROR(AR16*'Input| Projects'!$U16,"") -> 0 | BQ16: =IFERROR(AS16*'Input| Projects'!$U16,"") -> 0 | BR16: =IFERROR(AT16*'Input| Projects'!$U16,"") -> 0 | BS16: =IFERROR(AU16*'Input| Projects'!$U16,"") -> 0 | BU16: =IFERROR(AW16*'Input| Projects'!$U16,"") -> 0 | BV16: =IFERROR(AX16*'Input| Projects'!$U16,"") -> 0 | BW16: =IFERROR(AY16*'Input| Projects'!$U16,"") -> 0 | BX16: =IFERROR(AZ16*'Input| Projects'!$U16,"") -> 0 | BY16: =IFERROR(BA16*'Input| Projects'!$U16,"") -> 0 | CA16: =IFERROR(BC16*'Input| Projects'!$U16,"") -> 0 | CB16: =IFERROR(BD16*'Input| Projects'!$U16,"") -> 0 | CC16: =IFERROR(BE16*'Input| Projects'!$U16,"") -> 0 | CD16: =IFERROR(BF16*'Input| Projects'!$U16,"") -> 0 | CE16: =IFERROR(BG16*'Input| Projects'!$U16,"") -> 0 | CG16: 67.16984861 | CH16: 68.88280296 | CI16: 71.37154973 | CJ16: 73.82463867 | CK16: 76.38817173
B17: =IFERROR('Input| Projects'!B17,"") -> 9 | C17: =IFERROR(IF('Input| Projects'!C17="","",'Input| Projects'!C17),"") -> Project 9 | D17: =IFERROR(IF('Input| Projects'!D17="","",'Input| Projects'!D17),"") -> 9 | E17: =IFERROR(IF('Input| Projects'!F17="","",'Input| Projects'!F17),"") -> Connections | G17: =IFERROR('Input| Projects'!I17*'Input| Escalations'!$J$19,"") -> 10345.99303 | H17: =IFERROR('Input| Projects'!J17*'Input| Escalations'!$J$19,"") -> 10073.78035 | I17: =IFERROR('Input| Projects'!K17*'Input| Escalations'!$J$19,"") -> 10261.22713 | J17: =IFERROR('Input| Projects'!L17*'Input| Escalations'!$J$19,"") -> 10452.7852 | K17: =IFERROR('Input| Projects'!M17*'Input| Escalations'!$J$19,"") -> 10266.9032 | L17: =IF(SUM(G17:K17)=SUM('Input| Projects'!I17:M17)*'Input| Escalations'!$J$19,"",1) ->  | M17: =IF($C17="","",IFERROR('Input| Projects'!$O17*(INDEX('Input| Escalations'!$C$23:$I$25,3,MATCH('Calc| Project Costs'!M$8,'Input| Escalations'!$C$23:$I$23,0))-1)+1,"")) -> 1.001530057 | N17: =IF($C17="","",IFERROR('Input| Projects'!$O17*(INDEX('Input| Escalations'!$C$23:$I$25,3,MATCH('Calc| Project Costs'!N$8,'Input| Escalations'!$C$23:$I$23,0))-1)+1,"")) -> 1.001772435 | O17: =IF($C17="","",IFERROR('Input| Projects'!$O17*(INDEX('Input| Escalations'!$C$23:$I$25,3,MATCH('Calc| Project Costs'!O$8,'Input| Escalations'!$C$23:$I$23,0))-1)+1,"")) -> 1.0019967 | P17: =IF($C17="","",IFERROR('Input| Projects'!$O17*(INDEX('Input| Escalations'!$C$23:$I$25,3,MATCH('Calc| Project Costs'!P$8,'Input| Escalations'!$C$23:$I$23,0))-1)+1,"")) -> 1.002268132 | Q17: =IF($C17="","",IFERROR('Input| Projects'!$O17*(INDEX('Input| Escalations'!$C$23:$I$25,3,MATCH('Calc| Project Costs'!Q$8,'Input| Escalations'!$C$23:$I$23,0))-1)+1,"")) -> 1.002622961 | S17: 10361.82298 | T17: 10091.63547 | U17: 10281.71572 | V17: 10476.49349 | W17: 10293.83288 | Y17: =IFERROR(S17*'Input| Projects'!$U17,"") -> 0 | Z17: =IFERROR(T17*'Input| Projects'!$U17,"") -> 0 | AA17: =IFERROR(U17*'Input| Projects'!$U17,"") -> 0 | AB17: =IFERROR(V17*'Input| Projects'!$U17,"") -> 0 | AC17: =IFERROR(W17*'Input| Projects'!$U17,"") -> 0 | AE17: =IFERROR(S17*'Input| Projects'!$V17,"") -> 7325.808848 | AF17: =IFERROR(T17*'Input| Projects'!$V17,"") -> 7134.78628 | AG17: =IFERROR(U17*'Input| Projects'!$V17,"") -> 7269.173015 | AH17: =IFERROR(V17*'Input| Projects'!$V17,"") -> 7406.8809 | AI17: =IFERROR(W17*'Input| Projects'!$V17,"") -> 7277.739846 | AK17: 10361.82298 | AL17: 10091.63547 | AM17: 10281.71572 | AN17: 10476.49349 | AO17: 10293.83288 | AQ17: =IFERROR(IF('Input| Projects'!$R17="Yes", S17*'Calc| Overheads Allocation'!C$9,0),"") -> 1670.549881 | AR17: =IFERROR(IF('Input| Projects'!$R17="Yes", T17*'Calc| Overheads Allocation'!D$9,0),"") -> 1630.541022 | AS17: =IFERROR(IF('Input| Projects'!$R17="Yes", U17*'Calc| Overheads Allocation'!E$9,0),"") -> 1664.600671 | AT17: =IFERROR(IF('Input| Projects'!$R17="Yes", V17*'Calc| Overheads Allocation'!F$9,0),"") -> 1700.263572 | AU17: =IFERROR(IF('Input| Projects'!$R17="Yes", W17*'Calc| Overheads Allocation'!G$9,0),"") -> 1675.921937 | AW17: =IFERROR(IF('Input| Projects'!$S17="Yes", S17*'Calc| Overheads Allocation'!C$10,0),"") -> 1183.444937 | AX17: =IFERROR(IF('Input| Projects'!$S17="Yes", T17*'Calc| Overheads Allocation'!D$10,0),"") -> 1155.102004 | AY17: =IFERROR(IF('Input| Projects'!$S17="Yes", U17*'Calc| Overheads Allocation'!E$10,0),"") -> 1179.230418 | AZ17: =IFERROR(IF('Input| Projects'!$S17="Yes", V17*'Calc| Overheads Allocation'!F$10,0),"") -> 1204.494602 | BA17: =IFERROR(IF('Input| Projects'!$S17="Yes", W17*'Calc| Overheads Allocation'!G$10,0),"") -> 1187.250589 | BC17: 2853.994818 | BD17: 2785.643026 | BE17: 2843.831089 | BF17: 2904.758174 | BG17: 2863.172525 | BI17: =IFERROR(BC17*'Input| Projects'!$V17,"") -> 2017.774336 | BJ17: =IFERROR(BD17*'Input| Projects'!$V17,"") -> 1969.449619 | BK17: =IFERROR(BE17*'Input| Projects'!$V17,"") -> 2010.58858 | BL17: =IFERROR(BF17*'Input| Projects'!$V17,"") -> 2053.664029 | BM17: =IFERROR(BG17*'Input| Projects'!$V17,"") -> 2024.262975 | BO17: =IFERROR(AQ17*'Input| Projects'!$U17,"") -> 0 | BP17: =IFERROR(AR17*'Input| Projects'!$U17,"") -> 0 | BQ17: =IFERROR(AS17*'Input| Projects'!$U17,"") -> 0 | BR17: =IFERROR(AT17*'Input| Projects'!$U17,"") -> 0 | BS17: =IFERROR(AU17*'Input| Projects'!$U17,"") -> 0 | BU17: =IFERROR(AW17*'Input| Projects'!$U17,"") -> 0 | BV17: =IFERROR(AX17*'Input| Projects'!$U17,"") -> 0 | BW17: =IFERROR(AY17*'Input| Projects'!$U17,"") -> 0 | BX17: =IFERROR(AZ17*'Input| Projects'!$U17,"") -> 0 | BY17: =IFERROR(BA17*'Input| Projects'!$U17,"") -> 0 | CA17: =IFERROR(BC17*'Input| Projects'!$U17,"") -> 0 | CB17: =IFERROR(BD17*'Input| Projects'!$U17,"") -> 0 | CC17: =IFERROR(BE17*'Input| Projects'!$U17,"") -> 0 | CD17: =IFERROR(BF17*'Input| Projects'!$U17,"") -> 0 | CE17: =IFERROR(BG17*'Input| Projects'!$U17,"") -> 0 | CG17: 13215.8178 | CH17: 12877.2785 | CI17: 13125.54681 | CJ17: 13381.25167 | CK17: 13157.00541
B18: =IFERROR('Input| Projects'!B18,"") -> 10 | C18: =IFERROR(IF('Input| Projects'!C18="","",'Input| Projects'!C18),"") -> Project 10 | D18: =IFERROR(IF('Input| Projects'!D18="","",'Input| Projects'!D18),"") -> 10 | E18: =IFERROR(IF('Input| Projects'!F18="","",'Input| Projects'!F18),"") -> Connections | G18: =IFERROR('Input| Projects'!I18*'Input| Escalations'!$J$19,"") -> 5015.507207 | H18: =IFERROR('Input| Projects'!J18*'Input| Escalations'!$J$19,"") -> 7707.037753 | I18: =IFERROR('Input| Projects'!K18*'Input| Escalations'!$J$19,"") -> 7850.44562 | J18: =IFERROR('Input| Projects'!L18*'Input| Escalations'!$J$19,"") -> 7996.998871 | K18: =IFERROR('Input| Projects'!M18*'Input| Escalations'!$J$19,"") -> 7854.788148 | L18: =IF(SUM(G18:K18)=SUM('Input| Projects'!I18:M18)*'Input| Escalations'!$J$19,"",1) ->  | M18: =IF($C18="","",IFERROR('Input| Projects'!$O18*(INDEX('Input| Escalations'!$C$23:$I$25,3,MATCH('Calc| Project Costs'!M$8,'Input| Escalations'!$C$23:$I$23,0))-1)+1,"")) -> 1.005369318 | N18: =IF($C18="","",IFERROR('Input| Projects'!$O18*(INDEX('Input| Escalations'!$C$23:$I$25,3,MATCH('Calc| Project Costs'!N$8,'Input| Escalations'!$C$23:$I$23,0))-1)+1,"")) -> 1.006219879 | O18: =IF($C18="","",IFERROR('Input| Projects'!$O18*(INDEX('Input| Escalations'!$C$23:$I$25,3,MATCH('Calc| Project Costs'!O$8,'Input| Escalations'!$C$23:$I$23,0))-1)+1,"")) -> 1.007006877 | P18: =IF($C18="","",IFERROR('Input| Projects'!$O18*(INDEX('Input| Escalations'!$C$23:$I$25,3,MATCH('Calc| Project Costs'!P$8,'Input| Escalations'!$C$23:$I$23,0))-1)+1,"")) -> 1.007959394 | Q18: =IF($C18="","",IFERROR('Input| Projects'!$O18*(INDEX('Input| Escalations'!$C$23:$I$25,3,MATCH('Calc| Project Costs'!Q$8,'Input| Escalations'!$C$23:$I$23,0))-1)+1,"")) -> 1.009204568 | S18: 5042.437059 | T18: 7754.974592 | U18: 7905.452725 | V18: 8060.650132 | W18: 7927.088082 | Y18: =IFERROR(S18*'Input| Projects'!$U18,"") -> 1467.349184 | Z18: =IFERROR(T18*'Input| Projects'!$U18,"") -> 2256.697606 | AA18: =IFERROR(U18*'Input| Projects'!$U18,"") -> 2300.486743 | AB18: =IFERROR(V18*'Input| Projects'!$U18,"") -> 2345.649188 | AC18: =IFERROR(W18*'Input| Projects'!$U18,"") -> 2306.782632 | AE18: =IFERROR(S18*'Input| Projects'!$V18,"") -> 2314.47861 | AF18: =IFERROR(T18*'Input| Projects'!$V18,"") -> 3559.533338 | AG18: =IFERROR(U18*'Input| Projects'!$V18,"") -> 3628.602801 | AH18: =IFERROR(V18*'Input| Projects'!$V18,"") -> 3699.838411 | AI18: =IFERROR(W18*'Input| Projects'!$V18,"") -> 3638.53343 | AK18: 3575.087875 | AL18: 5498.276986 | AM18: 5604.965982 | AN18: 5715.000944 | AO18: 5620.30545 | AQ18: =IFERROR(IF('Input| Projects'!$R18="Yes", S18*'Calc| Overheads Allocation'!C$9,0),"") -> 812.9498685 | AR18: =IFERROR(IF('Input| Projects'!$R18="Yes", T18*'Calc| Overheads Allocation'!D$9,0),"") -> 1252.998508 | AS18: =IFERROR(IF('Input| Projects'!$R18="Yes", U18*'Calc| Overheads Allocation'!E$9,0),"") -> 1279.885796 | AT18: =IFERROR(IF('Input| Projects'!$R18="Yes", V18*'Calc| Overheads Allocation'!F$9,0),"") -> 1308.188641 | AU18: =IFERROR(IF('Input| Projects'!$R18="Yes", W18*'Calc| Overheads Allocation'!G$9,0),"") -> 1290.596123 | AW18: =IFERROR(IF('Input| Projects'!$S18="Yes", S18*'Calc| Overheads Allocation'!C$10,0),"") -> 575.9070211 | AX18: =IFERROR(IF('Input| Projects'!$S18="Yes", T18*'Calc| Overheads Allocation'!D$10,0),"") -> 887.6446951 | AY18: =IFERROR(IF('Input| Projects'!$S18="Yes", U18*'Calc| Overheads Allocation'!E$10,0),"") -> 906.6920908 | AZ18: =IFERROR(IF('Input| Projects'!$S18="Yes", V18*'Calc| Overheads Allocation'!F$10,0),"") -> 926.7422904 | BA18: =IFERROR(IF('Input| Projects'!$S18="Yes", W18*'Calc| Overheads Allocation'!G$10,0),"") -> 914.2794625 | BC18: 1388.85689 | BD18: 2140.643203 | BE18: 2186.577887 | BF18: 2234.930931 | BG18: 2204.875586 | BI18: =IFERROR(BC18*'Input| Projects'!$V18,"") -> 637.4853123 | BJ18: =IFERROR(BD18*'Input| Projects'!$V18,"") -> 982.5552303 | BK18: =IFERROR(BE18*'Input| Projects'!$V18,"") -> 1003.63925 | BL18: =IFERROR(BF18*'Input| Projects'!$V18,"") -> 1025.833297 | BM18: =IFERROR(BG18*'Input| Projects'!$V18,"") -> 1012.037894 | BO18: =IFERROR(AQ18*'Input| Projects'!$U18,"") -> 236.5684117 | BP18: =IFERROR(AR18*'Input| Projects'!$U18,"") -> 364.6225659 | BQ18: =IFERROR(AS18*'Input| Projects'!$U18,"") -> 372.4467666 | BR18: =IFERROR(AT18*'Input| Projects'!$U18,"") -> 380.6828945 | BS18: =IFERROR(AU18*'Input| Projects'!$U18,"") -> 375.5634719 | BU18: =IFERROR(AW18*'Input| Projects'!$U18,"") -> 167.5889431 | BV18: =IFERROR(AX18*'Input| Projects'!$U18,"") -> 258.3046063 | BW18: =IFERROR(AY18*'Input| Projects'!$U18,"") -> 263.8473984 | BX18: =IFERROR(AZ18*'Input| Projects'!$U18,"") -> 269.6820065 | BY18: =IFERROR(BA18*'Input| Projects'!$U18,"") -> 266.0553236 | CA18: =IFERROR(BC18*'Input| Projects'!$U18,"") -> 404.1573549 | CB18: =IFERROR(BD18*'Input| Projects'!$U18,"") -> 622.9271722 | CC18: =IFERROR(BE18*'Input| Projects'!$U18,"") -> 636.294165 | CD18: =IFERROR(BF18*'Input| Projects'!$U18,"") -> 650.364901 | CE18: =IFERROR(BG18*'Input| Projects'!$U18,"") -> 641.6187955 | CG18: 4559.78741 | CH18: 7015.993017 | CI18: 7155.249704 | CJ18: 7299.566974 | CK18: 7183.56224
B19: =IFERROR('Input| Projects'!B19,"") -> 11 | C19: =IFERROR(IF('Input| Projects'!C19="","",'Input| Projects'!C19),"") -> Project 11 | D19: =IFERROR(IF('Input| Projects'!D19="","",'Input| Projects'!D19),"") -> 11 | E19: =IFERROR(IF('Input| Projects'!F19="","",'Input| Projects'!F19),"") -> Connections | G19: =IFERROR('Input| Projects'!I19*'Input| Escalations'!$J$19,"") -> 2087.338536 | H19: =IFERROR('Input| Projects'!J19*'Input| Escalations'!$J$19,"") -> 3207.491533 | I19: =IFERROR('Input| Projects'!K19*'Input| Escalations'!$J$19,"") -> 3267.174583 | J19: =IFERROR('Input| Projects'!L19*'Input| Escalations'!$J$19,"") -> 3328.166669 | K19: =IFERROR('Input| Projects'!M19*'Input| Escalations'!$J$19,"") -> 3268.981843 | L19: =IF(SUM(G19:K19)=SUM('Input| Projects'!I19:M19)*'Input| Escalations'!$J$19,"",1) ->  | M19: =IF($C19="","",IFERROR('Input| Projects'!$O19*(INDEX('Input| Escalations'!$C$23:$I$25,3,MATCH('Calc| Project Costs'!M$8,'Input| Escalations'!$C$23:$I$23,0))-1)+1,"")) -> 1.006060332 | N19: =IF($C19="","",IFERROR('Input| Projects'!$O19*(INDEX('Input| Escalations'!$C$23:$I$25,3,MATCH('Calc| Project Costs'!N$8,'Input| Escalations'!$C$23:$I$23,0))-1)+1,"")) -> 1.007020357 | O19: =IF($C19="","",IFERROR('Input| Projects'!$O19*(INDEX('Input| Escalations'!$C$23:$I$25,3,MATCH('Calc| Project Costs'!O$8,'Input| Escalations'!$C$23:$I$23,0))-1)+1,"")) -> 1.007908639 | P19: =IF($C19="","",IFERROR('Input| Projects'!$O19*(INDEX('Input| Escalations'!$C$23:$I$25,3,MATCH('Calc| Project Costs'!P$8,'Input| Escalations'!$C$23:$I$23,0))-1)+1,"")) -> 1.008983742 | Q19: =IF($C19="","",IFERROR('Input| Projects'!$O19*(INDEX('Input| Escalations'!$C$23:$I$25,3,MATCH('Calc| Project Costs'!Q$8,'Input| Escalations'!$C$23:$I$23,0))-1)+1,"")) -> 1.010389166 | S19: 2099.9885 | T19: 3230.009268 | U19: 3293.013488 | V19: 3358.066059 | W19: 3302.943839 | Y19: =IFERROR(S19*'Input| Projects'!$U19,"") -> 611.0966534 | Z19: =IFERROR(T19*'Input| Projects'!$U19,"") -> 939.932697 | AA19: =IFERROR(U19*'Input| Projects'!$U19,"") -> 958.2669249 | AB19: =IFERROR(V19*'Input| Projects'!$U19,"") -> 977.1972232 | AC19: =IFERROR(W19*'Input| Projects'!$U19,"") -> 961.1566573 | AE19: =IFERROR(S19*'Input| Projects'!$V19,"") -> 963.8947214 | AF19: =IFERROR(T19*'Input| Projects'!$V19,"") -> 1482.574254 | AG19: =IFERROR(U19*'Input| Projects'!$V19,"") -> 1511.493191 | AH19: =IFERROR(V19*'Input| Projects'!$V19,"") -> 1541.352321 | AI19: =IFERROR(W19*'Input| Projects'!$V19,"") -> 1516.051222 | AK19: 1488.891846 | AL19: 2290.076571 | AM19: 2334.746563 | AN19: 2380.868836 | AO19: 2341.787182 | AQ19: =IFERROR(IF('Input| Projects'!$R19="Yes", S19*'Calc| Overheads Allocation'!C$9,0),"") -> 338.5635467 | AR19: =IFERROR(IF('Input| Projects'!$R19="Yes", T19*'Calc| Overheads Allocation'!D$9,0),"") -> 521.8839528 | AS19: =IFERROR(IF('Input| Projects'!$R19="Yes", U19*'Calc| Overheads Allocation'!E$9,0),"") -> 533.1359677 | AT19: =IFERROR(IF('Input| Projects'!$R19="Yes", V19*'Calc| Overheads Allocation'!F$9,0),"") -> 544.9912602 | AU19: =IFERROR(IF('Input| Projects'!$R19="Yes", W19*'Calc| Overheads Allocation'!G$9,0),"") -> 537.7468335 | AW19: =IFERROR(IF('Input| Projects'!$S19="Yes", S19*'Calc| Overheads Allocation'!C$10,0),"") -> 239.8439697 | AX19: =IFERROR(IF('Input| Projects'!$S19="Yes", T19*'Calc| Overheads Allocation'!D$10,0),"") -> 369.7111522 | AY19: =IFERROR(IF('Input| Projects'!$S19="Yes", U19*'Calc| Overheads Allocation'!E$10,0),"") -> 377.6822641 | AZ19: =IFERROR(IF('Input| Projects'!$S19="Yes", V19*'Calc| Overheads Allocation'!F$10,0),"") -> 386.0807478 | BA19: =IFERROR(IF('Input| Projects'!$S19="Yes", W19*'Calc| Overheads Allocation'!G$10,0),"") -> 380.9486771 | BC19: 578.4075164 | BD19: 891.5951051 | BE19: 910.8182318 | BF19: 931.072008 | BG19: 918.6955106 | BI19: =IFERROR(BC19*'Input| Projects'!$V19,"") -> 265.48905 | BJ19: =IFERROR(BD19*'Input| Projects'!$V19,"") -> 409.2421532 | BK19: =IFERROR(BE19*'Input| Projects'!$V19,"") -> 418.0655684 | BL19: =IFERROR(BF19*'Input| Projects'!$V19,"") -> 427.3620517 | BM19: =IFERROR(BG19*'Input| Projects'!$V19,"") -> 421.6812394 | BO19: =IFERROR(AQ19*'Input| Projects'!$U19,"") -> 98.52199209 | BP19: =IFERROR(AR19*'Input| Projects'!$U19,"") -> 151.8682303 | BQ19: =IFERROR(AS19*'Input| Projects'!$U19,"") -> 155.1425666 | BR19: =IFERROR(AT19*'Input| Projects'!$U19,"") -> 158.5924567 | BS19: =IFERROR(AU19*'Input| Projects'!$U19,"") -> 156.4843285 | BU19: =IFERROR(AW19*'Input| Projects'!$U19,"") -> 69.79459518 | BV19: =IFERROR(AX19*'Input| Projects'!$U19,"") -> 107.5859453 | BW19: =IFERROR(AY19*'Input| Projects'!$U19,"") -> 109.9055389 | BX19: =IFERROR(AZ19*'Input| Projects'!$U19,"") -> 112.3494976 | BY19: =IFERROR(BA19*'Input| Projects'!$U19,"") -> 110.856065 | CA19: =IFERROR(BC19*'Input| Projects'!$U19,"") -> 168.3165873 | CB19: =IFERROR(BD19*'Input| Projects'!$U19,"") -> 259.4541756 | CC19: =IFERROR(BE19*'Input| Projects'!$U19,"") -> 265.0481055 | CD19: =IFERROR(BF19*'Input| Projects'!$U19,"") -> 270.9419543 | CE19: =IFERROR(BG19*'Input| Projects'!$U19,"") -> 267.3403936 | CG19: 1898.982775 | CH19: 2922.2175 | CI19: 2980.516689 | CJ19: 3040.99889 | CK19: 2993.142299
B20: =IFERROR('Input| Projects'!B20,"") -> 12 | C20: =IFERROR(IF('Input| Projects'!C20="","",'Input| Projects'!C20),"") -> Project 12 | D20: =IFERROR(IF('Input| Projects'!D20="","",'Input| Projects'!D20),"") -> 12 | E20: =IFERROR(IF('Input| Projects'!F20="","",'Input| Projects'!F20),"") -> Replacement | G20: =IFERROR('Input| Projects'!I20*'Input| Escalations'!$J$19,"") -> 2280.755545 | H20: =IFERROR('Input| Projects'!J20*'Input| Escalations'!$J$19,"") -> 2299.714057 | I20: =IFERROR('Input| Projects'!K20*'Input| Escalations'!$J$19,"") -> 2318.830158 | J20: =IFERROR('Input| Projects'!L20*'Input| Escalations'!$J$19,"") -> 2338.105161 | K20: =IFERROR('Input| Projects'!M20*'Input| Escalations'!$J$19,"") -> 2357.540384 | L20: =IF(SUM(G20:K20)=SUM('Input| Projects'!I20:M20)*'Input| Escalations'!$J$19,"",1) ->  | M20: =IF($C20="","",IFERROR('Input| Projects'!$O20*(INDEX('Input| Escalations'!$C$23:$I$25,3,MATCH('Calc| Project Costs'!M$8,'Input| Escalations'!$C$23:$I$23,0))-1)+1,"")) -> 1.017559479 | N20: =IF($C20="","",IFERROR('Input| Projects'!$O20*(INDEX('Input| Escalations'!$C$23:$I$25,3,MATCH('Calc| Project Costs'!N$8,'Input| Escalations'!$C$23:$I$23,0))-1)+1,"")) -> 1.020341099 | O20: =IF($C20="","",IFERROR('Input| Projects'!$O20*(INDEX('Input| Escalations'!$C$23:$I$25,3,MATCH('Calc| Project Costs'!O$8,'Input| Escalations'!$C$23:$I$23,0))-1)+1,"")) -> 1.022914849 | P20: =IF($C20="","",IFERROR('Input| Projects'!$O20*(INDEX('Input| Escalations'!$C$23:$I$25,3,MATCH('Calc| Project Costs'!P$8,'Input| Escalations'!$C$23:$I$23,0))-1)+1,"")) -> 1.0260299 | Q20: =IF($C20="","",IFERROR('Input| Projects'!$O20*(INDEX('Input| Escalations'!$C$23:$I$25,3,MATCH('Calc| Project Costs'!Q$8,'Input| Escalations'!$C$23:$I$23,0))-1)+1,"")) -> 1.030102041 | S20: 2320.804425 | T20: 2346.492769 | U20: 2371.965801 | V20: 2398.965803 | W20: 2428.507161 | Y20: =IFERROR(S20*'Input| Projects'!$U20,"") -> 0 | Z20: =IFERROR(T20*'Input| Projects'!$U20,"") -> 0 | AA20: =IFERROR(U20*'Input| Projects'!$U20,"") -> 0 | AB20: =IFERROR(V20*'Input| Projects'!$U20,"") -> 0 | AC20: =IFERROR(W20*'Input| Projects'!$U20,"") -> 0 | AE20: =IFERROR(S20*'Input| Projects'!$V20,"") -> 0 | AF20: =IFERROR(T20*'Input| Projects'!$V20,"") -> 0 | AG20: =IFERROR(U20*'Input| Projects'!$V20,"") -> 0 | AH20: =IFERROR(V20*'Input| Projects'!$V20,"") -> 0 | AI20: =IFERROR(W20*'Input| Projects'!$V20,"") -> 0 | AK20: 2320.804425 | AL20: 2346.492769 | AM20: 2371.965801 | AN20: 2398.965803 | AO20: 2428.507161 | AQ20: =IFERROR(IF('Input| Projects'!$R20="Yes", S20*'Calc| Overheads Allocation'!C$9,0),"") -> 374.1638477 | AR20: =IFERROR(IF('Input| Projects'!$R20="Yes", T20*'Calc| Overheads Allocation'!D$9,0),"") -> 379.131086 | AS20: =IFERROR(IF('Input| Projects'!$R20="Yes", U20*'Calc| Overheads Allocation'!E$9,0),"") -> 384.0191628 | AT20: =IFERROR(IF('Input| Projects'!$R20="Yes", V20*'Calc| Overheads Allocation'!F$9,0),"") -> 389.3358181 | AU20: =IFERROR(IF('Input| Projects'!$R20="Yes", W20*'Calc| Overheads Allocation'!G$9,0),"") -> 395.3812415 | AW20: =IFERROR(IF('Input| Projects'!$S20="Yes", S20*'Calc| Overheads Allocation'!C$10,0),"") -> 265.0638068 | AX20: =IFERROR(IF('Input| Projects'!$S20="Yes", T20*'Calc| Overheads Allocation'!D$10,0),"") -> 268.5826799 | AY20: =IFERROR(IF('Input| Projects'!$S20="Yes", U20*'Calc| Overheads Allocation'!E$10,0),"") -> 272.0454737 | AZ20: =IFERROR(IF('Input| Projects'!$S20="Yes", V20*'Calc| Overheads Allocation'!F$10,0),"") -> 275.8118795 | BA20: =IFERROR(IF('Input| Projects'!$S20="Yes", W20*'Calc| Overheads Allocation'!G$10,0),"") -> 280.0945566 | BC20: 639.2276545 | BD20: 647.713766 | BE20: 656.0646365 | BF20: 665.1476976 | BG20: 675.4757981 | BI20: =IFERROR(BC20*'Input| Projects'!$V20,"") -> 0 | BJ20: =IFERROR(BD20*'Input| Projects'!$V20,"") -> 0 | BK20: =IFERROR(BE20*'Input| Projects'!$V20,"") -> 0 | BL20: =IFERROR(BF20*'Input| Projects'!$V20,"") -> 0 | BM20: =IFERROR(BG20*'Input| Projects'!$V20,"") -> 0 | BO20: =IFERROR(AQ20*'Input| Projects'!$U20,"") -> 0 | BP20: =IFERROR(AR20*'Input| Projects'!$U20,"") -> 0 | BQ20: =IFERROR(AS20*'Input| Projects'!$U20,"") -> 0 | BR20: =IFERROR(AT20*'Input| Projects'!$U20,"") -> 0 | BS20: =IFERROR(AU20*'Input| Projects'!$U20,"") -> 0 | BU20: =IFERROR(AW20*'Input| Projects'!$U20,"") -> 0 | BV20: =IFERROR(AX20*'Input| Projects'!$U20,"") -> 0 | BW20: =IFERROR(AY20*'Input| Projects'!$U20,"") -> 0 | BX20: =IFERROR(AZ20*'Input| Projects'!$U20,"") -> 0 | BY20: =IFERROR(BA20*'Input| Projects'!$U20,"") -> 0 | CA20: =IFERROR(BC20*'Input| Projects'!$U20,"") -> 0 | CB20: =IFERROR(BD20*'Input| Projects'!$U20,"") -> 0 | CC20: =IFERROR(BE20*'Input| Projects'!$U20,"") -> 0 | CD20: =IFERROR(BF20*'Input| Projects'!$U20,"") -> 0 | CE20: =IFERROR(BG20*'Input| Projects'!$U20,"") -> 0 | CG20: 2960.032079 | CH20: 2994.206535 | CI20: 3028.030438 | CJ20: 3064.113501 | CK20: 3103.982959
B21: =IFERROR('Input| Projects'!B21,"") -> 13 | C21: =IFERROR(IF('Input| Projects'!C21="","",'Input| Projects'!C21),"") -> Project 13 | D21: =IFERROR(IF('Input| Projects'!D21="","",'Input| Projects'!D21),"") -> 13 | E21: =IFERROR(IF('Input| Projects'!F21="","",'Input| Projects'!F21),"") -> Replacement | G21: =IFERROR('Input| Projects'!I21*'Input| Escalations'!$J$19,"") -> 387.9016398 | H21: =IFERROR('Input| Projects'!J21*'Input| Escalations'!$J$19,"") -> 388.018994 | I21: =IFERROR('Input| Projects'!K21*'Input| Escalations'!$J$19,"") -> 406.8896065 | J21: =IFERROR('Input| Projects'!L21*'Input| Escalations'!$J$19,"") -> 423.5339565 | K21: =IFERROR('Input| Projects'!M21*'Input| Escalations'!$J$19,"") -> 440.1783065 | L21: =IF(SUM(G21:K21)=SUM('Input| Projects'!I21:M21)*'Input| Escalations'!$J$19,"",1) ->  | M21: =IF($C21="","",IFERROR('Input| Projects'!$O21*(INDEX('Input| Escalations'!$C$23:$I$25,3,MATCH('Calc| Project Costs'!M$8,'Input| Escalations'!$C$23:$I$23,0))-1)+1,"")) -> 1.00674655 | N21: =IF($C21="","",IFERROR('Input| Projects'!$O21*(INDEX('Input| Escalations'!$C$23:$I$25,3,MATCH('Calc| Project Costs'!N$8,'Input| Escalations'!$C$23:$I$23,0))-1)+1,"")) -> 1.00781528 | O21: =IF($C21="","",IFERROR('Input| Projects'!$O21*(INDEX('Input| Escalations'!$C$23:$I$25,3,MATCH('Calc| Project Costs'!O$8,'Input| Escalations'!$C$23:$I$23,0))-1)+1,"")) -> 1.008804144 | P21: =IF($C21="","",IFERROR('Input| Projects'!$O21*(INDEX('Input| Escalations'!$C$23:$I$25,3,MATCH('Calc| Project Costs'!P$8,'Input| Escalations'!$C$23:$I$23,0))-1)+1,"")) -> 1.010000982 | Q21: =IF($C21="","",IFERROR('Input| Projects'!$O21*(INDEX('Input| Escalations'!$C$23:$I$25,3,MATCH('Calc| Project Costs'!Q$8,'Input| Escalations'!$C$23:$I$23,0))-1)+1,"")) -> 1.011565544 | S21: 390.5186377 | T21: 391.0514712 | U21: 410.4719211 | V21: 427.7697117 | W21: 445.2692081 | Y21: =IFERROR(S21*'Input| Projects'!$U21,"") -> 0 | Z21: =IFERROR(T21*'Input| Projects'!$U21,"") -> 0 | AA21: =IFERROR(U21*'Input| Projects'!$U21,"") -> 0 | AB21: =IFERROR(V21*'Input| Projects'!$U21,"") -> 0 | AC21: =IFERROR(W21*'Input| Projects'!$U21,"") -> 0 | AE21: =IFERROR(S21*'Input| Projects'!$V21,"") -> 386.6134514 | AF21: =IFERROR(T21*'Input| Projects'!$V21,"") -> 387.1409565 | AG21: =IFERROR(U21*'Input| Projects'!$V21,"") -> 406.3672018 | AH21: =IFERROR(V21*'Input| Projects'!$V21,"") -> 423.4920146 | AI21: =IFERROR(W21*'Input| Projects'!$V21,"") -> 440.816516 | AK21: 390.5186377 | AL21: 391.0514712 | AM21: 410.4719211 | AN21: 427.7697117 | AO21: 445.2692081 | AQ21: =IFERROR(IF('Input| Projects'!$R21="Yes", S21*'Calc| Overheads Allocation'!C$9,0),"") -> 62.96004719 | AR21: =IFERROR(IF('Input| Projects'!$R21="Yes", T21*'Calc| Overheads Allocation'!D$9,0),"") -> 63.18356098 | AS21: =IFERROR(IF('Input| Projects'!$R21="Yes", U21*'Calc| Overheads Allocation'!E$9,0),"") -> 66.45504055 | AT21: =IFERROR(IF('Input| Projects'!$R21="Yes", V21*'Calc| Overheads Allocation'!F$9,0),"") -> 69.42411203 | AU21: =IFERROR(IF('Input| Projects'!$R21="Yes", W21*'Calc| Overheads Allocation'!G$9,0),"") -> 72.49354466 | AW21: =IFERROR(IF('Input| Projects'!$S21="Yes", S21*'Calc| Overheads Allocation'!C$10,0),"") -> 44.60193011 | AX21: =IFERROR(IF('Input| Projects'!$S21="Yes", T21*'Calc| Overheads Allocation'!D$10,0),"") -> 44.76027095 | AY21: =IFERROR(IF('Input| Projects'!$S21="Yes", U21*'Calc| Overheads Allocation'!E$10,0),"") -> 47.07784073 | AZ21: =IFERROR(IF('Input| Projects'!$S21="Yes", V21*'Calc| Overheads Allocation'!F$10,0),"") -> 49.18117967 | BA21: =IFERROR(IF('Input| Projects'!$S21="Yes", W21*'Calc| Overheads Allocation'!G$10,0),"") -> 51.35561609 | BC21: 107.5619773 | BD21: 107.9438319 | BE21: 113.5328813 | BF21: 118.6052917 | BG21: 123.8491607 | BI21: =IFERROR(BC21*'Input| Projects'!$V21,"") -> 106.4863575 | BJ21: =IFERROR(BD21*'Input| Projects'!$V21,"") -> 106.8643936 | BK21: =IFERROR(BE21*'Input| Projects'!$V21,"") -> 112.3975525 | BL21: =IFERROR(BF21*'Input| Projects'!$V21,"") -> 117.4192388 | BM21: =IFERROR(BG21*'Input| Projects'!$V21,"") -> 122.6106691 | BO21: =IFERROR(AQ21*'Input| Projects'!$U21,"") -> 0 | BP21: =IFERROR(AR21*'Input| Projects'!$U21,"") -> 0 | BQ21: =IFERROR(AS21*'Input| Projects'!$U21,"") -> 0 | BR21: =IFERROR(AT21*'Input| Projects'!$U21,"") -> 0 | BS21: =IFERROR(AU21*'Input| Projects'!$U21,"") -> 0 | BU21: =IFERROR(AW21*'Input| Projects'!$U21,"") -> 0 | BV21: =IFERROR(AX21*'Input| Projects'!$U21,"") -> 0 | BW21: =IFERROR(AY21*'Input| Projects'!$U21,"") -> 0 | BX21: =IFERROR(AZ21*'Input| Projects'!$U21,"") -> 0 | BY21: =IFERROR(BA21*'Input| Projects'!$U21,"") -> 0 | CA21: =IFERROR(BC21*'Input| Projects'!$U21,"") -> 0 | CB21: =IFERROR(BD21*'Input| Projects'!$U21,"") -> 0 | CC21: =IFERROR(BE21*'Input| Projects'!$U21,"") -> 0 | CD21: =IFERROR(BF21*'Input| Projects'!$U21,"") -> 0 | CE21: =IFERROR(BG21*'Input| Projects'!$U21,"") -> 0 | CG21: 498.080615 | CH21: 498.9953031 | CI21: 524.0048023 | CJ21: 546.3750034 | CK21: 569.1183689
B22: =IFERROR('Input| Projects'!B22,"") -> 14 | C22: =IFERROR(IF('Input| Projects'!C22="","",'Input| Projects'!C22),"") -> Project 14 | D22: =IFERROR(IF('Input| Projects'!D22="","",'Input| Projects'!D22),"") -> 14 | E22: =IFERROR(IF('Input| Projects'!F22="","",'Input| Projects'!F22),"") -> Replacement | G22: =IFERROR('Input| Projects'!I22*'Input| Escalations'!$J$19,"") -> 3918.864253 | H22: =IFERROR('Input| Projects'!J22*'Input| Escalations'!$J$19,"") -> 3920.04985 | I22: =IFERROR('Input| Projects'!K22*'Input| Escalations'!$J$19,"") -> 4110.69449 | J22: =IFERROR('Input| Projects'!L22*'Input| Escalations'!$J$19,"") -> 4278.84781 | K22: =IFERROR('Input| Projects'!M22*'Input| Escalations'!$J$19,"") -> 4447.001129 | L22: =IF(SUM(G22:K22)=SUM('Input| Projects'!I22:M22)*'Input| Escalations'!$J$19,"",1) ->  | M22: =IF($C22="","",IFERROR('Input| Projects'!$O22*(INDEX('Input| Escalations'!$C$23:$I$25,3,MATCH('Calc| Project Costs'!M$8,'Input| Escalations'!$C$23:$I$23,0))-1)+1,"")) -> 1.015940813 | N22: =IF($C22="","",IFERROR('Input| Projects'!$O22*(INDEX('Input| Escalations'!$C$23:$I$25,3,MATCH('Calc| Project Costs'!N$8,'Input| Escalations'!$C$23:$I$23,0))-1)+1,"")) -> 1.018466019 | O22: =IF($C22="","",IFERROR('Input| Projects'!$O22*(INDEX('Input| Escalations'!$C$23:$I$25,3,MATCH('Calc| Project Costs'!O$8,'Input| Escalations'!$C$23:$I$23,0))-1)+1,"")) -> 1.020802515 | P22: =IF($C22="","",IFERROR('Input| Projects'!$O22*(INDEX('Input| Escalations'!$C$23:$I$25,3,MATCH('Calc| Project Costs'!P$8,'Input| Escalations'!$C$23:$I$23,0))-1)+1,"")) -> 1.023630415 | Q22: =IF($C22="","",IFERROR('Input| Projects'!$O22*(INDEX('Input| Escalations'!$C$23:$I$25,3,MATCH('Calc| Project Costs'!Q$8,'Input| Escalations'!$C$23:$I$23,0))-1)+1,"")) -> 1.027327178 | S22: 3981.334136 | T22: 3992.437564 | U22: 4196.207274 | V22: 4379.958757 | W22: 4568.525121 | Y22: =IFERROR(S22*'Input| Projects'!$U22,"") -> 0 | Z22: =IFERROR(T22*'Input| Projects'!$U22,"") -> 0 | AA22: =IFERROR(U22*'Input| Projects'!$U22,"") -> 0 | AB22: =IFERROR(V22*'Input| Projects'!$U22,"") -> 0 | AC22: =IFERROR(W22*'Input| Projects'!$U22,"") -> 0 | AE22: =IFERROR(S22*'Input| Projects'!$V22,"") -> 3941.520795 | AF22: =IFERROR(T22*'Input| Projects'!$V22,"") -> 3952.513188 | AG22: =IFERROR(U22*'Input| Projects'!$V22,"") -> 4154.245201 | AH22: =IFERROR(V22*'Input| Projects'!$V22,"") -> 4336.15917 | AI22: =IFERROR(W22*'Input| Projects'!$V22,"") -> 4522.83987 | AK22: 3981.334136 | AL22: 3992.437564 | AM22: 4196.207274 | AN22: 4379.958757 | AO22: 4568.525121 | AQ22: =IFERROR(IF('Input| Projects'!$R22="Yes", S22*'Calc| Overheads Allocation'!C$9,0),"") -> 641.8771369 | AR22: =IFERROR(IF('Input| Projects'!$R22="Yes", T22*'Calc| Overheads Allocation'!D$9,0),"") -> 645.072173 | AS22: =IFERROR(IF('Input| Projects'!$R22="Yes", U22*'Calc| Overheads Allocation'!E$9,0),"") -> 679.3622419 | AT22: =IFERROR(IF('Input| Projects'!$R22="Yes", V22*'Calc| Overheads Allocation'!F$9,0),"") -> 710.8374883 | AU22: =IFERROR(IF('Input| Projects'!$R22="Yes", W22*'Calc| Overheads Allocation'!G$9,0),"") -> 743.7940325 | AW22: =IFERROR(IF('Input| Projects'!$S22="Yes", S22*'Calc| Overheads Allocation'!C$10,0),"") -> 454.716292 | AX22: =IFERROR(IF('Input| Projects'!$S22="Yes", T22*'Calc| Overheads Allocation'!D$10,0),"") -> 456.979708 | AY22: =IFERROR(IF('Input| Projects'!$S22="Yes", U22*'Calc| Overheads Allocation'!E$10,0),"") -> 481.2713552 | AZ22: =IFERROR(IF('Input| Projects'!$S22="Yes", V22*'Calc| Overheads Allocation'!F$10,0),"") -> 503.568936 | BA22: =IFERROR(IF('Input| Projects'!$S22="Yes", W22*'Calc| Overheads Allocation'!G$10,0),"") -> 526.9158925 | BC22: 1096.593429 | BD22: 1102.051881 | BE22: 1160.633597 | BF22: 1214.406424 | BG22: 1270.709925 | BI22: =IFERROR(BC22*'Input| Projects'!$V22,"") -> 1085.627495 | BJ22: =IFERROR(BD22*'Input| Projects'!$V22,"") -> 1091.031362 | BK22: =IFERROR(BE22*'Input| Projects'!$V22,"") -> 1149.027261 | BL22: =IFERROR(BF22*'Input| Projects'!$V22,"") -> 1202.26236 | BM22: =IFERROR(BG22*'Input| Projects'!$V22,"") -> 1258.002826 | BO22: =IFERROR(AQ22*'Input| Projects'!$U22,"") -> 0 | BP22: =IFERROR(AR22*'Input| Projects'!$U22,"") -> 0 | BQ22: =IFERROR(AS22*'Input| Projects'!$U22,"") -> 0 | BR22: =IFERROR(AT22*'Input| Projects'!$U22,"") -> 0 | BS22: =IFERROR(AU22*'Input| Projects'!$U22,"") -> 0 | BU22: =IFERROR(AW22*'Input| Projects'!$U22,"") -> 0 | BV22: =IFERROR(AX22*'Input| Projects'!$U22,"") -> 0 | BW22: =IFERROR(AY22*'Input| Projects'!$U22,"") -> 0 | BX22: =IFERROR(AZ22*'Input| Projects'!$U22,"") -> 0 | BY22: =IFERROR(BA22*'Input| Projects'!$U22,"") -> 0 | CA22: =IFERROR(BC22*'Input| Projects'!$U22,"") -> 0 | CB22: =IFERROR(BD22*'Input| Projects'!$U22,"") -> 0 | CC22: =IFERROR(BE22*'Input| Projects'!$U22,"") -> 0 | CD22: =IFERROR(BF22*'Input| Projects'!$U22,"") -> 0 | CE22: =IFERROR(BG22*'Input| Projects'!$U22,"") -> 0 | CG22: 5077.927565 | CH22: 5094.489445 | CI22: 5356.840871 | CJ22: 5594.365182 | CK22: 5839.235046
